Workbook

Sheet Instructions tab
I1: DO NOT DELETE OR ALTER THE SHEET NAMED xIRDS
A3: Instructions for Producing Income and Expenditure Account and Balance Sheet Report Prior to Performing Year End Routine
A5: Introduction
B6: This template has been developed in order to allow schools to produce the following finanical reports for the board of management in the event the previous financial year has not yet been closed off:
B7: 1 | C7: Income and Expenditure Account Report showing actual versus budgeted figures
B8: 2 | C8: Balance Sheet Report
B9: The steps below should be followed in order to produce the reports.
A11: Step 1. Enable Content
B12: 1. Upon opening the workbook the message above will appear along the top ribbon. Click on Enable Content.
A15: Step 2. The '1. Budget' Sheet - Import data from the Sage 50 Import Sheet from the Schools Budget Template for 2025/2026 into the sheet named '1. Budget'.
B17: 1. Open the excel budget file for 25/26 and go to the 'Sage 50 Import Sheet'
B19: 2. Copy the nominal codes from Column A row 5
B31: 3. In the this workbook paste the values into Column A row 1 on the '1. Budget' sheet
B34: 4. In the Budget Workbook for 2025/2026, on the 'Sage 50 Import Sheet' copy from column B row 5.
B46: 5. In this workbook paste into Column B row 1 on the '1. Budget' sheet
B48: 6. In the Budget Workbook for 2025/2026, on the 'Sage 50 Import Sheet' copy from column D row 5.
B60: 7. In this workbook paste the values into Column C row 1 on the '1. Budget 'sheet. Ensure you use the paste values option when pasting into this column
B63: 8. This will update the Budget figures in the '3.Income and Expenditure Report' sheet
A66: Step 3. | B66: ' Report' Sheet - This report pulls updated data from Sage 50 based on the criteria entered into the date fields.
B68: 1. Click on Connections
B76: 2. The below window will open.
J79: Click on connect workbook
J81: Select Version of Sage 50
J84: Click on Get Company List
J86: Select the correct company from the list
K88: Enter Login details
J94: Click on Refresh
B97: 3. Once completed successfully, the message below will appear - click on OK
B107: 4. Update the dates | E107: Trial balance to Date (To) is the date to run the reports too.
E108: End of Year (From) is the last day of the previous month you want to see.
B127: 5. On the Report sheet click on Update
B136: 6. This may take a few moments. Once completed succesully the below message will appear -click on OK
A152: The Period and Prior Year columns on the '3. Income and Expenditure Report' and '4. Balance Sheet Report' should now be populated.
A168: 1 | B168: To hide rows containing zero balances select the drop down arrow on the HIDE Zeros in column H button and unticked Zeros and select ok.
A199: 2 | B199: Inserting a New Row into the '3. Income and Expenditure Report 'or' 4. Balance Sheet '
B200: Enter the nominal code without any spaces before the code.
B201: Drag the formala in the cell above or below (NOT a Total Row ) into the new row cells so the correct data can be be populated from the Report Sheet.
B202: Ensure the Total row for the category into which a new row was added in including the new row in the summation of the category
I204: DO NOT DELETE OR ALTER THE SHEET NAMED xIRDS

Sheet 1.Budget

Sheet Report
A1: Updated: | B1: 30/03/2026 | C1: 09:16
A2: Trial Balance Start From Date | B2: 1980-01-01 | C2: Exclude YearEnd | D2: No
A3: Trial Balance To Date (To) | B3: 2026-08-31
A4: End of Year (From) | B4: 2025-08-31 | C4: Show as Bfwd | D4: Yes
A5: Show Values as | B5: Movement per Period
A8: Departments | B8: (All)
B9: B/F
A10: Amt (€) | B10: Periods
A11: Nominal | B11: 2025-07-31 | C11: 2025-09-30 | D11: 2025-10-31 | E11: 2025-11-30 | F11: 2025-12-31 | G11: 2026-01-31 | H11: 2026-02-28 | I11: 2026-03-31 | J11: 2026-04-30 | K11: 2026-05-31 | L11: 2026-06-30 | M11: 2026-07-31 | N11: 2026-08-31 | O11: Grand Total
A12: 1400 - Capital: Land and Buildings Cost B/Fwd | B12: 112373 | C12: 0 | D12: 0 | E12: 0 | F12: 0 | G12: 0 | H12: 0 | I12: 0 | J12: 0 | K12: 0 | L12: 0 | M12: 0 | N12: 0 | O12: 112373
A13: 1421 - Capital: Fixtures,fittings & Equipment Additions | B13: 5000 | C13: 1000 | D13: 0 | E13: 0 | F13: 0 | G13: 0 | H13: 0 | I13: 0 | J13: 0 | K13: 0 | L13: 0 | M13: 0 | N13: 0 | O13: 6000
A14: 1461 - Capital: ICT Additions | B14: 0 | C14: 0 | D14: 0 | E14: 0 | F14: 0 | G14: 0 | H14: 0 | I14: 0 | J14: 0 | K14: 1500 | L14: 0 | M14: 0 | N14: 1800 | O14: 3300
A15: 1700 - Sales Ledger Control | B15: 500 | C15: 30 | D15: 0 | E15: 0 | F15: 0 | G15: 0 | H15: 0 | I15: 0 | J15: 0 | K15: 0 | L15: 0 | M15: 0 | N15: 0 | O15: 530
A16: 1705 - Debtors | B16: 0 | C16: 0 | D16: 10 | E16: 0 | F16: 0 | G16: 0 | H16: 0 | I16: 0 | J16: 0 | K16: 0 | L16: 0 | M16: 0 | N16: 0 | O16: 10
A17: 1720 - Prepayments | B17: 27500 | C17: -18041.66 | D17: 0 | E17: 0 | F17: 16401.66 | G17: 0 | H17: 0 | I17: 0 | J17: 0 | K17: 0 | L17: 0 | M17: 25255.43 | N17: 0 | O17: 51115.43
A18: 1730 - Grants Due | B18: 8500 | C18: 0 | D18: 0 | E18: 3289 | F18: 0 | G18: 0 | H18: 0 | I18: 0 | J18: 0 | K18: 0 | L18: 0 | M18: 0 | N18: 0 | O18: 11789
A19: 1800 - Current Account 1 | B19: 390022.72 | C19: -33158.4 | D19: -7852.2 | E19: -37352.2 | F19: -6909.05 | G19: 64185.33 | H19: -8356.44 | I19: 118360.27 | J19: 46567.56 | K19: 4499.72 | L19: 12322.05 | M19: -33259.29 | N19: -76102 | O19: 432968.07
A20: 1801 - Current Account 2 | B20: 615 | C20: 0 | D20: 0 | E20: 0 | F20: 0 | G20: 0 | H20: 0 | I20: 0 | J20: 0 | K20: 0 | L20: 0 | M20: 0 | N20: 0 | O20: 615
A21: 1803 - DSP School Meal Bank Account | B21: 250 | C21: 0 | D21: 0 | E21: 0 | F21: 0 | G21: 0 | H21: 0 | I21: 0 | J21: 0 | K21: 0 | L21: 0 | M21: 0 | N21: 0 | O21: 250
A22: 1811 - Lotto Control Account | B22: 0 | C22: 0 | D22: 0 | E22: 0 | F22: 0 | G22: 7.815970093e-14 | H22: 0 | I22: 0 | J22: 0 | K22: 0 | L22: 0 | M22: 0 | N22: 0 | O22: 7.815970093e-14
A23: 1850 - Credit Card Account | B23: 0 | C23: 0 | D23: 0 | E23: 0 | F23: 0 | G23: 0 | H23: 0 | I23: 0 | J23: 0 | K23: 0 | L23: 0 | M23: 0 | N23: 0 | O23: 0
A24: 1900 - Petty Cash Account | B24: 50 | C24: 0 | D24: 0 | E24: 0 | F24: 0 | G24: -60 | H24: 0 | I24: 0 | J24: 0 | K24: 0 | L24: 0 | M24: 0 | N24: 0 | O24: -10
A25: 1950 - Cash Control Account | B25: 100 | C25: 0 | D25: 0 | E25: 0 | F25: 0 | G25: 0 | H25: 0 | I25: 0 | J25: 0 | K25: 0 | L25: 0 | M25: 0 | N25: 0 | O25: 100
A26: 2100 - Creditors Control Account | B26: -1500 | C26: 0 | D26: 0 | E26: 0 | F26: 0 | G26: 0 | H26: 0 | I26: 0 | J26: 0 | K26: 0 | L26: 0 | M26: 0 | N26: 0 | O26: -1500
A27: 2105 - School Income Received in Advance | B27: -6425 | C27: 16425 | D27: 0 | E27: -600 | F27: 0 | G27: 0 | H27: 0 | I27: 0 | J27: 0 | K27: -1550 | L27: 0 | M27: 0 | N27: 0 | O27: 7850
A28: 2150 - Grants Received in Advance | B28: -13000 | C28: 13000 | D28: 0 | E28: 0 | F28: 0 | G28: 0 | H28: 0 | I28: 0 | J28: 0 | K28: 0 | L28: 0 | M28: 0 | N28: 0 | O28: 0
A29: 2151 - Book Grant Received in Advance | B29: -132292 | C29: 0 | D29: 0 | E29: 0 | F29: 0 | G29: 0 | H29: 0 | I29: 0 | J29: 0 | K29: 0 | L29: 0 | M29: 0 | N29: -136285.57 | O29: -268577.57
A30: 2160 - Book Grant Unspent | B30: -4350 | C30: 4350 | D30: 0 | E30: -16422 | F30: 0 | G30: 0 | H30: 0 | I30: 0 | J30: 0 | K30: 0 | L30: 0 | M30: 0 | N30: 0 | O30: -16422
A31: 2165 - ICT Grant Unspent | B31: -676.45 | C31: 0 | D31: 0 | E31: 0 | F31: 0 | G31: 0 | H31: 0 | I31: 0 | J31: 0 | K31: 0 | L31: 0 | M31: 0 | N31: 0 | O31: -676.45
A32: 2170 - Supervision and Substitution Grant Unspent | B32: 0 | C32: 0 | D32: 0 | E32: 0 | F32: 0 | G32: 0 | H32: 0 | I32: 0 | J32: 0 | K32: 0 | L32: 0 | M32: 0 | N32: -254.04 | O32: -254.04
A33: 2172 - Other Non Capital Ringfenced Income Unspent | B33: 0 | C33: 0 | D33: 0 | E33: 0 | F33: 0 | G33: 0 | H33: 0 | I33: 0 | J33: 0 | K33: 0 | L33: 0 | M33: 0 | N33: 0 | O33: 0
A34: 2200 - Net Wages Control Account | B34: 0 | C34: 0 | D34: 0 | E34: 0 | F34: 0 | G34: 0 | H34: 0 | I34: 0 | J34: 0 | K34: 0 | L34: 0 | M34: 0 | N34: 0 | O34: 0
A35: 2250 - PAYE/PRSI/USC/LPT Control Account | B35: 5074.24 | C35: 0 | D35: 0 | E35: 0 | F35: 0 | G35: 0 | H35: 0 | I35: 0 | J35: 0 | K35: 0 | L35: 0 | M35: 0 | N35: 0 | O35: 5074.24
A36: 2260 - Reverse VAT Control Account | B36: 0 | C36: 0 | D36: 0 | E36: 0 | F36: 0 | G36: 0 | H36: 0 | I36: 0 | J36: 0 | K36: 0 | L36: 0 | M36: 0 | N36: 0 | O36: 0
A37: 2270 - RCT Control Account | B37: 0 | C37: 0 | D37: 0 | E37: 0 | F37: 0 | G37: 0 | H37: 0 | I37: 0 | J37: 0 | K37: 0 | L37: 0 | M37: 0 | N37: 0 | O37: 0
A38: 2320 - Other Loan | B38: 0 | C38: 0 | D38: 0 | E38: 0 | F38: 0 | G38: 0 | H38: 0 | I38: 0 | J38: 0 | K38: 0 | L38: 0 | M38: 0 | N38: 0 | O38: 0
A39: 2440 - Accruals | B39: -1001.11 | C39: 1001.11 | D39: 0 | E39: 0 | F39: -5280 | G39: 0 | H39: 0 | I39: 0 | J39: 0 | K39: 0 | L39: 0 | M39: 0 | N39: 0 | O39: -5280
A40: 2700 - Retained Surplus | B40: 120 | C40: 0 | D40: 0 | E40: 0 | F40: 0 | G40: 0 | H40: 0 | I40: 0 | J40: 0 | K40: 0 | L40: 0 | M40: 0 | N40: 0 | O40: 120
A41: 2710 - Surplus Brought Forward | B41: -385860.4 | C41: 0 | D41: 0 | E41: 0 | F41: 0 | G41: 0 | H41: 0 | I41: 0 | J41: 0 | K41: 0 | L41: 0 | M41: 0 | N41: 0 | O41: -385860.4
A42: 3010 - Capitation | B42: 0 | C42: -55970 | D42: 0 | E42: 0 | F42: 0 | G42: -55970 | H42: 0 | I42: 0 | J42: -59830 | K42: 0 | L42: 0 | M42: 0 | N42: 0 | O42: -171770
A43: 3020 - DEIS Grant | B43: 0 | C43: 0 | D43: 0 | E43: 0 | F43: 0 | G43: 0 | H43: 0 | I43: 0 | J43: 0 | K43: 0 | L43: 0 | M43: 0 | N43: 0 | O43: 0
A44: 3050 - Ancillary/School Support Services Grant | B44: 0 | C44: -18307 | D44: 0 | E44: 0 | F44: 0 | G44: -18307 | H44: 0 | I44: 0 | J44: -18308 | K44: 0 | L44: 0 | M44: 0 | N44: 0 | O44: -54922
A45: 3130 - Caretaker Grant | B45: 0 | C45: -6358 | D45: 0 | E45: 0 | F45: 0 | G45: -6358 | H45: 0 | I45: 0 | J45: -6358 | K45: 0 | L45: 0 | M45: 0 | N45: 0 | O45: -19074
A46: 3150 - DO NOT USE -Book Grant Senior Cycle Income | B46: 0 | C46: 0 | D46: 0 | E46: 0 | F46: 0 | G46: 0 | H46: 0 | I46: 0 | J46: 0 | K46: 0 | L46: 0 | M46: 0 | N46: 0 | O46: 0
A47: 3151 - Free Schoolbook Grant | B47: 0 | C47: -4350 | D47: 0 | E47: 16422 | F47: 0 | G47: 0 | H47: 0 | I47: -136285.57 | J47: 0 | K47: 0 | L47: 0 | M47: 0 | N47: 136285.57 | O47: 12072
A48: 3152 - Free Schoolbook Admin Grant | B48: 0 | C48: -5612.23 | D48: 0 | E48: 0 | F48: 0 | G48: 0 | H48: 0 | I48: 0 | J48: 0 | K48: 0 | L48: 0 | M48: 0 | N48: 0 | O48: -5612.23
A49: 3171 - Irish and Bilingual School Grant | B49: 0 | C49: 0 | D49: 0 | E49: 0 | F49: 0 | G49: 0 | H49: 0 | I49: 0 | J49: 0 | K49: -122.26 | L49: 0 | M49: 0 | N49: 0 | O49: -122.26
A50: 3190 - JCSP Grant | B50: 0 | C50: 0 | D50: 0 | E50: 0 | F50: 0 | G50: 0 | H50: 0 | I50: 0 | J50: 0 | K50: 0 | L50: -6300 | M50: 0 | N50: 0 | O50: -6300
A51: 3200 - Transition Year Grant | B51: 0 | C51: 0 | D51: 0 | E51: 0 | F51: 0 | G51: 0 | H51: 0 | I51: 0 | J51: 0 | K51: 0 | L51: -1900 | M51: 0 | N51: 0 | O51: -1900
A52: 3210 - Leaving Certificate Applied Grant | B52: 0 | C52: 0 | D52: 0 | E52: 0 | F52: 0 | G52: 0 | H52: 0 | I52: 0 | J52: 0 | K52: 0 | L52: -1590 | M52: 0 | N52: 0 | O52: -1590
A53: 3220 - Grant for Traveller Students | B53: 0 | C53: 0 | D53: 0 | E53: 0 | F53: -239.5 | G53: 0 | H53: 0 | I53: 0 | J53: 0 | K53: 0 | L53: 0 | M53: 0 | N53: 0 | O53: -239.5
A54: 3230 - ICT Grant Non Capital | B54: 0 | C54: 0 | D54: 0 | E54: 0 | F54: 0 | G54: 0 | H54: 0 | I54: 0 | J54: 0 | K54: -15528 | L54: 0 | M54: 0 | N54: 0 | O54: -15528
A55: 3240 - Supervision and Substitution Grant | B55: 0 | C55: 0 | D55: 0 | E55: 0 | F55: -9552.15 | G55: 0 | H55: 0 | I55: 0 | J55: 0 | K55: 0 | L55: -11674.85 | M55: 0 | N55: 254.04 | O55: -20972.96
A56: 3245 - Science Subjects Grant | B56: 0 | C56: -13000 | D56: 0 | E56: 0 | F56: 0 | G56: 0 | H56: 0 | I56: 0 | J56: 0 | K56: 0 | L56: 0 | M56: 0 | N56: 0 | O56: -13000
A57: 3255 - State Exam Income | B57: 0 | C57: 0 | D57: 0 | E57: -3289 | F57: 0 | G57: 0 | H57: 0 | I57: 0 | J57: 0 | K57: 0 | L57: 0 | M57: 0 | N57: 0 | O57: -3289
A58: 3290 - Other Non Capital DEY Grant Income | B58: 0 | C58: 0 | D58: 0 | E58: 0 | F58: 0 | G58: 0 | H58: 0 | I58: 0 | J58: 0 | K58: 0 | L58: 0 | M58: 0 | N58: 0 | O58: 0
A59: 3296 - DSP School Meals Grant | B59: 0 | C59: 0 | D59: 0 | E59: 0 | F59: 0 | G59: 0 | H59: 0 | I59: 0 | J59: 0 | K59: 0 | L59: 0 | M59: 0 | N59: 0 | O59: 0
A60: 3300 - Education Fees (Fee Charging Schools) | B60: 0 | C60: 0 | D60: 0 | E60: 0 | F60: 0 | G60: 0 | H60: 0 | I60: 0 | J60: 0 | K60: 0 | L60: 0 | M60: 0 | N60: 0 | O60: 0
A61: 3310 - Transition Year Income | B61: 0 | C61: -6000 | D61: 0 | E61: 0 | F61: 0 | G61: 0 | H61: 0 | I61: 0 | J61: 0 | K61: -400 | L61: 0 | M61: 0 | N61: 0 | O61: -6400
A62: 3350 - Hire of Facilities Rental Income | B62: 0 | C62: -30 | D62: 0 | E62: -2000 | F62: 0 | G62: 0 | H62: 0 | I62: -2000 | J62: 0 | K62: 0 | L62: -2000 | M62: 0 | N62: 0 | O62: -6030
A63: 3370 - Locker Income | B63: 0 | C63: -3050 | D63: -10 | E63: 0 | F63: 0 | G63: 0 | H63: 0 | I63: 0 | J63: 0 | K63: -566 | L63: 0 | M63: 0 | N63: 0 | O63: -3626
A64: 3375 - Journals and Year Book Income | B64: 0 | C64: -875 | D64: 0 | E64: 0 | F64: 0 | G64: 0 | H64: 0 | I64: 0 | J64: 0 | K64: -337.5 | L64: 0 | M64: 0 | N64: 0 | O64: -1212.5
A65: 3390 - School Administration Charges | B65: 0 | C65: -6500 | D65: 0 | E65: 0 | F65: 0 | G65: 0 | H65: 0 | I65: 0 | J65: 0 | K65: -2100 | L65: 0 | M65: 0 | N65: 0 | O65: -8600
A66: 3510 - Bus Hire for Games Income | B66: 0 | C66: 0 | D66: 0 | E66: 0 | F66: 0 | G66: 0 | H66: 0 | I66: 0 | J66: -1050 | K66: 0 | L66: 0 | M66: 0 | N66: 0 | O66: -1050
A67: 3520 - School Musical/Drama Income | B67: 0 | C67: 0 | D67: 0 | E67: 0 | F67: 0 | G67: 0 | H67: 0 | I67: 0 | J67: 0 | K67: 0 | L67: 0 | M67: 0 | N67: 0 | O67: 0
A68: 3575 - Unrestricted School Fundraising (Non Capital) | B68: 0 | C68: 0 | D68: 0 | E68: 0 | F68: 0 | G68: -0.23 | H68: 0 | I68: 0 | J68: 0 | K68: 0 | L68: 0 | M68: 0 | N68: 0 | O68: -0.23
A69: 3920 - DE Fixtures, Fittings & Equipment Grant Income | B69: -5000 | C69: 0 | D69: 0 | E69: 0 | F69: 0 | G69: 0 | H69: 0 | I69: 0 | J69: 0 | K69: 0 | L69: 0 | M69: 0 | N69: 0 | O69: -5000
A70: 4113 - Free Schoolbook Admin Wages Expense | B70: 0 | C70: 0 | D70: 0 | E70: 0 | F70: 0 | G70: 0 | H70: 0 | I70: 0 | J70: 0 | K70: 4205.6 | L70: 1406.5 | M70: 0 | N70: 0 | O70: 5612.1
A71: 4150 - Supervision and Substitution Wages Expense | B71: 0 | C71: 2000 | D71: 2250 | E71: 2575 | F71: 1685 | G71: 2822 | H71: 2567 | I71: 2234 | J71: 1989 | K71: 1254 | L71: 0 | M71: 0 | N71: 0 | O71: 19376
A72: 4155 - State Exam Wages Expense | B72: 0 | C72: 0 | D72: 0 | E72: 0 | F72: 0 | G72: 0 | H72: 0 | I72: 0 | J72: 0 | K72: 0 | L72: 0 | M72: 3500 | N72: 0 | O72: 3500
A73: 4390 - Science Subjects Expense | B73: 0 | C73: 2000 | D73: 0 | E73: 8525 | F73: 0 | G73: 0 | H73: 0 | I73: 0 | J73: 0 | K73: 0 | L73: 0 | M73: 0 | N73: 0 | O73: 10525
A74: 4410 - ICT Grant Non - Capital Expense | B74: 0 | C74: 9750 | D74: 1200 | E74: 1080 | F74: 1800 | G74: 0 | H74: 0 | I74: 0 | J74: 0 | K74: 0 | L74: 0 | M74: 0 | N74: -1800 | O74: 12030
A75: 4420 - Computer Maintenance & Support Expense | B75: 0 | C75: 300 | D75: 0 | E75: 0 | F75: 500 | G75: 0 | H75: 0 | I75: 200 | J75: 300 | K75: 0 | L75: 0 | M75: 0 | N75: 0 | O75: 1300
A76: 4550 - Leaving Cert Applied Expense | B76: 0 | C76: 0 | D76: 0 | E76: 1589 | F76: 0 | G76: 0 | H76: 0 | I76: 0 | J76: 0 | K76: 0 | L76: 0 | M76: 0 | N76: 0 | O76: 1589
A77: 4590 - Transition Year Expense | B77: 0 | C77: 0 | D77: 0 | E77: 1899 | F77: 0 | G77: 0 | H77: 0 | I77: 0 | J77: 0 | K77: 0 | L77: 0 | M77: 0 | N77: 0 | O77: 1899
A78: 4671 - Bus Hire for Games Expense | B78: 0 | C78: 0 | D78: 0 | E78: 0 | F78: 0 | G78: 0 | H78: 0 | I78: 0 | J78: 2500 | K78: 0 | L78: 0 | M78: 0 | N78: 0 | O78: 2500
A79: 4710 - School Tours Expense | B79: 0 | C79: 0 | D79: 0 | E79: 0 | F79: 0 | G79: 0 | H79: 0 | I79: 0 | J79: 0 | K79: 0 | L79: 0 | M79: 0 | N79: 0 | O79: 0
A80: 4731 - Free Schoolbook Grant Expense | B80: 0 | C80: 97223 | D80: 0 | E80: 15482 | F80: 7515 | G80: 0 | H80: 0 | I80: 0 | J80: 0 | K80: 0 | L80: 0 | M80: 0 | N80: 0 | O80: 120220
A81: 4770 - Trophies and Prizes Expense | B81: 0 | C81: 0 | D81: 0 | E81: 0 | F81: 0 | G81: 0 | H81: 0 | I81: 0 | J81: 0 | K81: 0 | L81: 0 | M81: 0 | N81: 0 | O81: 0
A82: 4919 - Special Educational Equipment (Non Capital) Expense | B82: 0 | C82: 0 | D82: 0 | E82: 0 | F82: 0 | G82: 0 | H82: 0 | I82: 0 | J82: 0 | K82: 0 | L82: 0 | M82: 0 | N82: 0 | O82: 0
A83: 4920 - School Dance Expense | B83: 0 | C83: 0 | D83: 0 | E83: 0 | F83: 0 | G83: 0 | H83: 0 | I83: 0 | J83: 0 | K83: 0 | L83: 0 | M83: 0 | N83: 0 | O83: 0
A84: 5010 - Caretaker Wages Expense | B84: 0 | C84: 2943 | D84: 2354.4 | E84: 2354.4 | F84: 2943.45 | G84: 2771.76 | H84: 2471.76 | I84: 3089.7 | J84: 2934.47 | K84: 2471.76 | L84: 3389.7 | M84: 617.94 | N84: 0 | O84: 28342.34
A85: 5030 - Caretaker Employer Pension Expense | B85: 0 | C85: 0 | D85: 0 | E85: 0 | F85: 0 | G85: 37.08 | H85: 37.08 | I85: 46.35 | J85: 37.08 | K85: 37.08 | L85: 46.35 | M85: 9.27 | N85: 0 | O85: 250.29
A86: 5110 - Cleaners Wages Expense | B86: 0 | C86: 2117.25 | D86: 1645.8 | E86: 1645.8 | F86: 2057.25 | G86: 1850.84 | H86: 1850.84 | I86: 10163.55 | J86: 1388.13 | K86: 1850.84 | L86: 2313.55 | M86: 462.71 | N86: 0 | O86: 27346.56
A87: 5112 - Cleaners Employer Pension Expense | B87: 0 | C87: 0 | D87: 0 | E87: 0 | F87: 0 | G87: 90.22 | H87: 27.76 | I87: 34.7 | J87: 27.76 | K87: 27.76 | L87: 34.7 | M87: 6.94 | N87: 0 | O87: 249.84
A88: 5310 - Repairs to Buildings and Grounds Expense | B88: 0 | C88: 0 | D88: 0 | E88: 500 | F88: 0 | G88: 0 | H88: 0 | I88: 0 | J88: 1000 | K88: 0 | L88: 500 | M88: 0 | N88: 75000 | O88: 77000
A89: 5400 - Routine Security Expense | B89: 0 | C89: 750 | D89: 0 | E89: 750 | F89: 0 | G89: 0 | H89: 750 | I89: 0 | J89: 0 | K89: 750 | L89: 0 | M89: 0 | N89: 750 | O89: 3750
A90: 5450 - General Insurance Expense | B90: 0 | C90: 16041.66 | D90: 0 | E90: 0 | F90: -16401.66 | G90: 0 | H90: 0 | I90: 0 | J90: 27500 | K90: 0 | L90: 0 | M90: 0 | N90: 0 | O90: 27140
A91: 5510 - Heating Expense | B91: 0 | C91: 2500 | D91: 0 | E91: 0 | F91: 0 | G91: 2500 | H91: 0 | I91: 0 | J91: 1000 | K91: 0 | L91: 0 | M91: 0 | N91: 0 | O91: 6000
A92: 5550 - Light and Power Expense | B92: 0 | C92: -30.12 | D92: 0 | E92: 3000 | F92: 780 | G92: 3234 | H92: 0 | I92: 3855 | J92: 0 | K92: 3455 | L92: 0 | M92: 3255 | N92: 0 | O92: 17548.88
A93: 5610 - Refuse/Waste Disposal Expense | B93: 0 | C93: 0 | D93: 300 | E93: 200 | F93: 200 | G93: 0 | H93: 350 | I93: 200 | J93: 200 | K93: 200 | L93: 350 | M93: 50 | N93: 250 | O93: 2300
A94: 5611 - Water Rates Expense | B94: 0 | C94: 0 | D94: 0 | E94: 0 | F94: 0 | G94: 3000 | H94: 0 | I94: 0 | J94: 0 | K94: 0 | L94: 3000 | M94: 0 | N94: 0 | O94: 6000
A95: 6250 - Telephone Expense / SMS Text | B95: 0 | C95: 51.6 | D95: 102 | E95: 102 | F95: 0 | G95: 204 | H95: 102 | I95: 102 | J95: 102 | K95: 102 | L95: 102 | M95: 102 | N95: 102 | O95: 1173.6
A96: 6350 - Office Equipment (Non Capital) Expense | B96: 0 | C96: -200.21 | D96: 0 | E96: 0 | F96: 0 | G96: 0 | H96: 0 | I96: 0 | J96: 0 | K96: 0 | L96: 0 | M96: 0 | N96: 0 | O96: -200.21
A97: 6400 - Accounting / Auditing Expense | B97: 0 | C97: 0 | D97: 0 | E97: 0 | F97: 4500 | G97: 0 | H97: 0 | I97: 0 | J97: 0 | K97: 0 | L97: 0 | M97: 0 | N97: 0 | O97: 4500
A98: 7450 - Bank Charges Expense | B98: 0 | C98: 0 | D98: 0 | E98: 250 | F98: 0 | G98: 0 | H98: 200 | I98: 0 | J98: 0 | K98: 250 | L98: 0 | M98: 0 | N98: 0 | O98: 700

Sheet 3.Income and Expenditure Report
A1: Income & Expenditure Report | H1: DO NOT DELETE OR ENTER DATA IN THIS COLUMN
A2: Name of School:
A3: Roll number: | H3: HIDE Zeros
A4: From:
A5: To:
A8: Nominal Code | B8: Description | C8: Period | D8: Budget | E8: Difference | F8: Prior Year
A9: Income
A11: Department of Education Income
A12: 3010 | B12: Capitation/Non Pay Budget | C12: =-IFERROR(INDEX(Report!$A:$Z,MATCH(TRUE,ISNUMBER(SEARCH('3.Income and Expenditure Report'!A12,Report!$A:$A)),0),MATCH("Grand Total",Report!$11:$11,0)),"0")-F12 -> 171770 | D12: =IFERROR(VLOOKUP(A12,'1.Budget'!$A$1:$C$600,3,FALSE),0) -> 0 | E12: =C12-D12 -> 171770 | F12: =-IFERROR(INDEX(Report!$B$12:$B$600,MATCH(TRUE,ISNUMBER(SEARCH(A12,Report!$A$12:$A$600)),0)),0) -> 0 | H12: =IF(AND(C12=0,D12=0,E12=0,F12=0),"zeros","") -> 
A13: 3020 | B13: DEIS Grant | C13: =-IFERROR(INDEX(Report!$A:$Z,MATCH(TRUE,ISNUMBER(SEARCH('3.Income and Expenditure Report'!A13,Report!$A:$A)),0),MATCH("Grand Total",Report!$11:$11,0)),"0")-F13 -> 0 | D13: =IFERROR(VLOOKUP(A13,'1.Budget'!$A$1:$C$600,3,FALSE),0) -> 0 | E13: =C13-D13 -> 0 | F13: =-IFERROR(INDEX(Report!$B$12:$B$600,MATCH(TRUE,ISNUMBER(SEARCH(A13,Report!$A$12:$A$600)),0)),0) -> 0 | H13: zeros
A14: 3021 | B14: Early Start Programme Materials/Equipment/Parental Involvement Grant Income | C14: =-IFERROR(INDEX(Report!$A:$Z,MATCH(TRUE,ISNUMBER(SEARCH('3.Income and Expenditure Report'!A14,Report!$A:$A)),0),MATCH("Grand Total",Report!$11:$11,0)),"0")-F14 -> 0 | D14: =IFERROR(VLOOKUP(A14,'1.Budget'!$A$1:$C$600,3,FALSE),0) -> 0 | E14: 0 | F14: =-IFERROR(INDEX(Report!$B$12:$B$600,MATCH(TRUE,ISNUMBER(SEARCH(A14,Report!$A$12:$A$600)),0)),0) -> 0 | H14: zeros
A15: 3022 | B15: Early Start Programme Capitation | C15: =-IFERROR(INDEX(Report!$A:$Z,MATCH(TRUE,ISNUMBER(SEARCH('3.Income and Expenditure Report'!A15,Report!$A:$A)),0),MATCH("Grand Total",Report!$11:$11,0)),"0")-F15 -> 0 | D15: =IFERROR(VLOOKUP(A15,'1.Budget'!$A$1:$C$600,3,FALSE),0) -> 0 | E15: 0 | F15: =-IFERROR(INDEX(Report!$B$12:$B$600,MATCH(TRUE,ISNUMBER(SEARCH(A15,Report!$A$12:$A$600)),0)),0) -> 0 | H15: zeros
A16: 3030 | B16: Non Teachers Pay Budget | C16: =-IFERROR(INDEX(Report!$A:$Z,MATCH(TRUE,ISNUMBER(SEARCH('3.Income and Expenditure Report'!A16,Report!$A:$A)),0),MATCH("Grand Total",Report!$11:$11,0)),"0")-F16 -> 0 | D16: =IFERROR(VLOOKUP(A16,'1.Budget'!$A$1:$C$600,3,FALSE),0) -> 0 | E16: 0 | F16: =-IFERROR(INDEX(Report!$B$12:$B$600,MATCH(TRUE,ISNUMBER(SEARCH(A16,Report!$A$12:$A$600)),0)),0) -> 0 | H16: zeros
A17: 3050 | B17: Ancillary/School Support Services Grant | C17: =-IFERROR(INDEX(Report!$A:$Z,MATCH(TRUE,ISNUMBER(SEARCH('3.Income and Expenditure Report'!A17,Report!$A:$A)),0),MATCH("Grand Total",Report!$11:$11,0)),"0")-F17 -> 54922 | D17: =IFERROR(VLOOKUP(A17,'1.Budget'!$A$1:$C$600,3,FALSE),0) -> 0 | E17: 54922 | F17: =-IFERROR(INDEX(Report!$B$12:$B$600,MATCH(TRUE,ISNUMBER(SEARCH(A17,Report!$A$12:$A$600)),0)),0) -> 0
A18: 3100 | B18: Secretarial Grant | C18: =-IFERROR(INDEX(Report!$A:$Z,MATCH(TRUE,ISNUMBER(SEARCH('3.Income and Expenditure Report'!A18,Report!$A:$A)),0),MATCH("Grand Total",Report!$11:$11,0)),"0")-F18 -> 0 | D18: =IFERROR(VLOOKUP(A18,'1.Budget'!$A$1:$C$600,3,FALSE),0) -> 0 | E18: 0 | F18: =-IFERROR(INDEX(Report!$B$12:$B$600,MATCH(TRUE,ISNUMBER(SEARCH(A18,Report!$A$12:$A$600)),0)),0) -> 0 | H18: zeros
A19: 3130 | B19: Caretaker Grant | C19: =-IFERROR(INDEX(Report!$A:$Z,MATCH(TRUE,ISNUMBER(SEARCH('3.Income and Expenditure Report'!A19,Report!$A:$A)),0),MATCH("Grand Total",Report!$11:$11,0)),"0")-F19 -> 19074 | D19: =IFERROR(VLOOKUP(A19,'1.Budget'!$A$1:$C$600,3,FALSE),0) -> 0 | E19: 19074 | F19: =-IFERROR(INDEX(Report!$B$12:$B$600,MATCH(TRUE,ISNUMBER(SEARCH(A19,Report!$A$12:$A$600)),0)),0) -> 0
A20: 3140 | B20: Special Education Equipment Grant | C20: =-IFERROR(INDEX(Report!$A:$Z,MATCH(TRUE,ISNUMBER(SEARCH('3.Income and Expenditure Report'!A20,Report!$A:$A)),0),MATCH("Grand Total",Report!$11:$11,0)),"0")-F20 -> 0 | D20: =IFERROR(VLOOKUP(A20,'1.Budget'!$A$1:$C$600,3,FALSE),0) -> 0 | E20: 0 | F20: =-IFERROR(INDEX(Report!$B$12:$B$600,MATCH(TRUE,ISNUMBER(SEARCH(A20,Report!$A$12:$A$600)),0)),0) -> 0 | H20: zeros
A21: 3150 | B21: Book Grant Senior Cycle Income | C21: =-IFERROR(INDEX(Report!$A:$Z,MATCH(TRUE,ISNUMBER(SEARCH('3.Income and Expenditure Report'!A21,Report!$A:$A)),0),MATCH("Grand Total",Report!$11:$11,0)),"0")-F21 -> 0 | D21: =IFERROR(VLOOKUP(A21,'1.Budget'!$A$1:$C$600,3,FALSE),0) -> 0 | E21: 0 | F21: =-IFERROR(INDEX(Report!$B$12:$B$600,MATCH(TRUE,ISNUMBER(SEARCH(A21,Report!$A$12:$A$600)),0)),0) -> 0 | H21: zeros
A22: 3151 | B22: Free Schoolbook Grant | C22: =-IFERROR(INDEX(Report!$A:$Z,MATCH(TRUE,ISNUMBER(SEARCH('3.Income and Expenditure Report'!A22,Report!$A:$A)),0),MATCH("Grand Total",Report!$11:$11,0)),"0")-F22 -> -12072 | D22: =IFERROR(VLOOKUP(A22,'1.Budget'!$A$1:$C$600,3,FALSE),0) -> 0 | E22: -12072 | F22: =-IFERROR(INDEX(Report!$B$12:$B$600,MATCH(TRUE,ISNUMBER(SEARCH(A22,Report!$A$12:$A$600)),0)),0) -> 0
A23: 3152 | B23: Free Schoolbook Admin Grant | C23: =-IFERROR(INDEX(Report!$A:$Z,MATCH(TRUE,ISNUMBER(SEARCH('3.Income and Expenditure Report'!A23,Report!$A:$A)),0),MATCH("Grand Total",Report!$11:$11,0)),"0")-F23 -> 5612.23 | D23: =IFERROR(VLOOKUP(A23,'1.Budget'!$A$1:$C$600,3,FALSE),0) -> 0 | E23: 5612.23 | F23: =-IFERROR(INDEX(Report!$B$12:$B$600,MATCH(TRUE,ISNUMBER(SEARCH(A23,Report!$A$12:$A$600)),0)),0) -> 0
A24: 3155 | B24: School Library Books Capital Grant | C24: =-IFERROR(INDEX(Report!$A:$Z,MATCH(TRUE,ISNUMBER(SEARCH('3.Income and Expenditure Report'!A24,Report!$A:$A)),0),MATCH("Grand Total",Report!$11:$11,0)),"0")-F24 -> 0 | D24: =IFERROR(VLOOKUP(A24,'1.Budget'!$A$1:$C$600,3,FALSE),0) -> 0 | E24: 0 | F24: =-IFERROR(INDEX(Report!$B$12:$B$600,MATCH(TRUE,ISNUMBER(SEARCH(A24,Report!$A$12:$A$600)),0)),0) -> 0 | H24: zeros
A25: 3170 | B25: Curriculum/Subject Grants | C25: =-IFERROR(INDEX(Report!$A:$Z,MATCH(TRUE,ISNUMBER(SEARCH('3.Income and Expenditure Report'!A25,Report!$A:$A)),0),MATCH("Grand Total",Report!$11:$11,0)),"0")-F25 -> 0 | D25: =IFERROR(VLOOKUP(A25,'1.Budget'!$A$1:$C$600,3,FALSE),0) -> 0 | E25: 0 | F25: =-IFERROR(INDEX(Report!$B$12:$B$600,MATCH(TRUE,ISNUMBER(SEARCH(A25,Report!$A$12:$A$600)),0)),0) -> 0 | H25: zeros
A26: 3171 | B26: Irish and Bilingual School Grant | C26: =-IFERROR(INDEX(Report!$A:$Z,MATCH(TRUE,ISNUMBER(SEARCH('3.Income and Expenditure Report'!A26,Report!$A:$A)),0),MATCH("Grand Total",Report!$11:$11,0)),"0")-F26 -> 122.26 | D26: =IFERROR(VLOOKUP(A26,'1.Budget'!$A$1:$C$600,3,FALSE),0) -> 0 | E26: 122.26 | F26: =-IFERROR(INDEX(Report!$B$12:$B$600,MATCH(TRUE,ISNUMBER(SEARCH(A26,Report!$A$12:$A$600)),0)),0) -> 0
A27: 3190 | B27: JCSP Grant | C27: =-IFERROR(INDEX(Report!$A:$Z,MATCH(TRUE,ISNUMBER(SEARCH('3.Income and Expenditure Report'!A27,Report!$A:$A)),0),MATCH("Grand Total",Report!$11:$11,0)),"0")-F27 -> 6300 | D27: =IFERROR(VLOOKUP(A27,'1.Budget'!$A$1:$C$600,3,FALSE),0) -> 0 | E27: 6300 | F27: =-IFERROR(INDEX(Report!$B$12:$B$600,MATCH(TRUE,ISNUMBER(SEARCH(A27,Report!$A$12:$A$600)),0)),0) -> 0
A28: 3200 | B28: Transition Year Grant | C28: =-IFERROR(INDEX(Report!$A:$Z,MATCH(TRUE,ISNUMBER(SEARCH('3.Income and Expenditure Report'!A28,Report!$A:$A)),0),MATCH("Grand Total",Report!$11:$11,0)),"0")-F28 -> 1900 | D28: =IFERROR(VLOOKUP(A28,'1.Budget'!$A$1:$C$600,3,FALSE),0) -> 0 | E28: 1900 | F28: =-IFERROR(INDEX(Report!$B$12:$B$600,MATCH(TRUE,ISNUMBER(SEARCH(A28,Report!$A$12:$A$600)),0)),0) -> 0
A29: 3210 | B29: Leaving Certificate Applied Grant | C29: =-IFERROR(INDEX(Report!$A:$Z,MATCH(TRUE,ISNUMBER(SEARCH('3.Income and Expenditure Report'!A29,Report!$A:$A)),0),MATCH("Grand Total",Report!$11:$11,0)),"0")-F29 -> 1590 | D29: =IFERROR(VLOOKUP(A29,'1.Budget'!$A$1:$C$600,3,FALSE),0) -> 0 | E29: 1590 | F29: =-IFERROR(INDEX(Report!$B$12:$B$600,MATCH(TRUE,ISNUMBER(SEARCH(A29,Report!$A$12:$A$600)),0)),0) -> 0
A30: 3220 | B30: Grant for Traveller Students | C30: =-IFERROR(INDEX(Report!$A:$Z,MATCH(TRUE,ISNUMBER(SEARCH('3.Income and Expenditure Report'!A30,Report!$A:$A)),0),MATCH("Grand Total",Report!$11:$11,0)),"0")-F30 -> 239.5 | D30: =IFERROR(VLOOKUP(A30,'1.Budget'!$A$1:$C$600,3,FALSE),0) -> 0 | E30: 239.5 | F30: =-IFERROR(INDEX(Report!$B$12:$B$600,MATCH(TRUE,ISNUMBER(SEARCH(A30,Report!$A$12:$A$600)),0)),0) -> 0
A31: 3225 | B31: Amortisation of DE Equipment Grants | C31: =-IFERROR(INDEX(Report!$A:$Z,MATCH(TRUE,ISNUMBER(SEARCH('3.Income and Expenditure Report'!A31,Report!$A:$A)),0),MATCH("Grand Total",Report!$11:$11,0)),"0")-F31 -> 0 | D31: =IFERROR(VLOOKUP(A31,'1.Budget'!$A$1:$C$600,3,FALSE),0) -> 0 | E31: 0 | F31: =-IFERROR(INDEX(Report!$B$12:$B$600,MATCH(TRUE,ISNUMBER(SEARCH(A31,Report!$A$12:$A$600)),0)),0) -> 0 | H31: zeros
A32: 3226 | B32: Amortisation of DE ICT Grants | C32: =-IFERROR(INDEX(Report!$A:$Z,MATCH(TRUE,ISNUMBER(SEARCH('3.Income and Expenditure Report'!A32,Report!$A:$A)),0),MATCH("Grand Total",Report!$11:$11,0)),"0")-F32 -> 0 | D32: =IFERROR(VLOOKUP(A32,'1.Budget'!$A$1:$C$600,3,FALSE),0) -> 0 | E32: 0 | F32: =-IFERROR(INDEX(Report!$B$12:$B$600,MATCH(TRUE,ISNUMBER(SEARCH(A32,Report!$A$12:$A$600)),0)),0) -> 0 | H32: zeros
A33: 3227 | B33: Amortisation of Other DE Grants | C33: =-IFERROR(INDEX(Report!$A:$Z,MATCH(TRUE,ISNUMBER(SEARCH('3.Income and Expenditure Report'!A33,Report!$A:$A)),0),MATCH("Grand Total",Report!$11:$11,0)),"0")-F33 -> 0 | D33: =IFERROR(VLOOKUP(A33,'1.Budget'!$A$1:$C$600,3,FALSE),0) -> 0 | E33: 0 | F33: =-IFERROR(INDEX(Report!$B$12:$B$600,MATCH(TRUE,ISNUMBER(SEARCH(A33,Report!$A$12:$A$600)),0)),0) -> 0 | H33: zeros
A34: 3230 | B34: ICT Grant Non Capital | C34: =-IFERROR(INDEX(Report!$A:$Z,MATCH(TRUE,ISNUMBER(SEARCH('3.Income and Expenditure Report'!A34,Report!$A:$A)),0),MATCH("Grand Total",Report!$11:$11,0)),"0")-F34 -> 15528 | D34: =IFERROR(VLOOKUP(A34,'1.Budget'!$A$1:$C$600,3,FALSE),0) -> 0 | E34: 15528 | F34: =-IFERROR(INDEX(Report!$B$12:$B$600,MATCH(TRUE,ISNUMBER(SEARCH(A34,Report!$A$12:$A$600)),0)),0) -> 0
A35: 3240 | B35: Supervision and Substitution Grant | C35: =-IFERROR(INDEX(Report!$A:$Z,MATCH(TRUE,ISNUMBER(SEARCH('3.Income and Expenditure Report'!A35,Report!$A:$A)),0),MATCH("Grand Total",Report!$11:$11,0)),"0")-F35 -> 20972.96 | D35: =IFERROR(VLOOKUP(A35,'1.Budget'!$A$1:$C$600,3,FALSE),0) -> 0 | E35: 20972.96 | F35: =-IFERROR(INDEX(Report!$B$12:$B$600,MATCH(TRUE,ISNUMBER(SEARCH(A35,Report!$A$12:$A$600)),0)),0) -> 0
A36: 3245 | B36: Science Subjects Grant | C36: =-IFERROR(INDEX(Report!$A:$Z,MATCH(TRUE,ISNUMBER(SEARCH('3.Income and Expenditure Report'!A36,Report!$A:$A)),0),MATCH("Grand Total",Report!$11:$11,0)),"0")-F36 -> 13000 | D36: =IFERROR(VLOOKUP(A36,'1.Budget'!$A$1:$C$600,3,FALSE),0) -> 0 | E36: 13000 | F36: =-IFERROR(INDEX(Report!$B$12:$B$600,MATCH(TRUE,ISNUMBER(SEARCH(A36,Report!$A$12:$A$600)),0)),0) -> 0
A37: 3255 | B37: State Exam Income | C37: =-IFERROR(INDEX(Report!$A:$Z,MATCH(TRUE,ISNUMBER(SEARCH('3.Income and Expenditure Report'!A37,Report!$A:$A)),0),MATCH("Grand Total",Report!$11:$11,0)),"0")-F37 -> 3289 | D37: =IFERROR(VLOOKUP(A37,'1.Budget'!$A$1:$C$600,3,FALSE),0) -> 0 | E37: 3289 | F37: =-IFERROR(INDEX(Report!$B$12:$B$600,MATCH(TRUE,ISNUMBER(SEARCH(A37,Report!$A$12:$A$600)),0)),0) -> 0
A38: 3260 | B38: School Excellence Fund Income | C38: =-IFERROR(INDEX(Report!$A:$Z,MATCH(TRUE,ISNUMBER(SEARCH('3.Income and Expenditure Report'!A38,Report!$A:$A)),0),MATCH("Grand Total",Report!$11:$11,0)),"0")-F38 -> 0 | D38: =IFERROR(VLOOKUP(A38,'1.Budget'!$A$1:$C$600,3,FALSE),0) -> 0 | E38: 0 | F38: =-IFERROR(INDEX(Report!$B$12:$B$600,MATCH(TRUE,ISNUMBER(SEARCH(A38,Report!$A$12:$A$600)),0)),0) -> 0 | H38: zeros
A39: 3270 | B39: Sports Complex Grant | C39: =-IFERROR(INDEX(Report!$A:$Z,MATCH(TRUE,ISNUMBER(SEARCH('3.Income and Expenditure Report'!A39,Report!$A:$A)),0),MATCH("Grand Total",Report!$11:$11,0)),"0")-F39 -> 0 | D39: =IFERROR(VLOOKUP(A39,'1.Budget'!$A$1:$C$600,3,FALSE),0) -> 0 | E39: 0 | F39: =-IFERROR(INDEX(Report!$B$12:$B$600,MATCH(TRUE,ISNUMBER(SEARCH(A39,Report!$A$12:$A$600)),0)),0) -> 0 | H39: zeros
A40: 3275 | B40: Minor Works Grant-Non Capital | C40: =-IFERROR(INDEX(Report!$A:$Z,MATCH(TRUE,ISNUMBER(SEARCH('3.Income and Expenditure Report'!A40,Report!$A:$A)),0),MATCH("Grand Total",Report!$11:$11,0)),"0")-F40 -> 0 | D40: =IFERROR(VLOOKUP(A40,'1.Budget'!$A$1:$C$600,3,FALSE),0) -> 0 | E40: 0 | F40: =-IFERROR(INDEX(Report!$B$12:$B$600,MATCH(TRUE,ISNUMBER(SEARCH(A40,Report!$A$12:$A$600)),0)),0) -> 0 | H40: zeros
A41: 3276 | B41: Temporary Accommodation Grant Income | C41: =-IFERROR(INDEX(Report!$A:$Z,MATCH(TRUE,ISNUMBER(SEARCH('3.Income and Expenditure Report'!A41,Report!$A:$A)),0),MATCH("Grand Total",Report!$11:$11,0)),"0")-F41 -> 0 | D41: =IFERROR(VLOOKUP(A41,'1.Budget'!$A$1:$C$600,3,FALSE),0) -> 0 | E41: 0 | F41: =-IFERROR(INDEX(Report!$B$12:$B$600,MATCH(TRUE,ISNUMBER(SEARCH(A41,Report!$A$12:$A$600)),0)),0) -> 0 | H41: zeros
A42: 3277 | B42: COVID Minor Works Grant | C42: =-IFERROR(INDEX(Report!$A:$Z,MATCH(TRUE,ISNUMBER(SEARCH('3.Income and Expenditure Report'!A42,Report!$A:$A)),0),MATCH("Grand Total",Report!$11:$11,0)),"0")-F42 -> 0 | D42: =IFERROR(VLOOKUP(A42,'1.Budget'!$A$1:$C$600,3,FALSE),0) -> 0 | E42: 0 | F42: =-IFERROR(INDEX(Report!$B$12:$B$600,MATCH(TRUE,ISNUMBER(SEARCH(A42,Report!$A$12:$A$600)),0)),0) -> 0 | H42: zeros
A43: 3289 | B43: Once-Off Cost of Living Grant ( No longer to be used) | C43: =-IFERROR(INDEX(Report!$A:$Z,MATCH(TRUE,ISNUMBER(SEARCH('3.Income and Expenditure Report'!A43,Report!$A:$A)),0),MATCH("Grand Total",Report!$11:$11,0)),"0")-F43 -> 0 | D43: =IFERROR(VLOOKUP(A43,'1.Budget'!$A$1:$C$600,3,FALSE),0) -> 0 | E43: 0 | F43: =-IFERROR(INDEX(Report!$B$12:$B$600,MATCH(TRUE,ISNUMBER(SEARCH(A43,Report!$A$12:$A$600)),0)),0) -> 0 | H43: zeros
A44: 3290 | B44: Other Non Capital DE Grant Income | C44: =-IFERROR(INDEX(Report!$A:$Z,MATCH(TRUE,ISNUMBER(SEARCH('3.Income and Expenditure Report'!A44,Report!$A:$A)),0),MATCH("Grand Total",Report!$11:$11,0)),"0")-F44 -> 0 | D44: =IFERROR(VLOOKUP(A44,'1.Budget'!$A$1:$C$600,3,FALSE),0) -> 0 | E44: 0 | F44: =-IFERROR(INDEX(Report!$B$12:$B$600,MATCH(TRUE,ISNUMBER(SEARCH(A44,Report!$A$12:$A$600)),0)),0) -> 0 | H44: zeros
A45: 3292 | B45: Standardised Testing Grant | C45: =-IFERROR(INDEX(Report!$A:$Z,MATCH(TRUE,ISNUMBER(SEARCH('3.Income and Expenditure Report'!A45,Report!$A:$A)),0),MATCH("Grand Total",Report!$11:$11,0)),"0")-F45 -> 0 | D45: =IFERROR(VLOOKUP(A45,'1.Budget'!$A$1:$C$600,3,FALSE),0) -> 0 | E45: 0 | F45: =-IFERROR(INDEX(Report!$B$12:$B$600,MATCH(TRUE,ISNUMBER(SEARCH(A45,Report!$A$12:$A$600)),0)),0) -> 0 | H45: zeros
A46: 3293 | B46: Summer Provision Grant | C46: =-IFERROR(INDEX(Report!$A:$Z,MATCH(TRUE,ISNUMBER(SEARCH('3.Income and Expenditure Report'!A46,Report!$A:$A)),0),MATCH("Grand Total",Report!$11:$11,0)),"0")-F46 -> 0 | D46: =IFERROR(VLOOKUP(A46,'1.Budget'!$A$1:$C$600,3,FALSE),0) -> 0 | E46: 0 | F46: =-IFERROR(INDEX(Report!$B$12:$B$600,MATCH(TRUE,ISNUMBER(SEARCH(A46,Report!$A$12:$A$600)),0)),0) -> 0 | H46: zeros
A47: 3294 | B47: Bus Escort Grant | C47: =-IFERROR(INDEX(Report!$A:$Z,MATCH(TRUE,ISNUMBER(SEARCH('3.Income and Expenditure Report'!A47,Report!$A:$A)),0),MATCH("Grand Total",Report!$11:$11,0)),"0")-F47 -> 0 | D47: =IFERROR(VLOOKUP(A47,'1.Budget'!$A$1:$C$600,3,FALSE),0) -> 0 | E47: 0 | F47: =-IFERROR(INDEX(Report!$B$12:$B$600,MATCH(TRUE,ISNUMBER(SEARCH(A47,Report!$A$12:$A$600)),0)),0) -> 0 | H47: zeros
A48: Total Department of Education Income | C48: =SUM(C12:C47) -> 302247.95 | D48: =SUM(D12:D47) -> 0 | E48: =SUM(E12:E47) -> 302247.95 | F48: =SUM(F12:F47) -> 0
H49: zeros
A50: Other State Income | H50: zeros
A51: 3295 | B51: Department of Children (DCEDI) Grant | C51: =-IFERROR(INDEX(Report!$A:$Z,MATCH(TRUE,ISNUMBER(SEARCH('3.Income and Expenditure Report'!A51,Report!$A:$A)),0),MATCH("Grand Total",Report!$11:$11,0)),"0")-F51 -> 0 | D51: =IFERROR(VLOOKUP(A51,'1.Budget'!$A$1:$C$600,3,FALSE),0) -> 0 | E51: =C51-D51 -> 0 | F51: =-IFERROR(INDEX(Report!$B$12:$B$600,MATCH(TRUE,ISNUMBER(SEARCH(A51,Report!$A$12:$A$600)),0)),0) -> 0 | H51: zeros
A52: 3296 | B52: DSP School Meals Grant | C52: =-IFERROR(INDEX(Report!$A:$Z,MATCH(TRUE,ISNUMBER(SEARCH('3.Income and Expenditure Report'!A52,Report!$A:$A)),0),MATCH("Grand Total",Report!$11:$11,0)),"0")-F52 -> 0 | D52: =IFERROR(VLOOKUP(A52,'1.Budget'!$A$1:$C$600,3,FALSE),0) -> 0 | E52: =C52-D52 -> 0 | F52: =-IFERROR(INDEX(Report!$B$12:$B$600,MATCH(TRUE,ISNUMBER(SEARCH(A52,Report!$A$12:$A$600)),0)),0) -> 0 | H52: zeros
A53: 3297 | B53: Erasmus Income | C53: =-IFERROR(INDEX(Report!$A:$Z,MATCH(TRUE,ISNUMBER(SEARCH('3.Income and Expenditure Report'!A53,Report!$A:$A)),0),MATCH("Grand Total",Report!$11:$11,0)),"0")-F53 -> 0 | D53: =IFERROR(VLOOKUP(A53,'1.Budget'!$A$1:$C$600,3,FALSE),0) -> 0 | E53: 0 | F53: =-IFERROR(INDEX(Report!$B$12:$B$600,MATCH(TRUE,ISNUMBER(SEARCH(A53,Report!$A$12:$A$600)),0)),0) -> 0 | H53: zeros
A54: 3298 | B54: HSE Funding | C54: =-IFERROR(INDEX(Report!$A:$Z,MATCH(TRUE,ISNUMBER(SEARCH('3.Income and Expenditure Report'!A54,Report!$A:$A)),0),MATCH("Grand Total",Report!$11:$11,0)),"0")-F54 -> 0 | D54: =IFERROR(VLOOKUP(A54,'1.Budget'!$A$1:$C$600,3,FALSE),0) -> 0 | E54: 0 | F54: =-IFERROR(INDEX(Report!$B$12:$B$600,MATCH(TRUE,ISNUMBER(SEARCH(A54,Report!$A$12:$A$600)),0)),0) -> 0 | H54: zeros
A55: 3299 | B55: Other State Funding | C55: =-IFERROR(INDEX(Report!$A:$Z,MATCH(TRUE,ISNUMBER(SEARCH('3.Income and Expenditure Report'!A55,Report!$A:$A)),0),MATCH("Grand Total",Report!$11:$11,0)),"0")-F55 -> 0 | D55: =IFERROR(VLOOKUP(A55,'1.Budget'!$A$1:$C$600,3,FALSE),0) -> 0 | E55: 0 | F55: =-IFERROR(INDEX(Report!$B$12:$B$600,MATCH(TRUE,ISNUMBER(SEARCH(A55,Report!$A$12:$A$600)),0)),0) -> 0 | H55: zeros
A56: Total Other State Income | C56: =SUM(C51:C55) -> 0 | D56: =SUM(D51:D55) -> 0 | E56: =SUM(E51:E55) -> 0 | F56: =SUM(F51:F55) -> 0 | H56: zeros
H57: zeros
A58: School Generated Income | H58: zeros
A59: 3300 | B59: Education Fees (Fee Charging Schools) | C59: =-IFERROR(INDEX(Report!$A:$Z,MATCH(TRUE,ISNUMBER(SEARCH('3.Income and Expenditure Report'!A59,Report!$A:$A)),0),MATCH("Grand Total",Report!$11:$11,0)),"0")-F59 -> 0 | D59: =IFERROR(VLOOKUP(A59,'1.Budget'!$A$1:$C$600,3,FALSE),0) -> 0 | E59: =C59-D59 -> 0 | F59: =-IFERROR(INDEX(Report!$B$12:$B$600,MATCH(TRUE,ISNUMBER(SEARCH(A59,Report!$A$12:$A$600)),0)),0) -> 0 | H59: zeros
A60: 3310 | B60: Transition Year Income | C60: =-IFERROR(INDEX(Report!$A:$Z,MATCH(TRUE,ISNUMBER(SEARCH('3.Income and Expenditure Report'!A60,Report!$A:$A)),0),MATCH("Grand Total",Report!$11:$11,0)),"0")-F60 -> 6400 | D60: =IFERROR(VLOOKUP(A60,'1.Budget'!$A$1:$C$600,3,FALSE),0) -> 0 | E60: =C60-D60 -> 6400 | F60: =-IFERROR(INDEX(Report!$B$12:$B$600,MATCH(TRUE,ISNUMBER(SEARCH(A60,Report!$A$12:$A$600)),0)),0) -> 0
A61: 3330 | B61: Book Rental Scheme Income (Fee Charging Schools) | C61: =-IFERROR(INDEX(Report!$A:$Z,MATCH(TRUE,ISNUMBER(SEARCH('3.Income and Expenditure Report'!A61,Report!$A:$A)),0),MATCH("Grand Total",Report!$11:$11,0)),"0")-F61 -> 0 | D61: =IFERROR(VLOOKUP(A61,'1.Budget'!$A$1:$C$600,3,FALSE),0) -> 0 | E61: 0 | F61: =-IFERROR(INDEX(Report!$B$12:$B$600,MATCH(TRUE,ISNUMBER(SEARCH(A61,Report!$A$12:$A$600)),0)),0) -> 0 | H61: zeros
A62: 3335 | B62: Classroom Books/Resources Income | C62: =-IFERROR(INDEX(Report!$A:$Z,MATCH(TRUE,ISNUMBER(SEARCH('3.Income and Expenditure Report'!A62,Report!$A:$A)),0),MATCH("Grand Total",Report!$11:$11,0)),"0")-F62 -> 0 | D62: =IFERROR(VLOOKUP(A62,'1.Budget'!$A$1:$C$600,3,FALSE),0) -> 0 | E62: 0 | F62: =-IFERROR(INDEX(Report!$B$12:$B$600,MATCH(TRUE,ISNUMBER(SEARCH(A62,Report!$A$12:$A$600)),0)),0) -> 0 | H62: zeros
A63: 3350 | B63: Hire of Facilities Rental Income | C63: =-IFERROR(INDEX(Report!$A:$Z,MATCH(TRUE,ISNUMBER(SEARCH('3.Income and Expenditure Report'!A63,Report!$A:$A)),0),MATCH("Grand Total",Report!$11:$11,0)),"0")-F63 -> 6030 | D63: =IFERROR(VLOOKUP(A63,'1.Budget'!$A$1:$C$600,3,FALSE),0) -> 0 | E63: 6030 | F63: =-IFERROR(INDEX(Report!$B$12:$B$600,MATCH(TRUE,ISNUMBER(SEARCH(A63,Report!$A$12:$A$600)),0)),0) -> 0
A64: 3370 | B64: Locker Income | C64: =-IFERROR(INDEX(Report!$A:$Z,MATCH(TRUE,ISNUMBER(SEARCH('3.Income and Expenditure Report'!A64,Report!$A:$A)),0),MATCH("Grand Total",Report!$11:$11,0)),"0")-F64 -> 3626 | D64: =IFERROR(VLOOKUP(A64,'1.Budget'!$A$1:$C$600,3,FALSE),0) -> 0 | E64: 3626 | F64: =-IFERROR(INDEX(Report!$B$12:$B$600,MATCH(TRUE,ISNUMBER(SEARCH(A64,Report!$A$12:$A$600)),0)),0) -> 0
A65: 3375 | B65: Journals and Year Book Income | C65: =-IFERROR(INDEX(Report!$A:$Z,MATCH(TRUE,ISNUMBER(SEARCH('3.Income and Expenditure Report'!A65,Report!$A:$A)),0),MATCH("Grand Total",Report!$11:$11,0)),"0")-F65 -> 1212.5 | D65: =IFERROR(VLOOKUP(A65,'1.Budget'!$A$1:$C$600,3,FALSE),0) -> 0 | E65: 1212.5 | F65: =-IFERROR(INDEX(Report!$B$12:$B$600,MATCH(TRUE,ISNUMBER(SEARCH(A65,Report!$A$12:$A$600)),0)),0) -> 0
A66: 3380 | B66: Student Photocopying Income | C66: =-IFERROR(INDEX(Report!$A:$Z,MATCH(TRUE,ISNUMBER(SEARCH('3.Income and Expenditure Report'!A66,Report!$A:$A)),0),MATCH("Grand Total",Report!$11:$11,0)),"0")-F66 -> 0 | D66: =IFERROR(VLOOKUP(A66,'1.Budget'!$A$1:$C$600,3,FALSE),0) -> 0 | E66: 0 | F66: =-IFERROR(INDEX(Report!$B$12:$B$600,MATCH(TRUE,ISNUMBER(SEARCH(A66,Report!$A$12:$A$600)),0)),0) -> 0 | H66: zeros
A67: 3390 | B67: School Administration Charges | C67: =-IFERROR(INDEX(Report!$A:$Z,MATCH(TRUE,ISNUMBER(SEARCH('3.Income and Expenditure Report'!A67,Report!$A:$A)),0),MATCH("Grand Total",Report!$11:$11,0)),"0")-F67 -> 8600 | D67: =IFERROR(VLOOKUP(A67,'1.Budget'!$A$1:$C$600,3,FALSE),0) -> 0 | E67: 8600 | F67: =-IFERROR(INDEX(Report!$B$12:$B$600,MATCH(TRUE,ISNUMBER(SEARCH(A67,Report!$A$12:$A$600)),0)),0) -> 0
A68: 3395 | B68: Practical Subjects Income | C68: =-IFERROR(INDEX(Report!$A:$Z,MATCH(TRUE,ISNUMBER(SEARCH('3.Income and Expenditure Report'!A68,Report!$A:$A)),0),MATCH("Grand Total",Report!$11:$11,0)),"0")-F68 -> 0 | D68: =IFERROR(VLOOKUP(A68,'1.Budget'!$A$1:$C$600,3,FALSE),0) -> 0 | E68: 0 | F68: =-IFERROR(INDEX(Report!$B$12:$B$600,MATCH(TRUE,ISNUMBER(SEARCH(A68,Report!$A$12:$A$600)),0)),0) -> 0 | H68: zeros
A69: 3410 | B69: Adult Education Income | C69: =-IFERROR(INDEX(Report!$A:$Z,MATCH(TRUE,ISNUMBER(SEARCH('3.Income and Expenditure Report'!A69,Report!$A:$A)),0),MATCH("Grand Total",Report!$11:$11,0)),"0")-F69 -> 0 | D69: =IFERROR(VLOOKUP(A69,'1.Budget'!$A$1:$C$600,3,FALSE),0) -> 0 | E69: 0 | F69: =-IFERROR(INDEX(Report!$B$12:$B$600,MATCH(TRUE,ISNUMBER(SEARCH(A69,Report!$A$12:$A$600)),0)),0) -> 0 | H69: zeros
A70: 3420 | B70: Canteen Income | C70: =-IFERROR(INDEX(Report!$A:$Z,MATCH(TRUE,ISNUMBER(SEARCH('3.Income and Expenditure Report'!A70,Report!$A:$A)),0),MATCH("Grand Total",Report!$11:$11,0)),"0")-F70 -> 0 | D70: =IFERROR(VLOOKUP(A70,'1.Budget'!$A$1:$C$600,3,FALSE),0) -> 0 | E70: 0 | F70: =-IFERROR(INDEX(Report!$B$12:$B$600,MATCH(TRUE,ISNUMBER(SEARCH(A70,Report!$A$12:$A$600)),0)),0) -> 0 | H70: zeros
A71: 3430 | B71: Tuck Shop Income | C71: =-IFERROR(INDEX(Report!$A:$Z,MATCH(TRUE,ISNUMBER(SEARCH('3.Income and Expenditure Report'!A71,Report!$A:$A)),0),MATCH("Grand Total",Report!$11:$11,0)),"0")-F71 -> 0 | D71: =IFERROR(VLOOKUP(A71,'1.Budget'!$A$1:$C$600,3,FALSE),0) -> 0 | E71: 0 | F71: =-IFERROR(INDEX(Report!$B$12:$B$600,MATCH(TRUE,ISNUMBER(SEARCH(A71,Report!$A$12:$A$600)),0)),0) -> 0 | H71: zeros
A72: 3440 | B72: Uniforms Income | C72: =-IFERROR(INDEX(Report!$A:$Z,MATCH(TRUE,ISNUMBER(SEARCH('3.Income and Expenditure Report'!A72,Report!$A:$A)),0),MATCH("Grand Total",Report!$11:$11,0)),"0")-F72 -> 0 | D72: =IFERROR(VLOOKUP(A72,'1.Budget'!$A$1:$C$600,3,FALSE),0) -> 0 | E72: 0 | F72: =-IFERROR(INDEX(Report!$B$12:$B$600,MATCH(TRUE,ISNUMBER(SEARCH(A72,Report!$A$12:$A$600)),0)),0) -> 0 | H72: zeros
A73: 3450 | B73: Religion/Ethos Income | C73: =-IFERROR(INDEX(Report!$A:$Z,MATCH(TRUE,ISNUMBER(SEARCH('3.Income and Expenditure Report'!A73,Report!$A:$A)),0),MATCH("Grand Total",Report!$11:$11,0)),"0")-F73 -> 0 | D73: =IFERROR(VLOOKUP(A73,'1.Budget'!$A$1:$C$600,3,FALSE),0) -> 0 | E73: 0 | F73: =-IFERROR(INDEX(Report!$B$12:$B$600,MATCH(TRUE,ISNUMBER(SEARCH(A73,Report!$A$12:$A$600)),0)),0) -> 0 | H73: zeros
A74: 3460 | B74: Career Guidance Income | C74: =-IFERROR(INDEX(Report!$A:$Z,MATCH(TRUE,ISNUMBER(SEARCH('3.Income and Expenditure Report'!A74,Report!$A:$A)),0),MATCH("Grand Total",Report!$11:$11,0)),"0")-F74 -> 0 | D74: =IFERROR(VLOOKUP(A74,'1.Budget'!$A$1:$C$600,3,FALSE),0) -> 0 | E74: 0 | F74: =-IFERROR(INDEX(Report!$B$12:$B$600,MATCH(TRUE,ISNUMBER(SEARCH(A74,Report!$A$12:$A$600)),0)),0) -> 0 | H74: zeros
A75: 3490 | B75: After School Study/Club Income | C75: =-IFERROR(INDEX(Report!$A:$Z,MATCH(TRUE,ISNUMBER(SEARCH('3.Income and Expenditure Report'!A75,Report!$A:$A)),0),MATCH("Grand Total",Report!$11:$11,0)),"0")-F75 -> 0 | D75: =IFERROR(VLOOKUP(A75,'1.Budget'!$A$1:$C$600,3,FALSE),0) -> 0 | E75: 0 | F75: =-IFERROR(INDEX(Report!$B$12:$B$600,MATCH(TRUE,ISNUMBER(SEARCH(A75,Report!$A$12:$A$600)),0)),0) -> 0 | H75: zeros
A76: 3495 | B76: Mock Exam Income | C76: =-IFERROR(INDEX(Report!$A:$Z,MATCH(TRUE,ISNUMBER(SEARCH('3.Income and Expenditure Report'!A76,Report!$A:$A)),0),MATCH("Grand Total",Report!$11:$11,0)),"0")-F76 -> 0 | D76: =IFERROR(VLOOKUP(A76,'1.Budget'!$A$1:$C$600,3,FALSE),0) -> 0 | E76: 0 | F76: =-IFERROR(INDEX(Report!$B$12:$B$600,MATCH(TRUE,ISNUMBER(SEARCH(A76,Report!$A$12:$A$600)),0)),0) -> 0 | H76: =IF(AND(C76=0,D76=0,E76=0,F76=0),"zeros","") -> zeros
A77: 3500 | B77: Games Income | C77: =-IFERROR(INDEX(Report!$A:$Z,MATCH(TRUE,ISNUMBER(SEARCH('3.Income and Expenditure Report'!A77,Report!$A:$A)),0),MATCH("Grand Total",Report!$11:$11,0)),"0")-F77 -> 0 | D77: =IFERROR(VLOOKUP(A77,'1.Budget'!$A$1:$C$600,3,FALSE),0) -> 0 | E77: 0 | F77: =-IFERROR(INDEX(Report!$B$12:$B$600,MATCH(TRUE,ISNUMBER(SEARCH(A77,Report!$A$12:$A$600)),0)),0) -> 0 | H77: zeros
A78: 3510 | B78: Bus Hire for Games Income | C78: =-IFERROR(INDEX(Report!$A:$Z,MATCH(TRUE,ISNUMBER(SEARCH('3.Income and Expenditure Report'!A78,Report!$A:$A)),0),MATCH("Grand Total",Report!$11:$11,0)),"0")-F78 -> 1050 | D78: =IFERROR(VLOOKUP(A78,'1.Budget'!$A$1:$C$600,3,FALSE),0) -> 0 | E78: 1050 | F78: =-IFERROR(INDEX(Report!$B$12:$B$600,MATCH(TRUE,ISNUMBER(SEARCH(A78,Report!$A$12:$A$600)),0)),0) -> 0
A79: 3511 | B79: Bus Hire Other Income | C79: =-IFERROR(INDEX(Report!$A:$Z,MATCH(TRUE,ISNUMBER(SEARCH('3.Income and Expenditure Report'!A79,Report!$A:$A)),0),MATCH("Grand Total",Report!$11:$11,0)),"0")-F79 -> 0 | D79: =IFERROR(VLOOKUP(A79,'1.Budget'!$A$1:$C$600,3,FALSE),0) -> 0 | E79: 0 | F79: =-IFERROR(INDEX(Report!$B$12:$B$600,MATCH(TRUE,ISNUMBER(SEARCH(A79,Report!$A$12:$A$600)),0)),0) -> 0 | H79: zeros
A80: 3520 | B80: School Musical/Drama Income | C80: =-IFERROR(INDEX(Report!$A:$Z,MATCH(TRUE,ISNUMBER(SEARCH('3.Income and Expenditure Report'!A80,Report!$A:$A)),0),MATCH("Grand Total",Report!$11:$11,0)),"0")-F80 -> 0 | D80: =IFERROR(VLOOKUP(A80,'1.Budget'!$A$1:$C$600,3,FALSE),0) -> 0 | E80: 0 | F80: =-IFERROR(INDEX(Report!$B$12:$B$600,MATCH(TRUE,ISNUMBER(SEARCH(A80,Report!$A$12:$A$600)),0)),0) -> 0 | H80: zeros
A81: 3530 | B81: School Tours/Trips Income | C81: =-IFERROR(INDEX(Report!$A:$Z,MATCH(TRUE,ISNUMBER(SEARCH('3.Income and Expenditure Report'!A81,Report!$A:$A)),0),MATCH("Grand Total",Report!$11:$11,0)),"0")-F81 -> 0 | D81: =IFERROR(VLOOKUP(A81,'1.Budget'!$A$1:$C$600,3,FALSE),0) -> 0 | E81: 0 | F81: =-IFERROR(INDEX(Report!$B$12:$B$600,MATCH(TRUE,ISNUMBER(SEARCH(A81,Report!$A$12:$A$600)),0)),0) -> 0 | H81: zeros
A82: 3531 | B82: School Swimming Income | C82: =-IFERROR(INDEX(Report!$A:$Z,MATCH(TRUE,ISNUMBER(SEARCH('3.Income and Expenditure Report'!A82,Report!$A:$A)),0),MATCH("Grand Total",Report!$11:$11,0)),"0")-F82 -> 0 | D82: =IFERROR(VLOOKUP(A82,'1.Budget'!$A$1:$C$600,3,FALSE),0) -> 0 | E82: 0 | F82: =-IFERROR(INDEX(Report!$B$12:$B$600,MATCH(TRUE,ISNUMBER(SEARCH(A82,Report!$A$12:$A$600)),0)),0) -> 0 | H82: zeros
A83: 3535 | B83: Student Insurance Income | C83: =-IFERROR(INDEX(Report!$A:$Z,MATCH(TRUE,ISNUMBER(SEARCH('3.Income and Expenditure Report'!A83,Report!$A:$A)),0),MATCH("Grand Total",Report!$11:$11,0)),"0")-F83 -> 0 | D83: =IFERROR(VLOOKUP(A83,'1.Budget'!$A$1:$C$600,3,FALSE),0) -> 0 | E83: 0 | F83: =-IFERROR(INDEX(Report!$B$12:$B$600,MATCH(TRUE,ISNUMBER(SEARCH(A83,Report!$A$12:$A$600)),0)),0) -> 0 | H83: zeros
A84: 3540 | B84: Pre-School Income | C84: =-IFERROR(INDEX(Report!$A:$Z,MATCH(TRUE,ISNUMBER(SEARCH('3.Income and Expenditure Report'!A84,Report!$A:$A)),0),MATCH("Grand Total",Report!$11:$11,0)),"0")-F84 -> 0 | D84: =IFERROR(VLOOKUP(A84,'1.Budget'!$A$1:$C$600,3,FALSE),0) -> 0 | E84: 0 | F84: =-IFERROR(INDEX(Report!$B$12:$B$600,MATCH(TRUE,ISNUMBER(SEARCH(A84,Report!$A$12:$A$600)),0)),0) -> 0 | H84: zeros
A85: 3545 | B85: Summer Camps Income | C85: =-IFERROR(INDEX(Report!$A:$Z,MATCH(TRUE,ISNUMBER(SEARCH('3.Income and Expenditure Report'!A85,Report!$A:$A)),0),MATCH("Grand Total",Report!$11:$11,0)),"0")-F85 -> 0 | D85: =IFERROR(VLOOKUP(A85,'1.Budget'!$A$1:$C$600,3,FALSE),0) -> 0 | E85: 0 | F85: =-IFERROR(INDEX(Report!$B$12:$B$600,MATCH(TRUE,ISNUMBER(SEARCH(A85,Report!$A$12:$A$600)),0)),0) -> 0 | H85: zeros
A86: 3550 | B86: Reimbursable Income | C86: =-IFERROR(INDEX(Report!$A:$Z,MATCH(TRUE,ISNUMBER(SEARCH('3.Income and Expenditure Report'!A86,Report!$A:$A)),0),MATCH("Grand Total",Report!$11:$11,0)),"0")-F86 -> 0 | D86: =IFERROR(VLOOKUP(A86,'1.Budget'!$A$1:$C$600,3,FALSE),0) -> 0 | E86: 0 | F86: =-IFERROR(INDEX(Report!$B$12:$B$600,MATCH(TRUE,ISNUMBER(SEARCH(A86,Report!$A$12:$A$600)),0)),0) -> 0 | H86: zeros
A87: 3570 | B87: Other School Generated Income | C87: =-IFERROR(INDEX(Report!$A:$Z,MATCH(TRUE,ISNUMBER(SEARCH('3.Income and Expenditure Report'!A87,Report!$A:$A)),0),MATCH("Grand Total",Report!$11:$11,0)),"0")-F87 -> 0 | D87: =IFERROR(VLOOKUP(A87,'1.Budget'!$A$1:$C$600,3,FALSE),0) -> 0 | E87: 0 | F87: =-IFERROR(INDEX(Report!$B$12:$B$600,MATCH(TRUE,ISNUMBER(SEARCH(A87,Report!$A$12:$A$600)),0)),0) -> 0 | H87: zeros
A88: 3572 | B88: School Arts and Crafts Income | C88: =-IFERROR(INDEX(Report!$A:$Z,MATCH(TRUE,ISNUMBER(SEARCH('3.Income and Expenditure Report'!A88,Report!$A:$A)),0),MATCH("Grand Total",Report!$11:$11,0)),"0")-F88 -> 0 | D88: =IFERROR(VLOOKUP(A88,'1.Budget'!$A$1:$C$600,3,FALSE),0) -> 0 | E88: 0 | F88: =-IFERROR(INDEX(Report!$B$12:$B$600,MATCH(TRUE,ISNUMBER(SEARCH(A88,Report!$A$12:$A$600)),0)),0) -> 0 | H88: zeros
A89: 3573 | B89: Extracurricular Activities Income | C89: =-IFERROR(INDEX(Report!$A:$Z,MATCH(TRUE,ISNUMBER(SEARCH('3.Income and Expenditure Report'!A89,Report!$A:$A)),0),MATCH("Grand Total",Report!$11:$11,0)),"0")-F89 -> 0 | D89: =IFERROR(VLOOKUP(A89,'1.Budget'!$A$1:$C$600,3,FALSE),0) -> 0 | E89: 0 | F89: =-IFERROR(INDEX(Report!$B$12:$B$600,MATCH(TRUE,ISNUMBER(SEARCH(A89,Report!$A$12:$A$600)),0)),0) -> 0 | H89: zeros
A90: 3574 | B90: Restricted School Fundraising (Non Capital) | C90: =-IFERROR(INDEX(Report!$A:$Z,MATCH(TRUE,ISNUMBER(SEARCH('3.Income and Expenditure Report'!A90,Report!$A:$A)),0),MATCH("Grand Total",Report!$11:$11,0)),"0")-F90 -> 0 | D90: =IFERROR(VLOOKUP(A90,'1.Budget'!$A$1:$C$600,3,FALSE),0) -> 0 | E90: 0 | F90: =-IFERROR(INDEX(Report!$B$12:$B$600,MATCH(TRUE,ISNUMBER(SEARCH(A90,Report!$A$12:$A$600)),0)),0) -> 0 | H90: zeros
A91: 3575 | B91: Unrestricted School Fundraising (Non Capital) | C91: =-IFERROR(INDEX(Report!$A:$Z,MATCH(TRUE,ISNUMBER(SEARCH('3.Income and Expenditure Report'!A91,Report!$A:$A)),0),MATCH("Grand Total",Report!$11:$11,0)),"0")-F91 -> 0.23 | D91: =IFERROR(VLOOKUP(A91,'1.Budget'!$A$1:$C$600,3,FALSE),0) -> 0 | E91: 0.23 | F91: =-IFERROR(INDEX(Report!$B$12:$B$600,MATCH(TRUE,ISNUMBER(SEARCH(A91,Report!$A$12:$A$600)),0)),0) -> 0
A92: 3580 | B92: Discounts/Rebates | C92: =-IFERROR(INDEX(Report!$A:$Z,MATCH(TRUE,ISNUMBER(SEARCH('3.Income and Expenditure Report'!A92,Report!$A:$A)),0),MATCH("Grand Total",Report!$11:$11,0)),"0")-F92 -> 0 | D92: =IFERROR(VLOOKUP(A92,'1.Budget'!$A$1:$C$600,3,FALSE),0) -> 0 | E92: 0 | F92: =-IFERROR(INDEX(Report!$B$12:$B$600,MATCH(TRUE,ISNUMBER(SEARCH(A92,Report!$A$12:$A$600)),0)),0) -> 0 | H92: zeros
A93: Total School Generated Income | C93: =SUM(C59:C92) -> 26918.73 | D93: =SUM(D59:D92) -> 0 | E93: =SUM(E59:E92) -> 26918.73 | F93: =SUM(F59:F92) -> 0
H94: zeros
A95: Other Income | H95: zeros
A96: 3650 | B96: Voluntary Contributions | C96: =-IFERROR(INDEX(Report!$A:$Z,MATCH(TRUE,ISNUMBER(SEARCH('3.Income and Expenditure Report'!A96,Report!$A:$A)),0),MATCH("Grand Total",Report!$11:$11,0)),"0")-F96 -> 0 | D96: =IFERROR(VLOOKUP(A96,'1.Budget'!$A$1:$C$600,3,FALSE),0) -> 0 | E96: =C96-D96 -> 0 | F96: =-IFERROR(INDEX(Report!$B$12:$B$600,MATCH(TRUE,ISNUMBER(SEARCH(A96,Report!$A$12:$A$600)),0)),0) -> 0 | H96: zeros
A97: 3700 | B97: Income from Parents Association | C97: =-IFERROR(INDEX(Report!$A:$Z,MATCH(TRUE,ISNUMBER(SEARCH('3.Income and Expenditure Report'!A97,Report!$A:$A)),0),MATCH("Grand Total",Report!$11:$11,0)),"0")-F97 -> 0 | D97: =IFERROR(VLOOKUP(A97,'1.Budget'!$A$1:$C$600,3,FALSE),0) -> 0 | E97: =C97-D97 -> 0 | F97: =-IFERROR(INDEX(Report!$B$12:$B$600,MATCH(TRUE,ISNUMBER(SEARCH(A97,Report!$A$12:$A$600)),0)),0) -> 0 | H97: zeros
A98: 3770 | B98: Insurance Claim Income | C98: =-IFERROR(INDEX(Report!$A:$Z,MATCH(TRUE,ISNUMBER(SEARCH('3.Income and Expenditure Report'!A98,Report!$A:$A)),0),MATCH("Grand Total",Report!$11:$11,0)),"0")-F98 -> 0 | D98: =IFERROR(VLOOKUP(A98,'1.Budget'!$A$1:$C$600,3,FALSE),0) -> 0 | E98: 0 | F98: =-IFERROR(INDEX(Report!$B$12:$B$600,MATCH(TRUE,ISNUMBER(SEARCH(A98,Report!$A$12:$A$600)),0)),0) -> 0 | H98: zeros
A99: 3800 | B99: Bank Interest Received | C99: =-IFERROR(INDEX(Report!$A:$Z,MATCH(TRUE,ISNUMBER(SEARCH('3.Income and Expenditure Report'!A99,Report!$A:$A)),0),MATCH("Grand Total",Report!$11:$11,0)),"0")-F99 -> 0 | D99: =IFERROR(VLOOKUP(A99,'1.Budget'!$A$1:$C$600,3,FALSE),0) -> 0 | E99: 0 | F99: =-IFERROR(INDEX(Report!$B$12:$B$600,MATCH(TRUE,ISNUMBER(SEARCH(A99,Report!$A$12:$A$600)),0)),0) -> 0 | H99: zeros
A100: 3840 | B100: Amortisation of Non DE funding | C100: =-IFERROR(INDEX(Report!$A:$Z,MATCH(TRUE,ISNUMBER(SEARCH('3.Income and Expenditure Report'!A100,Report!$A:$A)),0),MATCH("Grand Total",Report!$11:$11,0)),"0")-F100 -> 0 | D100: =IFERROR(VLOOKUP(A100,'1.Budget'!$A$1:$C$600,3,FALSE),0) -> 0 | E100: 0 | F100: =-IFERROR(INDEX(Report!$B$12:$B$600,MATCH(TRUE,ISNUMBER(SEARCH(A100,Report!$A$12:$A$600)),0)),0) -> 0 | H100: zeros
A101: 3850 | B101: Other Income | C101: =-IFERROR(INDEX(Report!$A:$Z,MATCH(TRUE,ISNUMBER(SEARCH('3.Income and Expenditure Report'!A101,Report!$A:$A)),0),MATCH("Grand Total",Report!$11:$11,0)),"0")-F101 -> 0 | D101: =IFERROR(VLOOKUP(A101,'1.Budget'!$A$1:$C$600,3,FALSE),0) -> 0 | E101: 0 | F101: =-IFERROR(INDEX(Report!$B$12:$B$600,MATCH(TRUE,ISNUMBER(SEARCH(A101,Report!$A$12:$A$600)),0)),0) -> 0 | H101: zeros
A102: 3851 | B102: Designated Income (Non Capital) | C102: =-IFERROR(INDEX(Report!$A:$Z,MATCH(TRUE,ISNUMBER(SEARCH('3.Income and Expenditure Report'!A102,Report!$A:$A)),0),MATCH("Grand Total",Report!$11:$11,0)),"0")-F102 -> 0 | D102: =IFERROR(VLOOKUP(A102,'1.Budget'!$A$1:$C$600,3,FALSE),0) -> 0 | E102: 0 | F102: =-IFERROR(INDEX(Report!$B$12:$B$600,MATCH(TRUE,ISNUMBER(SEARCH(A102,Report!$A$12:$A$600)),0)),0) -> 0 | H102: zeros
A103: 3852 | B103: Restricted External Fundraising (Non Capital) | C103: =-IFERROR(INDEX(Report!$A:$Z,MATCH(TRUE,ISNUMBER(SEARCH('3.Income and Expenditure Report'!A103,Report!$A:$A)),0),MATCH("Grand Total",Report!$11:$11,0)),"0")-F103 -> 0 | D103: =IFERROR(VLOOKUP(A103,'1.Budget'!$A$1:$C$600,3,FALSE),0) -> 0 | E103: 0 | F103: =-IFERROR(INDEX(Report!$B$12:$B$600,MATCH(TRUE,ISNUMBER(SEARCH(A103,Report!$A$12:$A$600)),0)),0) -> 0 | H103: zeros
A104: 3853 | B104: Unrestricted External Fundraising (Non Capital) | C104: =-IFERROR(INDEX(Report!$A:$Z,MATCH(TRUE,ISNUMBER(SEARCH('3.Income and Expenditure Report'!A104,Report!$A:$A)),0),MATCH("Grand Total",Report!$11:$11,0)),"0")-F104 -> 0 | D104: =IFERROR(VLOOKUP(A104,'1.Budget'!$A$1:$C$600,3,FALSE),0) -> 0 | E104: 0 | F104: =-IFERROR(INDEX(Report!$B$12:$B$600,MATCH(TRUE,ISNUMBER(SEARCH(A104,Report!$A$12:$A$600)),0)),0) -> 0 | H104: zeros
A105: Total Other Income | C105: =SUM(C96:C104) -> 0 | D105: =SUM(D96:D104) -> 0 | E105: =SUM(E96:E104) -> 0 | F105: =SUM(F96:F104) -> 0 | H105: zeros
H106: zeros
A107: TOTAL INCOME | C107: =C48+C56+C93+C105 -> 329166.68 | D107: =D48+D56+D93+D105 -> 0 | E107: =E48+E56+E93+E105 -> 329166.68 | F107: =F48+F56+F93+F105 -> 0
H108: zeros
A109: EXPENDITURE | H109: zeros
H110: zeros
A111: Education Salaries | H111: zeros
A112: 4110 | B112: Substitute Teachers Wages Expense | C112: =IFERROR(INDEX(Report!$A:$Z,MATCH(TRUE,ISNUMBER(SEARCH('3.Income and Expenditure Report'!A112,Report!$A:$A)),0),MATCH("Grand Total",Report!$11:$11,0)),"0")-F112 -> 0 | D112: =IFERROR(VLOOKUP(A112,'1.Budget'!$A$1:$C$600,3,FALSE),0) -> 0 | E112: =C112-D112 -> 0 | F112: =IFERROR(INDEX(Report!$B$12:$B$600,MATCH(TRUE,ISNUMBER(SEARCH(A112,Report!$A$12:$A$600)),0)),0) -> 0 | H112: zeros
A113: 4111 | B113: Privately Paid Teachers Wages Expense | C113: =IFERROR(INDEX(Report!$A:$Z,MATCH(TRUE,ISNUMBER(SEARCH('3.Income and Expenditure Report'!A113,Report!$A:$A)),0),MATCH("Grand Total",Report!$11:$11,0)),"0")-F113 -> 0 | D113: =IFERROR(VLOOKUP(A113,'1.Budget'!$A$1:$C$600,3,FALSE),0) -> 0 | E113: =C113-D113 -> 0 | F113: =IFERROR(INDEX(Report!$B$12:$B$600,MATCH(TRUE,ISNUMBER(SEARCH(A113,Report!$A$12:$A$600)),0)),0) -> 0 | H113: zeros
A114: 4112 | B114: Chaplain Wages Expense | C114: =IFERROR(INDEX(Report!$A:$Z,MATCH(TRUE,ISNUMBER(SEARCH('3.Income and Expenditure Report'!A114,Report!$A:$A)),0),MATCH("Grand Total",Report!$11:$11,0)),"0")-F114 -> 0 | D114: =IFERROR(VLOOKUP(A114,'1.Budget'!$A$1:$C$600,3,FALSE),0) -> 0 | E114: 0 | F114: =IFERROR(INDEX(Report!$B$12:$B$600,MATCH(TRUE,ISNUMBER(SEARCH(A114,Report!$A$12:$A$600)),0)),0) -> 0 | H114: zeros
A115: 4113 | B115: Free Schoolbook Admin Wages Expense | C115: =IFERROR(INDEX(Report!$A:$Z,MATCH(TRUE,ISNUMBER(SEARCH('3.Income and Expenditure Report'!A115,Report!$A:$A)),0),MATCH("Grand Total",Report!$11:$11,0)),"0")-F115 -> 5612.1 | D115: =IFERROR(VLOOKUP(A115,'1.Budget'!$A$1:$C$600,3,FALSE),0) -> 0 | E115: 5612.1 | F115: =IFERROR(INDEX(Report!$B$12:$B$600,MATCH(TRUE,ISNUMBER(SEARCH(A115,Report!$A$12:$A$600)),0)),0) -> 0
A116: 4150 | B116: Supervision and Substitution Wages Expense | C116: =IFERROR(INDEX(Report!$A:$Z,MATCH(TRUE,ISNUMBER(SEARCH('3.Income and Expenditure Report'!A116,Report!$A:$A)),0),MATCH("Grand Total",Report!$11:$11,0)),"0")-F116 -> 19376 | D116: =IFERROR(VLOOKUP(A116,'1.Budget'!$A$1:$C$600,3,FALSE),0) -> 0 | E116: 19376 | F116: =IFERROR(INDEX(Report!$B$12:$B$600,MATCH(TRUE,ISNUMBER(SEARCH(A116,Report!$A$12:$A$600)),0)),0) -> 0
A117: 4155 | B117: State Exam Wages Expense | C117: =IFERROR(INDEX(Report!$A:$Z,MATCH(TRUE,ISNUMBER(SEARCH('3.Income and Expenditure Report'!A117,Report!$A:$A)),0),MATCH("Grand Total",Report!$11:$11,0)),"0")-F117 -> 3500 | D117: =IFERROR(VLOOKUP(A117,'1.Budget'!$A$1:$C$600,3,FALSE),0) -> 0 | E117: 3500 | F117: =IFERROR(INDEX(Report!$B$12:$B$600,MATCH(TRUE,ISNUMBER(SEARCH(A117,Report!$A$12:$A$600)),0)),0) -> 0
A118: 4170 | B118: Adult Education Wages Expense | C118: =IFERROR(INDEX(Report!$A:$Z,MATCH(TRUE,ISNUMBER(SEARCH('3.Income and Expenditure Report'!A118,Report!$A:$A)),0),MATCH("Grand Total",Report!$11:$11,0)),"0")-F118 -> 0 | D118: =IFERROR(VLOOKUP(A118,'1.Budget'!$A$1:$C$600,3,FALSE),0) -> 0 | E118: 0 | F118: =IFERROR(INDEX(Report!$B$12:$B$600,MATCH(TRUE,ISNUMBER(SEARCH(A118,Report!$A$12:$A$600)),0)),0) -> 0 | H118: zeros
A119: 4180 | B119: Sport Coach Wages Expense | C119: =IFERROR(INDEX(Report!$A:$Z,MATCH(TRUE,ISNUMBER(SEARCH('3.Income and Expenditure Report'!A119,Report!$A:$A)),0),MATCH("Grand Total",Report!$11:$11,0)),"0")-F119 -> 0 | D119: =IFERROR(VLOOKUP(A119,'1.Budget'!$A$1:$C$600,3,FALSE),0) -> 0 | E119: 0 | F119: =IFERROR(INDEX(Report!$B$12:$B$600,MATCH(TRUE,ISNUMBER(SEARCH(A119,Report!$A$12:$A$600)),0)),0) -> 0 | H119: zeros
A120: 4181 | B120: Canteen Wages Expense | C120: =IFERROR(INDEX(Report!$A:$Z,MATCH(TRUE,ISNUMBER(SEARCH('3.Income and Expenditure Report'!A120,Report!$A:$A)),0),MATCH("Grand Total",Report!$11:$11,0)),"0")-F120 -> 0 | D120: =IFERROR(VLOOKUP(A120,'1.Budget'!$A$1:$C$600,3,FALSE),0) -> 0 | E120: 0 | F120: =IFERROR(INDEX(Report!$B$12:$B$600,MATCH(TRUE,ISNUMBER(SEARCH(A120,Report!$A$12:$A$600)),0)),0) -> 0 | H120: zeros
A121: 4190 | B121: After School Study/Club Wages Expense | C121: =IFERROR(INDEX(Report!$A:$Z,MATCH(TRUE,ISNUMBER(SEARCH('3.Income and Expenditure Report'!A121,Report!$A:$A)),0),MATCH("Grand Total",Report!$11:$11,0)),"0")-F121 -> 0 | D121: =IFERROR(VLOOKUP(A121,'1.Budget'!$A$1:$C$600,3,FALSE),0) -> 0 | E121: 0 | F121: =IFERROR(INDEX(Report!$B$12:$B$600,MATCH(TRUE,ISNUMBER(SEARCH(A121,Report!$A$12:$A$600)),0)),0) -> 0 | H121: zeros
A122: 4191 | B122: Summer Camps Wages Expense | C122: =IFERROR(INDEX(Report!$A:$Z,MATCH(TRUE,ISNUMBER(SEARCH('3.Income and Expenditure Report'!A122,Report!$A:$A)),0),MATCH("Grand Total",Report!$11:$11,0)),"0")-F122 -> 0 | D122: =IFERROR(VLOOKUP(A122,'1.Budget'!$A$1:$C$600,3,FALSE),0) -> 0 | E122: 0 | F122: =IFERROR(INDEX(Report!$B$12:$B$600,MATCH(TRUE,ISNUMBER(SEARCH(A122,Report!$A$12:$A$600)),0)),0) -> 0 | H122: zeros
A123: 4196 | B123: Bus Escort Wages Expense | C123: =IFERROR(INDEX(Report!$A:$Z,MATCH(TRUE,ISNUMBER(SEARCH('3.Income and Expenditure Report'!A123,Report!$A:$A)),0),MATCH("Grand Total",Report!$11:$11,0)),"0")-F123 -> 0 | D123: =IFERROR(VLOOKUP(A123,'1.Budget'!$A$1:$C$600,3,FALSE),0) -> 0 | E123: 0 | F123: =IFERROR(INDEX(Report!$B$12:$B$600,MATCH(TRUE,ISNUMBER(SEARCH(A123,Report!$A$12:$A$600)),0)),0) -> 0 | H123: zeros
A124: 4198 | B124: Other Educational Wages Expense | C124: =IFERROR(INDEX(Report!$A:$Z,MATCH(TRUE,ISNUMBER(SEARCH('3.Income and Expenditure Report'!A124,Report!$A:$A)),0),MATCH("Grand Total",Report!$11:$11,0)),"0")-F124 -> 0 | D124: =IFERROR(VLOOKUP(A124,'1.Budget'!$A$1:$C$600,3,FALSE),0) -> 0 | E124: 0 | F124: =IFERROR(INDEX(Report!$B$12:$B$600,MATCH(TRUE,ISNUMBER(SEARCH(A124,Report!$A$12:$A$600)),0)),0) -> 0 | H124: zeros
A125: 4199 | B125: HSE Funded Wages Expense | C125: =IFERROR(INDEX(Report!$A:$Z,MATCH(TRUE,ISNUMBER(SEARCH('3.Income and Expenditure Report'!A125,Report!$A:$A)),0),MATCH("Grand Total",Report!$11:$11,0)),"0")-F125 -> 0 | D125: =IFERROR(VLOOKUP(A125,'1.Budget'!$A$1:$C$600,3,FALSE),0) -> 0 | E125: 0 | F125: =IFERROR(INDEX(Report!$B$12:$B$600,MATCH(TRUE,ISNUMBER(SEARCH(A125,Report!$A$12:$A$600)),0)),0) -> 0 | H125: zeros
A126: 4200 | B126: Bus Escort Employer Pension Expense | C126: =IFERROR(INDEX(Report!$A:$Z,MATCH(TRUE,ISNUMBER(SEARCH('3.Income and Expenditure Report'!A126,Report!$A:$A)),0),MATCH("Grand Total",Report!$11:$11,0)),"0")-F126 -> 0 | D126: =IFERROR(VLOOKUP(A126,'1.Budget'!$A$1:$C$600,3,FALSE),0) -> 0 | E126: 0 | F126: =IFERROR(INDEX(Report!$B$12:$B$600,MATCH(TRUE,ISNUMBER(SEARCH(A126,Report!$A$12:$A$600)),0)),0) -> 0 | H126: zeros
A127: 4201 | B127: Other Employer Pension Expense | C127: =IFERROR(INDEX(Report!$A:$Z,MATCH(TRUE,ISNUMBER(SEARCH('3.Income and Expenditure Report'!A127,Report!$A:$A)),0),MATCH("Grand Total",Report!$11:$11,0)),"0")-F127 -> 0 | D127: =IFERROR(VLOOKUP(A127,'1.Budget'!$A$1:$C$600,3,FALSE),0) -> 0 | E127: 0 | F127: =IFERROR(INDEX(Report!$B$12:$B$600,MATCH(TRUE,ISNUMBER(SEARCH(A127,Report!$A$12:$A$600)),0)),0) -> 0 | H127: zeros
A128: Total Education Salaries | C128: =SUM(C112:C127) -> 28488.1 | D128: =SUM(D112:D127) -> 0 | E128: =SUM(E112:E127) -> 28488.1 | F128: =SUM(F112:F127) -> 0
H129: zeros
A130: Education Other Expenditure | H130: zeros
A131: 4310 | B131: Teaching Aids Expense | C131: =IFERROR(INDEX(Report!$A:$Z,MATCH(TRUE,ISNUMBER(SEARCH('3.Income and Expenditure Report'!A131,Report!$A:$A)),0),MATCH("Grand Total",Report!$11:$11,0)),"0")-F131 -> 0 | D131: =IFERROR(VLOOKUP(A131,'1.Budget'!$A$1:$C$600,3,FALSE),0) -> 0 | E131: =C131-D131 -> 0 | F131: =IFERROR(INDEX(Report!$B$12:$B$600,MATCH(TRUE,ISNUMBER(SEARCH(A131,Report!$A$12:$A$600)),0)),0) -> 0 | H131: zeros
A132: 4311 | B132: Early Start Programme Materials/Equipment/Parental Involvement Expenses | C132: =IFERROR(INDEX(Report!$A:$Z,MATCH(TRUE,ISNUMBER(SEARCH('3.Income and Expenditure Report'!A132,Report!$A:$A)),0),MATCH("Grand Total",Report!$11:$11,0)),"0")-F132 -> 0 | D132: =IFERROR(VLOOKUP(A132,'1.Budget'!$A$1:$C$600,3,FALSE),0) -> 0 | E132: =C132-D132 -> 0 | F132: =IFERROR(INDEX(Report!$B$12:$B$600,MATCH(TRUE,ISNUMBER(SEARCH(A132,Report!$A$12:$A$600)),0)),0) -> 0 | H132: zeros
A133: 4315 | B133: Student Photocopying Expenses | C133: =IFERROR(INDEX(Report!$A:$Z,MATCH(TRUE,ISNUMBER(SEARCH('3.Income and Expenditure Report'!A133,Report!$A:$A)),0),MATCH("Grand Total",Report!$11:$11,0)),"0")-F133 -> 0 | D133: =IFERROR(VLOOKUP(A133,'1.Budget'!$A$1:$C$600,3,FALSE),0) -> 0 | E133: 0 | F133: =IFERROR(INDEX(Report!$B$12:$B$600,MATCH(TRUE,ISNUMBER(SEARCH(A133,Report!$A$12:$A$600)),0)),0) -> 0 | H133: zeros
A134: 4330 | B134: Religion/Ethos Expense | C134: =IFERROR(INDEX(Report!$A:$Z,MATCH(TRUE,ISNUMBER(SEARCH('3.Income and Expenditure Report'!A134,Report!$A:$A)),0),MATCH("Grand Total",Report!$11:$11,0)),"0")-F134 -> 0 | D134: =IFERROR(VLOOKUP(A134,'1.Budget'!$A$1:$C$600,3,FALSE),0) -> 0 | E134: 0 | F134: =IFERROR(INDEX(Report!$B$12:$B$600,MATCH(TRUE,ISNUMBER(SEARCH(A134,Report!$A$12:$A$600)),0)),0) -> 0 | H134: zeros
A135: 4350 | B135: Art Expense | C135: =IFERROR(INDEX(Report!$A:$Z,MATCH(TRUE,ISNUMBER(SEARCH('3.Income and Expenditure Report'!A135,Report!$A:$A)),0),MATCH("Grand Total",Report!$11:$11,0)),"0")-F135 -> 0 | D135: =IFERROR(VLOOKUP(A135,'1.Budget'!$A$1:$C$600,3,FALSE),0) -> 0 | E135: 0 | F135: =IFERROR(INDEX(Report!$B$12:$B$600,MATCH(TRUE,ISNUMBER(SEARCH(A135,Report!$A$12:$A$600)),0)),0) -> 0 | H135: zeros
A136: 4370 | B136: Home Economics Expense | C136: =IFERROR(INDEX(Report!$A:$Z,MATCH(TRUE,ISNUMBER(SEARCH('3.Income and Expenditure Report'!A136,Report!$A:$A)),0),MATCH("Grand Total",Report!$11:$11,0)),"0")-F136 -> 0 | D136: =IFERROR(VLOOKUP(A136,'1.Budget'!$A$1:$C$600,3,FALSE),0) -> 0 | E136: 0 | F136: =IFERROR(INDEX(Report!$B$12:$B$600,MATCH(TRUE,ISNUMBER(SEARCH(A136,Report!$A$12:$A$600)),0)),0) -> 0 | H136: zeros
A137: 4390 | B137: Science Subjects Expense | C137: =IFERROR(INDEX(Report!$A:$Z,MATCH(TRUE,ISNUMBER(SEARCH('3.Income and Expenditure Report'!A137,Report!$A:$A)),0),MATCH("Grand Total",Report!$11:$11,0)),"0")-F137 -> 10525 | D137: =IFERROR(VLOOKUP(A137,'1.Budget'!$A$1:$C$600,3,FALSE),0) -> 0 | E137: 10525 | F137: =IFERROR(INDEX(Report!$B$12:$B$600,MATCH(TRUE,ISNUMBER(SEARCH(A137,Report!$A$12:$A$600)),0)),0) -> 0
A138: 4410 | B138: ICT Grant Non - Capital Expense | C138: =IFERROR(INDEX(Report!$A:$Z,MATCH(TRUE,ISNUMBER(SEARCH('3.Income and Expenditure Report'!A138,Report!$A:$A)),0),MATCH("Grand Total",Report!$11:$11,0)),"0")-F138 -> 12030 | D138: =IFERROR(VLOOKUP(A138,'1.Budget'!$A$1:$C$600,3,FALSE),0) -> 0 | E138: 12030 | F138: =IFERROR(INDEX(Report!$B$12:$B$600,MATCH(TRUE,ISNUMBER(SEARCH(A138,Report!$A$12:$A$600)),0)),0) -> 0
A139: 4420 | B139: Computer Maintenance & Support Expense | C139: =IFERROR(INDEX(Report!$A:$Z,MATCH(TRUE,ISNUMBER(SEARCH('3.Income and Expenditure Report'!A139,Report!$A:$A)),0),MATCH("Grand Total",Report!$11:$11,0)),"0")-F139 -> 1300 | D139: =IFERROR(VLOOKUP(A139,'1.Budget'!$A$1:$C$600,3,FALSE),0) -> 0 | E139: 1300 | F139: =IFERROR(INDEX(Report!$B$12:$B$600,MATCH(TRUE,ISNUMBER(SEARCH(A139,Report!$A$12:$A$600)),0)),0) -> 0
A140: 4430 | B140: Woodwork / Building Construction Expense | C140: =IFERROR(INDEX(Report!$A:$Z,MATCH(TRUE,ISNUMBER(SEARCH('3.Income and Expenditure Report'!A140,Report!$A:$A)),0),MATCH("Grand Total",Report!$11:$11,0)),"0")-F140 -> 0 | D140: =IFERROR(VLOOKUP(A140,'1.Budget'!$A$1:$C$600,3,FALSE),0) -> 0 | E140: 0 | F140: =IFERROR(INDEX(Report!$B$12:$B$600,MATCH(TRUE,ISNUMBER(SEARCH(A140,Report!$A$12:$A$600)),0)),0) -> 0 | H140: =IF(AND(C140=0,D140=0,E140=0,F140=0),"zeros","") -> zeros
A141: 4450 | B141: Metalwork / Engineering Expense | C141: =IFERROR(INDEX(Report!$A:$Z,MATCH(TRUE,ISNUMBER(SEARCH('3.Income and Expenditure Report'!A141,Report!$A:$A)),0),MATCH("Grand Total",Report!$11:$11,0)),"0")-F141 -> 0 | D141: =IFERROR(VLOOKUP(A141,'1.Budget'!$A$1:$C$600,3,FALSE),0) -> 0 | E141: 0 | F141: =IFERROR(INDEX(Report!$B$12:$B$600,MATCH(TRUE,ISNUMBER(SEARCH(A141,Report!$A$12:$A$600)),0)),0) -> 0 | H141: zeros
A142: 4470 | B142: Technology Expense | C142: =IFERROR(INDEX(Report!$A:$Z,MATCH(TRUE,ISNUMBER(SEARCH('3.Income and Expenditure Report'!A142,Report!$A:$A)),0),MATCH("Grand Total",Report!$11:$11,0)),"0")-F142 -> 0 | D142: =IFERROR(VLOOKUP(A142,'1.Budget'!$A$1:$C$600,3,FALSE),0) -> 0 | E142: 0 | F142: =IFERROR(INDEX(Report!$B$12:$B$600,MATCH(TRUE,ISNUMBER(SEARCH(A142,Report!$A$12:$A$600)),0)),0) -> 0 | H142: zeros
A143: 4490 | B143: Curriculum/Subjects Expense | C143: =IFERROR(INDEX(Report!$A:$Z,MATCH(TRUE,ISNUMBER(SEARCH('3.Income and Expenditure Report'!A143,Report!$A:$A)),0),MATCH("Grand Total",Report!$11:$11,0)),"0")-F143 -> 0 | D143: =IFERROR(VLOOKUP(A143,'1.Budget'!$A$1:$C$600,3,FALSE),0) -> 0 | E143: 0 | F143: =IFERROR(INDEX(Report!$B$12:$B$600,MATCH(TRUE,ISNUMBER(SEARCH(A143,Report!$A$12:$A$600)),0)),0) -> 0 | H143: zeros
A144: 4540 | B144: JCSP Expense | C144: =IFERROR(INDEX(Report!$A:$Z,MATCH(TRUE,ISNUMBER(SEARCH('3.Income and Expenditure Report'!A144,Report!$A:$A)),0),MATCH("Grand Total",Report!$11:$11,0)),"0")-F144 -> 0 | D144: =IFERROR(VLOOKUP(A144,'1.Budget'!$A$1:$C$600,3,FALSE),0) -> 0 | E144: =C144-D144 -> 0 | F144: =IFERROR(INDEX(Report!$B$12:$B$600,MATCH(TRUE,ISNUMBER(SEARCH(A144,Report!$A$12:$A$600)),0)),0) -> 0
A145: 4550 | B145: Leaving Cert Applied Expense | C145: =IFERROR(INDEX(Report!$A:$Z,MATCH(TRUE,ISNUMBER(SEARCH('3.Income and Expenditure Report'!A145,Report!$A:$A)),0),MATCH("Grand Total",Report!$11:$11,0)),"0")-F145 -> 1589 | D145: =IFERROR(VLOOKUP(A145,'1.Budget'!$A$1:$C$600,3,FALSE),0) -> 0 | E145: 1589 | F145: =IFERROR(INDEX(Report!$B$12:$B$600,MATCH(TRUE,ISNUMBER(SEARCH(A145,Report!$A$12:$A$600)),0)),0) -> 0
A146: 4570 | B146: LCVP Expense | C146: =IFERROR(INDEX(Report!$A:$Z,MATCH(TRUE,ISNUMBER(SEARCH('3.Income and Expenditure Report'!A146,Report!$A:$A)),0),MATCH("Grand Total",Report!$11:$11,0)),"0")-F146 -> 0 | D146: =IFERROR(VLOOKUP(A146,'1.Budget'!$A$1:$C$600,3,FALSE),0) -> 0 | E146: 0 | F146: =IFERROR(INDEX(Report!$B$12:$B$600,MATCH(TRUE,ISNUMBER(SEARCH(A146,Report!$A$12:$A$600)),0)),0) -> 0 | H146: zeros
A147: 4590 | B147: Transition Year Expense | C147: =IFERROR(INDEX(Report!$A:$Z,MATCH(TRUE,ISNUMBER(SEARCH('3.Income and Expenditure Report'!A147,Report!$A:$A)),0),MATCH("Grand Total",Report!$11:$11,0)),"0")-F147 -> 1899 | D147: =IFERROR(VLOOKUP(A147,'1.Budget'!$A$1:$C$600,3,FALSE),0) -> 0 | E147: 1899 | F147: =IFERROR(INDEX(Report!$B$12:$B$600,MATCH(TRUE,ISNUMBER(SEARCH(A147,Report!$A$12:$A$600)),0)),0) -> 0
A148: 4610 | B148: Learning Support Expense | C148: =IFERROR(INDEX(Report!$A:$Z,MATCH(TRUE,ISNUMBER(SEARCH('3.Income and Expenditure Report'!A148,Report!$A:$A)),0),MATCH("Grand Total",Report!$11:$11,0)),"0")-F148 -> 0 | D148: =IFERROR(VLOOKUP(A148,'1.Budget'!$A$1:$C$600,3,FALSE),0) -> 0 | E148: 0 | F148: =IFERROR(INDEX(Report!$B$12:$B$600,MATCH(TRUE,ISNUMBER(SEARCH(A148,Report!$A$12:$A$600)),0)),0) -> 0 | H148: zeros
A149: 4611 | B149: Special Class Non-Capital Expense | C149: =IFERROR(INDEX(Report!$A:$Z,MATCH(TRUE,ISNUMBER(SEARCH('3.Income and Expenditure Report'!A149,Report!$A:$A)),0),MATCH("Grand Total",Report!$11:$11,0)),"0")-F149 -> 0 | D149: =IFERROR(VLOOKUP(A149,'1.Budget'!$A$1:$C$600,3,FALSE),0) -> 0 | E149: 0 | F149: =IFERROR(INDEX(Report!$B$12:$B$600,MATCH(TRUE,ISNUMBER(SEARCH(A149,Report!$A$12:$A$600)),0)),0) -> 0 | H149: zeros
A150: 4620 | B150: Inservice and Training Expense | C150: =IFERROR(INDEX(Report!$A:$Z,MATCH(TRUE,ISNUMBER(SEARCH('3.Income and Expenditure Report'!A150,Report!$A:$A)),0),MATCH("Grand Total",Report!$11:$11,0)),"0")-F150 -> 0 | D150: =IFERROR(VLOOKUP(A150,'1.Budget'!$A$1:$C$600,3,FALSE),0) -> 0 | E150: 0 | F150: =IFERROR(INDEX(Report!$B$12:$B$600,MATCH(TRUE,ISNUMBER(SEARCH(A150,Report!$A$12:$A$600)),0)),0) -> 0 | H150: zeros
A151: 4630 | B151: Career Guidance Expense | C151: =IFERROR(INDEX(Report!$A:$Z,MATCH(TRUE,ISNUMBER(SEARCH('3.Income and Expenditure Report'!A151,Report!$A:$A)),0),MATCH("Grand Total",Report!$11:$11,0)),"0")-F151 -> 0 | D151: =IFERROR(VLOOKUP(A151,'1.Budget'!$A$1:$C$600,3,FALSE),0) -> 0 | E151: 0 | F151: =IFERROR(INDEX(Report!$B$12:$B$600,MATCH(TRUE,ISNUMBER(SEARCH(A151,Report!$A$12:$A$600)),0)),0) -> 0 | H151: zeros
A152: 4635 | B152: Student Wellbeing Expense | C152: =IFERROR(INDEX(Report!$A:$Z,MATCH(TRUE,ISNUMBER(SEARCH('3.Income and Expenditure Report'!A152,Report!$A:$A)),0),MATCH("Grand Total",Report!$11:$11,0)),"0")-F152 -> 0 | D152: =IFERROR(VLOOKUP(A152,'1.Budget'!$A$1:$C$600,3,FALSE),0) -> 0 | E152: 0 | F152: =IFERROR(INDEX(Report!$B$12:$B$600,MATCH(TRUE,ISNUMBER(SEARCH(A152,Report!$A$12:$A$600)),0)),0) -> 0 | H152: zeros
A153: 4640 | B153: Library Non Grant Funded Expense | C153: =IFERROR(INDEX(Report!$A:$Z,MATCH(TRUE,ISNUMBER(SEARCH('3.Income and Expenditure Report'!A153,Report!$A:$A)),0),MATCH("Grand Total",Report!$11:$11,0)),"0")-F153 -> 0 | D153: =IFERROR(VLOOKUP(A153,'1.Budget'!$A$1:$C$600,3,FALSE),0) -> 0 | E153: 0 | F153: =IFERROR(INDEX(Report!$B$12:$B$600,MATCH(TRUE,ISNUMBER(SEARCH(A153,Report!$A$12:$A$600)),0)),0) -> 0 | H153: zeros
A154: 4641 | B154: School Library Books Capital Grant Expense | C154: =IFERROR(INDEX(Report!$A:$Z,MATCH(TRUE,ISNUMBER(SEARCH('3.Income and Expenditure Report'!A154,Report!$A:$A)),0),MATCH("Grand Total",Report!$11:$11,0)),"0")-F154 -> 0 | D154: =IFERROR(VLOOKUP(A154,'1.Budget'!$A$1:$C$600,3,FALSE),0) -> 0 | E154: 0 | F154: =IFERROR(INDEX(Report!$B$12:$B$600,MATCH(TRUE,ISNUMBER(SEARCH(A154,Report!$A$12:$A$600)),0)),0) -> 0 | H154: zeros
A155: 4650 | B155: Physical Education Expense | C155: =IFERROR(INDEX(Report!$A:$Z,MATCH(TRUE,ISNUMBER(SEARCH('3.Income and Expenditure Report'!A155,Report!$A:$A)),0),MATCH("Grand Total",Report!$11:$11,0)),"0")-F155 -> 0 | D155: =IFERROR(VLOOKUP(A155,'1.Budget'!$A$1:$C$600,3,FALSE),0) -> 0 | E155: 0 | F155: =IFERROR(INDEX(Report!$B$12:$B$600,MATCH(TRUE,ISNUMBER(SEARCH(A155,Report!$A$12:$A$600)),0)),0) -> 0 | H155: zeros
A156: 4670 | B156: Games (excl. travel) Expense | C156: =IFERROR(INDEX(Report!$A:$Z,MATCH(TRUE,ISNUMBER(SEARCH('3.Income and Expenditure Report'!A156,Report!$A:$A)),0),MATCH("Grand Total",Report!$11:$11,0)),"0")-F156 -> 0 | D156: =IFERROR(VLOOKUP(A156,'1.Budget'!$A$1:$C$600,3,FALSE),0) -> 0 | E156: 0 | F156: =IFERROR(INDEX(Report!$B$12:$B$600,MATCH(TRUE,ISNUMBER(SEARCH(A156,Report!$A$12:$A$600)),0)),0) -> 0 | H156: zeros
A157: 4671 | B157: Bus Hire for Games Expense | C157: =IFERROR(INDEX(Report!$A:$Z,MATCH(TRUE,ISNUMBER(SEARCH('3.Income and Expenditure Report'!A157,Report!$A:$A)),0),MATCH("Grand Total",Report!$11:$11,0)),"0")-F157 -> 2500 | D157: =IFERROR(VLOOKUP(A157,'1.Budget'!$A$1:$C$600,3,FALSE),0) -> 0 | E157: 2500 | F157: =IFERROR(INDEX(Report!$B$12:$B$600,MATCH(TRUE,ISNUMBER(SEARCH(A157,Report!$A$12:$A$600)),0)),0) -> 0
A158: 4690 | B158: Bus Hire Other Expense | C158: =IFERROR(INDEX(Report!$A:$Z,MATCH(TRUE,ISNUMBER(SEARCH('3.Income and Expenditure Report'!A158,Report!$A:$A)),0),MATCH("Grand Total",Report!$11:$11,0)),"0")-F158 -> 0 | D158: =IFERROR(VLOOKUP(A158,'1.Budget'!$A$1:$C$600,3,FALSE),0) -> 0 | E158: 0 | F158: =IFERROR(INDEX(Report!$B$12:$B$600,MATCH(TRUE,ISNUMBER(SEARCH(A158,Report!$A$12:$A$600)),0)),0) -> 0 | H158: zeros
A159: 4710 | B159: School Tours/Trips Expense | C159: =IFERROR(INDEX(Report!$A:$Z,MATCH(TRUE,ISNUMBER(SEARCH('3.Income and Expenditure Report'!A159,Report!$A:$A)),0),MATCH("Grand Total",Report!$11:$11,0)),"0")-F159 -> 0 | D159: =IFERROR(VLOOKUP(A159,'1.Budget'!$A$1:$C$600,3,FALSE),0) -> 0 | E159: 0 | F159: =IFERROR(INDEX(Report!$B$12:$B$600,MATCH(TRUE,ISNUMBER(SEARCH(A159,Report!$A$12:$A$600)),0)),0) -> 0 | H159: zeros
A160: 4720 | B160: School Musical/Drama Expense | C160: =IFERROR(INDEX(Report!$A:$Z,MATCH(TRUE,ISNUMBER(SEARCH('3.Income and Expenditure Report'!A160,Report!$A:$A)),0),MATCH("Grand Total",Report!$11:$11,0)),"0")-F160 -> 0 | D160: =IFERROR(VLOOKUP(A160,'1.Budget'!$A$1:$C$600,3,FALSE),0) -> 0 | E160: 0 | F160: =IFERROR(INDEX(Report!$B$12:$B$600,MATCH(TRUE,ISNUMBER(SEARCH(A160,Report!$A$12:$A$600)),0)),0) -> 0 | H160: zeros
A161: 4730 | B161: Book Grant Senior Cycle Expense | C161: =IFERROR(INDEX(Report!$A:$Z,MATCH(TRUE,ISNUMBER(SEARCH('3.Income and Expenditure Report'!A161,Report!$A:$A)),0),MATCH("Grand Total",Report!$11:$11,0)),"0")-F161 -> 0 | D161: =IFERROR(VLOOKUP(A161,'1.Budget'!$A$1:$C$600,3,FALSE),0) -> 0 | E161: 0 | F161: =IFERROR(INDEX(Report!$B$12:$B$600,MATCH(TRUE,ISNUMBER(SEARCH(A161,Report!$A$12:$A$600)),0)),0) -> 0 | H161: zeros
A162: 4731 | B162: Free Schoolbook Grant Expense | C162: =IFERROR(INDEX(Report!$A:$Z,MATCH(TRUE,ISNUMBER(SEARCH('3.Income and Expenditure Report'!A162,Report!$A:$A)),0),MATCH("Grand Total",Report!$11:$11,0)),"0")-F162 -> 120220 | D162: =IFERROR(VLOOKUP(A162,'1.Budget'!$A$1:$C$600,3,FALSE),0) -> 0 | E162: 120220 | F162: =IFERROR(INDEX(Report!$B$12:$B$600,MATCH(TRUE,ISNUMBER(SEARCH(A162,Report!$A$12:$A$600)),0)),0) -> 0
A163: 4740 | B163: Book Rental Scheme Expense | C163: =IFERROR(INDEX(Report!$A:$Z,MATCH(TRUE,ISNUMBER(SEARCH('3.Income and Expenditure Report'!A163,Report!$A:$A)),0),MATCH("Grand Total",Report!$11:$11,0)),"0")-F163 -> 0 | D163: =IFERROR(VLOOKUP(A163,'1.Budget'!$A$1:$C$600,3,FALSE),0) -> 0 | E163: 0 | F163: =IFERROR(INDEX(Report!$B$12:$B$600,MATCH(TRUE,ISNUMBER(SEARCH(A163,Report!$A$12:$A$600)),0)),0) -> 0 | H163: zeros
A164: 4741 | B164: Classroom Books/Resources Expense | C164: =IFERROR(INDEX(Report!$A:$Z,MATCH(TRUE,ISNUMBER(SEARCH('3.Income and Expenditure Report'!A164,Report!$A:$A)),0),MATCH("Grand Total",Report!$11:$11,0)),"0")-F164 -> 0 | D164: =IFERROR(VLOOKUP(A164,'1.Budget'!$A$1:$C$600,3,FALSE),0) -> 0 | E164: 0 | F164: =IFERROR(INDEX(Report!$B$12:$B$600,MATCH(TRUE,ISNUMBER(SEARCH(A164,Report!$A$12:$A$600)),0)),0) -> 0 | H164: zeros
A165: 4750 | B165: Mock Examinations Expense | C165: =IFERROR(INDEX(Report!$A:$Z,MATCH(TRUE,ISNUMBER(SEARCH('3.Income and Expenditure Report'!A165,Report!$A:$A)),0),MATCH("Grand Total",Report!$11:$11,0)),"0")-F165 -> 0 | D165: =IFERROR(VLOOKUP(A165,'1.Budget'!$A$1:$C$600,3,FALSE),0) -> 0 | E165: 0 | F165: =IFERROR(INDEX(Report!$B$12:$B$600,MATCH(TRUE,ISNUMBER(SEARCH(A165,Report!$A$12:$A$600)),0)),0) -> 0 | H165: zeros
A166: 4760 | B166: School Yearbook/Journal Expense | C166: =IFERROR(INDEX(Report!$A:$Z,MATCH(TRUE,ISNUMBER(SEARCH('3.Income and Expenditure Report'!A166,Report!$A:$A)),0),MATCH("Grand Total",Report!$11:$11,0)),"0")-F166 -> 0 | D166: =IFERROR(VLOOKUP(A166,'1.Budget'!$A$1:$C$600,3,FALSE),0) -> 0 | E166: 0 | F166: =IFERROR(INDEX(Report!$B$12:$B$600,MATCH(TRUE,ISNUMBER(SEARCH(A166,Report!$A$12:$A$600)),0)),0) -> 0 | H166: zeros
A167: 4770 | B167: Trophies and Prizes Expense | C167: =IFERROR(INDEX(Report!$A:$Z,MATCH(TRUE,ISNUMBER(SEARCH('3.Income and Expenditure Report'!A167,Report!$A:$A)),0),MATCH("Grand Total",Report!$11:$11,0)),"0")-F167 -> 0 | D167: =IFERROR(VLOOKUP(A167,'1.Budget'!$A$1:$C$600,3,FALSE),0) -> 0 | E167: 0 | F167: =IFERROR(INDEX(Report!$B$12:$B$600,MATCH(TRUE,ISNUMBER(SEARCH(A167,Report!$A$12:$A$600)),0)),0) -> 0 | H167: zeros
A168: 4780 | B168: Uniform Expense | C168: =IFERROR(INDEX(Report!$A:$Z,MATCH(TRUE,ISNUMBER(SEARCH('3.Income and Expenditure Report'!A168,Report!$A:$A)),0),MATCH("Grand Total",Report!$11:$11,0)),"0")-F168 -> 0 | D168: =IFERROR(VLOOKUP(A168,'1.Budget'!$A$1:$C$600,3,FALSE),0) -> 0 | E168: 0 | F168: =IFERROR(INDEX(Report!$B$12:$B$600,MATCH(TRUE,ISNUMBER(SEARCH(A168,Report!$A$12:$A$600)),0)),0) -> 0 | H168: zeros
A169: 4810 | B169: Home School Liaison Expense | C169: =IFERROR(INDEX(Report!$A:$Z,MATCH(TRUE,ISNUMBER(SEARCH('3.Income and Expenditure Report'!A169,Report!$A:$A)),0),MATCH("Grand Total",Report!$11:$11,0)),"0")-F169 -> 0 | D169: =IFERROR(VLOOKUP(A169,'1.Budget'!$A$1:$C$600,3,FALSE),0) -> 0 | E169: 0 | F169: =IFERROR(INDEX(Report!$B$12:$B$600,MATCH(TRUE,ISNUMBER(SEARCH(A169,Report!$A$12:$A$600)),0)),0) -> 0 | H169: zeros
A170: 4815 | B170: School Excellence Fund Expense | C170: =IFERROR(INDEX(Report!$A:$Z,MATCH(TRUE,ISNUMBER(SEARCH('3.Income and Expenditure Report'!A170,Report!$A:$A)),0),MATCH("Grand Total",Report!$11:$11,0)),"0")-F170 -> 0 | D170: =IFERROR(VLOOKUP(A170,'1.Budget'!$A$1:$C$600,3,FALSE),0) -> 0 | E170: 0 | F170: =IFERROR(INDEX(Report!$B$12:$B$600,MATCH(TRUE,ISNUMBER(SEARCH(A170,Report!$A$12:$A$600)),0)),0) -> 0 | H170: zeros
A171: 4850 | B171: Student Council Expense | C171: =IFERROR(INDEX(Report!$A:$Z,MATCH(TRUE,ISNUMBER(SEARCH('3.Income and Expenditure Report'!A171,Report!$A:$A)),0),MATCH("Grand Total",Report!$11:$11,0)),"0")-F171 -> 0 | D171: =IFERROR(VLOOKUP(A171,'1.Budget'!$A$1:$C$600,3,FALSE),0) -> 0 | E171: 0 | F171: =IFERROR(INDEX(Report!$B$12:$B$600,MATCH(TRUE,ISNUMBER(SEARCH(A171,Report!$A$12:$A$600)),0)),0) -> 0 | H171: zeros
A172: 4908 | B172: Other Summer Camps Expense | C172: =IFERROR(INDEX(Report!$A:$Z,MATCH(TRUE,ISNUMBER(SEARCH('3.Income and Expenditure Report'!A172,Report!$A:$A)),0),MATCH("Grand Total",Report!$11:$11,0)),"0")-F172 -> 0 | D172: =IFERROR(VLOOKUP(A172,'1.Budget'!$A$1:$C$600,3,FALSE),0) -> 0 | E172: 0 | F172: =IFERROR(INDEX(Report!$B$12:$B$600,MATCH(TRUE,ISNUMBER(SEARCH(A172,Report!$A$12:$A$600)),0)),0) -> 0 | H172: zeros
A173: 4909 | B173: Other Summer Provision Expense | C173: =IFERROR(INDEX(Report!$A:$Z,MATCH(TRUE,ISNUMBER(SEARCH('3.Income and Expenditure Report'!A173,Report!$A:$A)),0),MATCH("Grand Total",Report!$11:$11,0)),"0")-F173 -> 0 | D173: =IFERROR(VLOOKUP(A173,'1.Budget'!$A$1:$C$600,3,FALSE),0) -> 0 | E173: 0 | F173: =IFERROR(INDEX(Report!$B$12:$B$600,MATCH(TRUE,ISNUMBER(SEARCH(A173,Report!$A$12:$A$600)),0)),0) -> 0 | H173: zeros
A174: 4910 | B174: Other Educational Expense | C174: =IFERROR(INDEX(Report!$A:$Z,MATCH(TRUE,ISNUMBER(SEARCH('3.Income and Expenditure Report'!A174,Report!$A:$A)),0),MATCH("Grand Total",Report!$11:$11,0)),"0")-F174 -> 0 | D174: =IFERROR(VLOOKUP(A174,'1.Budget'!$A$1:$C$600,3,FALSE),0) -> 0 | E174: 0 | F174: =IFERROR(INDEX(Report!$B$12:$B$600,MATCH(TRUE,ISNUMBER(SEARCH(A174,Report!$A$12:$A$600)),0)),0) -> 0 | H174: zeros
A175: 4911 | B175: Department of Children (DCEDI) Expense | C175: =IFERROR(INDEX(Report!$A:$Z,MATCH(TRUE,ISNUMBER(SEARCH('3.Income and Expenditure Report'!A175,Report!$A:$A)),0),MATCH("Grand Total",Report!$11:$11,0)),"0")-F175 -> 0 | D175: =IFERROR(VLOOKUP(A175,'1.Budget'!$A$1:$C$600,3,FALSE),0) -> 0 | E175: 0 | F175: =IFERROR(INDEX(Report!$B$12:$B$600,MATCH(TRUE,ISNUMBER(SEARCH(A175,Report!$A$12:$A$600)),0)),0) -> 0 | H175: zeros
A176: 4912 | B176: DSP School Meals Food Costs | C176: =IFERROR(INDEX(Report!$A:$Z,MATCH(TRUE,ISNUMBER(SEARCH('3.Income and Expenditure Report'!A176,Report!$A:$A)),0),MATCH("Grand Total",Report!$11:$11,0)),"0")-F176 -> 0 | D176: =IFERROR(VLOOKUP(A176,'1.Budget'!$A$1:$C$600,3,FALSE),0) -> 0 | E176: 0 | F176: =IFERROR(INDEX(Report!$B$12:$B$600,MATCH(TRUE,ISNUMBER(SEARCH(A176,Report!$A$12:$A$600)),0)),0) -> 0 | H176: zeros
A177: 4913 | B177: Erasmus Expense | C177: =IFERROR(INDEX(Report!$A:$Z,MATCH(TRUE,ISNUMBER(SEARCH('3.Income and Expenditure Report'!A177,Report!$A:$A)),0),MATCH("Grand Total",Report!$11:$11,0)),"0")-F177 -> 0 | D177: =IFERROR(VLOOKUP(A177,'1.Budget'!$A$1:$C$600,3,FALSE),0) -> 0 | E177: 0 | F177: =IFERROR(INDEX(Report!$B$12:$B$600,MATCH(TRUE,ISNUMBER(SEARCH(A177,Report!$A$12:$A$600)),0)),0) -> 0 | H177: zeros
A178: 4914 | B178: Other Non Capital DE Grants Expense | C178: =IFERROR(INDEX(Report!$A:$Z,MATCH(TRUE,ISNUMBER(SEARCH('3.Income and Expenditure Report'!A178,Report!$A:$A)),0),MATCH("Grand Total",Report!$11:$11,0)),"0")-F178 -> 0 | D178: =IFERROR(VLOOKUP(A178,'1.Budget'!$A$1:$C$600,3,FALSE),0) -> 0 | E178: 0 | F178: =IFERROR(INDEX(Report!$B$12:$B$600,MATCH(TRUE,ISNUMBER(SEARCH(A178,Report!$A$12:$A$600)),0)),0) -> 0 | H178: zeros
A179: 4915 | B179: Other Canteen Expense | C179: =IFERROR(INDEX(Report!$A:$Z,MATCH(TRUE,ISNUMBER(SEARCH('3.Income and Expenditure Report'!A179,Report!$A:$A)),0),MATCH("Grand Total",Report!$11:$11,0)),"0")-F179 -> 0 | D179: =IFERROR(VLOOKUP(A179,'1.Budget'!$A$1:$C$600,3,FALSE),0) -> 0 | E179: 0 | F179: =IFERROR(INDEX(Report!$B$12:$B$600,MATCH(TRUE,ISNUMBER(SEARCH(A179,Report!$A$12:$A$600)),0)),0) -> 0 | H179: zeros
A180: 4916 | B180: Student Insurance Expense | C180: =IFERROR(INDEX(Report!$A:$Z,MATCH(TRUE,ISNUMBER(SEARCH('3.Income and Expenditure Report'!A180,Report!$A:$A)),0),MATCH("Grand Total",Report!$11:$11,0)),"0")-F180 -> 0 | D180: =IFERROR(VLOOKUP(A180,'1.Budget'!$A$1:$C$600,3,FALSE),0) -> 0 | E180: 0 | F180: =IFERROR(INDEX(Report!$B$12:$B$600,MATCH(TRUE,ISNUMBER(SEARCH(A180,Report!$A$12:$A$600)),0)),0) -> 0 | H180: zeros
A181: 4917 | B181: Standardised Testing Expense | C181: =IFERROR(INDEX(Report!$A:$Z,MATCH(TRUE,ISNUMBER(SEARCH('3.Income and Expenditure Report'!A181,Report!$A:$A)),0),MATCH("Grand Total",Report!$11:$11,0)),"0")-F181 -> 0 | D181: =IFERROR(VLOOKUP(A181,'1.Budget'!$A$1:$C$600,3,FALSE),0) -> 0 | E181: 0 | F181: =IFERROR(INDEX(Report!$B$12:$B$600,MATCH(TRUE,ISNUMBER(SEARCH(A181,Report!$A$12:$A$600)),0)),0) -> 0 | H181: zeros
A182: 4918 | B182: Designated Expenditure (Non Capital) | C182: =IFERROR(INDEX(Report!$A:$Z,MATCH(TRUE,ISNUMBER(SEARCH('3.Income and Expenditure Report'!A182,Report!$A:$A)),0),MATCH("Grand Total",Report!$11:$11,0)),"0")-F182 -> 0 | D182: =IFERROR(VLOOKUP(A182,'1.Budget'!$A$1:$C$600,3,FALSE),0) -> 0 | E182: 0 | F182: =IFERROR(INDEX(Report!$B$12:$B$600,MATCH(TRUE,ISNUMBER(SEARCH(A182,Report!$A$12:$A$600)),0)),0) -> 0 | H182: zeros
A183: 4919 | B183: Special Educational Equipment (Non Capital) Expense | C183: =IFERROR(INDEX(Report!$A:$Z,MATCH(TRUE,ISNUMBER(SEARCH('3.Income and Expenditure Report'!A183,Report!$A:$A)),0),MATCH("Grand Total",Report!$11:$11,0)),"0")-F183 -> 0 | D183: =IFERROR(VLOOKUP(A183,'1.Budget'!$A$1:$C$600,3,FALSE),0) -> 0 | E183: 0 | F183: =IFERROR(INDEX(Report!$B$12:$B$600,MATCH(TRUE,ISNUMBER(SEARCH(A183,Report!$A$12:$A$600)),0)),0) -> 0 | H183: zeros
A184: 4920 | B184: Extracurricular Activities Expense | C184: =IFERROR(INDEX(Report!$A:$Z,MATCH(TRUE,ISNUMBER(SEARCH('3.Income and Expenditure Report'!A184,Report!$A:$A)),0),MATCH("Grand Total",Report!$11:$11,0)),"0")-F184 -> 0 | D184: =IFERROR(VLOOKUP(A184,'1.Budget'!$A$1:$C$600,3,FALSE),0) -> 0 | E184: 0 | F184: =IFERROR(INDEX(Report!$B$12:$B$600,MATCH(TRUE,ISNUMBER(SEARCH(A184,Report!$A$12:$A$600)),0)),0) -> 0 | H184: zeros
A185: 4921 | B185: School Swimming Expense | C185: =IFERROR(INDEX(Report!$A:$Z,MATCH(TRUE,ISNUMBER(SEARCH('3.Income and Expenditure Report'!A185,Report!$A:$A)),0),MATCH("Grand Total",Report!$11:$11,0)),"0")-F185 -> 0 | D185: =IFERROR(VLOOKUP(A185,'1.Budget'!$A$1:$C$600,3,FALSE),0) -> 0 | E185: 0 | F185: =IFERROR(INDEX(Report!$B$12:$B$600,MATCH(TRUE,ISNUMBER(SEARCH(A185,Report!$A$12:$A$600)),0)),0) -> 0 | H185: zeros
A186: 4922 | B186: Restricted School Fundraising Expenses (Non Capital) | C186: =IFERROR(INDEX(Report!$A:$Z,MATCH(TRUE,ISNUMBER(SEARCH('3.Income and Expenditure Report'!A186,Report!$A:$A)),0),MATCH("Grand Total",Report!$11:$11,0)),"0")-F186 -> 0 | D186: =IFERROR(VLOOKUP(A186,'1.Budget'!$A$1:$C$600,3,FALSE),0) -> 0 | E186: 0 | F186: =IFERROR(INDEX(Report!$B$12:$B$600,MATCH(TRUE,ISNUMBER(SEARCH(A186,Report!$A$12:$A$600)),0)),0) -> 0 | H186: zeros
A187: 4923 | B187: Restricted External Fundraising Expenses (Non Capital) | C187: =IFERROR(INDEX(Report!$A:$Z,MATCH(TRUE,ISNUMBER(SEARCH('3.Income and Expenditure Report'!A187,Report!$A:$A)),0),MATCH("Grand Total",Report!$11:$11,0)),"0")-F187 -> 0 | D187: =IFERROR(VLOOKUP(A187,'1.Budget'!$A$1:$C$600,3,FALSE),0) -> 0 | E187: 0 | F187: =IFERROR(INDEX(Report!$B$12:$B$600,MATCH(TRUE,ISNUMBER(SEARCH(A187,Report!$A$12:$A$600)),0)),0) -> 0 | H187: zeros
A188: 4924 | B188: Unrestricted External Fundraising Expenses (Non Capital) | C188: =IFERROR(INDEX(Report!$A:$Z,MATCH(TRUE,ISNUMBER(SEARCH('3.Income and Expenditure Report'!A188,Report!$A:$A)),0),MATCH("Grand Total",Report!$11:$11,0)),"0")-F188 -> 0 | D188: =IFERROR(VLOOKUP(A188,'1.Budget'!$A$1:$C$600,3,FALSE),0) -> 0 | E188: 0 | F188: =IFERROR(INDEX(Report!$B$12:$B$600,MATCH(TRUE,ISNUMBER(SEARCH(A188,Report!$A$12:$A$600)),0)),0) -> 0 | H188: zeros
A189: 4925 | B189: Unrestricted School Fundraising Expenses (Non Capital) | C189: =IFERROR(INDEX(Report!$A:$Z,MATCH(TRUE,ISNUMBER(SEARCH('3.Income and Expenditure Report'!A189,Report!$A:$A)),0),MATCH("Grand Total",Report!$11:$11,0)),"0")-F189 -> 0 | D189: =IFERROR(VLOOKUP(A189,'1.Budget'!$A$1:$C$600,3,FALSE),0) -> 0 | E189: 0 | F189: =IFERROR(INDEX(Report!$B$12:$B$600,MATCH(TRUE,ISNUMBER(SEARCH(A189,Report!$A$12:$A$600)),0)),0) -> 0 | H189: zeros
A190: 4927 | B190: School Arts and Crafts Expense | C190: =IFERROR(INDEX(Report!$A:$Z,MATCH(TRUE,ISNUMBER(SEARCH('3.Income and Expenditure Report'!A190,Report!$A:$A)),0),MATCH("Grand Total",Report!$11:$11,0)),"0")-F190 -> 0 | D190: =IFERROR(VLOOKUP(A190,'1.Budget'!$A$1:$C$600,3,FALSE),0) -> 0 | E190: 0 | F190: =IFERROR(INDEX(Report!$B$12:$B$600,MATCH(TRUE,ISNUMBER(SEARCH(A190,Report!$A$12:$A$600)),0)),0) -> 0 | H190: zeros
A191: 4928 | B191: Other HSE Expense | C191: =IFERROR(INDEX(Report!$A:$Z,MATCH(TRUE,ISNUMBER(SEARCH('3.Income and Expenditure Report'!A191,Report!$A:$A)),0),MATCH("Grand Total",Report!$11:$11,0)),"0")-F191 -> 0 | D191: =IFERROR(VLOOKUP(A191,'1.Budget'!$A$1:$C$600,3,FALSE),0) -> 0 | E191: 0 | F191: =IFERROR(INDEX(Report!$B$12:$B$600,MATCH(TRUE,ISNUMBER(SEARCH(A191,Report!$A$12:$A$600)),0)),0) -> 0 | H191: zeros
A192: 4929 | B192: Other State Funding Expense | C192: =IFERROR(INDEX(Report!$A:$Z,MATCH(TRUE,ISNUMBER(SEARCH('3.Income and Expenditure Report'!A192,Report!$A:$A)),0),MATCH("Grand Total",Report!$11:$11,0)),"0")-F192 -> 0 | D192: =IFERROR(VLOOKUP(A192,'1.Budget'!$A$1:$C$600,3,FALSE),0) -> 0 | E192: 0 | F192: =IFERROR(INDEX(Report!$B$12:$B$600,MATCH(TRUE,ISNUMBER(SEARCH(A192,Report!$A$12:$A$600)),0)),0) -> 0 | H192: zeros
A193: 4930 | B193: Pre-School Expense | C193: =IFERROR(INDEX(Report!$A:$Z,MATCH(TRUE,ISNUMBER(SEARCH('3.Income and Expenditure Report'!A193,Report!$A:$A)),0),MATCH("Grand Total",Report!$11:$11,0)),"0")-F193 -> 0 | D193: =IFERROR(VLOOKUP(A193,'1.Budget'!$A$1:$C$600,3,FALSE),0) -> 0 | E193: 0 | F193: =IFERROR(INDEX(Report!$B$12:$B$600,MATCH(TRUE,ISNUMBER(SEARCH(A193,Report!$A$12:$A$600)),0)),0) -> 0 | H193: zeros
A194: 4931 | B194: After Schol Study/ Club Non- Wages Expense | C194: =IFERROR(INDEX(Report!$A:$Z,MATCH(TRUE,ISNUMBER(SEARCH('3.Income and Expenditure Report'!A194,Report!$A:$A)),0),MATCH("Grand Total",Report!$11:$11,0)),"0")-F194 -> 0 | D194: =IFERROR(VLOOKUP(A194,'1.Budget'!$A$1:$C$600,3,FALSE),0) -> 0 | E194: =C194-D194 -> 0 | F194: =IFERROR(INDEX(Report!$B$12:$B$600,MATCH(TRUE,ISNUMBER(SEARCH(A194,Report!$A$12:$A$600)),0)),0) -> 0
A195: Total Education Other | C195: =SUM(C131:C194) -> 150063 | D195: =SUM(D131:D193) -> 0 | E195: =SUM(E131:E193) -> 150063 | F195: =SUM(F131:F194) -> 0
H196: zeros
A197: Repairs, Maintenance & Establishment | H197: zeros
A198: 5010 | B198: Caretaker Wages Expense | C198: =IFERROR(INDEX(Report!$A:$Z,MATCH(TRUE,ISNUMBER(SEARCH('3.Income and Expenditure Report'!A198,Report!$A:$A)),0),MATCH("Grand Total",Report!$11:$11,0)),"0")-F198 -> 28342.34 | D198: =IFERROR(VLOOKUP(A198,'1.Budget'!$A$1:$C$600,3,FALSE),0) -> 0 | E198: =C198-D198 -> 28342.34 | F198: =IFERROR(INDEX(Report!$B$12:$B$600,MATCH(TRUE,ISNUMBER(SEARCH(A198,Report!$A$12:$A$600)),0)),0) -> 0
A199: 5030 | B199: Caretaker Employer Pension Expense | C199: =IFERROR(INDEX(Report!$A:$Z,MATCH(TRUE,ISNUMBER(SEARCH('3.Income and Expenditure Report'!A199,Report!$A:$A)),0),MATCH("Grand Total",Report!$11:$11,0)),"0")-F199 -> 250.29 | D199: =IFERROR(VLOOKUP(A199,'1.Budget'!$A$1:$C$600,3,FALSE),0) -> 0 | E199: =C199-D199 -> 250.29 | F199: =IFERROR(INDEX(Report!$B$12:$B$600,MATCH(TRUE,ISNUMBER(SEARCH(A199,Report!$A$12:$A$600)),0)),0) -> 0
A200: 5110 | B200: Cleaners Wages Expense | C200: =IFERROR(INDEX(Report!$A:$Z,MATCH(TRUE,ISNUMBER(SEARCH('3.Income and Expenditure Report'!A200,Report!$A:$A)),0),MATCH("Grand Total",Report!$11:$11,0)),"0")-F200 -> 27346.56 | D200: =IFERROR(VLOOKUP(A200,'1.Budget'!$A$1:$C$600,3,FALSE),0) -> 0 | E200: 27346.56 | F200: =IFERROR(INDEX(Report!$B$12:$B$600,MATCH(TRUE,ISNUMBER(SEARCH(A200,Report!$A$12:$A$600)),0)),0) -> 0
A201: 5112 | B201: Cleaners' Employer Pension Expense | C201: =IFERROR(INDEX(Report!$A:$Z,MATCH(TRUE,ISNUMBER(SEARCH('3.Income and Expenditure Report'!A201,Report!$A:$A)),0),MATCH("Grand Total",Report!$11:$11,0)),"0")-F201 -> 249.84 | D201: =IFERROR(VLOOKUP(A201,'1.Budget'!$A$1:$C$600,3,FALSE),0) -> 0 | E201: 249.84 | F201: =IFERROR(INDEX(Report!$B$12:$B$600,MATCH(TRUE,ISNUMBER(SEARCH(A201,Report!$A$12:$A$600)),0)),0) -> 0
A202: 5150 | B202: Contract Cleaners Expense | C202: =IFERROR(INDEX(Report!$A:$Z,MATCH(TRUE,ISNUMBER(SEARCH('3.Income and Expenditure Report'!A202,Report!$A:$A)),0),MATCH("Grand Total",Report!$11:$11,0)),"0")-F202 -> 0 | D202: =IFERROR(VLOOKUP(A202,'1.Budget'!$A$1:$C$600,3,FALSE),0) -> 0 | E202: 0 | F202: =IFERROR(INDEX(Report!$B$12:$B$600,MATCH(TRUE,ISNUMBER(SEARCH(A202,Report!$A$12:$A$600)),0)),0) -> 0 | H202: zeros
A203: 5170 | B203: Cleaning Materials Expense | C203: =IFERROR(INDEX(Report!$A:$Z,MATCH(TRUE,ISNUMBER(SEARCH('3.Income and Expenditure Report'!A203,Report!$A:$A)),0),MATCH("Grand Total",Report!$11:$11,0)),"0")-F203 -> 0 | D203: =IFERROR(VLOOKUP(A203,'1.Budget'!$A$1:$C$600,3,FALSE),0) -> 0 | E203: 0 | F203: =IFERROR(INDEX(Report!$B$12:$B$600,MATCH(TRUE,ISNUMBER(SEARCH(A203,Report!$A$12:$A$600)),0)),0) -> 0 | H203: zeros
... 68 more rows

Sheet 4. Balance Sheet
A1: Balance Sheet Report | H1: DO NOT DELETE OR ENTER DATA IN THIS COLUMN
A2: Name of School:
A3: Roll number: | H3: HIDE Zeros
A4: From: | G4: =+IF(COUNTIF(C4:D4,0)=COLUMNS(C4:D4),1,0) -> 0 | H4: =IF(G4=1,"Zeros","") -> 
A5: To: | G5: 0
A6: Nominal Code | B6: Description | C6: Period | D6: Prior Year | G6: 0
A7: Fixed assets | G7: 0
A8: 1400 | B8: Capital: Land and Buildings Cost B/Fwd | C8: =D8+D9+D10 -> 112373 | D8: =IFERROR(INDEX(Report!$B$12:$B$600, MATCH(TRUE,ISNUMBER(SEARCH(A8,Report!$A$12:$A$600)),0)),0) -> 112373 | G8: 0
A9: 1401 | B9: Capital: Land and Buildings Additions | C9: =IFERROR(INDEX(Report!$A:$Z,MATCH(TRUE, ISNUMBER(SEARCH(A9,Report!$A:$A)),0),MATCH("Grand Total",Report!$11:$11,0)),"0")-D9 -> 0 | D9: =IFERROR(INDEX(Report!$B$12:$B$600, MATCH(TRUE,ISNUMBER(SEARCH(A9,Report!$A$12:$A$600)),0)),0) -> 0 | G9: 1 | H9: Zeros
A10: 1402 | B10: Capital: Land and Buildings Disposals | C10: =IFERROR(INDEX(Report!$A:$Z,MATCH(TRUE, ISNUMBER(SEARCH(A10,Report!$A:$A)),0),MATCH("Grand Total",Report!$11:$11,0)),"0")-D10 -> 0 | D10: =IFERROR(INDEX(Report!$B$12:$B$600, MATCH(TRUE,ISNUMBER(SEARCH(A10,Report!$A$12:$A$600)),0)),0) -> 0 | G10: 1 | H10: Zeros
A11: 1410 | B11: Accumulated Depreciation : Land and Buildings B/Fwd | C11: =D11+D12+D13 -> 0 | D11: =IFERROR(INDEX(Report!$B$12:$B$600, MATCH(TRUE,ISNUMBER(SEARCH(A11,Report!$A$12:$A$600)),0)),0) -> 0 | G11: 1 | H11: Zeros
A12: 1411 | B12: Depreciation: Land and Buildings Current Year | C12: =IFERROR(INDEX(Report!$A:$Z,MATCH(TRUE, ISNUMBER(SEARCH(A12,Report!$A:$A)),0),MATCH("Grand Total",Report!$11:$11,0)),"0")-D12 -> 0 | D12: =IFERROR(INDEX(Report!$B$12:$B$600, MATCH(TRUE,ISNUMBER(SEARCH(A12,Report!$A$12:$A$600)),0)),0) -> 0 | G12: 1 | H12: Zeros
A13: 1412 | B13: Depreciation: Land and Buildings on Disposal | C13: =IFERROR(INDEX(Report!$A:$Z,MATCH(TRUE, ISNUMBER(SEARCH(A13,Report!$A:$A)),0),MATCH("Grand Total",Report!$11:$11,0)),"0")-D13 -> 0 | D13: =IFERROR(INDEX(Report!$B$12:$B$600, MATCH(TRUE,ISNUMBER(SEARCH(A13,Report!$A$12:$A$600)),0)),0) -> 0 | G13: 1 | H13: Zeros
A14: 1420 | B14: Capital: Fixtures, Fittings and Equipment Cost B/Fwd | C14: =D14+D15+D16 -> 5000 | D14: =IFERROR(INDEX(Report!$B$12:$B$600, MATCH(TRUE,ISNUMBER(SEARCH(A14,Report!$A$12:$A$600)),0)),0) -> 0 | G14: 0
A15: 1421 | B15: Capital: Fixtures, Fittings and Equipment Additions | C15: =IFERROR(INDEX(Report!$A:$Z,MATCH(TRUE, ISNUMBER(SEARCH(A15,Report!$A:$A)),0),MATCH("Grand Total",Report!$11:$11,0)),"0")-D15 -> 1000 | D15: =IFERROR(INDEX(Report!$B$12:$B$600, MATCH(TRUE,ISNUMBER(SEARCH(A15,Report!$A$12:$A$600)),0)),0) -> 5000 | G15: 0
A16: 1422 | B16: Capital: Fixtures, Fittings and Equipment Disposals | C16: =IFERROR(INDEX(Report!$A:$Z,MATCH(TRUE, ISNUMBER(SEARCH(A16,Report!$A:$A)),0),MATCH("Grand Total",Report!$11:$11,0)),"0")-D16 -> 0 | D16: =IFERROR(INDEX(Report!$B$12:$B$600, MATCH(TRUE,ISNUMBER(SEARCH(A16,Report!$A$12:$A$600)),0)),0) -> 0 | G16: 1 | H16: Zeros
A17: 1425 | B17: Capital: Covid Minor Works Fixtures, Fittings and Equipment Cost B/Fwd | C17: 0 | D17: =IFERROR(INDEX(Report!$B$12:$B$600, MATCH(TRUE,ISNUMBER(SEARCH(A17,Report!$A$12:$A$600)),0)),0) -> 0 | G17: 1 | H17: Zeros
A18: 1426 | B18: Capital: Covid Minor Works Fixtures, Fittings and Equipment Additions | C18: =IFERROR(INDEX(Report!$A:$Z,MATCH(TRUE, ISNUMBER(SEARCH(A18,Report!$A:$A)),0),MATCH("Grand Total",Report!$11:$11,0)),"0")-D18 -> 0 | D18: =IFERROR(INDEX(Report!$B$12:$B$600, MATCH(TRUE,ISNUMBER(SEARCH(A18,Report!$A$12:$A$600)),0)),0) -> 0 | G18: 1 | H18: Zeros
A19: 1427 | B19: Capital: Covid Minor Works Fixtures, Fittings and Equipment Disposals | C19: =IFERROR(INDEX(Report!$A:$Z,MATCH(TRUE, ISNUMBER(SEARCH(A19,Report!$A:$A)),0),MATCH("Grand Total",Report!$11:$11,0)),"0")-D19 -> 0 | D19: =IFERROR(INDEX(Report!$B$12:$B$600, MATCH(TRUE,ISNUMBER(SEARCH(A19,Report!$A$12:$A$600)),0)),0) -> 0 | G19: 1 | H19: Zeros
A20: 1430 | B20: Accumulated Depreciation: Fixtures, Fittings and Equipment B/Fwd | C20: =D20+D21+D22 -> 0 | D20: =IFERROR(INDEX(Report!$B$12:$B$600, MATCH(TRUE,ISNUMBER(SEARCH(A20,Report!$A$12:$A$600)),0)),0) -> 0 | G20: 1 | H20: Zeros
A21: 1431 | B21: Depreciation: Fixtures, Fittings and Equipment Current Year | C21: =IFERROR(INDEX(Report!$A:$Z,MATCH(TRUE, ISNUMBER(SEARCH(A21,Report!$A:$A)),0),MATCH("Grand Total",Report!$11:$11,0)),"0")-D21 -> 0 | D21: =IFERROR(INDEX(Report!$B$12:$B$600, MATCH(TRUE,ISNUMBER(SEARCH(A21,Report!$A$12:$A$600)),0)),0) -> 0 | G21: 1 | H21: Zeros
A22: 1432 | B22: Depreciation: Fixtures, Fittings and Equipment Disposal | C22: =IFERROR(INDEX(Report!$A:$Z,MATCH(TRUE, ISNUMBER(SEARCH(A22,Report!$A:$A)),0),MATCH("Grand Total",Report!$11:$11,0)),"0")-D22 -> 0 | D22: =IFERROR(INDEX(Report!$B$12:$B$600, MATCH(TRUE,ISNUMBER(SEARCH(A22,Report!$A$12:$A$600)),0)),0) -> 0 | G22: 1 | H22: Zeros
A23: 1435 | B23: Accumulated Depreciation: Covid Minor Works Fixtures, Fittings and Equipment B/Fwd | C23: =D23+D24+D25 -> 0 | D23: =IFERROR(INDEX(Report!$B$12:$B$600, MATCH(TRUE,ISNUMBER(SEARCH(A23,Report!$A$12:$A$600)),0)),0) -> 0 | G23: 1 | H23: Zeros
A24: 1436 | B24: Depreciation: Covid Minor Works Fixtures, Fittings and Equipment Current Year | C24: =IFERROR(INDEX(Report!$A:$Z,MATCH(TRUE, ISNUMBER(SEARCH(A24,Report!$A:$A)),0),MATCH("Grand Total",Report!$11:$11,0)),"0")-D24 -> 0 | D24: =IFERROR(INDEX(Report!$B$12:$B$600, MATCH(TRUE,ISNUMBER(SEARCH(A24,Report!$A$12:$A$600)),0)),0) -> 0 | G24: 1 | H24: Zeros
A25: 1437 | B25: Depreciation: Covid Minor Works Fixtures, Fittings and Equipment Disposal | C25: =IFERROR(INDEX(Report!$A:$Z,MATCH(TRUE, ISNUMBER(SEARCH(A25,Report!$A:$A)),0),MATCH("Grand Total",Report!$11:$11,0)),"0")-D25 -> 0 | D25: =IFERROR(INDEX(Report!$B$12:$B$600, MATCH(TRUE,ISNUMBER(SEARCH(A25,Report!$A$12:$A$600)),0)),0) -> 0 | G25: 1 | H25: Zeros
A26: 1440 | B26: Capital: Motor Vehicles Cost B/Fwd | C26: =D26+D27+D28 -> 0 | D26: =IFERROR(INDEX(Report!$B$12:$B$600, MATCH(TRUE,ISNUMBER(SEARCH(A26,Report!$A$12:$A$600)),0)),0) -> 0 | G26: 1 | H26: Zeros
A27: 1441 | B27: Capital: Motor Vehicles Additions | C27: =IFERROR(INDEX(Report!$A:$Z,MATCH(TRUE, ISNUMBER(SEARCH(A27,Report!$A:$A)),0),MATCH("Grand Total",Report!$11:$11,0)),"0")-D27 -> 0 | D27: =IFERROR(INDEX(Report!$B$12:$B$600, MATCH(TRUE,ISNUMBER(SEARCH(A27,Report!$A$12:$A$600)),0)),0) -> 0 | G27: 1 | H27: Zeros
A28: 1442 | B28: Capital: Motor Vehicles Disposals | C28: =IFERROR(INDEX(Report!$A:$Z,MATCH(TRUE, ISNUMBER(SEARCH(A28,Report!$A:$A)),0),MATCH("Grand Total",Report!$11:$11,0)),"0")-D28 -> 0 | D28: =IFERROR(INDEX(Report!$B$12:$B$600, MATCH(TRUE,ISNUMBER(SEARCH(A28,Report!$A$12:$A$600)),0)),0) -> 0 | G28: 1 | H28: Zeros
A29: 1450 | B29: Accumulated Depreciation: Motor Vehicles B/Fwd | C29: =D29+D30+D31 -> 0 | D29: =IFERROR(INDEX(Report!$B$12:$B$600, MATCH(TRUE,ISNUMBER(SEARCH(A29,Report!$A$12:$A$600)),0)),0) -> 0 | G29: 1 | H29: Zeros
A30: 1451 | B30: Depreciation: Motor Vehicles Current Year | C30: =IFERROR(INDEX(Report!$A:$Z,MATCH(TRUE, ISNUMBER(SEARCH(A30,Report!$A:$A)),0),MATCH("Grand Total",Report!$11:$11,0)),"0")-D30 -> 0 | D30: =IFERROR(INDEX(Report!$B$12:$B$600, MATCH(TRUE,ISNUMBER(SEARCH(A30,Report!$A$12:$A$600)),0)),0) -> 0 | G30: 1 | H30: Zeros
A31: 1452 | B31: Depreciation: Motor Vehicles Disposal | C31: =IFERROR(INDEX(Report!$A:$Z,MATCH(TRUE, ISNUMBER(SEARCH(A31,Report!$A:$A)),0),MATCH("Grand Total",Report!$11:$11,0)),"0")-D31 -> 0 | D31: =IFERROR(INDEX(Report!$B$12:$B$600, MATCH(TRUE,ISNUMBER(SEARCH(A31,Report!$A$12:$A$600)),0)),0) -> 0 | G31: 1 | H31: Zeros
A32: 1460 | B32: Capital: ICT Cost B/Fwd | C32: =D32+D33+D34 -> 0 | D32: =IFERROR(INDEX(Report!$B$12:$B$600, MATCH(TRUE,ISNUMBER(SEARCH(A32,Report!$A$12:$A$600)),0)),0) -> 0 | G32: 1 | H32: Zeros
A33: 1461 | B33: Capital: ICT Additions | C33: =IFERROR(INDEX(Report!$A:$Z,MATCH(TRUE, ISNUMBER(SEARCH(A33,Report!$A:$A)),0),MATCH("Grand Total",Report!$11:$11,0)),"0")-D33 -> 3300 | D33: =IFERROR(INDEX(Report!$B$12:$B$600, MATCH(TRUE,ISNUMBER(SEARCH(A33,Report!$A$12:$A$600)),0)),0) -> 0 | G33: 0
A34: 1462 | B34: Capital: ICT Disposals | C34: =IFERROR(INDEX(Report!$A:$Z,MATCH(TRUE, ISNUMBER(SEARCH(A34,Report!$A:$A)),0),MATCH("Grand Total",Report!$11:$11,0)),"0")-D34 -> 0 | D34: =IFERROR(INDEX(Report!$B$12:$B$600, MATCH(TRUE,ISNUMBER(SEARCH(A34,Report!$A$12:$A$600)),0)),0) -> 0 | G34: 1 | H34: Zeros
A35: 1465 | B35: Capital: Covid Minor Works ICT Cost B/Fwd | C35: =D35+D36+D37 -> 0 | D35: =IFERROR(INDEX(Report!$B$12:$B$600, MATCH(TRUE,ISNUMBER(SEARCH(A35,Report!$A$12:$A$600)),0)),0) -> 0 | G35: 1 | H35: Zeros
A36: 1466 | B36: Capital: Covid Minor Works ICT Additions | C36: =IFERROR(INDEX(Report!$A:$Z,MATCH(TRUE, ISNUMBER(SEARCH(A36,Report!$A:$A)),0),MATCH("Grand Total",Report!$11:$11,0)),"0")-D36 -> 0 | D36: =IFERROR(INDEX(Report!$B$12:$B$600, MATCH(TRUE,ISNUMBER(SEARCH(A36,Report!$A$12:$A$600)),0)),0) -> 0 | G36: 1 | H36: Zeros
A37: 1467 | B37: Capital: Covid Minor Works ICT Disposals | C37: =IFERROR(INDEX(Report!$A:$Z,MATCH(TRUE, ISNUMBER(SEARCH(A37,Report!$A:$A)),0),MATCH("Grand Total",Report!$11:$11,0)),"0")-D37 -> 0 | D37: =IFERROR(INDEX(Report!$B$12:$B$600, MATCH(TRUE,ISNUMBER(SEARCH(A37,Report!$A$12:$A$600)),0)),0) -> 0 | G37: 1 | H37: Zeros
A38: 1470 | B38: Accumulated Depreciation: ICT Cost B/Fwd | C38: =D38+D39+D40 -> 0 | D38: =IFERROR(INDEX(Report!$B$12:$B$600, MATCH(TRUE,ISNUMBER(SEARCH(A38,Report!$A$12:$A$600)),0)),0) -> 0 | G38: 1 | H38: Zeros
A39: 1471 | B39: Depreciation: ICT Current Year | C39: =IFERROR(INDEX(Report!$A:$Z,MATCH(TRUE, ISNUMBER(SEARCH(A39,Report!$A:$A)),0),MATCH("Grand Total",Report!$11:$11,0)),"0")-D39 -> 0 | D39: =IFERROR(INDEX(Report!$B$12:$B$600, MATCH(TRUE,ISNUMBER(SEARCH(A39,Report!$A$12:$A$600)),0)),0) -> 0 | G39: 1 | H39: Zeros
A40: 1472 | B40: Depreciation: ICT Disposal | C40: =IFERROR(INDEX(Report!$A:$Z,MATCH(TRUE, ISNUMBER(SEARCH(A40,Report!$A:$A)),0),MATCH("Grand Total",Report!$11:$11,0)),"0")-D40 -> 0 | D40: =IFERROR(INDEX(Report!$B$12:$B$600, MATCH(TRUE,ISNUMBER(SEARCH(A40,Report!$A$12:$A$600)),0)),0) -> 0 | G40: 1 | H40: Zeros
A41: 1475 | B41: Accumulated Depreciation: Covid Minor Works ICT B/Fwd | C41: =D41+D42+D43 -> 0 | D41: =IFERROR(INDEX(Report!$B$12:$B$600, MATCH(TRUE,ISNUMBER(SEARCH(A41,Report!$A$12:$A$600)),0)),0) -> 0 | G41: 1 | H41: Zeros
A42: 1476 | B42: Depreciation: Covid Minor Works ICT Current Year | C42: =IFERROR(INDEX(Report!$A:$Z,MATCH(TRUE, ISNUMBER(SEARCH(A42,Report!$A:$A)),0),MATCH("Grand Total",Report!$11:$11,0)),"0")-D42 -> 0 | D42: =IFERROR(INDEX(Report!$B$12:$B$600, MATCH(TRUE,ISNUMBER(SEARCH(A42,Report!$A$12:$A$600)),0)),0) -> 0 | G42: 1 | H42: Zeros
A43: 1477 | B43: Depreciation: Covid Minor Works ICT Disposals | C43: =IFERROR(INDEX(Report!$A:$Z,MATCH(TRUE, ISNUMBER(SEARCH(A43,Report!$A:$A)),0),MATCH("Grand Total",Report!$11:$11,0)),"0")-D43 -> 0 | D43: =IFERROR(INDEX(Report!$B$12:$B$600, MATCH(TRUE,ISNUMBER(SEARCH(A43,Report!$A$12:$A$600)),0)),0) -> 0 | G43: 1 | H43: Zeros
A44: 1480 | B44: Capital: Other Cost B/Fwd | C44: =D44+D45+D46 -> 0 | D44: =IFERROR(INDEX(Report!$B$12:$B$600, MATCH(TRUE,ISNUMBER(SEARCH(A44,Report!$A$12:$A$600)),0)),0) -> 0 | G44: 1 | H44: Zeros
A45: 1481 | B45: Capital: Other Additions | C45: =IFERROR(INDEX(Report!$A:$Z,MATCH(TRUE, ISNUMBER(SEARCH(A45,Report!$A:$A)),0),MATCH("Grand Total",Report!$11:$11,0)),"0")-D45 -> 0 | D45: =IFERROR(INDEX(Report!$B$12:$B$600, MATCH(TRUE,ISNUMBER(SEARCH(A45,Report!$A$12:$A$600)),0)),0) -> 0 | G45: 1 | H45: Zeros
A46: 1482 | B46: Capital: Other Disposals | C46: =IFERROR(INDEX(Report!$A:$Z,MATCH(TRUE, ISNUMBER(SEARCH(A46,Report!$A:$A)),0),MATCH("Grand Total",Report!$11:$11,0)),"0")-D46 -> 0 | D46: =IFERROR(INDEX(Report!$B$12:$B$600, MATCH(TRUE,ISNUMBER(SEARCH(A46,Report!$A$12:$A$600)),0)),0) -> 0 | G46: 1 | H46: Zeros
A47: 1490 | B47: Accumulated Depreciation Other Cost B/Fwd | C47: =D47+D48+D49 -> 0 | D47: =IFERROR(INDEX(Report!$B$12:$B$600, MATCH(TRUE,ISNUMBER(SEARCH(A47,Report!$A$12:$A$600)),0)),0) -> 0 | G47: 1 | H47: Zeros
A48: 1491 | B48: Accumulated Depreciation Other Current Year | C48: =IFERROR(INDEX(Report!$A:$Z,MATCH(TRUE, ISNUMBER(SEARCH(A48,Report!$A:$A)),0),MATCH("Grand Total",Report!$11:$11,0)),"0")-D48 -> 0 | D48: =IFERROR(INDEX(Report!$B$12:$B$600, MATCH(TRUE,ISNUMBER(SEARCH(A48,Report!$A$12:$A$600)),0)),0) -> 0 | G48: 1 | H48: Zeros
A49: 1492 | B49: Accumulated Depreciation Other Disposals | C49: =IFERROR(INDEX(Report!$A:$Z,MATCH(TRUE, ISNUMBER(SEARCH(A49,Report!$A:$A)),0),MATCH("Grand Total",Report!$11:$11,0)),"0")-D49 -> 0 | D49: =IFERROR(INDEX(Report!$B$12:$B$600, MATCH(TRUE,ISNUMBER(SEARCH(A49,Report!$A$12:$A$600)),0)),0) -> 0 | G49: 1 | H49: Zeros
A50: Total Fixed assets | C50: =SUM(C8:C49) -> 121673 | D50: =SUM(D8:D49) -> 117373 | G50: 0
G51: 0
A52: Current assets | G52: 0
G53: 0
A54: Debtors and Prepayments | G54: 0
A55: 1700 | B55: Sales Ledger Control | C55: =IFERROR(INDEX(Report!$A:$Z,MATCH(TRUE, ISNUMBER(SEARCH(A55,Report!$A:$A)),0),MATCH("Grand Total",Report!$11:$11,0)),"0") -> 530 | D55: =IFERROR(INDEX(Report!$B$12:$B$600, MATCH(TRUE,ISNUMBER(SEARCH(A55,Report!$A$12:$A$600)),0)),0) -> 500 | G55: 0
A56: 1705 | B56: Debtors | C56: =IFERROR(INDEX(Report!$A:$Z,MATCH(TRUE, ISNUMBER(SEARCH(A56,Report!$A:$A)),0),MATCH("Grand Total",Report!$11:$11,0)),"0") -> 10 | D56: =IFERROR(INDEX(Report!$B$12:$B$600, MATCH(TRUE,ISNUMBER(SEARCH(A56,Report!$A$12:$A$600)),0)),0) -> 0 | G56: 0
A57: 1710 | B57: Stock | C57: =IFERROR(INDEX(Report!$A:$Z,MATCH(TRUE, ISNUMBER(SEARCH(A57,Report!$A:$A)),0),MATCH("Grand Total",Report!$11:$11,0)),"0") -> 0 | D57: =IFERROR(INDEX(Report!$B$12:$B$600, MATCH(TRUE,ISNUMBER(SEARCH(A57,Report!$A$12:$A$600)),0)),0) -> 0 | G57: 1 | H57: Zeros
A58: 1720 | B58: Prepayments | C58: =IFERROR(INDEX(Report!$A:$Z,MATCH(TRUE, ISNUMBER(SEARCH(A58,Report!$A:$A)),0),MATCH("Grand Total",Report!$11:$11,0)),"0") -> 51115.43 | D58: =IFERROR(INDEX(Report!$B$12:$B$600, MATCH(TRUE,ISNUMBER(SEARCH(A58,Report!$A$12:$A$600)),0)),0) -> 27500 | G58: 0
A59: 1730 | B59: Grants Due | C59: =IFERROR(INDEX(Report!$A:$Z,MATCH(TRUE, ISNUMBER(SEARCH(A59,Report!$A:$A)),0),MATCH("Grand Total",Report!$11:$11,0)),"0") -> 11789 | D59: =IFERROR(INDEX(Report!$B$12:$B$600, MATCH(TRUE,ISNUMBER(SEARCH(A59,Report!$A$12:$A$600)),0)),0) -> 8500 | G59: 0
A60: Total Debtors and Prepayments | C60: =SUM(C55:C59) -> 63444.43 | D60: =SUM(D55:D59) -> 36500 | G60: 0
G61: 0
A62: Bank Accounts | G62: 0
A63: 1800 | B63: Current Account 1 | C63: =IFERROR(INDEX(Report!$A:$Z,MATCH(TRUE, ISNUMBER(SEARCH(A63,Report!$A:$A)),0),MATCH("Grand Total",Report!$11:$11,0)),"0") -> 432968.07 | D63: =IFERROR(INDEX(Report!$B$12:$B$600, MATCH(TRUE,ISNUMBER(SEARCH(A63,Report!$A$12:$A$600)),0)),0) -> 390022.72 | G63: 0
A64: 1801 | B64: Current Account 2 | C64: =IFERROR(INDEX(Report!$A:$Z,MATCH(TRUE, ISNUMBER(SEARCH(A64,Report!$A:$A)),0),MATCH("Grand Total",Report!$11:$11,0)),"0") -> 615 | D64: =IFERROR(INDEX(Report!$B$12:$B$600, MATCH(TRUE,ISNUMBER(SEARCH(A64,Report!$A$12:$A$600)),0)),0) -> 615 | G64: 0
A65: 1802 | B65: Current Account 3 | C65: =IFERROR(INDEX(Report!$A:$Z,MATCH(TRUE, ISNUMBER(SEARCH(A65,Report!$A:$A)),0),MATCH("Grand Total",Report!$11:$11,0)),"0") -> 0 | D65: =IFERROR(INDEX(Report!$B$12:$B$600, MATCH(TRUE,ISNUMBER(SEARCH(A65,Report!$A$12:$A$600)),0)),0) -> 0 | G65: 1 | H65: Zeros
A66: 1803 | B66: DSP School Meal Bank Account | C66: =IFERROR(INDEX(Report!$A:$Z,MATCH(TRUE, ISNUMBER(SEARCH(A66,Report!$A:$A)),0),MATCH("Grand Total",Report!$11:$11,0)),"0") -> 250 | D66: =IFERROR(INDEX(Report!$B$12:$B$600, MATCH(TRUE,ISNUMBER(SEARCH(A66,Report!$A$12:$A$600)),0)),0) -> 250 | G66: 0
A67: 1810 | B67: Deposit Account | C67: =IFERROR(INDEX(Report!$A:$Z,MATCH(TRUE, ISNUMBER(SEARCH(A67,Report!$A:$A)),0),MATCH("Grand Total",Report!$11:$11,0)),"0") -> 0 | D67: =IFERROR(INDEX(Report!$B$12:$B$600, MATCH(TRUE,ISNUMBER(SEARCH(A67,Report!$A$12:$A$600)),0)),0) -> 0 | G67: 1 | H67: Zeros
A68: 1820 | B68: Parents Council/Association Bank Account | C68: =IFERROR(INDEX(Report!$A:$Z,MATCH(TRUE, ISNUMBER(SEARCH(A68,Report!$A:$A)),0),MATCH("Grand Total",Report!$11:$11,0)),"0") -> 0 | D68: =IFERROR(INDEX(Report!$B$12:$B$600, MATCH(TRUE,ISNUMBER(SEARCH(A68,Report!$A$12:$A$600)),0)),0) -> 0 | G68: =+IF(COUNTIF(C68:D68,0)=COLUMNS(C68:D68),1,0) -> 1 | H68: =IF(G68=1,"Zeros","") -> Zeros
A69: 1850 | B69: Credit Card Account | C69: =IFERROR(INDEX(Report!$A:$Z,MATCH(TRUE, ISNUMBER(SEARCH(A69,Report!$A:$A)),0),MATCH("Grand Total",Report!$11:$11,0)),"0") -> 0 | D69: =IFERROR(INDEX(Report!$B$12:$B$600, MATCH(TRUE,ISNUMBER(SEARCH(A69,Report!$A$12:$A$600)),0)),0) -> 0 | G69: 1 | H69: Zeros
A70: 1870 | B70: Online Payment Solution Clearing Account | C70: =IFERROR(INDEX(Report!$A:$Z,MATCH(TRUE, ISNUMBER(SEARCH(A70,Report!$A:$A)),0),MATCH("Grand Total",Report!$11:$11,0)),"0") -> 0 | D70: =IFERROR(INDEX(Report!$B$12:$B$600, MATCH(TRUE,ISNUMBER(SEARCH(A70,Report!$A$12:$A$600)),0)),0) -> 0 | G70: 1 | H70: Zeros
A71: Total Bank Accounts | C71: =SUM(C63:C70) -> 433833.07 | D71: =SUM(D63:D70) -> 390887.72 | G71: 0
G72: 0
A73: Cash Accounts | G73: 0
A74: 1900 | B74: Petty Cash Account | C74: =IFERROR(INDEX(Report!$A:$Z,MATCH(TRUE, ISNUMBER(SEARCH(A74,Report!$A:$A)),0),MATCH("Grand Total",Report!$11:$11,0)),"0") -> -10 | D74: =IFERROR(INDEX(Report!$B$12:$B$600, MATCH(TRUE,ISNUMBER(SEARCH(A74,Report!$A$12:$A$600)),0)),0) -> 50 | G74: 0
A75: 1950 | B75: Cash Control Account | C75: =IFERROR(INDEX(Report!$A:$Z,MATCH(TRUE, ISNUMBER(SEARCH(A75,Report!$A:$A)),0),MATCH("Grand Total",Report!$11:$11,0)),"0") -> 100 | D75: =IFERROR(INDEX(Report!$B$12:$B$600, MATCH(TRUE,ISNUMBER(SEARCH(A75,Report!$A$12:$A$600)),0)),0) -> 100 | G75: 0
A76: Total Cash Accounts | C76: =SUM(C74:C75) -> 90 | D76: =SUM(D74:D75) -> 150 | G76: 0
G77: 0
A78: Total Current Assets | C78: =C60+C71+C76 -> 497367.5 | D78: =D60+D71+D76 -> 427537.72 | G78: 0
G79: 0
A80: Current Liabilities | G80: 0
G81: 0
A82: Creditors | G82: 0
A83: 2100 | B83: Creditors Control Account | C83: =-IFERROR(INDEX(Report!$A:$Z,MATCH(TRUE, ISNUMBER(SEARCH(A83,Report!$A:$A)),0),MATCH("Grand Total",Report!$11:$11,0)),"0") -> 1500 | D83: =-IFERROR(INDEX(Report!$B$12:$B$600, MATCH(TRUE,ISNUMBER(SEARCH(A83,Report!$A$12:$A$600)),0)),0) -> 1500 | G83: 0
A84: Total Creditors | C84: =SUM(C83) -> 1500 | D84: =SUM(D83) -> 1500 | G84: 0
G85: 0
A86: Accruals | G86: 0
A87: 2105 | B87: School Income Received in Advance | C87: =-IFERROR(INDEX(Report!$A:$Z,MATCH(TRUE, ISNUMBER(SEARCH(A87,Report!$A:$A)),0),MATCH("Grand Total",Report!$11:$11,0)),"0") -> -7850 | D87: =-IFERROR(INDEX(Report!$B$12:$B$600, MATCH(TRUE,ISNUMBER(SEARCH(A87,Report!$A$12:$A$600)),0)),0) -> 6425 | G87: 0
A88: 2150 | B88: Grants Received in Advance | C88: =-IFERROR(INDEX(Report!$A:$Z,MATCH(TRUE, ISNUMBER(SEARCH(A88,Report!$A:$A)),0),MATCH("Grand Total",Report!$11:$11,0)),"0") -> 0 | D88: =-IFERROR(INDEX(Report!$B$12:$B$600, MATCH(TRUE,ISNUMBER(SEARCH(A88,Report!$A$12:$A$600)),0)),0) -> 13000 | G88: 0
A89: 2151 | B89: Book Grant Received in Advance | C89: =-IFERROR(INDEX(Report!$A:$Z,MATCH(TRUE, ISNUMBER(SEARCH(A89,Report!$A:$A)),0),MATCH("Grand Total",Report!$11:$11,0)),"0") -> 268577.57 | D89: =-IFERROR(INDEX(Report!$B$12:$B$600, MATCH(TRUE,ISNUMBER(SEARCH(A89,Report!$A$12:$A$600)),0)),0) -> 132292 | G89: 0
A90: 2152 | B90: DEIS Grant Received in Advance | C90: =-IFERROR(INDEX(Report!$A:$Z,MATCH(TRUE, ISNUMBER(SEARCH(A90,Report!$A:$A)),0),MATCH("Grand Total",Report!$11:$11,0)),"0") -> 0 | D90: =-IFERROR(INDEX(Report!$B$12:$B$600, MATCH(TRUE,ISNUMBER(SEARCH(A90,Report!$A$12:$A$600)),0)),0) -> 0 | G90: 1 | H90: Zeros
A91: 2160 | B91: Book Grant Unspent | C91: =-IFERROR(INDEX(Report!$A:$Z,MATCH(TRUE, ISNUMBER(SEARCH(A91,Report!$A:$A)),0),MATCH("Grand Total",Report!$11:$11,0)),"0") -> 16422 | D91: =-IFERROR(INDEX(Report!$B$12:$B$600, MATCH(TRUE,ISNUMBER(SEARCH(A91,Report!$A$12:$A$600)),0)),0) -> 4350 | G91: 0
A92: 2161 | B92: School Library Books Capital Grant Unspent | C92: =-IFERROR(INDEX(Report!$A:$Z,MATCH(TRUE, ISNUMBER(SEARCH(A92,Report!$A:$A)),0),MATCH("Grand Total",Report!$11:$11,0)),"0") -> 0 | D92: =-IFERROR(INDEX(Report!$B$12:$B$600, MATCH(TRUE,ISNUMBER(SEARCH(A92,Report!$A$12:$A$600)),0)),0) -> 0 | G92: 1 | H92: Zeros
A93: 2162 | B93: Early Start Programme Materials/Equipment/Parental Involvement Grant Unspent | C93: =-IFERROR(INDEX(Report!$A:$Z,MATCH(TRUE, ISNUMBER(SEARCH(A93,Report!$A:$A)),0),MATCH("Grand Total",Report!$11:$11,0)),"0") -> 0 | D93: =-IFERROR(INDEX(Report!$B$12:$B$600, MATCH(TRUE,ISNUMBER(SEARCH(A93,Report!$A$12:$A$600)),0)),0) -> 0 | G93: 1 | H93: Zeros
A94: 2165 | B94: ICT Grant Unspent | C94: =-IFERROR(INDEX(Report!$A:$Z,MATCH(TRUE, ISNUMBER(SEARCH(A94,Report!$A:$A)),0),MATCH("Grand Total",Report!$11:$11,0)),"0") -> 676.45 | D94: =-IFERROR(INDEX(Report!$B$12:$B$600, MATCH(TRUE,ISNUMBER(SEARCH(A94,Report!$A$12:$A$600)),0)),0) -> 676.45 | G94: 0
A95: 2166 | B95: Minor Works Grant Unspent | C95: =-IFERROR(INDEX(Report!$A:$Z,MATCH(TRUE, ISNUMBER(SEARCH(A95,Report!$A:$A)),0),MATCH("Grand Total",Report!$11:$11,0)),"0") -> 0 | D95: =-IFERROR(INDEX(Report!$B$12:$B$600, MATCH(TRUE,ISNUMBER(SEARCH(A95,Report!$A$12:$A$600)),0)),0) -> 0 | G95: 1 | H95: Zeros
A96: 2167 | B96: JCSP Grant Unspent | C96: =-IFERROR(INDEX(Report!$A:$Z,MATCH(TRUE, ISNUMBER(SEARCH(A96,Report!$A:$A)),0),MATCH("Grand Total",Report!$11:$11,0)),"0") -> 0 | D96: =-IFERROR(INDEX(Report!$B$12:$B$600, MATCH(TRUE,ISNUMBER(SEARCH(A96,Report!$A$12:$A$600)),0)),0) -> 0 | G96: 1 | H96: Zeros
A97: 2168 | B97: Non Teachers Pay Budget Grant Unspent | C97: =-IFERROR(INDEX(Report!$A:$Z,MATCH(TRUE, ISNUMBER(SEARCH(A97,Report!$A:$A)),0),MATCH("Grand Total",Report!$11:$11,0)),"0") -> 0 | D97: =-IFERROR(INDEX(Report!$B$12:$B$600, MATCH(TRUE,ISNUMBER(SEARCH(A97,Report!$A$12:$A$600)),0)),0) -> 0 | G97: 1 | H97: Zeros
A98: 2169 | B98: COVID Minor Works Grant Unspent | C98: =-IFERROR(INDEX(Report!$A:$Z,MATCH(TRUE, ISNUMBER(SEARCH(A98,Report!$A:$A)),0),MATCH("Grand Total",Report!$11:$11,0)),"0") -> 0 | D98: =-IFERROR(INDEX(Report!$B$12:$B$600, MATCH(TRUE,ISNUMBER(SEARCH(A98,Report!$A$12:$A$600)),0)),0) -> 0 | G98: 1 | H98: Zeros
A99: 2170 | B99: Supervision and Substitution Grant Unspent | C99: =-IFERROR(INDEX(Report!$A:$Z,MATCH(TRUE, ISNUMBER(SEARCH(A99,Report!$A:$A)),0),MATCH("Grand Total",Report!$11:$11,0)),"0") -> 254.04 | D99: =-IFERROR(INDEX(Report!$B$12:$B$600, MATCH(TRUE,ISNUMBER(SEARCH(A99,Report!$A$12:$A$600)),0)),0) -> 0 | G99: 0
A100: 2171 | B100: Other Non-Capital Ringfenced Grants Unspent | C100: =-IFERROR(INDEX(Report!$A:$Z,MATCH(TRUE, ISNUMBER(SEARCH(A100,Report!$A:$A)),0),MATCH("Grand Total",Report!$11:$11,0)),"0") -> 0 | D100: =-IFERROR(INDEX(Report!$B$12:$B$600, MATCH(TRUE,ISNUMBER(SEARCH(A100,Report!$A$12:$A$600)),0)),0) -> 0 | G100: 1 | H100: Zeros
A101: 2172 | B101: Other Non-Capital Ringfenced Income Unspent | C101: =-IFERROR(INDEX(Report!$A:$Z,MATCH(TRUE, ISNUMBER(SEARCH(A101,Report!$A:$A)),0),MATCH("Grand Total",Report!$11:$11,0)),"0") -> 0 | D101: =-IFERROR(INDEX(Report!$B$12:$B$600, MATCH(TRUE,ISNUMBER(SEARCH(A101,Report!$A$12:$A$600)),0)),0) -> 0 | G101: 1 | H101: Zeros
A102: 2173 | B102: Other Capital Ringfenced Grants/Income Unspent | C102: =-IFERROR(INDEX(Report!$A:$Z,MATCH(TRUE, ISNUMBER(SEARCH(A102,Report!$A:$A)),0),MATCH("Grand Total",Report!$11:$11,0)),"0") -> 0 | D102: =-IFERROR(INDEX(Report!$B$12:$B$600, MATCH(TRUE,ISNUMBER(SEARCH(A102,Report!$A$12:$A$600)),0)),0) -> 0 | G102: 1 | H102: Zeros
A103: 2179 | B103: Digital Divide Grant Unspent | C103: =-IFERROR(INDEX(Report!$A:$Z,MATCH(TRUE, ISNUMBER(SEARCH(A103,Report!$A:$A)),0),MATCH("Grand Total",Report!$11:$11,0)),"0") -> 0 | D103: =-IFERROR(INDEX(Report!$B$12:$B$600, MATCH(TRUE,ISNUMBER(SEARCH(A103,Report!$A$12:$A$600)),0)),0) -> 0 | G103: 1 | H103: Zeros
A104: 2180 | B104: School Excellence Fund Unspent | C104: =-IFERROR(INDEX(Report!$A:$Z,MATCH(TRUE, ISNUMBER(SEARCH(A104,Report!$A:$A)),0),MATCH("Grand Total",Report!$11:$11,0)),"0") -> 0 | D104: =-IFERROR(INDEX(Report!$B$12:$B$600, MATCH(TRUE,ISNUMBER(SEARCH(A104,Report!$A$12:$A$600)),0)),0) -> 0 | G104: 1 | H104: Zeros
A105: 2181 | B105: COVID Aide Grant Unspent | C105: =-IFERROR(INDEX(Report!$A:$Z,MATCH(TRUE, ISNUMBER(SEARCH(A105,Report!$A:$A)),0),MATCH("Grand Total",Report!$11:$11,0)),"0") -> 0 | D105: =-IFERROR(INDEX(Report!$B$12:$B$600, MATCH(TRUE,ISNUMBER(SEARCH(A105,Report!$A$12:$A$600)),0)),0) -> 0 | G105: 1 | H105: Zeros
A106: 2182 | B106: COVID Capitation for PPE Grant Unspent | C106: =-IFERROR(INDEX(Report!$A:$Z,MATCH(TRUE, ISNUMBER(SEARCH(A106,Report!$A:$A)),0),MATCH("Grand Total",Report!$11:$11,0)),"0") -> 0 | D106: =-IFERROR(INDEX(Report!$B$12:$B$600, MATCH(TRUE,ISNUMBER(SEARCH(A106,Report!$A$12:$A$600)),0)),0) -> 0 | G106: 1 | H106: Zeros
A107: 2183 | B107: COVID Enhanced Supervision Grant Unspent | C107: =-IFERROR(INDEX(Report!$A:$Z,MATCH(TRUE, ISNUMBER(SEARCH(A107,Report!$A:$A)),0),MATCH("Grand Total",Report!$11:$11,0)),"0") -> 0 | D107: =-IFERROR(INDEX(Report!$B$12:$B$600, MATCH(TRUE,ISNUMBER(SEARCH(A107,Report!$A$12:$A$600)),0)),0) -> 0 | G107: 1 | H107: Zeros
A108: 2184 | B108: COVID Capitation for Additional Cleaning Grant Unspent | C108: =-IFERROR(INDEX(Report!$A:$Z,MATCH(TRUE, ISNUMBER(SEARCH(A108,Report!$A:$A)),0),MATCH("Grand Total",Report!$11:$11,0)),"0") -> 0 | D108: =-IFERROR(INDEX(Report!$B$12:$B$600, MATCH(TRUE,ISNUMBER(SEARCH(A108,Report!$A$12:$A$600)),0)),0) -> 0 | G108: 1 | H108: Zeros
A109: 2185 | B109: COVID Replacement Hours Unspent | C109: =-IFERROR(INDEX(Report!$A:$Z,MATCH(TRUE, ISNUMBER(SEARCH(A109,Report!$A:$A)),0),MATCH("Grand Total",Report!$11:$11,0)),"0") -> 0 | D109: =-IFERROR(INDEX(Report!$B$12:$B$600, MATCH(TRUE,ISNUMBER(SEARCH(A109,Report!$A$12:$A$600)),0)),0) -> 0 | G109: 1 | H109: Zeros
A110: 2186 | B110: COVID Capitation for Cleaning and PPE Grant Unspent | C110: =-IFERROR(INDEX(Report!$A:$Z,MATCH(TRUE, ISNUMBER(SEARCH(A110,Report!$A:$A)),0),MATCH("Grand Total",Report!$11:$11,0)),"0") -> 0 | D110: =-IFERROR(INDEX(Report!$B$12:$B$600, MATCH(TRUE,ISNUMBER(SEARCH(A110,Report!$A$12:$A$600)),0)),0) -> 0 | G110: 1 | H110: Zeros
A111: 2187 | B111: Mobile Phone Pouches Grant Unspent | C111: =-IFERROR(INDEX(Report!$A:$Z,MATCH(TRUE, ISNUMBER(SEARCH(A111,Report!$A:$A)),0),MATCH("Grand Total",Report!$11:$11,0)),"0") -> 0 | D111: =-IFERROR(INDEX(Report!$B$12:$B$600, MATCH(TRUE,ISNUMBER(SEARCH(A111,Report!$A$12:$A$600)),0)),0) -> 0 | G111: 1 | H111: Zeros
A112: 2200 | B112: Net Wages Control Account | C112: =-IFERROR(INDEX(Report!$A:$Z,MATCH(TRUE, ISNUMBER(SEARCH(A112,Report!$A:$A)),0),MATCH("Grand Total",Report!$11:$11,0)),"0") -> 0 | D112: =-IFERROR(INDEX(Report!$B$12:$B$600, MATCH(TRUE,ISNUMBER(SEARCH(A112,Report!$A$12:$A$600)),0)),0) -> 0 | G112: 1 | H112: Zeros
A113: 2210 | B113: Union Fees Control Account | C113: =-IFERROR(INDEX(Report!$A:$Z,MATCH(TRUE, ISNUMBER(SEARCH(A113,Report!$A:$A)),0),MATCH("Grand Total",Report!$11:$11,0)),"0") -> 0 | D113: =-IFERROR(INDEX(Report!$B$12:$B$600, MATCH(TRUE,ISNUMBER(SEARCH(A113,Report!$A$12:$A$600)),0)),0) -> 0 | G113: 1 | H113: Zeros
A114: 2220 | B114: Single Public Service Pension Scheme Control Account | C114: =-IFERROR(INDEX(Report!$A:$Z,MATCH(TRUE, ISNUMBER(SEARCH(A114,Report!$A:$A)),0),MATCH("Grand Total",Report!$11:$11,0)),"0") -> 0 | D114: =-IFERROR(INDEX(Report!$B$12:$B$600, MATCH(TRUE,ISNUMBER(SEARCH(A114,Report!$A$12:$A$600)),0)),0) -> 0 | G114: 1 | H114: Zeros
A115: 2230 | B115: ASC Control Account | C115: =-IFERROR(INDEX(Report!$A:$Z,MATCH(TRUE, ISNUMBER(SEARCH(A115,Report!$A:$A)),0),MATCH("Grand Total",Report!$11:$11,0)),"0") -> 0 | D115: =-IFERROR(INDEX(Report!$B$12:$B$600, MATCH(TRUE,ISNUMBER(SEARCH(A115,Report!$A$12:$A$600)),0)),0) -> 0 | G115: 1 | H115: Zeros
A116: 2240 | B116: PRSA Control Account | C116: =-IFERROR(INDEX(Report!$A:$Z,MATCH(TRUE, ISNUMBER(SEARCH(A116,Report!$A:$A)),0),MATCH("Grand Total",Report!$11:$11,0)),"0") -> 0 | D116: =-IFERROR(INDEX(Report!$B$12:$B$600, MATCH(TRUE,ISNUMBER(SEARCH(A116,Report!$A$12:$A$600)),0)),0) -> 0 | G116: 1 | H116: Zeros
A117: 2241 | B117: Auto-Enrolment Pension Control Account | C117: =-IFERROR(INDEX(Report!$A:$Z,MATCH(TRUE, ISNUMBER(SEARCH(A117,Report!$A:$A)),0),MATCH("Grand Total",Report!$11:$11,0)),"0") -> 0 | D117: =-IFERROR(INDEX(Report!$B$12:$B$600, MATCH(TRUE,ISNUMBER(SEARCH(A117,Report!$A$12:$A$600)),0)),0) -> 0 | G117: 1 | H117: Zeros
A118: 2250 | B118: PAYE/PRSI/USC/LPT Control Account | C118: =-IFERROR(INDEX(Report!$A:$Z,MATCH(TRUE, ISNUMBER(SEARCH(A118,Report!$A:$A)),0),MATCH("Grand Total",Report!$11:$11,0)),"0") -> -5074.24 | D118: =-IFERROR(INDEX(Report!$B$12:$B$600, MATCH(TRUE,ISNUMBER(SEARCH(A118,Report!$A$12:$A$600)),0)),0) -> -5074.24 | G118: 0
A119: 2260 | B119: Reverse VAT Control Account | C119: =-IFERROR(INDEX(Report!$A:$Z,MATCH(TRUE, ISNUMBER(SEARCH(A119,Report!$A:$A)),0),MATCH("Grand Total",Report!$11:$11,0)),"0") -> 0 | D119: =-IFERROR(INDEX(Report!$B$12:$B$600, MATCH(TRUE,ISNUMBER(SEARCH(A119,Report!$A$12:$A$600)),0)),0) -> 0 | G119: 1 | H119: Zeros
A120: 2270 | B120: RCT Control Account | C120: =-IFERROR(INDEX(Report!$A:$Z,MATCH(TRUE, ISNUMBER(SEARCH(A120,Report!$A:$A)),0),MATCH("Grand Total",Report!$11:$11,0)),"0") -> 0 | D120: =-IFERROR(INDEX(Report!$B$12:$B$600, MATCH(TRUE,ISNUMBER(SEARCH(A120,Report!$A$12:$A$600)),0)),0) -> 0 | G120: 1 | H120: Zeros
A121: 2310 | B121: Bank Loans | C121: =-IFERROR(INDEX(Report!$A:$Z,MATCH(TRUE, ISNUMBER(SEARCH(A121,Report!$A:$A)),0),MATCH("Grand Total",Report!$11:$11,0)),"0") -> 0 | D121: =-IFERROR(INDEX(Report!$B$12:$B$600, MATCH(TRUE,ISNUMBER(SEARCH(A121,Report!$A$12:$A$600)),0)),0) -> 0 | G121: 1 | H121: Zeros
A122: 2320 | B122: Other Loan | C122: =-IFERROR(INDEX(Report!$A:$Z,MATCH(TRUE, ISNUMBER(SEARCH(A122,Report!$A:$A)),0),MATCH("Grand Total",Report!$11:$11,0)),"0") -> 0 | D122: =-IFERROR(INDEX(Report!$B$12:$B$600, MATCH(TRUE,ISNUMBER(SEARCH(A122,Report!$A$12:$A$600)),0)),0) -> 0 | G122: 1 | H122: Zeros
A123: 2330 | B123: Leasing | C123: =-IFERROR(INDEX(Report!$A:$Z,MATCH(TRUE, ISNUMBER(SEARCH(A123,Report!$A:$A)),0),MATCH("Grand Total",Report!$11:$11,0)),"0") -> 0 | D123: =-IFERROR(INDEX(Report!$B$12:$B$600, MATCH(TRUE,ISNUMBER(SEARCH(A123,Report!$A$12:$A$600)),0)),0) -> 0 | G123: 1 | H123: Zeros
A124: 2440 | B124: Accruals | C124: =-IFERROR(INDEX(Report!$A:$Z,MATCH(TRUE, ISNUMBER(SEARCH(A124,Report!$A:$A)),0),MATCH("Grand Total",Report!$11:$11,0)),"0") -> 5280 | D124: =-IFERROR(INDEX(Report!$B$12:$B$600, MATCH(TRUE,ISNUMBER(SEARCH(A124,Report!$A$12:$A$600)),0)),0) -> 1001.11 | G124: 0
A125: Total Accruals | C125: =SUM(C87:C124) -> 278285.82 | D125: =SUM(D87:D124) -> 152670.32 | G125: 0
A126: Total Current Liabilities | C126: =C125+C84 -> 279785.82 | D126: =D125+D84 -> 154170.32 | G126: 0
G127: 0
A128: Current Assets Less Current Liabilities | C128: =C78-C126 -> 217581.68 | D128: =D78-D126 -> 273367.4 | G128: 0
A129: Total Assets Less Current Liabilities | C129: =(C50+C78)-C126 -> 339254.68 | D129: =(D50+D78)-D126 -> 390740.4 | G129: 0
G130: 0
A131: Long Term Liabilities | G131: 0
A132: 2600 | B132: Long Term Loan | C132: =-IFERROR(INDEX(Report!$A:$Z,MATCH(TRUE, ISNUMBER(SEARCH(A132,Report!$A:$A)),0),MATCH("Grand Total",Report!$11:$11,0)),"0") -> 0 | D132: =-IFERROR(INDEX(Report!$B$12:$B$600, MATCH(TRUE,ISNUMBER(SEARCH(A132,Report!$A$12:$A$600)),0)),0) -> 0 | G132: =+IF(COUNTIF(C132:D132,0)=COLUMNS(C132:D132),1,0) -> 1 | H132: =IF(G132=1,"Zeros","") -> Zeros
A133: Total Long Term Liabilities | C133: =SUM(C132:C132) -> 0 | D133: =SUM(D132:D132) -> 0 | G133: 1 | H133: Zeros
G134: 0
A135: Total Assets Less Liabilities | C135: =C50+C78-C126-C133 -> 339254.68 | D135: =D50+D78-D126-D133 -> 390740.4 | G135: 0
G136: 0
A137: Capital & Reserves | G137: 0
G138: 0
A139: Retained Profits | G139: 0
A140: 2700 | B140: Retained Surplus | C140: =-IFERROR(INDEX(Report!$A:$Z,MATCH(TRUE, ISNUMBER(SEARCH(A140,Report!$A:$A)),0),MATCH("Grand Total",Report!$11:$11,0)),"0") -> -120 | D140: =-IFERROR(INDEX(Report!$B$12:$B$600, MATCH(TRUE,ISNUMBER(SEARCH(A140,Report!$A$12:$A$600)),0)),0) -> -120 | G140: 0
A141: 2710 | B141: Surplus Brought Forward | C141: =-IFERROR(INDEX(Report!$A:$Z,MATCH(TRUE, ISNUMBER(SEARCH(A141,Report!$A:$A)),0),MATCH("Grand Total",Report!$11:$11,0)),"0") -> 385860.4 | D141: =-IFERROR(INDEX(Report!$B$12:$B$600, MATCH(TRUE,ISNUMBER(SEARCH(A141,Report!$A$12:$A$600)),0)),0) -> 385860.4 | G141: 0
A142: Total Retained Profits | C142: =SUM(C140:C141) -> 385740.4 | D142: =SUM(D140:D141) -> 385740.4 | G142: 0
G143: 0
A144: Contribution to Fixed Assets | G144: 0
A145: 3900 | B145: DE Capital Building Grant Income | C145: =-IFERROR(INDEX(Report!$A:$Z,MATCH(TRUE, ISNUMBER(SEARCH(A145,Report!$A:$A)),0),MATCH("Grand Total",Report!$11:$11,0)),"0") -> 0 | D145: =-IFERROR(INDEX(Report!$B$12:$B$600, MATCH(TRUE,ISNUMBER(SEARCH(A145,Report!$A$12:$A$600)),0)),0) -> 0 | G145: 1 | H145: Zeros
A146: 3901 | B146: Capital Projects Fundraising Income | C146: =-IFERROR(INDEX(Report!$A:$Z,MATCH(TRUE, ISNUMBER(SEARCH(A146,Report!$A:$A)),0),MATCH("Grand Total",Report!$11:$11,0)),"0") -> 0 | D146: =-IFERROR(INDEX(Report!$B$12:$B$600, MATCH(TRUE,ISNUMBER(SEARCH(A146,Report!$A$12:$A$600)),0)),0) -> 0 | G146: 1 | H146: Zeros
A147: 3902 | B147: Parents Contribution to Capital Projects Income | C147: =-IFERROR(INDEX(Report!$A:$Z,MATCH(TRUE, ISNUMBER(SEARCH(A147,Report!$A:$A)),0),MATCH("Grand Total",Report!$11:$11,0)),"0") -> 0 | D147: =-IFERROR(INDEX(Report!$B$12:$B$600, MATCH(TRUE,ISNUMBER(SEARCH(A147,Report!$A$12:$A$600)),0)),0) -> 0 | G147: 1 | H147: Zeros
A148: 3903 | B148: Patron/Trustee Contribution to Capital Projects Income | C148: =-IFERROR(INDEX(Report!$A:$Z,MATCH(TRUE, ISNUMBER(SEARCH(A148,Report!$A:$A)),0),MATCH("Grand Total",Report!$11:$11,0)),"0") -> 0 | D148: =-IFERROR(INDEX(Report!$B$12:$B$600, MATCH(TRUE,ISNUMBER(SEARCH(A148,Report!$A$12:$A$600)),0)),0) -> 0 | G148: 1 | H148: Zeros
A149: 3904 | B149: Other State Capital Projects Income | C149: =-IFERROR(INDEX(Report!$A:$Z,MATCH(TRUE, ISNUMBER(SEARCH(A149,Report!$A:$A)),0),MATCH("Grand Total",Report!$11:$11,0)),"0") -> 0 | D149: =-IFERROR(INDEX(Report!$B$12:$B$600, MATCH(TRUE,ISNUMBER(SEARCH(A149,Report!$A$12:$A$600)),0)),0) -> 0 | G149: 1 | H149: Zeros
A150: 3905 | B150: Covid Minor Works Capital Grant Income | C150: =-IFERROR(INDEX(Report!$A:$Z,MATCH(TRUE, ISNUMBER(SEARCH(A150,Report!$A:$A)),0),MATCH("Grand Total",Report!$11:$11,0)),"0") -> 0 | D150: =-IFERROR(INDEX(Report!$B$12:$B$600, MATCH(TRUE,ISNUMBER(SEARCH(A150,Report!$A$12:$A$600)),0)),0) -> 0 | G150: 1 | H150: Zeros
A151: 3906 | B151: Accumulated Amortisation of Capital Building Income | C151: =-IFERROR(INDEX(Report!$A:$Z,MATCH(TRUE, ISNUMBER(SEARCH(A151,Report!$A:$A)),0),MATCH("Grand Total",Report!$11:$11,0)),"0") -> 0 | D151: =-IFERROR(INDEX(Report!$B$12:$B$600, MATCH(TRUE,ISNUMBER(SEARCH(A151,Report!$A$12:$A$600)),0)),0) -> 0 | G151: 1 | H151: Zeros
A152: 3907 | B152: Capital Donations/Funding Income | C152: =-IFERROR(INDEX(Report!$A:$Z,MATCH(TRUE, ISNUMBER(SEARCH(A152,Report!$A:$A)),0),MATCH("Grand Total",Report!$11:$11,0)),"0") -> 0 | D152: =-IFERROR(INDEX(Report!$B$12:$B$600, MATCH(TRUE,ISNUMBER(SEARCH(A152,Report!$A$12:$A$600)),0)),0) -> 0 | G152: 1 | H152: Zeros
A153: 3920 | B153: DE Fixtures, Fittings & Equipment Grant Income | C153: =-IFERROR(INDEX(Report!$A:$Z,MATCH(TRUE, ISNUMBER(SEARCH(A153,Report!$A:$A)),0),MATCH("Grand Total",Report!$11:$11,0)),"0") -> 5000 | D153: =-IFERROR(INDEX(Report!$B$12:$B$600, MATCH(TRUE,ISNUMBER(SEARCH(A153,Report!$A$12:$A$600)),0)),0) -> 5000 | G153: 0
A154: 3921 | B154: DE ICT Grant Capital Income | C154: =-IFERROR(INDEX(Report!$A:$Z,MATCH(TRUE, ISNUMBER(SEARCH(A154,Report!$A:$A)),0),MATCH("Grand Total",Report!$11:$11,0)),"0") -> 0 | D154: =-IFERROR(INDEX(Report!$B$12:$B$600, MATCH(TRUE,ISNUMBER(SEARCH(A154,Report!$A$12:$A$600)),0)),0) -> 0 | G154: 1 | H154: Zeros
A155: 3925 | B155: Accumulated Amortisation of Capital Equipment Income | C155: =-IFERROR(INDEX(Report!$A:$Z,MATCH(TRUE, ISNUMBER(SEARCH(A155,Report!$A:$A)),0),MATCH("Grand Total",Report!$11:$11,0)),"0") -> 0 | D155: =-IFERROR(INDEX(Report!$B$12:$B$600, MATCH(TRUE,ISNUMBER(SEARCH(A155,Report!$A$12:$A$600)),0)),0) -> 0 | G155: 1 | H155: Zeros
A156: 3926 | B156: Accumulated Amortisation of ICT Grant Capital Income | C156: =-IFERROR(INDEX(Report!$A:$Z,MATCH(TRUE, ISNUMBER(SEARCH(A156,Report!$A:$A)),0),MATCH("Grand Total",Report!$11:$11,0)),"0") -> 0 | D156: =-IFERROR(INDEX(Report!$B$12:$B$600, MATCH(TRUE,ISNUMBER(SEARCH(A156,Report!$A$12:$A$600)),0)),0) -> 0 | G156: 1 | H156: Zeros
A157: 3940 | B157: DE Capital Building Grant Expense | C157: =-IFERROR(INDEX(Report!$A:$Z,MATCH(TRUE, ISNUMBER(SEARCH(A157,Report!$A:$A)),0),MATCH("Grand Total",Report!$11:$11,0)),"0") -> 0 | D157: =-IFERROR(INDEX(Report!$B$12:$B$600, MATCH(TRUE,ISNUMBER(SEARCH(A157,Report!$A$12:$A$600)),0)),0) -> 0 | G157: 1 | H157: Zeros
A158: 3941 | B158: Covid Minor Works Building Expense | C158: =-IFERROR(INDEX(Report!$A:$Z,MATCH(TRUE, ISNUMBER(SEARCH(A158,Report!$A:$A)),0),MATCH("Grand Total",Report!$11:$11,0)),"0") -> 0 | D158: =-IFERROR(INDEX(Report!$B$12:$B$600, MATCH(TRUE,ISNUMBER(SEARCH(A158,Report!$A$12:$A$600)),0)),0) -> 0 | G158: 1 | H158: Zeros
A159: 3960 | B159: Capital Land/Building Fundraising Expense | C159: =-IFERROR(INDEX(Report!$A:$Z,MATCH(TRUE, ISNUMBER(SEARCH(A159,Report!$A:$A)),0),MATCH("Grand Total",Report!$11:$11,0)),"0") -> 0 | D159: =-IFERROR(INDEX(Report!$B$12:$B$600, MATCH(TRUE,ISNUMBER(SEARCH(A159,Report!$A$12:$A$600)),0)),0) -> 0 | G159: 1 | H159: Zeros
A160: 3970 | B160: Parents Contribution to Capital Land/Building Expense | C160: =-IFERROR(INDEX(Report!$A:$Z,MATCH(TRUE, ISNUMBER(SEARCH(A160,Report!$A:$A)),0),MATCH("Grand Total",Report!$11:$11,0)),"0") -> 0 | D160: =-IFERROR(INDEX(Report!$B$12:$B$600, MATCH(TRUE,ISNUMBER(SEARCH(A160,Report!$A$12:$A$600)),0)),0) -> 0 | G160: 1 | H160: Zeros
A161: 3990 | B161: Patron/Trustee Contribution to Capital Building Expense | C161: =-IFERROR(INDEX(Report!$A:$Z,MATCH(TRUE, ISNUMBER(SEARCH(A161,Report!$A:$A)),0),MATCH("Grand Total",Report!$11:$11,0)),"0") -> 0 | D161: =-IFERROR(INDEX(Report!$B$12:$B$600, MATCH(TRUE,ISNUMBER(SEARCH(A161,Report!$A$12:$A$600)),0)),0) -> 0 | G161: 1 | H161: Zeros
A162: 3991 | B162: Other State Capital Land/Building Expense | C162: =-IFERROR(INDEX(Report!$A:$Z,MATCH(TRUE, ISNUMBER(SEARCH(A162,Report!$A:$A)),0),MATCH("Grand Total",Report!$11:$11,0)),"0") -> 0 | D162: =-IFERROR(INDEX(Report!$B$12:$B$600, MATCH(TRUE,ISNUMBER(SEARCH(A162,Report!$A$12:$A$600)),0)),0) -> 0 | G162: 1 | H162: Zeros
A163: 3992 | B163: Capital Donations/Funding Land/Building Expense | C163: =-IFERROR(INDEX(Report!$A:$Z,MATCH(TRUE, ISNUMBER(SEARCH(A163,Report!$A:$A)),0),MATCH("Grand Total",Report!$11:$11,0)),"0") -> 0 | D163: =-IFERROR(INDEX(Report!$B$12:$B$600, MATCH(TRUE,ISNUMBER(SEARCH(A163,Report!$A$12:$A$600)),0)),0) -> 0 | G163: 1 | H163: Zeros
A164: 3995 | B164: Land/Building Fund Account | C164: =-IFERROR(INDEX(Report!$A:$Z,MATCH(TRUE, ISNUMBER(SEARCH(A164,Report!$A:$A)),0),MATCH("Grand Total",Report!$11:$11,0)),"0") -> 0 | D164: =-IFERROR(INDEX(Report!$B$12:$B$600, MATCH(TRUE,ISNUMBER(SEARCH(A164,Report!$A$12:$A$600)),0)),0) -> 0 | G164: 1 | H164: Zeros
A165: Total Contribution to Fixed Assets | C165: =SUM(C145:C164) -> 5000 | D165: =SUM(D145:D164) -> 5000 | G165: 0
G166: 0
A167: Total Capital & Reserves | C167: =C142+C165 -> 390740.4 | D167: =D142+D165 -> 390740.4 | G167: 0
G168: 0
A169: Income and Expenditure Account | C169: ='3.Income and Expenditure Report'!C269 -> -51485.72 | G169: 0
G170: 0
C171: =C167+C169-C135 -> 0 | G171: 0
G172: 0
G173: 0
G174: 0
G175: 0
G176: 0
G177: 0
G178: 0
G179: 0
G180: 0
G181: 0
G182: 0
G183: 0
G184: 0
G185: 0
G186: 0
G187: 0
G188: 0
G189: 0
G190: 0
G191: 0
G192: 0
G193: 0
G194: 0
G195: 0
G196: =+IF(COUNTIF(C196:D196,0)=COLUMNS(C196:D196),1,0) -> 0 | H196: =IF(G196=1,"Zeros","") -> 
G197: 0
G198: 0
G199: 0
G200: 0
... 1915 more rows

Sheet SageData_COMP (hidden)
A1: NAME | B1: START_MONTH | C1: FINANCIAL_YEAR | D1: StartDate | G1: MatchCalYear | H1: Show As B/Fwd | I1: Exclude Year End | J1: Year End INVREF
A2: FSSU Master Chart of accounts New Dataset 2024 2025 | B2: 9 | C2: 2025 | D2: =DATE(#REF!,#REF!,1) ->  | G2: =#REF!=1 ->  | H2: =Report!D4="Yes" -> TRUE | I2: =Report!$D$2="Yes" -> FALSE | J2: =IF(I2,"Ledger Year End","€") -> €
G4: Period No. | H4: EoMonth | I4: Month
G5: 1 | H5: =EOMONTH(D2,0) ->  | I5: =TEXT(H5,"mmm") -> 
G6: 2 | H6: =EOMONTH(H5,G6-1) ->  | I6: =TEXT(H6,"mmm") -> 
G7: 3 | H7: =EOMONTH(H6,G7-1) -> 
G8: 4
G9: 5
G10: 6
G11: 7
G12: 8
G13: 9
G14: 10
G15: 11
G16: 12

Sheet SageData_Dept (hidden)
A1: NUMBER | B1: NAME
A2: 0 | B2: Default
A3: 1 | B3: First Year charges
A4: 2 | B4: Voluntary contributions
A5: 3 | B5: School Administraion charges
A6: 4 | B6: Transition Year
A7: 5 | B7: ICT Grant
A8: 6 | B8: Free School Book Scheme Grant
A9: 7 | B9: Free Schoolbook Administraion support Grant
A10: 8 | B10: Modular Accomodation
A11: 9 | B11: State Exams
A12: 10 | B12: Special Class
A13: 11 | B13: Expension1
A14: 12 | B14: Music
A15: 13 | B15: Science Implementation Grant
A16: 14 | B16: Special Class Start Up
A17: 15 | B17: Secure Mobile Phone Storage
A18: 16 | B18: SSSF Grant
A19: 17 | B19: Caretaker Grant
A20: 18 | B20: Supervision and Substitution

Sheet ODBC_AJ (hidden)
A1: ACCOUNT_REF | B1: DATE | C1: TYPE | D1: DEPT_NUMBER | E1: NAME | F1: AMOUNT | G1: Dept Name | H1: Departments | I1: Nominals | J1: MonthEnd | K1: RunningTotal
A2: 1400 | B2: 2025-06-30 | C2: BP | D2: 10 | E2: Capital: Land and Buildings Cost B/Fwd | F2: 112373 | G2: =IFERROR(VLOOKUP(Table_Query_from_SageLine50v19[[#This Row],[DEPT_NUMBER]],DR_ODBC_DEPT,2,FALSE),"Not Found") -> Special Class | H2: =CONCATENATE(TEXT(D2,"000")," - ",G2) -> 010 - Special Class | I2: =CONCATENATE(A2," - ",E2) -> 1400 - Capital: Land and Buildings Cost B/Fwd | J2: =IF(SageData_COMP!$H$2,IF(Table_Query_from_SageLine50v19[[#This Row],[DATE]]<=Report!$B$4,EOMONTH(Report!$B$4,-1),EOMONTH(Table_Query_from_SageLine50v19[[#This Row],[DATE]],0)),EOMONTH(Table_Query_from_SageLine50v19[[#This Row],[DATE]],0)) -> 2025-07-31
A3: 1421 | B3: 2025-06-30 | C3: PI | D3: 15 | E3: Capital: Fixtures,fittings & Equipment Additions | F3: 5000 | G3: =IFERROR(VLOOKUP(Table_Query_from_SageLine50v19[[#This Row],[DEPT_NUMBER]],DR_ODBC_DEPT,2,FALSE),"Not Found") -> Secure Mobile Phone Storage | H3: 015 - Secure Mobile Phone Storage | I3: 1421 - Capital: Fixtures,fittings & Equipment Additions | J3: =IF(SageData_COMP!$H$2,IF(Table_Query_from_SageLine50v19[[#This Row],[DATE]]<=Report!$B$4,EOMONTH(Report!$B$4,-1),EOMONTH(Table_Query_from_SageLine50v19[[#This Row],[DATE]],0)),EOMONTH(Table_Query_from_SageLine50v19[[#This Row],[DATE]],0)) -> 2025-07-31
A4: 1421 | B4: 2025-09-04 | C4: BP | D4: 0 | E4: Capital: Fixtures,fittings & Equipment Additions | F4: 1000 | G4: =IFERROR(VLOOKUP(Table_Query_from_SageLine50v19[[#This Row],[DEPT_NUMBER]],DR_ODBC_DEPT,2,FALSE),"Not Found") -> Default | H4: 000 - Default | I4: 1421 - Capital: Fixtures,fittings & Equipment Additions | J4: =IF(SageData_COMP!$H$2,IF(Table_Query_from_SageLine50v19[[#This Row],[DATE]]<=Report!$B$4,EOMONTH(Report!$B$4,-1),EOMONTH(Table_Query_from_SageLine50v19[[#This Row],[DATE]],0)),EOMONTH(Table_Query_from_SageLine50v19[[#This Row],[DATE]],0)) -> 2025-09-30
A5: 1461 | B5: 2026-05-04 | C5: BP | D5: 0 | E5: Capital: ICT Additions | F5: 1500 | G5: =IFERROR(VLOOKUP(Table_Query_from_SageLine50v19[[#This Row],[DEPT_NUMBER]],DR_ODBC_DEPT,2,FALSE),"Not Found") -> Default | H5: 000 - Default | I5: 1461 - Capital: ICT Additions | J5: =IF(SageData_COMP!$H$2,IF(Table_Query_from_SageLine50v19[[#This Row],[DATE]]<=Report!$B$4,EOMONTH(Report!$B$4,-1),EOMONTH(Table_Query_from_SageLine50v19[[#This Row],[DATE]],0)),EOMONTH(Table_Query_from_SageLine50v19[[#This Row],[DATE]],0)) -> 2026-05-31
A6: 1461 | B6: 2026-08-31 | C6: JD | D6: 5 | E6: Capital: ICT Additions | F6: 1800 | G6: =IFERROR(VLOOKUP(Table_Query_from_SageLine50v19[[#This Row],[DEPT_NUMBER]],DR_ODBC_DEPT,2,FALSE),"Not Found") -> ICT Grant | H6: 005 - ICT Grant | I6: 1461 - Capital: ICT Additions | J6: =IF(SageData_COMP!$H$2,IF(Table_Query_from_SageLine50v19[[#This Row],[DATE]]<=Report!$B$4,EOMONTH(Report!$B$4,-1),EOMONTH(Table_Query_from_SageLine50v19[[#This Row],[DATE]],0)),EOMONTH(Table_Query_from_SageLine50v19[[#This Row],[DATE]],0)) -> 2026-08-31
A7: 1700 | B7: 2025-08-20 | C7: SI | D7: 20 | E7: Sales Ledger Control | F7: 500 | G7: =IFERROR(VLOOKUP(Table_Query_from_SageLine50v19[[#This Row],[DEPT_NUMBER]],DR_ODBC_DEPT,2,FALSE),"Not Found") -> Not Found | H7: 020 - Not Found | I7: 1700 - Sales Ledger Control | J7: =IF(SageData_COMP!$H$2,IF(Table_Query_from_SageLine50v19[[#This Row],[DATE]]<=Report!$B$4,EOMONTH(Report!$B$4,-1),EOMONTH(Table_Query_from_SageLine50v19[[#This Row],[DATE]],0)),EOMONTH(Table_Query_from_SageLine50v19[[#This Row],[DATE]],0)) -> 2025-07-31
A8: 1700 | B8: 2025-09-09 | C8: SI | D8: 1 | E8: Sales Ledger Control | F8: 10 | G8: =IFERROR(VLOOKUP(Table_Query_from_SageLine50v19[[#This Row],[DEPT_NUMBER]],DR_ODBC_DEPT,2,FALSE),"Not Found") -> First Year charges | H8: 001 - First Year charges | I8: 1700 - Sales Ledger Control | J8: =IF(SageData_COMP!$H$2,IF(Table_Query_from_SageLine50v19[[#This Row],[DATE]]<=Report!$B$4,EOMONTH(Report!$B$4,-1),EOMONTH(Table_Query_from_SageLine50v19[[#This Row],[DATE]],0)),EOMONTH(Table_Query_from_SageLine50v19[[#This Row],[DATE]],0)) -> 2025-09-30
A9: 1700 | B9: 2025-09-09 | C9: SI | D9: 0 | E9: Sales Ledger Control | F9: 10 | G9: =IFERROR(VLOOKUP(Table_Query_from_SageLine50v19[[#This Row],[DEPT_NUMBER]],DR_ODBC_DEPT,2,FALSE),"Not Found") -> Default | H9: 000 - Default | I9: 1700 - Sales Ledger Control | J9: =IF(SageData_COMP!$H$2,IF(Table_Query_from_SageLine50v19[[#This Row],[DATE]]<=Report!$B$4,EOMONTH(Report!$B$4,-1),EOMONTH(Table_Query_from_SageLine50v19[[#This Row],[DATE]],0)),EOMONTH(Table_Query_from_SageLine50v19[[#This Row],[DATE]],0)) -> 2025-09-30
A10: 1700 | B10: 2025-09-09 | C10: SI | D10: 0 | E10: Sales Ledger Control | F10: 10 | G10: =IFERROR(VLOOKUP(Table_Query_from_SageLine50v19[[#This Row],[DEPT_NUMBER]],DR_ODBC_DEPT,2,FALSE),"Not Found") -> Default | H10: 000 - Default | I10: 1700 - Sales Ledger Control | J10: =IF(SageData_COMP!$H$2,IF(Table_Query_from_SageLine50v19[[#This Row],[DATE]]<=Report!$B$4,EOMONTH(Report!$B$4,-1),EOMONTH(Table_Query_from_SageLine50v19[[#This Row],[DATE]],0)),EOMONTH(Table_Query_from_SageLine50v19[[#This Row],[DATE]],0)) -> 2025-09-30
A11: 1705 | B11: 2025-10-08 | C11: JD | D11: 0 | E11: Debtors | F11: 10 | G11: =IFERROR(VLOOKUP(Table_Query_from_SageLine50v19[[#This Row],[DEPT_NUMBER]],DR_ODBC_DEPT,2,FALSE),"Not Found") -> Default | H11: 000 - Default | I11: 1705 - Debtors | J11: =IF(SageData_COMP!$H$2,IF(Table_Query_from_SageLine50v19[[#This Row],[DATE]]<=Report!$B$4,EOMONTH(Report!$B$4,-1),EOMONTH(Table_Query_from_SageLine50v19[[#This Row],[DATE]],0)),EOMONTH(Table_Query_from_SageLine50v19[[#This Row],[DATE]],0)) -> 2025-10-31
A12: 1720 | B12: 2025-09-01 | C12: JD | D12: 13 | E12: Prepayments | F12: 7500 | G12: =IFERROR(VLOOKUP(Table_Query_from_SageLine50v19[[#This Row],[DEPT_NUMBER]],DR_ODBC_DEPT,2,FALSE),"Not Found") -> Science Implementation Grant | H12: 013 - Science Implementation Grant | I12: 1720 - Prepayments | J12: =IF(SageData_COMP!$H$2,IF(Table_Query_from_SageLine50v19[[#This Row],[DATE]]<=Report!$B$4,EOMONTH(Report!$B$4,-1),EOMONTH(Table_Query_from_SageLine50v19[[#This Row],[DATE]],0)),EOMONTH(Table_Query_from_SageLine50v19[[#This Row],[DATE]],0)) -> 2025-09-30
A13: 1720 | B13: 2025-09-01 | C13: JC | D13: 13 | E13: Prepayments | F13: -9500 | G13: =IFERROR(VLOOKUP(Table_Query_from_SageLine50v19[[#This Row],[DEPT_NUMBER]],DR_ODBC_DEPT,2,FALSE),"Not Found") -> Science Implementation Grant | H13: 013 - Science Implementation Grant | I13: 1720 - Prepayments | J13: =IF(SageData_COMP!$H$2,IF(Table_Query_from_SageLine50v19[[#This Row],[DATE]]<=Report!$B$4,EOMONTH(Report!$B$4,-1),EOMONTH(Table_Query_from_SageLine50v19[[#This Row],[DATE]],0)),EOMONTH(Table_Query_from_SageLine50v19[[#This Row],[DATE]],0)) -> 2025-09-30
A14: 1720 | B14: 2025-08-31 | C14: JD | D14: 13 | E14: Prepayments | F14: 7500 | G14: =IFERROR(VLOOKUP(Table_Query_from_SageLine50v19[[#This Row],[DEPT_NUMBER]],DR_ODBC_DEPT,2,FALSE),"Not Found") -> Science Implementation Grant | H14: 013 - Science Implementation Grant | I14: 1720 - Prepayments | J14: =IF(SageData_COMP!$H$2,IF(Table_Query_from_SageLine50v19[[#This Row],[DATE]]<=Report!$B$4,EOMONTH(Report!$B$4,-1),EOMONTH(Table_Query_from_SageLine50v19[[#This Row],[DATE]],0)),EOMONTH(Table_Query_from_SageLine50v19[[#This Row],[DATE]],0)) -> 2025-07-31
A15: 1720 | B15: 2025-07-25 | C15: PI | D15: 6 | E15: Prepayments | F15: 20000 | G15: =IFERROR(VLOOKUP(Table_Query_from_SageLine50v19[[#This Row],[DEPT_NUMBER]],DR_ODBC_DEPT,2,FALSE),"Not Found") -> Free School Book Scheme Grant | H15: 006 - Free School Book Scheme Grant | I15: 1720 - Prepayments | J15: =IF(SageData_COMP!$H$2,IF(Table_Query_from_SageLine50v19[[#This Row],[DATE]]<=Report!$B$4,EOMONTH(Report!$B$4,-1),EOMONTH(Table_Query_from_SageLine50v19[[#This Row],[DATE]],0)),EOMONTH(Table_Query_from_SageLine50v19[[#This Row],[DATE]],0)) -> 2025-07-31
A16: 1720 | B16: 2026-07-17 | C16: BP | D16: 6 | E16: Prepayments | F16: 25255.43 | G16: =IFERROR(VLOOKUP(Table_Query_from_SageLine50v19[[#This Row],[DEPT_NUMBER]],DR_ODBC_DEPT,2,FALSE),"Not Found") -> Free School Book Scheme Grant | H16: 006 - Free School Book Scheme Grant | I16: 1720 - Prepayments | J16: =IF(SageData_COMP!$H$2,IF(Table_Query_from_SageLine50v19[[#This Row],[DATE]]<=Report!$B$4,EOMONTH(Report!$B$4,-1),EOMONTH(Table_Query_from_SageLine50v19[[#This Row],[DATE]],0)),EOMONTH(Table_Query_from_SageLine50v19[[#This Row],[DATE]],0)) -> 2026-07-31
A17: 1720 | B17: 2025-09-01 | C17: JC | D17: 0 | E17: Prepayments | F17: -16041.66 | G17: =IFERROR(VLOOKUP(Table_Query_from_SageLine50v19[[#This Row],[DEPT_NUMBER]],DR_ODBC_DEPT,2,FALSE),"Not Found") -> Default | H17: 000 - Default | I17: 1720 - Prepayments | J17: =IF(SageData_COMP!$H$2,IF(Table_Query_from_SageLine50v19[[#This Row],[DATE]]<=Report!$B$4,EOMONTH(Report!$B$4,-1),EOMONTH(Table_Query_from_SageLine50v19[[#This Row],[DATE]],0)),EOMONTH(Table_Query_from_SageLine50v19[[#This Row],[DATE]],0)) -> 2025-09-30
A18: 1720 | B18: 2025-12-01 | C18: JD | D18: 0 | E18: Prepayments | F18: 16401.66 | G18: =IFERROR(VLOOKUP(Table_Query_from_SageLine50v19[[#This Row],[DEPT_NUMBER]],DR_ODBC_DEPT,2,FALSE),"Not Found") -> Default | H18: 000 - Default | I18: 1720 - Prepayments | J18: =IF(SageData_COMP!$H$2,IF(Table_Query_from_SageLine50v19[[#This Row],[DATE]]<=Report!$B$4,EOMONTH(Report!$B$4,-1),EOMONTH(Table_Query_from_SageLine50v19[[#This Row],[DATE]],0)),EOMONTH(Table_Query_from_SageLine50v19[[#This Row],[DATE]],0)) -> 2025-12-31
A19: 1730 | B19: 2025-08-31 | C19: JD | D19: 9 | E19: Grants Due | F19: 3500 | G19: =IFERROR(VLOOKUP(Table_Query_from_SageLine50v19[[#This Row],[DEPT_NUMBER]],DR_ODBC_DEPT,2,FALSE),"Not Found") -> State Exams | H19: 009 - State Exams | I19: 1730 - Grants Due | J19: =IF(SageData_COMP!$H$2,IF(Table_Query_from_SageLine50v19[[#This Row],[DATE]]<=Report!$B$4,EOMONTH(Report!$B$4,-1),EOMONTH(Table_Query_from_SageLine50v19[[#This Row],[DATE]],0)),EOMONTH(Table_Query_from_SageLine50v19[[#This Row],[DATE]],0)) -> 2025-07-31
A20: 1730 | B20: 2025-08-31 | C20: JD | D20: 15 | E20: Grants Due | F20: 5000 | G20: =IFERROR(VLOOKUP(Table_Query_from_SageLine50v19[[#This Row],[DEPT_NUMBER]],DR_ODBC_DEPT,2,FALSE),"Not Found") -> Secure Mobile Phone Storage | H20: 015 - Secure Mobile Phone Storage | I20: 1730 - Grants Due | J20: =IF(SageData_COMP!$H$2,IF(Table_Query_from_SageLine50v19[[#This Row],[DATE]]<=Report!$B$4,EOMONTH(Report!$B$4,-1),EOMONTH(Table_Query_from_SageLine50v19[[#This Row],[DATE]],0)),EOMONTH(Table_Query_from_SageLine50v19[[#This Row],[DATE]],0)) -> 2025-07-31
A21: 1730 | B21: 2025-11-29 | C21: JD | D21: 9 | E21: Grants Due | F21: 3289 | G21: =IFERROR(VLOOKUP(Table_Query_from_SageLine50v19[[#This Row],[DEPT_NUMBER]],DR_ODBC_DEPT,2,FALSE),"Not Found") -> State Exams | H21: 009 - State Exams | I21: 1730 - Grants Due | J21: =IF(SageData_COMP!$H$2,IF(Table_Query_from_SageLine50v19[[#This Row],[DATE]]<=Report!$B$4,EOMONTH(Report!$B$4,-1),EOMONTH(Table_Query_from_SageLine50v19[[#This Row],[DATE]],0)),EOMONTH(Table_Query_from_SageLine50v19[[#This Row],[DATE]],0)) -> 2025-11-30
A22: 1800 | B22: 2025-01-10 | C22: BR | D22: 0 | E22: Current Account 1 | F22: 50000 | G22: =IFERROR(VLOOKUP(Table_Query_from_SageLine50v19[[#This Row],[DEPT_NUMBER]],DR_ODBC_DEPT,2,FALSE),"Not Found") -> Default | H22: 000 - Default | I22: 1800 - Current Account 1 | J22: =IF(SageData_COMP!$H$2,IF(Table_Query_from_SageLine50v19[[#This Row],[DATE]]<=Report!$B$4,EOMONTH(Report!$B$4,-1),EOMONTH(Table_Query_from_SageLine50v19[[#This Row],[DATE]],0)),EOMONTH(Table_Query_from_SageLine50v19[[#This Row],[DATE]],0)) -> 2025-07-31
A23: 1800 | B23: 2025-04-30 | C23: BP | D23: 0 | E23: Current Account 1 | F23: -3000 | G23: =IFERROR(VLOOKUP(Table_Query_from_SageLine50v19[[#This Row],[DEPT_NUMBER]],DR_ODBC_DEPT,2,FALSE),"Not Found") -> Default | H23: 000 - Default | I23: 1800 - Current Account 1 | J23: =IF(SageData_COMP!$H$2,IF(Table_Query_from_SageLine50v19[[#This Row],[DATE]]<=Report!$B$4,EOMONTH(Report!$B$4,-1),EOMONTH(Table_Query_from_SageLine50v19[[#This Row],[DATE]],0)),EOMONTH(Table_Query_from_SageLine50v19[[#This Row],[DATE]],0)) -> 2025-07-31
A24: 1800 | B24: 2024-09-01 | C24: BR | D24: 10 | E24: Current Account 1 | F24: 32500 | G24: =IFERROR(VLOOKUP(Table_Query_from_SageLine50v19[[#This Row],[DEPT_NUMBER]],DR_ODBC_DEPT,2,FALSE),"Not Found") -> Special Class | H24: 010 - Special Class | I24: 1800 - Current Account 1 | J24: =IF(SageData_COMP!$H$2,IF(Table_Query_from_SageLine50v19[[#This Row],[DATE]]<=Report!$B$4,EOMONTH(Report!$B$4,-1),EOMONTH(Table_Query_from_SageLine50v19[[#This Row],[DATE]],0)),EOMONTH(Table_Query_from_SageLine50v19[[#This Row],[DATE]],0)) -> 2025-07-31
A25: 1800 | B25: 2024-09-01 | C25: BR | D25: 0 | E25: Current Account 1 | F25: 50000 | G25: =IFERROR(VLOOKUP(Table_Query_from_SageLine50v19[[#This Row],[DEPT_NUMBER]],DR_ODBC_DEPT,2,FALSE),"Not Found") -> Default | H25: 000 - Default | I25: 1800 - Current Account 1 | J25: =IF(SageData_COMP!$H$2,IF(Table_Query_from_SageLine50v19[[#This Row],[DATE]]<=Report!$B$4,EOMONTH(Report!$B$4,-1),EOMONTH(Table_Query_from_SageLine50v19[[#This Row],[DATE]],0)),EOMONTH(Table_Query_from_SageLine50v19[[#This Row],[DATE]],0)) -> 2025-07-31
A26: 1800 | B26: 2025-04-01 | C26: BR | D26: 0 | E26: Current Account 1 | F26: 50000 | G26: =IFERROR(VLOOKUP(Table_Query_from_SageLine50v19[[#This Row],[DEPT_NUMBER]],DR_ODBC_DEPT,2,FALSE),"Not Found") -> Default | H26: 000 - Default | I26: 1800 - Current Account 1 | J26: =IF(SageData_COMP!$H$2,IF(Table_Query_from_SageLine50v19[[#This Row],[DATE]]<=Report!$B$4,EOMONTH(Report!$B$4,-1),EOMONTH(Table_Query_from_SageLine50v19[[#This Row],[DATE]],0)),EOMONTH(Table_Query_from_SageLine50v19[[#This Row],[DATE]],0)) -> 2025-07-31
A27: 1800 | B27: 2025-03-31 | C27: BR | D27: 6 | E27: Current Account 1 | F27: 100000 | G27: =IFERROR(VLOOKUP(Table_Query_from_SageLine50v19[[#This Row],[DEPT_NUMBER]],DR_ODBC_DEPT,2,FALSE),"Not Found") -> Free School Book Scheme Grant | H27: 006 - Free School Book Scheme Grant | I27: 1800 - Current Account 1 | J27: =IF(SageData_COMP!$H$2,IF(Table_Query_from_SageLine50v19[[#This Row],[DATE]]<=Report!$B$4,EOMONTH(Report!$B$4,-1),EOMONTH(Table_Query_from_SageLine50v19[[#This Row],[DATE]],0)),EOMONTH(Table_Query_from_SageLine50v19[[#This Row],[DATE]],0)) -> 2025-07-31
A28: 1800 | B28: 2025-05-12 | C28: BR | D28: 7 | E28: Current Account 1 | F28: 12000 | G28: =IFERROR(VLOOKUP(Table_Query_from_SageLine50v19[[#This Row],[DEPT_NUMBER]],DR_ODBC_DEPT,2,FALSE),"Not Found") -> Free Schoolbook Administraion support Grant | H28: 007 - Free Schoolbook Administraion support Grant | I28: 1800 - Current Account 1 | J28: =IF(SageData_COMP!$H$2,IF(Table_Query_from_SageLine50v19[[#This Row],[DATE]]<=Report!$B$4,EOMONTH(Report!$B$4,-1),EOMONTH(Table_Query_from_SageLine50v19[[#This Row],[DATE]],0)),EOMONTH(Table_Query_from_SageLine50v19[[#This Row],[DATE]],0)) -> 2025-07-31
A29: 1800 | B29: 2024-09-25 | C29: BR | D29: 10 | E29: Current Account 1 | F29: 32500 | G29: =IFERROR(VLOOKUP(Table_Query_from_SageLine50v19[[#This Row],[DEPT_NUMBER]],DR_ODBC_DEPT,2,FALSE),"Not Found") -> Special Class | H29: 010 - Special Class | I29: 1800 - Current Account 1 | J29: =IF(SageData_COMP!$H$2,IF(Table_Query_from_SageLine50v19[[#This Row],[DATE]]<=Report!$B$4,EOMONTH(Report!$B$4,-1),EOMONTH(Table_Query_from_SageLine50v19[[#This Row],[DATE]],0)),EOMONTH(Table_Query_from_SageLine50v19[[#This Row],[DATE]],0)) -> 2025-07-31
A30: 1800 | B30: 2025-05-12 | C30: BR | D30: 10 | E30: Current Account 1 | F30: 32500 | G30: =IFERROR(VLOOKUP(Table_Query_from_SageLine50v19[[#This Row],[DEPT_NUMBER]],DR_ODBC_DEPT,2,FALSE),"Not Found") -> Special Class | H30: 010 - Special Class | I30: 1800 - Current Account 1 | J30: =IF(SageData_COMP!$H$2,IF(Table_Query_from_SageLine50v19[[#This Row],[DATE]]<=Report!$B$4,EOMONTH(Report!$B$4,-1),EOMONTH(Table_Query_from_SageLine50v19[[#This Row],[DATE]],0)),EOMONTH(Table_Query_from_SageLine50v19[[#This Row],[DATE]],0)) -> 2025-07-31
A31: 1800 | B31: 2025-06-30 | C31: BR | D31: 0 | E31: Current Account 1 | F31: 75000 | G31: =IFERROR(VLOOKUP(Table_Query_from_SageLine50v19[[#This Row],[DEPT_NUMBER]],DR_ODBC_DEPT,2,FALSE),"Not Found") -> Default | H31: 000 - Default | I31: 1800 - Current Account 1 | J31: =IF(SageData_COMP!$H$2,IF(Table_Query_from_SageLine50v19[[#This Row],[DATE]]<=Report!$B$4,EOMONTH(Report!$B$4,-1),EOMONTH(Table_Query_from_SageLine50v19[[#This Row],[DATE]],0)),EOMONTH(Table_Query_from_SageLine50v19[[#This Row],[DATE]],0)) -> 2025-07-31
A32: 1800 | B32: 2025-01-12 | C32: BR | D32: 7 | E32: Current Account 1 | F32: 67000 | G32: =IFERROR(VLOOKUP(Table_Query_from_SageLine50v19[[#This Row],[DEPT_NUMBER]],DR_ODBC_DEPT,2,FALSE),"Not Found") -> Free Schoolbook Administraion support Grant | H32: 007 - Free Schoolbook Administraion support Grant | I32: 1800 - Current Account 1 | J32: =IF(SageData_COMP!$H$2,IF(Table_Query_from_SageLine50v19[[#This Row],[DATE]]<=Report!$B$4,EOMONTH(Report!$B$4,-1),EOMONTH(Table_Query_from_SageLine50v19[[#This Row],[DATE]],0)),EOMONTH(Table_Query_from_SageLine50v19[[#This Row],[DATE]],0)) -> 2025-07-31
A33: 1800 | B33: 2025-05-23 | C33: PP | D33: 0 | E33: Current Account 1 | F33: -1400 | G33: =IFERROR(VLOOKUP(Table_Query_from_SageLine50v19[[#This Row],[DEPT_NUMBER]],DR_ODBC_DEPT,2,FALSE),"Not Found") -> Default | H33: 000 - Default | I33: 1800 - Current Account 1 | J33: =IF(SageData_COMP!$H$2,IF(Table_Query_from_SageLine50v19[[#This Row],[DATE]]<=Report!$B$4,EOMONTH(Report!$B$4,-1),EOMONTH(Table_Query_from_SageLine50v19[[#This Row],[DATE]],0)),EOMONTH(Table_Query_from_SageLine50v19[[#This Row],[DATE]],0)) -> 2025-07-31
A34: 1800 | B34: 2025-06-30 | C34: BP | D34: 10 | E34: Current Account 1 | F34: -112373 | G34: =IFERROR(VLOOKUP(Table_Query_from_SageLine50v19[[#This Row],[DEPT_NUMBER]],DR_ODBC_DEPT,2,FALSE),"Not Found") -> Special Class | H34: 010 - Special Class | I34: 1800 - Current Account 1 | J34: =IF(SageData_COMP!$H$2,IF(Table_Query_from_SageLine50v19[[#This Row],[DATE]]<=Report!$B$4,EOMONTH(Report!$B$4,-1),EOMONTH(Table_Query_from_SageLine50v19[[#This Row],[DATE]],0)),EOMONTH(Table_Query_from_SageLine50v19[[#This Row],[DATE]],0)) -> 2025-07-31
A35: 1800 | B35: 2025-08-08 | C35: BP | D35: 0 | E35: Current Account 1 | F35: -682.32 | G35: =IFERROR(VLOOKUP(Table_Query_from_SageLine50v19[[#This Row],[DEPT_NUMBER]],DR_ODBC_DEPT,2,FALSE),"Not Found") -> Default | H35: 000 - Default | I35: 1800 - Current Account 1 | J35: =IF(SageData_COMP!$H$2,IF(Table_Query_from_SageLine50v19[[#This Row],[DATE]]<=Report!$B$4,EOMONTH(Report!$B$4,-1),EOMONTH(Table_Query_from_SageLine50v19[[#This Row],[DATE]],0)),EOMONTH(Table_Query_from_SageLine50v19[[#This Row],[DATE]],0)) -> 2025-07-31
A36: 1800 | B36: 2025-08-15 | C36: BP | D36: 0 | E36: Current Account 1 | F36: -682.32 | G36: =IFERROR(VLOOKUP(Table_Query_from_SageLine50v19[[#This Row],[DEPT_NUMBER]],DR_ODBC_DEPT,2,FALSE),"Not Found") -> Default | H36: 000 - Default | I36: 1800 - Current Account 1 | J36: =IF(SageData_COMP!$H$2,IF(Table_Query_from_SageLine50v19[[#This Row],[DATE]]<=Report!$B$4,EOMONTH(Report!$B$4,-1),EOMONTH(Table_Query_from_SageLine50v19[[#This Row],[DATE]],0)),EOMONTH(Table_Query_from_SageLine50v19[[#This Row],[DATE]],0)) -> 2025-07-31
A37: 1800 | B37: 2025-08-22 | C37: BP | D37: 0 | E37: Current Account 1 | F37: -682.32 | G37: =IFERROR(VLOOKUP(Table_Query_from_SageLine50v19[[#This Row],[DEPT_NUMBER]],DR_ODBC_DEPT,2,FALSE),"Not Found") -> Default | H37: 000 - Default | I37: 1800 - Current Account 1 | J37: =IF(SageData_COMP!$H$2,IF(Table_Query_from_SageLine50v19[[#This Row],[DATE]]<=Report!$B$4,EOMONTH(Report!$B$4,-1),EOMONTH(Table_Query_from_SageLine50v19[[#This Row],[DATE]],0)),EOMONTH(Table_Query_from_SageLine50v19[[#This Row],[DATE]],0)) -> 2025-07-31
A38: 1800 | B38: 2025-08-29 | C38: BP | D38: 0 | E38: Current Account 1 | F38: -682.32 | G38: =IFERROR(VLOOKUP(Table_Query_from_SageLine50v19[[#This Row],[DEPT_NUMBER]],DR_ODBC_DEPT,2,FALSE),"Not Found") -> Default | H38: 000 - Default | I38: 1800 - Current Account 1 | J38: =IF(SageData_COMP!$H$2,IF(Table_Query_from_SageLine50v19[[#This Row],[DATE]]<=Report!$B$4,EOMONTH(Report!$B$4,-1),EOMONTH(Table_Query_from_SageLine50v19[[#This Row],[DATE]],0)),EOMONTH(Table_Query_from_SageLine50v19[[#This Row],[DATE]],0)) -> 2025-07-31
A39: 1800 | B39: 2024-12-20 | C39: BR | D39: 13 | E39: Current Account 1 | F39: 13000 | G39: =IFERROR(VLOOKUP(Table_Query_from_SageLine50v19[[#This Row],[DEPT_NUMBER]],DR_ODBC_DEPT,2,FALSE),"Not Found") -> Science Implementation Grant | H39: 013 - Science Implementation Grant | I39: 1800 - Current Account 1 | J39: =IF(SageData_COMP!$H$2,IF(Table_Query_from_SageLine50v19[[#This Row],[DATE]]<=Report!$B$4,EOMONTH(Report!$B$4,-1),EOMONTH(Table_Query_from_SageLine50v19[[#This Row],[DATE]],0)),EOMONTH(Table_Query_from_SageLine50v19[[#This Row],[DATE]],0)) -> 2025-07-31
A40: 1800 | B40: 2025-05-15 | C40: BP | D40: 0 | E40: Current Account 1 | F40: -3000 | G40: =IFERROR(VLOOKUP(Table_Query_from_SageLine50v19[[#This Row],[DEPT_NUMBER]],DR_ODBC_DEPT,2,FALSE),"Not Found") -> Default | H40: 000 - Default | I40: 1800 - Current Account 1 | J40: =IF(SageData_COMP!$H$2,IF(Table_Query_from_SageLine50v19[[#This Row],[DATE]]<=Report!$B$4,EOMONTH(Report!$B$4,-1),EOMONTH(Table_Query_from_SageLine50v19[[#This Row],[DATE]],0)),EOMONTH(Table_Query_from_SageLine50v19[[#This Row],[DATE]],0)) -> 2025-07-31
A41: 1800 | B41: 2024-09-19 | C41: BR | D41: 0 | E41: Current Account 1 | F41: 750 | G41: =IFERROR(VLOOKUP(Table_Query_from_SageLine50v19[[#This Row],[DEPT_NUMBER]],DR_ODBC_DEPT,2,FALSE),"Not Found") -> Default | H41: 000 - Default | I41: 1800 - Current Account 1 | J41: =IF(SageData_COMP!$H$2,IF(Table_Query_from_SageLine50v19[[#This Row],[DATE]]<=Report!$B$4,EOMONTH(Report!$B$4,-1),EOMONTH(Table_Query_from_SageLine50v19[[#This Row],[DATE]],0)),EOMONTH(Table_Query_from_SageLine50v19[[#This Row],[DATE]],0)) -> 2025-07-31
A42: 1800 | B42: 2024-09-22 | C42: BR | D42: 4 | E42: Current Account 1 | F42: 250 | G42: =IFERROR(VLOOKUP(Table_Query_from_SageLine50v19[[#This Row],[DEPT_NUMBER]],DR_ODBC_DEPT,2,FALSE),"Not Found") -> Transition Year | H42: 004 - Transition Year | I42: 1800 - Current Account 1 | J42: =IF(SageData_COMP!$H$2,IF(Table_Query_from_SageLine50v19[[#This Row],[DATE]]<=Report!$B$4,EOMONTH(Report!$B$4,-1),EOMONTH(Table_Query_from_SageLine50v19[[#This Row],[DATE]],0)),EOMONTH(Table_Query_from_SageLine50v19[[#This Row],[DATE]],0)) -> 2025-07-31
A43: 1800 | B43: 2024-09-23 | C43: BR | D43: 0 | E43: Current Account 1 | F43: 100 | G43: =IFERROR(VLOOKUP(Table_Query_from_SageLine50v19[[#This Row],[DEPT_NUMBER]],DR_ODBC_DEPT,2,FALSE),"Not Found") -> Default | H43: 000 - Default | I43: 1800 - Current Account 1 | J43: =IF(SageData_COMP!$H$2,IF(Table_Query_from_SageLine50v19[[#This Row],[DATE]]<=Report!$B$4,EOMONTH(Report!$B$4,-1),EOMONTH(Table_Query_from_SageLine50v19[[#This Row],[DATE]],0)),EOMONTH(Table_Query_from_SageLine50v19[[#This Row],[DATE]],0)) -> 2025-07-31
A44: 1800 | B44: 2025-06-19 | C44: BR | D44: 4 | E44: Current Account 1 | F44: 1000 | G44: =IFERROR(VLOOKUP(Table_Query_from_SageLine50v19[[#This Row],[DEPT_NUMBER]],DR_ODBC_DEPT,2,FALSE),"Not Found") -> Transition Year | H44: 004 - Transition Year | I44: 1800 - Current Account 1 | J44: =IF(SageData_COMP!$H$2,IF(Table_Query_from_SageLine50v19[[#This Row],[DATE]]<=Report!$B$4,EOMONTH(Report!$B$4,-1),EOMONTH(Table_Query_from_SageLine50v19[[#This Row],[DATE]],0)),EOMONTH(Table_Query_from_SageLine50v19[[#This Row],[DATE]],0)) -> 2025-07-31
A45: 1800 | B45: 2025-06-20 | C45: BR | D45: 0 | E45: Current Account 1 | F45: 500 | G45: =IFERROR(VLOOKUP(Table_Query_from_SageLine50v19[[#This Row],[DEPT_NUMBER]],DR_ODBC_DEPT,2,FALSE),"Not Found") -> Default | H45: 000 - Default | I45: 1800 - Current Account 1 | J45: =IF(SageData_COMP!$H$2,IF(Table_Query_from_SageLine50v19[[#This Row],[DATE]]<=Report!$B$4,EOMONTH(Report!$B$4,-1),EOMONTH(Table_Query_from_SageLine50v19[[#This Row],[DATE]],0)),EOMONTH(Table_Query_from_SageLine50v19[[#This Row],[DATE]],0)) -> 2025-07-31
A46: 1800 | B46: 2025-08-24 | C46: BR | D46: 0 | E46: Current Account 1 | F46: 1500 | G46: =IFERROR(VLOOKUP(Table_Query_from_SageLine50v19[[#This Row],[DEPT_NUMBER]],DR_ODBC_DEPT,2,FALSE),"Not Found") -> Default | H46: 000 - Default | I46: 1800 - Current Account 1 | J46: =IF(SageData_COMP!$H$2,IF(Table_Query_from_SageLine50v19[[#This Row],[DATE]]<=Report!$B$4,EOMONTH(Report!$B$4,-1),EOMONTH(Table_Query_from_SageLine50v19[[#This Row],[DATE]],0)),EOMONTH(Table_Query_from_SageLine50v19[[#This Row],[DATE]],0)) -> 2025-07-31
A47: 1800 | B47: 2025-08-25 | C47: BR | D47: 0 | E47: Current Account 1 | F47: 2000 | G47: =IFERROR(VLOOKUP(Table_Query_from_SageLine50v19[[#This Row],[DEPT_NUMBER]],DR_ODBC_DEPT,2,FALSE),"Not Found") -> Default | H47: 000 - Default | I47: 1800 - Current Account 1 | J47: =IF(SageData_COMP!$H$2,IF(Table_Query_from_SageLine50v19[[#This Row],[DATE]]<=Report!$B$4,EOMONTH(Report!$B$4,-1),EOMONTH(Table_Query_from_SageLine50v19[[#This Row],[DATE]],0)),EOMONTH(Table_Query_from_SageLine50v19[[#This Row],[DATE]],0)) -> 2025-07-31
A48: 1800 | B48: 2025-06-20 | C48: BR | D48: 0 | E48: Current Account 1 | F48: 100 | G48: =IFERROR(VLOOKUP(Table_Query_from_SageLine50v19[[#This Row],[DEPT_NUMBER]],DR_ODBC_DEPT,2,FALSE),"Not Found") -> Default | H48: 000 - Default | I48: 1800 - Current Account 1 | J48: =IF(SageData_COMP!$H$2,IF(Table_Query_from_SageLine50v19[[#This Row],[DATE]]<=Report!$B$4,EOMONTH(Report!$B$4,-1),EOMONTH(Table_Query_from_SageLine50v19[[#This Row],[DATE]],0)),EOMONTH(Table_Query_from_SageLine50v19[[#This Row],[DATE]],0)) -> 2025-07-31
A49: 1800 | B49: 2025-08-24 | C49: BR | D49: 0 | E49: Current Account 1 | F49: 200 | G49: =IFERROR(VLOOKUP(Table_Query_from_SageLine50v19[[#This Row],[DEPT_NUMBER]],DR_ODBC_DEPT,2,FALSE),"Not Found") -> Default | H49: 000 - Default | I49: 1800 - Current Account 1 | J49: =IF(SageData_COMP!$H$2,IF(Table_Query_from_SageLine50v19[[#This Row],[DATE]]<=Report!$B$4,EOMONTH(Report!$B$4,-1),EOMONTH(Table_Query_from_SageLine50v19[[#This Row],[DATE]],0)),EOMONTH(Table_Query_from_SageLine50v19[[#This Row],[DATE]],0)) -> 2025-07-31
A50: 1800 | B50: 2025-08-25 | C50: BR | D50: 0 | E50: Current Account 1 | F50: 250 | G50: =IFERROR(VLOOKUP(Table_Query_from_SageLine50v19[[#This Row],[DEPT_NUMBER]],DR_ODBC_DEPT,2,FALSE),"Not Found") -> Default | H50: 000 - Default | I50: 1800 - Current Account 1 | J50: =IF(SageData_COMP!$H$2,IF(Table_Query_from_SageLine50v19[[#This Row],[DATE]]<=Report!$B$4,EOMONTH(Report!$B$4,-1),EOMONTH(Table_Query_from_SageLine50v19[[#This Row],[DATE]],0)),EOMONTH(Table_Query_from_SageLine50v19[[#This Row],[DATE]],0)) -> 2025-07-31
A51: 1800 | B51: 2025-06-20 | C51: BR | D51: 0 | E51: Current Account 1 | F51: 250 | G51: =IFERROR(VLOOKUP(Table_Query_from_SageLine50v19[[#This Row],[DEPT_NUMBER]],DR_ODBC_DEPT,2,FALSE),"Not Found") -> Default | H51: 000 - Default | I51: 1800 - Current Account 1 | J51: =IF(SageData_COMP!$H$2,IF(Table_Query_from_SageLine50v19[[#This Row],[DATE]]<=Report!$B$4,EOMONTH(Report!$B$4,-1),EOMONTH(Table_Query_from_SageLine50v19[[#This Row],[DATE]],0)),EOMONTH(Table_Query_from_SageLine50v19[[#This Row],[DATE]],0)) -> 2025-07-31
A52: 1800 | B52: 2025-08-24 | C52: BR | D52: 0 | E52: Current Account 1 | F52: 275 | G52: =IFERROR(VLOOKUP(Table_Query_from_SageLine50v19[[#This Row],[DEPT_NUMBER]],DR_ODBC_DEPT,2,FALSE),"Not Found") -> Default | H52: 000 - Default | I52: 1800 - Current Account 1 | J52: =IF(SageData_COMP!$H$2,IF(Table_Query_from_SageLine50v19[[#This Row],[DATE]]<=Report!$B$4,EOMONTH(Report!$B$4,-1),EOMONTH(Table_Query_from_SageLine50v19[[#This Row],[DATE]],0)),EOMONTH(Table_Query_from_SageLine50v19[[#This Row],[DATE]],0)) -> 2025-07-31
A53: 1800 | B53: 2025-08-25 | C53: BR | D53: 0 | E53: Current Account 1 | F53: 350 | G53: =IFERROR(VLOOKUP(Table_Query_from_SageLine50v19[[#This Row],[DEPT_NUMBER]],DR_ODBC_DEPT,2,FALSE),"Not Found") -> Default | H53: 000 - Default | I53: 1800 - Current Account 1 | J53: =IF(SageData_COMP!$H$2,IF(Table_Query_from_SageLine50v19[[#This Row],[DATE]]<=Report!$B$4,EOMONTH(Report!$B$4,-1),EOMONTH(Table_Query_from_SageLine50v19[[#This Row],[DATE]],0)),EOMONTH(Table_Query_from_SageLine50v19[[#This Row],[DATE]],0)) -> 2025-07-31
A54: 1800 | B54: 2024-09-01 | C54: JD | D54: 0 | E54: Current Account 1 | F54: 9500 | G54: =IFERROR(VLOOKUP(Table_Query_from_SageLine50v19[[#This Row],[DEPT_NUMBER]],DR_ODBC_DEPT,2,FALSE),"Not Found") -> Default | H54: 000 - Default | I54: 1800 - Current Account 1 | J54: =IF(SageData_COMP!$H$2,IF(Table_Query_from_SageLine50v19[[#This Row],[DATE]]<=Report!$B$4,EOMONTH(Report!$B$4,-1),EOMONTH(Table_Query_from_SageLine50v19[[#This Row],[DATE]],0)),EOMONTH(Table_Query_from_SageLine50v19[[#This Row],[DATE]],0)) -> 2025-07-31
A55: 1800 | B55: 2025-06-04 | C55: BR | D55: 5 | E55: Current Account 1 | F55: 11129 | G55: =IFERROR(VLOOKUP(Table_Query_from_SageLine50v19[[#This Row],[DEPT_NUMBER]],DR_ODBC_DEPT,2,FALSE),"Not Found") -> ICT Grant | H55: 005 - ICT Grant | I55: 1800 - Current Account 1 | J55: =IF(SageData_COMP!$H$2,IF(Table_Query_from_SageLine50v19[[#This Row],[DATE]]<=Report!$B$4,EOMONTH(Report!$B$4,-1),EOMONTH(Table_Query_from_SageLine50v19[[#This Row],[DATE]],0)),EOMONTH(Table_Query_from_SageLine50v19[[#This Row],[DATE]],0)) -> 2025-07-31
A56: 1800 | B56: 2025-06-30 | C56: BP | D56: 5 | E56: Current Account 1 | F56: -5000 | G56: =IFERROR(VLOOKUP(Table_Query_from_SageLine50v19[[#This Row],[DEPT_NUMBER]],DR_ODBC_DEPT,2,FALSE),"Not Found") -> ICT Grant | H56: 005 - ICT Grant | I56: 1800 - Current Account 1 | J56: =IF(SageData_COMP!$H$2,IF(Table_Query_from_SageLine50v19[[#This Row],[DATE]]<=Report!$B$4,EOMONTH(Report!$B$4,-1),EOMONTH(Table_Query_from_SageLine50v19[[#This Row],[DATE]],0)),EOMONTH(Table_Query_from_SageLine50v19[[#This Row],[DATE]],0)) -> 2025-07-31
A57: 1800 | B57: 2025-07-20 | C57: BP | D57: 5 | E57: Current Account 1 | F57: -5572.55 | G57: =IFERROR(VLOOKUP(Table_Query_from_SageLine50v19[[#This Row],[DEPT_NUMBER]],DR_ODBC_DEPT,2,FALSE),"Not Found") -> ICT Grant | H57: 005 - ICT Grant | I57: 1800 - Current Account 1 | J57: =IF(SageData_COMP!$H$2,IF(Table_Query_from_SageLine50v19[[#This Row],[DATE]]<=Report!$B$4,EOMONTH(Report!$B$4,-1),EOMONTH(Table_Query_from_SageLine50v19[[#This Row],[DATE]],0)),EOMONTH(Table_Query_from_SageLine50v19[[#This Row],[DATE]],0)) -> 2025-07-31
A58: 1800 | B58: 2025-04-01 | C58: BR | D58: 0 | E58: Current Account 1 | F58: 19075 | G58: =IFERROR(VLOOKUP(Table_Query_from_SageLine50v19[[#This Row],[DEPT_NUMBER]],DR_ODBC_DEPT,2,FALSE),"Not Found") -> Default | H58: 000 - Default | I58: 1800 - Current Account 1 | J58: =IF(SageData_COMP!$H$2,IF(Table_Query_from_SageLine50v19[[#This Row],[DATE]]<=Report!$B$4,EOMONTH(Report!$B$4,-1),EOMONTH(Table_Query_from_SageLine50v19[[#This Row],[DATE]],0)),EOMONTH(Table_Query_from_SageLine50v19[[#This Row],[DATE]],0)) -> 2025-07-31
A59: 1800 | B59: 2025-06-01 | C59: BR | D59: 0 | E59: Current Account 1 | F59: 7632 | G59: =IFERROR(VLOOKUP(Table_Query_from_SageLine50v19[[#This Row],[DEPT_NUMBER]],DR_ODBC_DEPT,2,FALSE),"Not Found") -> Default | H59: 000 - Default | I59: 1800 - Current Account 1 | J59: =IF(SageData_COMP!$H$2,IF(Table_Query_from_SageLine50v19[[#This Row],[DATE]]<=Report!$B$4,EOMONTH(Report!$B$4,-1),EOMONTH(Table_Query_from_SageLine50v19[[#This Row],[DATE]],0)),EOMONTH(Table_Query_from_SageLine50v19[[#This Row],[DATE]],0)) -> 2025-07-31
A60: 1800 | B60: 2025-01-01 | C60: BR | D60: 0 | E60: Current Account 1 | F60: 122.26 | G60: =IFERROR(VLOOKUP(Table_Query_from_SageLine50v19[[#This Row],[DEPT_NUMBER]],DR_ODBC_DEPT,2,FALSE),"Not Found") -> Default | H60: 000 - Default | I60: 1800 - Current Account 1 | J60: =IF(SageData_COMP!$H$2,IF(Table_Query_from_SageLine50v19[[#This Row],[DATE]]<=Report!$B$4,EOMONTH(Report!$B$4,-1),EOMONTH(Table_Query_from_SageLine50v19[[#This Row],[DATE]],0)),EOMONTH(Table_Query_from_SageLine50v19[[#This Row],[DATE]],0)) -> 2025-07-31
A61: 1800 | B61: 2025-06-02 | C61: BR | D61: 0 | E61: Current Account 1 | F61: 1800 | G61: =IFERROR(VLOOKUP(Table_Query_from_SageLine50v19[[#This Row],[DEPT_NUMBER]],DR_ODBC_DEPT,2,FALSE),"Not Found") -> Default | H61: 000 - Default | I61: 1800 - Current Account 1 | J61: =IF(SageData_COMP!$H$2,IF(Table_Query_from_SageLine50v19[[#This Row],[DATE]]<=Report!$B$4,EOMONTH(Report!$B$4,-1),EOMONTH(Table_Query_from_SageLine50v19[[#This Row],[DATE]],0)),EOMONTH(Table_Query_from_SageLine50v19[[#This Row],[DATE]],0)) -> 2025-07-31
A62: 1800 | B62: 2025-07-02 | C62: BR | D62: 4 | E62: Current Account 1 | F62: 4560 | G62: =IFERROR(VLOOKUP(Table_Query_from_SageLine50v19[[#This Row],[DEPT_NUMBER]],DR_ODBC_DEPT,2,FALSE),"Not Found") -> Transition Year | H62: 004 - Transition Year | I62: 1800 - Current Account 1 | J62: =IF(SageData_COMP!$H$2,IF(Table_Query_from_SageLine50v19[[#This Row],[DATE]]<=Report!$B$4,EOMONTH(Report!$B$4,-1),EOMONTH(Table_Query_from_SageLine50v19[[#This Row],[DATE]],0)),EOMONTH(Table_Query_from_SageLine50v19[[#This Row],[DATE]],0)) -> 2025-07-31
A63: 1800 | B63: 2025-06-01 | C63: BR | D63: 0 | E63: Current Account 1 | F63: 3624 | G63: =IFERROR(VLOOKUP(Table_Query_from_SageLine50v19[[#This Row],[DEPT_NUMBER]],DR_ODBC_DEPT,2,FALSE),"Not Found") -> Default | H63: 000 - Default | I63: 1800 - Current Account 1 | J63: =IF(SageData_COMP!$H$2,IF(Table_Query_from_SageLine50v19[[#This Row],[DATE]]<=Report!$B$4,EOMONTH(Report!$B$4,-1),EOMONTH(Table_Query_from_SageLine50v19[[#This Row],[DATE]],0)),EOMONTH(Table_Query_from_SageLine50v19[[#This Row],[DATE]],0)) -> 2025-07-31
A64: 1800 | B64: 2024-12-12 | C64: BR | D64: 0 | E64: Current Account 1 | F64: 1067.5 | G64: =IFERROR(VLOOKUP(Table_Query_from_SageLine50v19[[#This Row],[DEPT_NUMBER]],DR_ODBC_DEPT,2,FALSE),"Not Found") -> Default | H64: 000 - Default | I64: 1800 - Current Account 1 | J64: =IF(SageData_COMP!$H$2,IF(Table_Query_from_SageLine50v19[[#This Row],[DATE]]<=Report!$B$4,EOMONTH(Report!$B$4,-1),EOMONTH(Table_Query_from_SageLine50v19[[#This Row],[DATE]],0)),EOMONTH(Table_Query_from_SageLine50v19[[#This Row],[DATE]],0)) -> 2025-07-31
A65: 1800 | B65: 2025-07-02 | C65: BR | D65: 0 | E65: Current Account 1 | F65: 3538 | G65: =IFERROR(VLOOKUP(Table_Query_from_SageLine50v19[[#This Row],[DEPT_NUMBER]],DR_ODBC_DEPT,2,FALSE),"Not Found") -> Default | H65: 000 - Default | I65: 1800 - Current Account 1 | J65: =IF(SageData_COMP!$H$2,IF(Table_Query_from_SageLine50v19[[#This Row],[DATE]]<=Report!$B$4,EOMONTH(Report!$B$4,-1),EOMONTH(Table_Query_from_SageLine50v19[[#This Row],[DATE]],0)),EOMONTH(Table_Query_from_SageLine50v19[[#This Row],[DATE]],0)) -> 2025-07-31
A66: 1800 | B66: 2025-06-01 | C66: BR | D66: 0 | E66: Current Account 1 | F66: 1079 | G66: =IFERROR(VLOOKUP(Table_Query_from_SageLine50v19[[#This Row],[DEPT_NUMBER]],DR_ODBC_DEPT,2,FALSE),"Not Found") -> Default | H66: =CONCATENATE(TEXT(D66,"000")," - ",G66) -> 000 - Default | I66: =CONCATENATE(A66," - ",E66) -> 1800 - Current Account 1 | J66: =IF(SageData_COMP!$H$2,IF(Table_Query_from_SageLine50v19[[#This Row],[DATE]]<=Report!$B$4,EOMONTH(Report!$B$4,-1),EOMONTH(Table_Query_from_SageLine50v19[[#This Row],[DATE]],0)),EOMONTH(Table_Query_from_SageLine50v19[[#This Row],[DATE]],0)) -> 2025-07-31
A67: 1800 | B67: 2025-05-01 | C67: BR | D67: 0 | E67: Current Account 1 | F67: 1750 | G67: =IFERROR(VLOOKUP(Table_Query_from_SageLine50v19[[#This Row],[DEPT_NUMBER]],DR_ODBC_DEPT,2,FALSE),"Not Found") -> Default | H67: 000 - Default | I67: 1800 - Current Account 1 | J67: =IF(SageData_COMP!$H$2,IF(Table_Query_from_SageLine50v19[[#This Row],[DATE]]<=Report!$B$4,EOMONTH(Report!$B$4,-1),EOMONTH(Table_Query_from_SageLine50v19[[#This Row],[DATE]],0)),EOMONTH(Table_Query_from_SageLine50v19[[#This Row],[DATE]],0)) -> 2025-07-31
A68: 1800 | B68: 2024-09-01 | C68: BR | D68: 0 | E68: Current Account 1 | F68: 13900 | G68: =IFERROR(VLOOKUP(Table_Query_from_SageLine50v19[[#This Row],[DEPT_NUMBER]],DR_ODBC_DEPT,2,FALSE),"Not Found") -> Default | H68: 000 - Default | I68: 1800 - Current Account 1 | J68: =IF(SageData_COMP!$H$2,IF(Table_Query_from_SageLine50v19[[#This Row],[DATE]]<=Report!$B$4,EOMONTH(Report!$B$4,-1),EOMONTH(Table_Query_from_SageLine50v19[[#This Row],[DATE]],0)),EOMONTH(Table_Query_from_SageLine50v19[[#This Row],[DATE]],0)) -> 2025-07-31
A69: 1800 | B69: 2025-07-09 | C69: JC | D69: 0 | E69: Current Account 1 | F69: -200 | G69: =IFERROR(VLOOKUP(Table_Query_from_SageLine50v19[[#This Row],[DEPT_NUMBER]],DR_ODBC_DEPT,2,FALSE),"Not Found") -> Default | H69: 000 - Default | I69: 1800 - Current Account 1 | J69: =IF(SageData_COMP!$H$2,IF(Table_Query_from_SageLine50v19[[#This Row],[DATE]]<=Report!$B$4,EOMONTH(Report!$B$4,-1),EOMONTH(Table_Query_from_SageLine50v19[[#This Row],[DATE]],0)),EOMONTH(Table_Query_from_SageLine50v19[[#This Row],[DATE]],0)) -> 2025-07-31
A70: 1800 | B70: 2025-05-29 | C70: BP | D70: 0 | E70: Current Account 1 | F70: -60554.21 | G70: =IFERROR(VLOOKUP(Table_Query_from_SageLine50v19[[#This Row],[DEPT_NUMBER]],DR_ODBC_DEPT,2,FALSE),"Not Found") -> Default | H70: 000 - Default | I70: 1800 - Current Account 1 | J70: =IF(SageData_COMP!$H$2,IF(Table_Query_from_SageLine50v19[[#This Row],[DATE]]<=Report!$B$4,EOMONTH(Report!$B$4,-1),EOMONTH(Table_Query_from_SageLine50v19[[#This Row],[DATE]],0)),EOMONTH(Table_Query_from_SageLine50v19[[#This Row],[DATE]],0)) -> 2025-07-31
A71: 1800 | B71: 2025-06-01 | C71: PP | D71: 0 | E71: Current Account 1 | F71: -1150 | G71: =IFERROR(VLOOKUP(Table_Query_from_SageLine50v19[[#This Row],[DEPT_NUMBER]],DR_ODBC_DEPT,2,FALSE),"Not Found") -> Default | H71: 000 - Default | I71: 1800 - Current Account 1 | J71: =IF(SageData_COMP!$H$2,IF(Table_Query_from_SageLine50v19[[#This Row],[DATE]]<=Report!$B$4,EOMONTH(Report!$B$4,-1),EOMONTH(Table_Query_from_SageLine50v19[[#This Row],[DATE]],0)),EOMONTH(Table_Query_from_SageLine50v19[[#This Row],[DATE]],0)) -> 2025-07-31
A72: 1800 | B72: 2025-06-30 | C72: PP | D72: 0 | E72: Current Account 1 | F72: -1000 | G72: =IFERROR(VLOOKUP(Table_Query_from_SageLine50v19[[#This Row],[DEPT_NUMBER]],DR_ODBC_DEPT,2,FALSE),"Not Found") -> Default | H72: 000 - Default | I72: 1800 - Current Account 1 | J72: =IF(SageData_COMP!$H$2,IF(Table_Query_from_SageLine50v19[[#This Row],[DATE]]<=Report!$B$4,EOMONTH(Report!$B$4,-1),EOMONTH(Table_Query_from_SageLine50v19[[#This Row],[DATE]],0)),EOMONTH(Table_Query_from_SageLine50v19[[#This Row],[DATE]],0)) -> 2025-07-31
A73: 1800 | B73: 2025-08-01 | C73: PP | D73: 0 | E73: Current Account 1 | F73: -5000 | G73: =IFERROR(VLOOKUP(Table_Query_from_SageLine50v19[[#This Row],[DEPT_NUMBER]],DR_ODBC_DEPT,2,FALSE),"Not Found") -> Default | H73: 000 - Default | I73: 1800 - Current Account 1 | J73: =IF(SageData_COMP!$H$2,IF(Table_Query_from_SageLine50v19[[#This Row],[DATE]]<=Report!$B$4,EOMONTH(Report!$B$4,-1),EOMONTH(Table_Query_from_SageLine50v19[[#This Row],[DATE]],0)),EOMONTH(Table_Query_from_SageLine50v19[[#This Row],[DATE]],0)) -> 2025-07-31
A74: 1800 | B74: 2025-07-05 | C74: PP | D74: 0 | E74: Current Account 1 | F74: -500 | G74: =IFERROR(VLOOKUP(Table_Query_from_SageLine50v19[[#This Row],[DEPT_NUMBER]],DR_ODBC_DEPT,2,FALSE),"Not Found") -> Default | H74: 000 - Default | I74: 1800 - Current Account 1 | J74: =IF(SageData_COMP!$H$2,IF(Table_Query_from_SageLine50v19[[#This Row],[DATE]]<=Report!$B$4,EOMONTH(Report!$B$4,-1),EOMONTH(Table_Query_from_SageLine50v19[[#This Row],[DATE]],0)),EOMONTH(Table_Query_from_SageLine50v19[[#This Row],[DATE]],0)) -> 2025-07-31
A75: 1800 | B75: 2025-08-30 | C75: PP | D75: 0 | E75: Current Account 1 | F75: -3500 | G75: =IFERROR(VLOOKUP(Table_Query_from_SageLine50v19[[#This Row],[DEPT_NUMBER]],DR_ODBC_DEPT,2,FALSE),"Not Found") -> Default | H75: 000 - Default | I75: 1800 - Current Account 1 | J75: =IF(SageData_COMP!$H$2,IF(Table_Query_from_SageLine50v19[[#This Row],[DATE]]<=Report!$B$4,EOMONTH(Report!$B$4,-1),EOMONTH(Table_Query_from_SageLine50v19[[#This Row],[DATE]],0)),EOMONTH(Table_Query_from_SageLine50v19[[#This Row],[DATE]],0)) -> 2025-07-31
A76: 1800 | B76: 2025-08-30 | C76: PP | D76: 0 | E76: Current Account 1 | F76: -3000 | G76: =IFERROR(VLOOKUP(Table_Query_from_SageLine50v19[[#This Row],[DEPT_NUMBER]],DR_ODBC_DEPT,2,FALSE),"Not Found") -> Default | H76: 000 - Default | I76: 1800 - Current Account 1 | J76: =IF(SageData_COMP!$H$2,IF(Table_Query_from_SageLine50v19[[#This Row],[DATE]]<=Report!$B$4,EOMONTH(Report!$B$4,-1),EOMONTH(Table_Query_from_SageLine50v19[[#This Row],[DATE]],0)),EOMONTH(Table_Query_from_SageLine50v19[[#This Row],[DATE]],0)) -> 2025-07-31
A77: 1800 | B77: 2025-08-24 | C77: PP | D77: 0 | E77: Current Account 1 | F77: -20000 | G77: =IFERROR(VLOOKUP(Table_Query_from_SageLine50v19[[#This Row],[DEPT_NUMBER]],DR_ODBC_DEPT,2,FALSE),"Not Found") -> Default | H77: 000 - Default | I77: 1800 - Current Account 1 | J77: =IF(SageData_COMP!$H$2,IF(Table_Query_from_SageLine50v19[[#This Row],[DATE]]<=Report!$B$4,EOMONTH(Report!$B$4,-1),EOMONTH(Table_Query_from_SageLine50v19[[#This Row],[DATE]],0)),EOMONTH(Table_Query_from_SageLine50v19[[#This Row],[DATE]],0)) -> 2025-07-31
A78: 1800 | B78: 2025-06-01 | C78: PP | D78: 0 | E78: Current Account 1 | F78: -1300 | G78: =IFERROR(VLOOKUP(Table_Query_from_SageLine50v19[[#This Row],[DEPT_NUMBER]],DR_ODBC_DEPT,2,FALSE),"Not Found") -> Default | H78: 000 - Default | I78: 1800 - Current Account 1 | J78: =IF(SageData_COMP!$H$2,IF(Table_Query_from_SageLine50v19[[#This Row],[DATE]]<=Report!$B$4,EOMONTH(Report!$B$4,-1),EOMONTH(Table_Query_from_SageLine50v19[[#This Row],[DATE]],0)),EOMONTH(Table_Query_from_SageLine50v19[[#This Row],[DATE]],0)) -> 2025-07-31
A79: 1800 | B79: 2025-08-20 | C79: BP | D79: 0 | E79: Current Account 1 | F79: -1000 | G79: =IFERROR(VLOOKUP(Table_Query_from_SageLine50v19[[#This Row],[DEPT_NUMBER]],DR_ODBC_DEPT,2,FALSE),"Not Found") -> Default | H79: 000 - Default | I79: 1800 - Current Account 1 | J79: =IF(SageData_COMP!$H$2,IF(Table_Query_from_SageLine50v19[[#This Row],[DATE]]<=Report!$B$4,EOMONTH(Report!$B$4,-1),EOMONTH(Table_Query_from_SageLine50v19[[#This Row],[DATE]],0)),EOMONTH(Table_Query_from_SageLine50v19[[#This Row],[DATE]],0)) -> 2025-07-31
A80: 1800 | B80: 2025-08-20 | C80: BP | D80: 0 | E80: Current Account 1 | F80: -500 | G80: =IFERROR(VLOOKUP(Table_Query_from_SageLine50v19[[#This Row],[DEPT_NUMBER]],DR_ODBC_DEPT,2,FALSE),"Not Found") -> Default | H80: 000 - Default | I80: 1800 - Current Account 1 | J80: =IF(SageData_COMP!$H$2,IF(Table_Query_from_SageLine50v19[[#This Row],[DATE]]<=Report!$B$4,EOMONTH(Report!$B$4,-1),EOMONTH(Table_Query_from_SageLine50v19[[#This Row],[DATE]],0)),EOMONTH(Table_Query_from_SageLine50v19[[#This Row],[DATE]],0)) -> 2025-07-31
A81: 1800 | B81: 2025-08-20 | C81: BR | D81: 5 | E81: Current Account 1 | F81: 10000 | G81: =IFERROR(VLOOKUP(Table_Query_from_SageLine50v19[[#This Row],[DEPT_NUMBER]],DR_ODBC_DEPT,2,FALSE),"Not Found") -> ICT Grant | H81: 005 - ICT Grant | I81: 1800 - Current Account 1 | J81: =IF(SageData_COMP!$H$2,IF(Table_Query_from_SageLine50v19[[#This Row],[DATE]]<=Report!$B$4,EOMONTH(Report!$B$4,-1),EOMONTH(Table_Query_from_SageLine50v19[[#This Row],[DATE]],0)),EOMONTH(Table_Query_from_SageLine50v19[[#This Row],[DATE]],0)) -> 2025-07-31
A82: 1800 | B82: 2025-08-20 | C82: BR | D82: 0 | E82: Current Account 1 | F82: 10000 | G82: =IFERROR(VLOOKUP(Table_Query_from_SageLine50v19[[#This Row],[DEPT_NUMBER]],DR_ODBC_DEPT,2,FALSE),"Not Found") -> Default | H82: 000 - Default | I82: 1800 - Current Account 1 | J82: =IF(SageData_COMP!$H$2,IF(Table_Query_from_SageLine50v19[[#This Row],[DATE]]<=Report!$B$4,EOMONTH(Report!$B$4,-1),EOMONTH(Table_Query_from_SageLine50v19[[#This Row],[DATE]],0)),EOMONTH(Table_Query_from_SageLine50v19[[#This Row],[DATE]],0)) -> 2025-07-31
A83: 1800 | B83: 2025-09-04 | C83: BP | D83: 0 | E83: Current Account 1 | F83: -1000 | G83: =IFERROR(VLOOKUP(Table_Query_from_SageLine50v19[[#This Row],[DEPT_NUMBER]],DR_ODBC_DEPT,2,FALSE),"Not Found") -> Default | H83: 000 - Default | I83: 1800 - Current Account 1 | J83: =IF(SageData_COMP!$H$2,IF(Table_Query_from_SageLine50v19[[#This Row],[DATE]]<=Report!$B$4,EOMONTH(Report!$B$4,-1),EOMONTH(Table_Query_from_SageLine50v19[[#This Row],[DATE]],0)),EOMONTH(Table_Query_from_SageLine50v19[[#This Row],[DATE]],0)) -> 2025-09-30
A84: 1800 | B84: 2026-01-20 | C84: BP | D84: 0 | E84: Current Account 1 | F84: -3234 | G84: =IFERROR(VLOOKUP(Table_Query_from_SageLine50v19[[#This Row],[DEPT_NUMBER]],DR_ODBC_DEPT,2,FALSE),"Not Found") -> Default | H84: 000 - Default | I84: 1800 - Current Account 1 | J84: =IF(SageData_COMP!$H$2,IF(Table_Query_from_SageLine50v19[[#This Row],[DATE]]<=Report!$B$4,EOMONTH(Report!$B$4,-1),EOMONTH(Table_Query_from_SageLine50v19[[#This Row],[DATE]],0)),EOMONTH(Table_Query_from_SageLine50v19[[#This Row],[DATE]],0)) -> 2026-01-31
A85: 1800 | B85: 2026-03-19 | C85: BP | D85: 0 | E85: Current Account 1 | F85: -3855 | G85: =IFERROR(VLOOKUP(Table_Query_from_SageLine50v19[[#This Row],[DEPT_NUMBER]],DR_ODBC_DEPT,2,FALSE),"Not Found") -> Default | H85: 000 - Default | I85: 1800 - Current Account 1 | J85: =IF(SageData_COMP!$H$2,IF(Table_Query_from_SageLine50v19[[#This Row],[DATE]]<=Report!$B$4,EOMONTH(Report!$B$4,-1),EOMONTH(Table_Query_from_SageLine50v19[[#This Row],[DATE]],0)),EOMONTH(Table_Query_from_SageLine50v19[[#This Row],[DATE]],0)) -> 2026-03-31
A86: 1800 | B86: 2026-05-21 | C86: BP | D86: 0 | E86: Current Account 1 | F86: -3455 | G86: =IFERROR(VLOOKUP(Table_Query_from_SageLine50v19[[#This Row],[DEPT_NUMBER]],DR_ODBC_DEPT,2,FALSE),"Not Found") -> Default | H86: 000 - Default | I86: 1800 - Current Account 1 | J86: =IF(SageData_COMP!$H$2,IF(Table_Query_from_SageLine50v19[[#This Row],[DATE]]<=Report!$B$4,EOMONTH(Report!$B$4,-1),EOMONTH(Table_Query_from_SageLine50v19[[#This Row],[DATE]],0)),EOMONTH(Table_Query_from_SageLine50v19[[#This Row],[DATE]],0)) -> 2026-05-31
A87: 1800 | B87: 2026-07-21 | C87: BP | D87: 0 | E87: Current Account 1 | F87: -3255 | G87: =IFERROR(VLOOKUP(Table_Query_from_SageLine50v19[[#This Row],[DEPT_NUMBER]],DR_ODBC_DEPT,2,FALSE),"Not Found") -> Default | H87: 000 - Default | I87: 1800 - Current Account 1 | J87: =IF(SageData_COMP!$H$2,IF(Table_Query_from_SageLine50v19[[#This Row],[DATE]]<=Report!$B$4,EOMONTH(Report!$B$4,-1),EOMONTH(Table_Query_from_SageLine50v19[[#This Row],[DATE]],0)),EOMONTH(Table_Query_from_SageLine50v19[[#This Row],[DATE]],0)) -> 2026-07-31
A88: 1800 | B88: 2025-09-10 | C88: BP | D88: 0 | E88: Current Account 1 | F88: -2500 | G88: =IFERROR(VLOOKUP(Table_Query_from_SageLine50v19[[#This Row],[DEPT_NUMBER]],DR_ODBC_DEPT,2,FALSE),"Not Found") -> Default | H88: 000 - Default | I88: 1800 - Current Account 1 | J88: =IF(SageData_COMP!$H$2,IF(Table_Query_from_SageLine50v19[[#This Row],[DATE]]<=Report!$B$4,EOMONTH(Report!$B$4,-1),EOMONTH(Table_Query_from_SageLine50v19[[#This Row],[DATE]],0)),EOMONTH(Table_Query_from_SageLine50v19[[#This Row],[DATE]],0)) -> 2025-09-30
A89: 1800 | B89: 2026-01-17 | C89: BP | D89: 0 | E89: Current Account 1 | F89: -2500 | G89: =IFERROR(VLOOKUP(Table_Query_from_SageLine50v19[[#This Row],[DEPT_NUMBER]],DR_ODBC_DEPT,2,FALSE),"Not Found") -> Default | H89: 000 - Default | I89: 1800 - Current Account 1 | J89: =IF(SageData_COMP!$H$2,IF(Table_Query_from_SageLine50v19[[#This Row],[DATE]]<=Report!$B$4,EOMONTH(Report!$B$4,-1),EOMONTH(Table_Query_from_SageLine50v19[[#This Row],[DATE]],0)),EOMONTH(Table_Query_from_SageLine50v19[[#This Row],[DATE]],0)) -> 2026-01-31
A90: 1800 | B90: 2026-04-07 | C90: BP | D90: 0 | E90: Current Account 1 | F90: -1000 | G90: =IFERROR(VLOOKUP(Table_Query_from_SageLine50v19[[#This Row],[DEPT_NUMBER]],DR_ODBC_DEPT,2,FALSE),"Not Found") -> Default | H90: 000 - Default | I90: 1800 - Current Account 1 | J90: =IF(SageData_COMP!$H$2,IF(Table_Query_from_SageLine50v19[[#This Row],[DATE]]<=Report!$B$4,EOMONTH(Report!$B$4,-1),EOMONTH(Table_Query_from_SageLine50v19[[#This Row],[DATE]],0)),EOMONTH(Table_Query_from_SageLine50v19[[#This Row],[DATE]],0)) -> 2026-04-30
A91: 1800 | B91: 2026-04-01 | C91: BP | D91: 0 | E91: Current Account 1 | F91: -27500 | G91: =IFERROR(VLOOKUP(Table_Query_from_SageLine50v19[[#This Row],[DEPT_NUMBER]],DR_ODBC_DEPT,2,FALSE),"Not Found") -> Default | H91: 000 - Default | I91: 1800 - Current Account 1 | J91: =IF(SageData_COMP!$H$2,IF(Table_Query_from_SageLine50v19[[#This Row],[DATE]]<=Report!$B$4,EOMONTH(Report!$B$4,-1),EOMONTH(Table_Query_from_SageLine50v19[[#This Row],[DATE]],0)),EOMONTH(Table_Query_from_SageLine50v19[[#This Row],[DATE]],0)) -> 2026-04-30
A92: 1800 | B92: 2025-09-20 | C92: BR | D92: 0 | E92: Current Account 1 | F92: 55970 | G92: =IFERROR(VLOOKUP(Table_Query_from_SageLine50v19[[#This Row],[DEPT_NUMBER]],DR_ODBC_DEPT,2,FALSE),"Not Found") -> Default | H92: 000 - Default | I92: 1800 - Current Account 1 | J92: =IF(SageData_COMP!$H$2,IF(Table_Query_from_SageLine50v19[[#This Row],[DATE]]<=Report!$B$4,EOMONTH(Report!$B$4,-1),EOMONTH(Table_Query_from_SageLine50v19[[#This Row],[DATE]],0)),EOMONTH(Table_Query_from_SageLine50v19[[#This Row],[DATE]],0)) -> 2025-09-30
A93: 1800 | B93: 2026-01-20 | C93: BR | D93: 0 | E93: Current Account 1 | F93: 55970 | G93: =IFERROR(VLOOKUP(Table_Query_from_SageLine50v19[[#This Row],[DEPT_NUMBER]],DR_ODBC_DEPT,2,FALSE),"Not Found") -> Default | H93: 000 - Default | I93: 1800 - Current Account 1 | J93: =IF(SageData_COMP!$H$2,IF(Table_Query_from_SageLine50v19[[#This Row],[DATE]]<=Report!$B$4,EOMONTH(Report!$B$4,-1),EOMONTH(Table_Query_from_SageLine50v19[[#This Row],[DATE]],0)),EOMONTH(Table_Query_from_SageLine50v19[[#This Row],[DATE]],0)) -> 2026-01-31
A94: 1800 | B94: 2026-04-14 | C94: BR | D94: 0 | E94: Current Account 1 | F94: 59830 | G94: =IFERROR(VLOOKUP(Table_Query_from_SageLine50v19[[#This Row],[DEPT_NUMBER]],DR_ODBC_DEPT,2,FALSE),"Not Found") -> Default | H94: 000 - Default | I94: 1800 - Current Account 1 | J94: =IF(SageData_COMP!$H$2,IF(Table_Query_from_SageLine50v19[[#This Row],[DATE]]<=Report!$B$4,EOMONTH(Report!$B$4,-1),EOMONTH(Table_Query_from_SageLine50v19[[#This Row],[DATE]],0)),EOMONTH(Table_Query_from_SageLine50v19[[#This Row],[DATE]],0)) -> 2026-04-30
A95: 1800 | B95: 2025-09-21 | C95: BR | D95: 16 | E95: Current Account 1 | F95: 18307 | G95: =IFERROR(VLOOKUP(Table_Query_from_SageLine50v19[[#This Row],[DEPT_NUMBER]],DR_ODBC_DEPT,2,FALSE),"Not Found") -> SSSF Grant | H95: 016 - SSSF Grant | I95: 1800 - Current Account 1 | J95: =IF(SageData_COMP!$H$2,IF(Table_Query_from_SageLine50v19[[#This Row],[DATE]]<=Report!$B$4,EOMONTH(Report!$B$4,-1),EOMONTH(Table_Query_from_SageLine50v19[[#This Row],[DATE]],0)),EOMONTH(Table_Query_from_SageLine50v19[[#This Row],[DATE]],0)) -> 2025-09-30
A96: 1800 | B96: 2026-01-21 | C96: BR | D96: 16 | E96: Current Account 1 | F96: 18307 | G96: =IFERROR(VLOOKUP(Table_Query_from_SageLine50v19[[#This Row],[DEPT_NUMBER]],DR_ODBC_DEPT,2,FALSE),"Not Found") -> SSSF Grant | H96: 016 - SSSF Grant | I96: 1800 - Current Account 1 | J96: =IF(SageData_COMP!$H$2,IF(Table_Query_from_SageLine50v19[[#This Row],[DATE]]<=Report!$B$4,EOMONTH(Report!$B$4,-1),EOMONTH(Table_Query_from_SageLine50v19[[#This Row],[DATE]],0)),EOMONTH(Table_Query_from_SageLine50v19[[#This Row],[DATE]],0)) -> 2026-01-31
A97: 1800 | B97: 2026-04-15 | C97: BR | D97: 16 | E97: Current Account 1 | F97: 18308 | G97: =IFERROR(VLOOKUP(Table_Query_from_SageLine50v19[[#This Row],[DEPT_NUMBER]],DR_ODBC_DEPT,2,FALSE),"Not Found") -> SSSF Grant | H97: 016 - SSSF Grant | I97: 1800 - Current Account 1 | J97: =IF(SageData_COMP!$H$2,IF(Table_Query_from_SageLine50v19[[#This Row],[DATE]]<=Report!$B$4,EOMONTH(Report!$B$4,-1),EOMONTH(Table_Query_from_SageLine50v19[[#This Row],[DATE]],0)),EOMONTH(Table_Query_from_SageLine50v19[[#This Row],[DATE]],0)) -> 2026-04-30
A98: 1800 | B98: 2025-09-21 | C98: BR | D98: 17 | E98: Current Account 1 | F98: 6358 | G98: =IFERROR(VLOOKUP(Table_Query_from_SageLine50v19[[#This Row],[DEPT_NUMBER]],DR_ODBC_DEPT,2,FALSE),"Not Found") -> Caretaker Grant | H98: 017 - Caretaker Grant | I98: 1800 - Current Account 1 | J98: =IF(SageData_COMP!$H$2,IF(Table_Query_from_SageLine50v19[[#This Row],[DATE]]<=Report!$B$4,EOMONTH(Report!$B$4,-1),EOMONTH(Table_Query_from_SageLine50v19[[#This Row],[DATE]],0)),EOMONTH(Table_Query_from_SageLine50v19[[#This Row],[DATE]],0)) -> 2025-09-30
A99: 1800 | B99: 2026-01-21 | C99: BR | D99: 17 | E99: Current Account 1 | F99: 6358 | G99: =IFERROR(VLOOKUP(Table_Query_from_SageLine50v19[[#This Row],[DEPT_NUMBER]],DR_ODBC_DEPT,2,FALSE),"Not Found") -> Caretaker Grant | H99: 017 - Caretaker Grant | I99: 1800 - Current Account 1 | J99: =IF(SageData_COMP!$H$2,IF(Table_Query_from_SageLine50v19[[#This Row],[DATE]]<=Report!$B$4,EOMONTH(Report!$B$4,-1),EOMONTH(Table_Query_from_SageLine50v19[[#This Row],[DATE]],0)),EOMONTH(Table_Query_from_SageLine50v19[[#This Row],[DATE]],0)) -> 2026-01-31
A100: 1800 | B100: 2026-04-16 | C100: BR | D100: 17 | E100: Current Account 1 | F100: 6358 | G100: =IFERROR(VLOOKUP(Table_Query_from_SageLine50v19[[#This Row],[DEPT_NUMBER]],DR_ODBC_DEPT,2,FALSE),"Not Found") -> Caretaker Grant | H100: 017 - Caretaker Grant | I100: 1800 - Current Account 1 | J100: =IF(SageData_COMP!$H$2,IF(Table_Query_from_SageLine50v19[[#This Row],[DATE]]<=Report!$B$4,EOMONTH(Report!$B$4,-1),EOMONTH(Table_Query_from_SageLine50v19[[#This Row],[DATE]],0)),EOMONTH(Table_Query_from_SageLine50v19[[#This Row],[DATE]],0)) -> 2026-04-30
A101: 1800 | B101: 2025-09-01 | C101: BP | D101: 6 | E101: Current Account 1 | F101: -30895 | G101: =IFERROR(VLOOKUP(Table_Query_from_SageLine50v19[[#This Row],[DEPT_NUMBER]],DR_ODBC_DEPT,2,FALSE),"Not Found") -> Free School Book Scheme Grant | H101: 006 - Free School Book Scheme Grant | I101: 1800 - Current Account 1 | J101: =IF(SageData_COMP!$H$2,IF(Table_Query_from_SageLine50v19[[#This Row],[DATE]]<=Report!$B$4,EOMONTH(Report!$B$4,-1),EOMONTH(Table_Query_from_SageLine50v19[[#This Row],[DATE]],0)),EOMONTH(Table_Query_from_SageLine50v19[[#This Row],[DATE]],0)) -> 2025-09-30
A102: 1800 | B102: 2025-09-01 | C102: BP | D102: 6 | E102: Current Account 1 | F102: -17367 | G102: =IFERROR(VLOOKUP(Table_Query_from_SageLine50v19[[#This Row],[DEPT_NUMBER]],DR_ODBC_DEPT,2,FALSE),"Not Found") -> Free School Book Scheme Grant | H102: 006 - Free School Book Scheme Grant | I102: 1800 - Current Account 1 | J102: =IF(SageData_COMP!$H$2,IF(Table_Query_from_SageLine50v19[[#This Row],[DATE]]<=Report!$B$4,EOMONTH(Report!$B$4,-1),EOMONTH(Table_Query_from_SageLine50v19[[#This Row],[DATE]],0)),EOMONTH(Table_Query_from_SageLine50v19[[#This Row],[DATE]],0)) -> 2025-09-30
A103: 1800 | B103: 2025-09-01 | C103: BP | D103: 6 | E103: Current Account 1 | F103: -10648 | G103: =IFERROR(VLOOKUP(Table_Query_from_SageLine50v19[[#This Row],[DEPT_NUMBER]],DR_ODBC_DEPT,2,FALSE),"Not Found") -> Free School Book Scheme Grant | H103: 006 - Free School Book Scheme Grant | I103: 1800 - Current Account 1 | J103: =IF(SageData_COMP!$H$2,IF(Table_Query_from_SageLine50v19[[#This Row],[DATE]]<=Report!$B$4,EOMONTH(Report!$B$4,-1),EOMONTH(Table_Query_from_SageLine50v19[[#This Row],[DATE]],0)),EOMONTH(Table_Query_from_SageLine50v19[[#This Row],[DATE]],0)) -> 2025-09-30
A104: 1800 | B104: 2025-09-01 | C104: BP | D104: 6 | E104: Current Account 1 | F104: -32156 | G104: =IFERROR(VLOOKUP(Table_Query_from_SageLine50v19[[#This Row],[DEPT_NUMBER]],DR_ODBC_DEPT,2,FALSE),"Not Found") -> Free School Book Scheme Grant | H104: 006 - Free School Book Scheme Grant | I104: 1800 - Current Account 1 | J104: =IF(SageData_COMP!$H$2,IF(Table_Query_from_SageLine50v19[[#This Row],[DATE]]<=Report!$B$4,EOMONTH(Report!$B$4,-1),EOMONTH(Table_Query_from_SageLine50v19[[#This Row],[DATE]],0)),EOMONTH(Table_Query_from_SageLine50v19[[#This Row],[DATE]],0)) -> 2025-09-30
A105: 1800 | B105: 2025-09-01 | C105: BP | D105: 6 | E105: Current Account 1 | F105: -6157 | G105: =IFERROR(VLOOKUP(Table_Query_from_SageLine50v19[[#This Row],[DEPT_NUMBER]],DR_ODBC_DEPT,2,FALSE),"Not Found") -> Free School Book Scheme Grant | H105: 006 - Free School Book Scheme Grant | I105: 1800 - Current Account 1 | J105: =IF(SageData_COMP!$H$2,IF(Table_Query_from_SageLine50v19[[#This Row],[DATE]]<=Report!$B$4,EOMONTH(Report!$B$4,-1),EOMONTH(Table_Query_from_SageLine50v19[[#This Row],[DATE]],0)),EOMONTH(Table_Query_from_SageLine50v19[[#This Row],[DATE]],0)) -> 2025-09-30
A106: 1800 | B106: 2025-11-17 | C106: BP | D106: 6 | E106: Current Account 1 | F106: -6500 | G106: =IFERROR(VLOOKUP(Table_Query_from_SageLine50v19[[#This Row],[DEPT_NUMBER]],DR_ODBC_DEPT,2,FALSE),"Not Found") -> Free School Book Scheme Grant | H106: 006 - Free School Book Scheme Grant | I106: 1800 - Current Account 1 | J106: =IF(SageData_COMP!$H$2,IF(Table_Query_from_SageLine50v19[[#This Row],[DATE]]<=Report!$B$4,EOMONTH(Report!$B$4,-1),EOMONTH(Table_Query_from_SageLine50v19[[#This Row],[DATE]],0)),EOMONTH(Table_Query_from_SageLine50v19[[#This Row],[DATE]],0)) -> 2025-11-30
A107: 1800 | B107: 2025-12-12 | C107: BP | D107: 6 | E107: Current Account 1 | F107: -7515 | G107: =IFERROR(VLOOKUP(Table_Query_from_SageLine50v19[[#This Row],[DEPT_NUMBER]],DR_ODBC_DEPT,2,FALSE),"Not Found") -> Free School Book Scheme Grant | H107: 006 - Free School Book Scheme Grant | I107: 1800 - Current Account 1 | J107: =IF(SageData_COMP!$H$2,IF(Table_Query_from_SageLine50v19[[#This Row],[DATE]]<=Report!$B$4,EOMONTH(Report!$B$4,-1),EOMONTH(Table_Query_from_SageLine50v19[[#This Row],[DATE]],0)),EOMONTH(Table_Query_from_SageLine50v19[[#This Row],[DATE]],0)) -> 2025-12-31
A108: 1800 | B108: 2026-07-17 | C108: BP | D108: 6 | E108: Current Account 1 | F108: -25255.43 | G108: =IFERROR(VLOOKUP(Table_Query_from_SageLine50v19[[#This Row],[DEPT_NUMBER]],DR_ODBC_DEPT,2,FALSE),"Not Found") -> Free School Book Scheme Grant | H108: 006 - Free School Book Scheme Grant | I108: 1800 - Current Account 1 | J108: =IF(SageData_COMP!$H$2,IF(Table_Query_from_SageLine50v19[[#This Row],[DATE]]<=Report!$B$4,EOMONTH(Report!$B$4,-1),EOMONTH(Table_Query_from_SageLine50v19[[#This Row],[DATE]],0)),EOMONTH(Table_Query_from_SageLine50v19[[#This Row],[DATE]],0)) -> 2026-07-31
A109: 1800 | B109: 2025-11-17 | C109: BP | D109: 13 | E109: Current Account 1 | F109: -8525 | G109: =IFERROR(VLOOKUP(Table_Query_from_SageLine50v19[[#This Row],[DEPT_NUMBER]],DR_ODBC_DEPT,2,FALSE),"Not Found") -> Science Implementation Grant | H109: 013 - Science Implementation Grant | I109: 1800 - Current Account 1 | J109: =IF(SageData_COMP!$H$2,IF(Table_Query_from_SageLine50v19[[#This Row],[DATE]]<=Report!$B$4,EOMONTH(Report!$B$4,-1),EOMONTH(Table_Query_from_SageLine50v19[[#This Row],[DATE]],0)),EOMONTH(Table_Query_from_SageLine50v19[[#This Row],[DATE]],0)) -> 2025-11-30
A110: 1800 | B110: 2026-01-08 | C110: BP | D110: 0 | E110: Current Account 1 | F110: -3000 | G110: =IFERROR(VLOOKUP(Table_Query_from_SageLine50v19[[#This Row],[DEPT_NUMBER]],DR_ODBC_DEPT,2,FALSE),"Not Found") -> Default | H110: 000 - Default | I110: 1800 - Current Account 1 | J110: =IF(SageData_COMP!$H$2,IF(Table_Query_from_SageLine50v19[[#This Row],[DATE]]<=Report!$B$4,EOMONTH(Report!$B$4,-1),EOMONTH(Table_Query_from_SageLine50v19[[#This Row],[DATE]],0)),EOMONTH(Table_Query_from_SageLine50v19[[#This Row],[DATE]],0)) -> 2026-01-31
A111: 1800 | B111: 2026-06-08 | C111: BP | D111: 0 | E111: Current Account 1 | F111: -3000 | G111: =IFERROR(VLOOKUP(Table_Query_from_SageLine50v19[[#This Row],[DEPT_NUMBER]],DR_ODBC_DEPT,2,FALSE),"Not Found") -> Default | H111: 000 - Default | I111: 1800 - Current Account 1 | J111: =IF(SageData_COMP!$H$2,IF(Table_Query_from_SageLine50v19[[#This Row],[DATE]]<=Report!$B$4,EOMONTH(Report!$B$4,-1),EOMONTH(Table_Query_from_SageLine50v19[[#This Row],[DATE]],0)),EOMONTH(Table_Query_from_SageLine50v19[[#This Row],[DATE]],0)) -> 2026-06-30
A112: 1800 | B112: 2026-03-28 | C112: BR | D112: 6 | E112: Current Account 1 | F112: 136285.57 | G112: =IFERROR(VLOOKUP(Table_Query_from_SageLine50v19[[#This Row],[DEPT_NUMBER]],DR_ODBC_DEPT,2,FALSE),"Not Found") -> Free School Book Scheme Grant | H112: 006 - Free School Book Scheme Grant | I112: 1800 - Current Account 1 | J112: =IF(SageData_COMP!$H$2,IF(Table_Query_from_SageLine50v19[[#This Row],[DATE]]<=Report!$B$4,EOMONTH(Report!$B$4,-1),EOMONTH(Table_Query_from_SageLine50v19[[#This Row],[DATE]],0)),EOMONTH(Table_Query_from_SageLine50v19[[#This Row],[DATE]],0)) -> 2026-03-31
A113: 1800 | B113: 2025-11-18 | C113: BP | D113: 6 | E113: Current Account 1 | F113: -3526 | G113: =IFERROR(VLOOKUP(Table_Query_from_SageLine50v19[[#This Row],[DEPT_NUMBER]],DR_ODBC_DEPT,2,FALSE),"Not Found") -> Free School Book Scheme Grant | H113: 006 - Free School Book Scheme Grant | I113: 1800 - Current Account 1 | J113: =IF(SageData_COMP!$H$2,IF(Table_Query_from_SageLine50v19[[#This Row],[DATE]]<=Report!$B$4,EOMONTH(Report!$B$4,-1),EOMONTH(Table_Query_from_SageLine50v19[[#This Row],[DATE]],0)),EOMONTH(Table_Query_from_SageLine50v19[[#This Row],[DATE]],0)) -> 2025-11-30
A114: 1800 | B114: 2025-11-18 | C114: BP | D114: 6 | E114: Current Account 1 | F114: -5456 | G114: =IFERROR(VLOOKUP(Table_Query_from_SageLine50v19[[#This Row],[DEPT_NUMBER]],DR_ODBC_DEPT,2,FALSE),"Not Found") -> Free School Book Scheme Grant | H114: 006 - Free School Book Scheme Grant | I114: 1800 - Current Account 1 | J114: =IF(SageData_COMP!$H$2,IF(Table_Query_from_SageLine50v19[[#This Row],[DATE]]<=Report!$B$4,EOMONTH(Report!$B$4,-1),EOMONTH(Table_Query_from_SageLine50v19[[#This Row],[DATE]],0)),EOMONTH(Table_Query_from_SageLine50v19[[#This Row],[DATE]],0)) -> 2025-11-30
A115: 1800 | B115: 2025-09-02 | C115: BP | D115: 17 | E115: Current Account 1 | F115: -588.6 | G115: =IFERROR(VLOOKUP(Table_Query_from_SageLine50v19[[#This Row],[DEPT_NUMBER]],DR_ODBC_DEPT,2,FALSE),"Not Found") -> Caretaker Grant | H115: 017 - Caretaker Grant | I115: 1800 - Current Account 1 | J115: =IF(SageData_COMP!$H$2,IF(Table_Query_from_SageLine50v19[[#This Row],[DATE]]<=Report!$B$4,EOMONTH(Report!$B$4,-1),EOMONTH(Table_Query_from_SageLine50v19[[#This Row],[DATE]],0)),EOMONTH(Table_Query_from_SageLine50v19[[#This Row],[DATE]],0)) -> 2025-09-30
A116: 1800 | B116: 2025-09-02 | C116: BP | D116: 0 | E116: Current Account 1 | F116: -441.45 | G116: =IFERROR(VLOOKUP(Table_Query_from_SageLine50v19[[#This Row],[DEPT_NUMBER]],DR_ODBC_DEPT,2,FALSE),"Not Found") -> Default | H116: 000 - Default | I116: 1800 - Current Account 1 | J116: =IF(SageData_COMP!$H$2,IF(Table_Query_from_SageLine50v19[[#This Row],[DATE]]<=Report!$B$4,EOMONTH(Report!$B$4,-1),EOMONTH(Table_Query_from_SageLine50v19[[#This Row],[DATE]],0)),EOMONTH(Table_Query_from_SageLine50v19[[#This Row],[DATE]],0)) -> 2025-09-30
A117: 1800 | B117: 2025-09-09 | C117: BP | D117: 17 | E117: Current Account 1 | F117: -588.6 | G117: =IFERROR(VLOOKUP(Table_Query_from_SageLine50v19[[#This Row],[DEPT_NUMBER]],DR_ODBC_DEPT,2,FALSE),"Not Found") -> Caretaker Grant | H117: 017 - Caretaker Grant | I117: 1800 - Current Account 1 | J117: =IF(SageData_COMP!$H$2,IF(Table_Query_from_SageLine50v19[[#This Row],[DATE]]<=Report!$B$4,EOMONTH(Report!$B$4,-1),EOMONTH(Table_Query_from_SageLine50v19[[#This Row],[DATE]],0)),EOMONTH(Table_Query_from_SageLine50v19[[#This Row],[DATE]],0)) -> 2025-09-30
A118: 1800 | B118: 2025-09-09 | C118: BP | D118: 0 | E118: Current Account 1 | F118: -441.45 | G118: =IFERROR(VLOOKUP(Table_Query_from_SageLine50v19[[#This Row],[DEPT_NUMBER]],DR_ODBC_DEPT,2,FALSE),"Not Found") -> Default | H118: 000 - Default | I118: 1800 - Current Account 1 | J118: =IF(SageData_COMP!$H$2,IF(Table_Query_from_SageLine50v19[[#This Row],[DATE]]<=Report!$B$4,EOMONTH(Report!$B$4,-1),EOMONTH(Table_Query_from_SageLine50v19[[#This Row],[DATE]],0)),EOMONTH(Table_Query_from_SageLine50v19[[#This Row],[DATE]],0)) -> 2025-09-30
A119: 1800 | B119: 2025-09-16 | C119: BP | D119: 17 | E119: Current Account 1 | F119: -588.6 | G119: =IFERROR(VLOOKUP(Table_Query_from_SageLine50v19[[#This Row],[DEPT_NUMBER]],DR_ODBC_DEPT,2,FALSE),"Not Found") -> Caretaker Grant | H119: 017 - Caretaker Grant | I119: 1800 - Current Account 1 | J119: =IF(SageData_COMP!$H$2,IF(Table_Query_from_SageLine50v19[[#This Row],[DATE]]<=Report!$B$4,EOMONTH(Report!$B$4,-1),EOMONTH(Table_Query_from_SageLine50v19[[#This Row],[DATE]],0)),EOMONTH(Table_Query_from_SageLine50v19[[#This Row],[DATE]],0)) -> 2025-09-30
A120: 1800 | B120: 2025-09-16 | C120: BP | D120: 0 | E120: Current Account 1 | F120: -411.45 | G120: =IFERROR(VLOOKUP(Table_Query_from_SageLine50v19[[#This Row],[DEPT_NUMBER]],DR_ODBC_DEPT,2,FALSE),"Not Found") -> Default | H120: 000 - Default | I120: 1800 - Current Account 1 | J120: =IF(SageData_COMP!$H$2,IF(Table_Query_from_SageLine50v19[[#This Row],[DATE]]<=Report!$B$4,EOMONTH(Report!$B$4,-1),EOMONTH(Table_Query_from_SageLine50v19[[#This Row],[DATE]],0)),EOMONTH(Table_Query_from_SageLine50v19[[#This Row],[DATE]],0)) -> 2025-09-30
A121: 1800 | B121: 2025-09-23 | C121: BP | D121: 17 | E121: Current Account 1 | F121: -588.6 | G121: =IFERROR(VLOOKUP(Table_Query_from_SageLine50v19[[#This Row],[DEPT_NUMBER]],DR_ODBC_DEPT,2,FALSE),"Not Found") -> Caretaker Grant | H121: 017 - Caretaker Grant | I121: 1800 - Current Account 1 | J121: =IF(SageData_COMP!$H$2,IF(Table_Query_from_SageLine50v19[[#This Row],[DATE]]<=Report!$B$4,EOMONTH(Report!$B$4,-1),EOMONTH(Table_Query_from_SageLine50v19[[#This Row],[DATE]],0)),EOMONTH(Table_Query_from_SageLine50v19[[#This Row],[DATE]],0)) -> 2025-09-30
A122: 1800 | B122: 2025-09-23 | C122: BP | D122: 0 | E122: Current Account 1 | F122: -411.45 | G122: =IFERROR(VLOOKUP(Table_Query_from_SageLine50v19[[#This Row],[DEPT_NUMBER]],DR_ODBC_DEPT,2,FALSE),"Not Found") -> Default | H122: 000 - Default | I122: 1800 - Current Account 1 | J122: =IF(SageData_COMP!$H$2,IF(Table_Query_from_SageLine50v19[[#This Row],[DATE]]<=Report!$B$4,EOMONTH(Report!$B$4,-1),EOMONTH(Table_Query_from_SageLine50v19[[#This Row],[DATE]],0)),EOMONTH(Table_Query_from_SageLine50v19[[#This Row],[DATE]],0)) -> 2025-09-30
A123: 1800 | B123: 2025-09-30 | C123: BP | D123: 17 | E123: Current Account 1 | F123: -588.6 | G123: =IFERROR(VLOOKUP(Table_Query_from_SageLine50v19[[#This Row],[DEPT_NUMBER]],DR_ODBC_DEPT,2,FALSE),"Not Found") -> Caretaker Grant | H123: 017 - Caretaker Grant | I123: 1800 - Current Account 1 | J123: =IF(SageData_COMP!$H$2,IF(Table_Query_from_SageLine50v19[[#This Row],[DATE]]<=Report!$B$4,EOMONTH(Report!$B$4,-1),EOMONTH(Table_Query_from_SageLine50v19[[#This Row],[DATE]],0)),EOMONTH(Table_Query_from_SageLine50v19[[#This Row],[DATE]],0)) -> 2025-09-30
A124: 1800 | B124: 2025-09-30 | C124: BP | D124: 0 | E124: Current Account 1 | F124: -411.45 | G124: =IFERROR(VLOOKUP(Table_Query_from_SageLine50v19[[#This Row],[DEPT_NUMBER]],DR_ODBC_DEPT,2,FALSE),"Not Found") -> Default | H124: 000 - Default | I124: 1800 - Current Account 1 | J124: =IF(SageData_COMP!$H$2,IF(Table_Query_from_SageLine50v19[[#This Row],[DATE]]<=Report!$B$4,EOMONTH(Report!$B$4,-1),EOMONTH(Table_Query_from_SageLine50v19[[#This Row],[DATE]],0)),EOMONTH(Table_Query_from_SageLine50v19[[#This Row],[DATE]],0)) -> 2025-09-30
A125: 1800 | B125: 2025-10-07 | C125: BP | D125: 17 | E125: Current Account 1 | F125: -588.6 | G125: =IFERROR(VLOOKUP(Table_Query_from_SageLine50v19[[#This Row],[DEPT_NUMBER]],DR_ODBC_DEPT,2,FALSE),"Not Found") -> Caretaker Grant | H125: 017 - Caretaker Grant | I125: 1800 - Current Account 1 | J125: =IF(SageData_COMP!$H$2,IF(Table_Query_from_SageLine50v19[[#This Row],[DATE]]<=Report!$B$4,EOMONTH(Report!$B$4,-1),EOMONTH(Table_Query_from_SageLine50v19[[#This Row],[DATE]],0)),EOMONTH(Table_Query_from_SageLine50v19[[#This Row],[DATE]],0)) -> 2025-10-31
A126: 1800 | B126: 2025-10-07 | C126: BP | D126: 0 | E126: Current Account 1 | F126: -411.45 | G126: =IFERROR(VLOOKUP(Table_Query_from_SageLine50v19[[#This Row],[DEPT_NUMBER]],DR_ODBC_DEPT,2,FALSE),"Not Found") -> Default | H126: 000 - Default | I126: 1800 - Current Account 1 | J126: =IF(SageData_COMP!$H$2,IF(Table_Query_from_SageLine50v19[[#This Row],[DATE]]<=Report!$B$4,EOMONTH(Report!$B$4,-1),EOMONTH(Table_Query_from_SageLine50v19[[#This Row],[DATE]],0)),EOMONTH(Table_Query_from_SageLine50v19[[#This Row],[DATE]],0)) -> 2025-10-31
A127: 1800 | B127: 2025-10-14 | C127: BP | D127: 17 | E127: Current Account 1 | F127: -588.6 | G127: =IFERROR(VLOOKUP(Table_Query_from_SageLine50v19[[#This Row],[DEPT_NUMBER]],DR_ODBC_DEPT,2,FALSE),"Not Found") -> Caretaker Grant | H127: 017 - Caretaker Grant | I127: 1800 - Current Account 1 | J127: =IF(SageData_COMP!$H$2,IF(Table_Query_from_SageLine50v19[[#This Row],[DATE]]<=Report!$B$4,EOMONTH(Report!$B$4,-1),EOMONTH(Table_Query_from_SageLine50v19[[#This Row],[DATE]],0)),EOMONTH(Table_Query_from_SageLine50v19[[#This Row],[DATE]],0)) -> 2025-10-31
A128: 1800 | B128: 2025-10-14 | C128: BP | D128: 0 | E128: Current Account 1 | F128: -411.45 | G128: =IFERROR(VLOOKUP(Table_Query_from_SageLine50v19[[#This Row],[DEPT_NUMBER]],DR_ODBC_DEPT,2,FALSE),"Not Found") -> Default | H128: 000 - Default | I128: 1800 - Current Account 1 | J128: =IF(SageData_COMP!$H$2,IF(Table_Query_from_SageLine50v19[[#This Row],[DATE]]<=Report!$B$4,EOMONTH(Report!$B$4,-1),EOMONTH(Table_Query_from_SageLine50v19[[#This Row],[DATE]],0)),EOMONTH(Table_Query_from_SageLine50v19[[#This Row],[DATE]],0)) -> 2025-10-31
A129: 1800 | B129: 2025-10-21 | C129: BP | D129: 17 | E129: Current Account 1 | F129: -588.6 | G129: =IFERROR(VLOOKUP(Table_Query_from_SageLine50v19[[#This Row],[DEPT_NUMBER]],DR_ODBC_DEPT,2,FALSE),"Not Found") -> Caretaker Grant | H129: 017 - Caretaker Grant | I129: 1800 - Current Account 1 | J129: =IF(SageData_COMP!$H$2,IF(Table_Query_from_SageLine50v19[[#This Row],[DATE]]<=Report!$B$4,EOMONTH(Report!$B$4,-1),EOMONTH(Table_Query_from_SageLine50v19[[#This Row],[DATE]],0)),EOMONTH(Table_Query_from_SageLine50v19[[#This Row],[DATE]],0)) -> 2025-10-31
A130: 1800 | B130: 2025-10-21 | C130: BP | D130: 0 | E130: Current Account 1 | F130: -411.45 | G130: =IFERROR(VLOOKUP(Table_Query_from_SageLine50v19[[#This Row],[DEPT_NUMBER]],DR_ODBC_DEPT,2,FALSE),"Not Found") -> Default | H130: =CONCATENATE(TEXT(D130,"000")," - ",G130) -> 000 - Default | I130: =CONCATENATE(A130," - ",E130) -> 1800 - Current Account 1 | J130: =IF(SageData_COMP!$H$2,IF(Table_Query_from_SageLine50v19[[#This Row],[DATE]]<=Report!$B$4,EOMONTH(Report!$B$4,-1),EOMONTH(Table_Query_from_SageLine50v19[[#This Row],[DATE]],0)),EOMONTH(Table_Query_from_SageLine50v19[[#This Row],[DATE]],0)) -> 2025-10-31
A131: 1800 | B131: 2025-10-28 | C131: BP | D131: 17 | E131: Current Account 1 | F131: -588.6 | G131: =IFERROR(VLOOKUP(Table_Query_from_SageLine50v19[[#This Row],[DEPT_NUMBER]],DR_ODBC_DEPT,2,FALSE),"Not Found") -> Caretaker Grant | H131: 017 - Caretaker Grant | I131: 1800 - Current Account 1 | J131: =IF(SageData_COMP!$H$2,IF(Table_Query_from_SageLine50v19[[#This Row],[DATE]]<=Report!$B$4,EOMONTH(Report!$B$4,-1),EOMONTH(Table_Query_from_SageLine50v19[[#This Row],[DATE]],0)),EOMONTH(Table_Query_from_SageLine50v19[[#This Row],[DATE]],0)) -> 2025-10-31
A132: 1800 | B132: 2025-10-28 | C132: BP | D132: 0 | E132: Current Account 1 | F132: -411.45 | G132: =IFERROR(VLOOKUP(Table_Query_from_SageLine50v19[[#This Row],[DEPT_NUMBER]],DR_ODBC_DEPT,2,FALSE),"Not Found") -> Default | H132: 000 - Default | I132: 1800 - Current Account 1 | J132: =IF(SageData_COMP!$H$2,IF(Table_Query_from_SageLine50v19[[#This Row],[DATE]]<=Report!$B$4,EOMONTH(Report!$B$4,-1),EOMONTH(Table_Query_from_SageLine50v19[[#This Row],[DATE]],0)),EOMONTH(Table_Query_from_SageLine50v19[[#This Row],[DATE]],0)) -> 2025-10-31
A133: 1800 | B133: 2025-11-04 | C133: BP | D133: 17 | E133: Current Account 1 | F133: -588.6 | G133: =IFERROR(VLOOKUP(Table_Query_from_SageLine50v19[[#This Row],[DEPT_NUMBER]],DR_ODBC_DEPT,2,FALSE),"Not Found") -> Caretaker Grant | H133: 017 - Caretaker Grant | I133: 1800 - Current Account 1 | J133: =IF(SageData_COMP!$H$2,IF(Table_Query_from_SageLine50v19[[#This Row],[DATE]]<=Report!$B$4,EOMONTH(Report!$B$4,-1),EOMONTH(Table_Query_from_SageLine50v19[[#This Row],[DATE]],0)),EOMONTH(Table_Query_from_SageLine50v19[[#This Row],[DATE]],0)) -> 2025-11-30
A134: 1800 | B134: 2025-11-04 | C134: BP | D134: 0 | E134: Current Account 1 | F134: -411.45 | G134: =IFERROR(VLOOKUP(Table_Query_from_SageLine50v19[[#This Row],[DEPT_NUMBER]],DR_ODBC_DEPT,2,FALSE),"Not Found") -> Default | H134: 000 - Default | I134: 1800 - Current Account 1 | J134: =IF(SageData_COMP!$H$2,IF(Table_Query_from_SageLine50v19[[#This Row],[DATE]]<=Report!$B$4,EOMONTH(Report!$B$4,-1),EOMONTH(Table_Query_from_SageLine50v19[[#This Row],[DATE]],0)),EOMONTH(Table_Query_from_SageLine50v19[[#This Row],[DATE]],0)) -> 2025-11-30
A135: 1800 | B135: 2025-11-11 | C135: BP | D135: 17 | E135: Current Account 1 | F135: -588.6 | G135: =IFERROR(VLOOKUP(Table_Query_from_SageLine50v19[[#This Row],[DEPT_NUMBER]],DR_ODBC_DEPT,2,FALSE),"Not Found") -> Caretaker Grant | H135: 017 - Caretaker Grant | I135: 1800 - Current Account 1 | J135: =IF(SageData_COMP!$H$2,IF(Table_Query_from_SageLine50v19[[#This Row],[DATE]]<=Report!$B$4,EOMONTH(Report!$B$4,-1),EOMONTH(Table_Query_from_SageLine50v19[[#This Row],[DATE]],0)),EOMONTH(Table_Query_from_SageLine50v19[[#This Row],[DATE]],0)) -> 2025-11-30
A136: 1800 | B136: 2025-11-11 | C136: BP | D136: 0 | E136: Current Account 1 | F136: -411.45 | G136: =IFERROR(VLOOKUP(Table_Query_from_SageLine50v19[[#This Row],[DEPT_NUMBER]],DR_ODBC_DEPT,2,FALSE),"Not Found") -> Default | H136: 000 - Default | I136: 1800 - Current Account 1 | J136: =IF(SageData_COMP!$H$2,IF(Table_Query_from_SageLine50v19[[#This Row],[DATE]]<=Report!$B$4,EOMONTH(Report!$B$4,-1),EOMONTH(Table_Query_from_SageLine50v19[[#This Row],[DATE]],0)),EOMONTH(Table_Query_from_SageLine50v19[[#This Row],[DATE]],0)) -> 2025-11-30
A137: 1800 | B137: 2025-11-18 | C137: BP | D137: 17 | E137: Current Account 1 | F137: -588.6 | G137: =IFERROR(VLOOKUP(Table_Query_from_SageLine50v19[[#This Row],[DEPT_NUMBER]],DR_ODBC_DEPT,2,FALSE),"Not Found") -> Caretaker Grant | H137: 017 - Caretaker Grant | I137: 1800 - Current Account 1 | J137: =IF(SageData_COMP!$H$2,IF(Table_Query_from_SageLine50v19[[#This Row],[DATE]]<=Report!$B$4,EOMONTH(Report!$B$4,-1),EOMONTH(Table_Query_from_SageLine50v19[[#This Row],[DATE]],0)),EOMONTH(Table_Query_from_SageLine50v19[[#This Row],[DATE]],0)) -> 2025-11-30
A138: 1800 | B138: 2025-11-18 | C138: BP | D138: 0 | E138: Current Account 1 | F138: -411.45 | G138: =IFERROR(VLOOKUP(Table_Query_from_SageLine50v19[[#This Row],[DEPT_NUMBER]],DR_ODBC_DEPT,2,FALSE),"Not Found") -> Default | H138: 000 - Default | I138: 1800 - Current Account 1 | J138: =IF(SageData_COMP!$H$2,IF(Table_Query_from_SageLine50v19[[#This Row],[DATE]]<=Report!$B$4,EOMONTH(Report!$B$4,-1),EOMONTH(Table_Query_from_SageLine50v19[[#This Row],[DATE]],0)),EOMONTH(Table_Query_from_SageLine50v19[[#This Row],[DATE]],0)) -> 2025-11-30
A139: 1800 | B139: 2025-11-25 | C139: BP | D139: 17 | E139: Current Account 1 | F139: -588.6 | G139: =IFERROR(VLOOKUP(Table_Query_from_SageLine50v19[[#This Row],[DEPT_NUMBER]],DR_ODBC_DEPT,2,FALSE),"Not Found") -> Caretaker Grant | H139: 017 - Caretaker Grant | I139: 1800 - Current Account 1 | J139: =IF(SageData_COMP!$H$2,IF(Table_Query_from_SageLine50v19[[#This Row],[DATE]]<=Report!$B$4,EOMONTH(Report!$B$4,-1),EOMONTH(Table_Query_from_SageLine50v19[[#This Row],[DATE]],0)),EOMONTH(Table_Query_from_SageLine50v19[[#This Row],[DATE]],0)) -> 2025-11-30
A140: 1800 | B140: 2025-11-25 | C140: BP | D140: 0 | E140: Current Account 1 | F140: -411.45 | G140: =IFERROR(VLOOKUP(Table_Query_from_SageLine50v19[[#This Row],[DEPT_NUMBER]],DR_ODBC_DEPT,2,FALSE),"Not Found") -> Default | H140: 000 - Default | I140: 1800 - Current Account 1 | J140: =IF(SageData_COMP!$H$2,IF(Table_Query_from_SageLine50v19[[#This Row],[DATE]]<=Report!$B$4,EOMONTH(Report!$B$4,-1),EOMONTH(Table_Query_from_SageLine50v19[[#This Row],[DATE]],0)),EOMONTH(Table_Query_from_SageLine50v19[[#This Row],[DATE]],0)) -> 2025-11-30
A141: 1800 | B141: 2025-12-02 | C141: BP | D141: 17 | E141: Current Account 1 | F141: -588.69 | G141: =IFERROR(VLOOKUP(Table_Query_from_SageLine50v19[[#This Row],[DEPT_NUMBER]],DR_ODBC_DEPT,2,FALSE),"Not Found") -> Caretaker Grant | H141: 017 - Caretaker Grant | I141: 1800 - Current Account 1 | J141: =IF(SageData_COMP!$H$2,IF(Table_Query_from_SageLine50v19[[#This Row],[DATE]]<=Report!$B$4,EOMONTH(Report!$B$4,-1),EOMONTH(Table_Query_from_SageLine50v19[[#This Row],[DATE]],0)),EOMONTH(Table_Query_from_SageLine50v19[[#This Row],[DATE]],0)) -> 2025-12-31
A142: 1800 | B142: 2025-12-02 | C142: BP | D142: 0 | E142: Current Account 1 | F142: -411.45 | G142: =IFERROR(VLOOKUP(Table_Query_from_SageLine50v19[[#This Row],[DEPT_NUMBER]],DR_ODBC_DEPT,2,FALSE),"Not Found") -> Default | H142: 000 - Default | I142: 1800 - Current Account 1 | J142: =IF(SageData_COMP!$H$2,IF(Table_Query_from_SageLine50v19[[#This Row],[DATE]]<=Report!$B$4,EOMONTH(Report!$B$4,-1),EOMONTH(Table_Query_from_SageLine50v19[[#This Row],[DATE]],0)),EOMONTH(Table_Query_from_SageLine50v19[[#This Row],[DATE]],0)) -> 2025-12-31
A143: 1800 | B143: 2025-12-09 | C143: BP | D143: 17 | E143: Current Account 1 | F143: -588.69 | G143: =IFERROR(VLOOKUP(Table_Query_from_SageLine50v19[[#This Row],[DEPT_NUMBER]],DR_ODBC_DEPT,2,FALSE),"Not Found") -> Caretaker Grant | H143: 017 - Caretaker Grant | I143: 1800 - Current Account 1 | J143: =IF(SageData_COMP!$H$2,IF(Table_Query_from_SageLine50v19[[#This Row],[DATE]]<=Report!$B$4,EOMONTH(Report!$B$4,-1),EOMONTH(Table_Query_from_SageLine50v19[[#This Row],[DATE]],0)),EOMONTH(Table_Query_from_SageLine50v19[[#This Row],[DATE]],0)) -> 2025-12-31
A144: 1800 | B144: 2025-12-09 | C144: BP | D144: 0 | E144: Current Account 1 | F144: -411.45 | G144: =IFERROR(VLOOKUP(Table_Query_from_SageLine50v19[[#This Row],[DEPT_NUMBER]],DR_ODBC_DEPT,2,FALSE),"Not Found") -> Default | H144: 000 - Default | I144: 1800 - Current Account 1 | J144: =IF(SageData_COMP!$H$2,IF(Table_Query_from_SageLine50v19[[#This Row],[DATE]]<=Report!$B$4,EOMONTH(Report!$B$4,-1),EOMONTH(Table_Query_from_SageLine50v19[[#This Row],[DATE]],0)),EOMONTH(Table_Query_from_SageLine50v19[[#This Row],[DATE]],0)) -> 2025-12-31
A145: 1800 | B145: 2025-12-16 | C145: BP | D145: 17 | E145: Current Account 1 | F145: -588.69 | G145: =IFERROR(VLOOKUP(Table_Query_from_SageLine50v19[[#This Row],[DEPT_NUMBER]],DR_ODBC_DEPT,2,FALSE),"Not Found") -> Caretaker Grant | H145: 017 - Caretaker Grant | I145: 1800 - Current Account 1 | J145: =IF(SageData_COMP!$H$2,IF(Table_Query_from_SageLine50v19[[#This Row],[DATE]]<=Report!$B$4,EOMONTH(Report!$B$4,-1),EOMONTH(Table_Query_from_SageLine50v19[[#This Row],[DATE]],0)),EOMONTH(Table_Query_from_SageLine50v19[[#This Row],[DATE]],0)) -> 2025-12-31
A146: 1800 | B146: 2025-12-16 | C146: BP | D146: 0 | E146: Current Account 1 | F146: -411.45 | G146: =IFERROR(VLOOKUP(Table_Query_from_SageLine50v19[[#This Row],[DEPT_NUMBER]],DR_ODBC_DEPT,2,FALSE),"Not Found") -> Default | H146: 000 - Default | I146: 1800 - Current Account 1 | J146: =IF(SageData_COMP!$H$2,IF(Table_Query_from_SageLine50v19[[#This Row],[DATE]]<=Report!$B$4,EOMONTH(Report!$B$4,-1),EOMONTH(Table_Query_from_SageLine50v19[[#This Row],[DATE]],0)),EOMONTH(Table_Query_from_SageLine50v19[[#This Row],[DATE]],0)) -> 2025-12-31
A147: 1800 | B147: 2025-12-23 | C147: BP | D147: 17 | E147: Current Account 1 | F147: -588.69 | G147: =IFERROR(VLOOKUP(Table_Query_from_SageLine50v19[[#This Row],[DEPT_NUMBER]],DR_ODBC_DEPT,2,FALSE),"Not Found") -> Caretaker Grant | H147: 017 - Caretaker Grant | I147: 1800 - Current Account 1 | J147: =IF(SageData_COMP!$H$2,IF(Table_Query_from_SageLine50v19[[#This Row],[DATE]]<=Report!$B$4,EOMONTH(Report!$B$4,-1),EOMONTH(Table_Query_from_SageLine50v19[[#This Row],[DATE]],0)),EOMONTH(Table_Query_from_SageLine50v19[[#This Row],[DATE]],0)) -> 2025-12-31
A148: 1800 | B148: 2025-12-23 | C148: BP | D148: 0 | E148: Current Account 1 | F148: -411.45 | G148: =IFERROR(VLOOKUP(Table_Query_from_SageLine50v19[[#This Row],[DEPT_NUMBER]],DR_ODBC_DEPT,2,FALSE),"Not Found") -> Default | H148: 000 - Default | I148: 1800 - Current Account 1 | J148: =IF(SageData_COMP!$H$2,IF(Table_Query_from_SageLine50v19[[#This Row],[DATE]]<=Report!$B$4,EOMONTH(Report!$B$4,-1),EOMONTH(Table_Query_from_SageLine50v19[[#This Row],[DATE]],0)),EOMONTH(Table_Query_from_SageLine50v19[[#This Row],[DATE]],0)) -> 2025-12-31
A149: 1800 | B149: 2025-12-30 | C149: BP | D149: 17 | E149: Current Account 1 | F149: -588.69 | G149: =IFERROR(VLOOKUP(Table_Query_from_SageLine50v19[[#This Row],[DEPT_NUMBER]],DR_ODBC_DEPT,2,FALSE),"Not Found") -> Caretaker Grant | H149: 017 - Caretaker Grant | I149: 1800 - Current Account 1 | J149: =IF(SageData_COMP!$H$2,IF(Table_Query_from_SageLine50v19[[#This Row],[DATE]]<=Report!$B$4,EOMONTH(Report!$B$4,-1),EOMONTH(Table_Query_from_SageLine50v19[[#This Row],[DATE]],0)),EOMONTH(Table_Query_from_SageLine50v19[[#This Row],[DATE]],0)) -> 2025-12-31
A150: 1800 | B150: 2025-12-30 | C150: BP | D150: 0 | E150: Current Account 1 | F150: -411.45 | G150: =IFERROR(VLOOKUP(Table_Query_from_SageLine50v19[[#This Row],[DEPT_NUMBER]],DR_ODBC_DEPT,2,FALSE),"Not Found") -> Default | H150: 000 - Default | I150: 1800 - Current Account 1 | J150: =IF(SageData_COMP!$H$2,IF(Table_Query_from_SageLine50v19[[#This Row],[DATE]]<=Report!$B$4,EOMONTH(Report!$B$4,-1),EOMONTH(Table_Query_from_SageLine50v19[[#This Row],[DATE]],0)),EOMONTH(Table_Query_from_SageLine50v19[[#This Row],[DATE]],0)) -> 2025-12-31
A151: 1800 | B151: 2026-01-06 | C151: BP | D151: 17 | E151: Current Account 1 | F151: -617.94 | G151: =IFERROR(VLOOKUP(Table_Query_from_SageLine50v19[[#This Row],[DEPT_NUMBER]],DR_ODBC_DEPT,2,FALSE),"Not Found") -> Caretaker Grant | H151: 017 - Caretaker Grant | I151: 1800 - Current Account 1 | J151: =IF(SageData_COMP!$H$2,IF(Table_Query_from_SageLine50v19[[#This Row],[DATE]]<=Report!$B$4,EOMONTH(Report!$B$4,-1),EOMONTH(Table_Query_from_SageLine50v19[[#This Row],[DATE]],0)),EOMONTH(Table_Query_from_SageLine50v19[[#This Row],[DATE]],0)) -> 2026-01-31
A152: 1800 | B152: 2026-01-06 | C152: BP | D152: 17 | E152: Current Account 1 | F152: -9.27 | G152: =IFERROR(VLOOKUP(Table_Query_from_SageLine50v19[[#This Row],[DEPT_NUMBER]],DR_ODBC_DEPT,2,FALSE),"Not Found") -> Caretaker Grant | H152: 017 - Caretaker Grant | I152: 1800 - Current Account 1 | J152: =IF(SageData_COMP!$H$2,IF(Table_Query_from_SageLine50v19[[#This Row],[DATE]]<=Report!$B$4,EOMONTH(Report!$B$4,-1),EOMONTH(Table_Query_from_SageLine50v19[[#This Row],[DATE]],0)),EOMONTH(Table_Query_from_SageLine50v19[[#This Row],[DATE]],0)) -> 2026-01-31
A153: 1800 | B153: 2026-01-06 | C153: BP | D153: 0 | E153: Current Account 1 | F153: -462.71 | G153: =IFERROR(VLOOKUP(Table_Query_from_SageLine50v19[[#This Row],[DEPT_NUMBER]],DR_ODBC_DEPT,2,FALSE),"Not Found") -> Default | H153: 000 - Default | I153: 1800 - Current Account 1 | J153: =IF(SageData_COMP!$H$2,IF(Table_Query_from_SageLine50v19[[#This Row],[DATE]]<=Report!$B$4,EOMONTH(Report!$B$4,-1),EOMONTH(Table_Query_from_SageLine50v19[[#This Row],[DATE]],0)),EOMONTH(Table_Query_from_SageLine50v19[[#This Row],[DATE]],0)) -> 2026-01-31
A154: 1800 | B154: 2026-01-06 | C154: BP | D154: 0 | E154: Current Account 1 | F154: -6.94 | G154: =IFERROR(VLOOKUP(Table_Query_from_SageLine50v19[[#This Row],[DEPT_NUMBER]],DR_ODBC_DEPT,2,FALSE),"Not Found") -> Default | H154: 000 - Default | I154: 1800 - Current Account 1 | J154: =IF(SageData_COMP!$H$2,IF(Table_Query_from_SageLine50v19[[#This Row],[DATE]]<=Report!$B$4,EOMONTH(Report!$B$4,-1),EOMONTH(Table_Query_from_SageLine50v19[[#This Row],[DATE]],0)),EOMONTH(Table_Query_from_SageLine50v19[[#This Row],[DATE]],0)) -> 2026-01-31
A155: 1800 | B155: 2026-01-13 | C155: BP | D155: 17 | E155: Current Account 1 | F155: -617.94 | G155: =IFERROR(VLOOKUP(Table_Query_from_SageLine50v19[[#This Row],[DEPT_NUMBER]],DR_ODBC_DEPT,2,FALSE),"Not Found") -> Caretaker Grant | H155: 017 - Caretaker Grant | I155: 1800 - Current Account 1 | J155: =IF(SageData_COMP!$H$2,IF(Table_Query_from_SageLine50v19[[#This Row],[DATE]]<=Report!$B$4,EOMONTH(Report!$B$4,-1),EOMONTH(Table_Query_from_SageLine50v19[[#This Row],[DATE]],0)),EOMONTH(Table_Query_from_SageLine50v19[[#This Row],[DATE]],0)) -> 2026-01-31
A156: 1800 | B156: 2026-01-13 | C156: BP | D156: 17 | E156: Current Account 1 | F156: -9.27 | G156: =IFERROR(VLOOKUP(Table_Query_from_SageLine50v19[[#This Row],[DEPT_NUMBER]],DR_ODBC_DEPT,2,FALSE),"Not Found") -> Caretaker Grant | H156: 017 - Caretaker Grant | I156: 1800 - Current Account 1 | J156: =IF(SageData_COMP!$H$2,IF(Table_Query_from_SageLine50v19[[#This Row],[DATE]]<=Report!$B$4,EOMONTH(Report!$B$4,-1),EOMONTH(Table_Query_from_SageLine50v19[[#This Row],[DATE]],0)),EOMONTH(Table_Query_from_SageLine50v19[[#This Row],[DATE]],0)) -> 2026-01-31
A157: 1800 | B157: 2026-01-13 | C157: BP | D157: 0 | E157: Current Account 1 | F157: -462.71 | G157: =IFERROR(VLOOKUP(Table_Query_from_SageLine50v19[[#This Row],[DEPT_NUMBER]],DR_ODBC_DEPT,2,FALSE),"Not Found") -> Default | H157: 000 - Default | I157: 1800 - Current Account 1 | J157: =IF(SageData_COMP!$H$2,IF(Table_Query_from_SageLine50v19[[#This Row],[DATE]]<=Report!$B$4,EOMONTH(Report!$B$4,-1),EOMONTH(Table_Query_from_SageLine50v19[[#This Row],[DATE]],0)),EOMONTH(Table_Query_from_SageLine50v19[[#This Row],[DATE]],0)) -> 2026-01-31
A158: 1800 | B158: 2026-01-13 | C158: BP | D158: 0 | E158: Current Account 1 | F158: -69.4 | G158: =IFERROR(VLOOKUP(Table_Query_from_SageLine50v19[[#This Row],[DEPT_NUMBER]],DR_ODBC_DEPT,2,FALSE),"Not Found") -> Default | H158: 000 - Default | I158: 1800 - Current Account 1 | J158: =IF(SageData_COMP!$H$2,IF(Table_Query_from_SageLine50v19[[#This Row],[DATE]]<=Report!$B$4,EOMONTH(Report!$B$4,-1),EOMONTH(Table_Query_from_SageLine50v19[[#This Row],[DATE]],0)),EOMONTH(Table_Query_from_SageLine50v19[[#This Row],[DATE]],0)) -> 2026-01-31
A159: 1800 | B159: 2026-01-20 | C159: BP | D159: 17 | E159: Current Account 1 | F159: -617.94 | G159: =IFERROR(VLOOKUP(Table_Query_from_SageLine50v19[[#This Row],[DEPT_NUMBER]],DR_ODBC_DEPT,2,FALSE),"Not Found") -> Caretaker Grant | H159: 017 - Caretaker Grant | I159: 1800 - Current Account 1 | J159: =IF(SageData_COMP!$H$2,IF(Table_Query_from_SageLine50v19[[#This Row],[DATE]]<=Report!$B$4,EOMONTH(Report!$B$4,-1),EOMONTH(Table_Query_from_SageLine50v19[[#This Row],[DATE]],0)),EOMONTH(Table_Query_from_SageLine50v19[[#This Row],[DATE]],0)) -> 2026-01-31
A160: 1800 | B160: 2026-01-20 | C160: BP | D160: 17 | E160: Current Account 1 | F160: -9.27 | G160: =IFERROR(VLOOKUP(Table_Query_from_SageLine50v19[[#This Row],[DEPT_NUMBER]],DR_ODBC_DEPT,2,FALSE),"Not Found") -> Caretaker Grant | H160: 017 - Caretaker Grant | I160: 1800 - Current Account 1 | J160: =IF(SageData_COMP!$H$2,IF(Table_Query_from_SageLine50v19[[#This Row],[DATE]]<=Report!$B$4,EOMONTH(Report!$B$4,-1),EOMONTH(Table_Query_from_SageLine50v19[[#This Row],[DATE]],0)),EOMONTH(Table_Query_from_SageLine50v19[[#This Row],[DATE]],0)) -> 2026-01-31
A161: 1800 | B161: 2026-01-20 | C161: BP | D161: 0 | E161: Current Account 1 | F161: -462.71 | G161: =IFERROR(VLOOKUP(Table_Query_from_SageLine50v19[[#This Row],[DEPT_NUMBER]],DR_ODBC_DEPT,2,FALSE),"Not Found") -> Default | H161: 000 - Default | I161: 1800 - Current Account 1 | J161: =IF(SageData_COMP!$H$2,IF(Table_Query_from_SageLine50v19[[#This Row],[DATE]]<=Report!$B$4,EOMONTH(Report!$B$4,-1),EOMONTH(Table_Query_from_SageLine50v19[[#This Row],[DATE]],0)),EOMONTH(Table_Query_from_SageLine50v19[[#This Row],[DATE]],0)) -> 2026-01-31
A162: 1800 | B162: 2026-01-20 | C162: BP | D162: 0 | E162: Current Account 1 | F162: -6.94 | G162: =IFERROR(VLOOKUP(Table_Query_from_SageLine50v19[[#This Row],[DEPT_NUMBER]],DR_ODBC_DEPT,2,FALSE),"Not Found") -> Default | H162: 000 - Default | I162: 1800 - Current Account 1 | J162: =IF(SageData_COMP!$H$2,IF(Table_Query_from_SageLine50v19[[#This Row],[DATE]]<=Report!$B$4,EOMONTH(Report!$B$4,-1),EOMONTH(Table_Query_from_SageLine50v19[[#This Row],[DATE]],0)),EOMONTH(Table_Query_from_SageLine50v19[[#This Row],[DATE]],0)) -> 2026-01-31
A163: 1800 | B163: 2026-01-27 | C163: BP | D163: 17 | E163: Current Account 1 | F163: -917.94 | G163: =IFERROR(VLOOKUP(Table_Query_from_SageLine50v19[[#This Row],[DEPT_NUMBER]],DR_ODBC_DEPT,2,FALSE),"Not Found") -> Caretaker Grant | H163: 017 - Caretaker Grant | I163: 1800 - Current Account 1 | J163: =IF(SageData_COMP!$H$2,IF(Table_Query_from_SageLine50v19[[#This Row],[DATE]]<=Report!$B$4,EOMONTH(Report!$B$4,-1),EOMONTH(Table_Query_from_SageLine50v19[[#This Row],[DATE]],0)),EOMONTH(Table_Query_from_SageLine50v19[[#This Row],[DATE]],0)) -> 2026-01-31
A164: 1800 | B164: 2026-01-27 | C164: BP | D164: 17 | E164: Current Account 1 | F164: -9.27 | G164: =IFERROR(VLOOKUP(Table_Query_from_SageLine50v19[[#This Row],[DEPT_NUMBER]],DR_ODBC_DEPT,2,FALSE),"Not Found") -> Caretaker Grant | H164: 017 - Caretaker Grant | I164: 1800 - Current Account 1 | J164: =IF(SageData_COMP!$H$2,IF(Table_Query_from_SageLine50v19[[#This Row],[DATE]]<=Report!$B$4,EOMONTH(Report!$B$4,-1),EOMONTH(Table_Query_from_SageLine50v19[[#This Row],[DATE]],0)),EOMONTH(Table_Query_from_SageLine50v19[[#This Row],[DATE]],0)) -> 2026-01-31
A165: 1800 | B165: 2026-01-27 | C165: BP | D165: 0 | E165: Current Account 1 | F165: -462.71 | G165: =IFERROR(VLOOKUP(Table_Query_from_SageLine50v19[[#This Row],[DEPT_NUMBER]],DR_ODBC_DEPT,2,FALSE),"Not Found") -> Default | H165: 000 - Default | I165: 1800 - Current Account 1 | J165: =IF(SageData_COMP!$H$2,IF(Table_Query_from_SageLine50v19[[#This Row],[DATE]]<=Report!$B$4,EOMONTH(Report!$B$4,-1),EOMONTH(Table_Query_from_SageLine50v19[[#This Row],[DATE]],0)),EOMONTH(Table_Query_from_SageLine50v19[[#This Row],[DATE]],0)) -> 2026-01-31
A166: 1800 | B166: 2026-01-27 | C166: BP | D166: 0 | E166: Current Account 1 | F166: -6.94 | G166: =IFERROR(VLOOKUP(Table_Query_from_SageLine50v19[[#This Row],[DEPT_NUMBER]],DR_ODBC_DEPT,2,FALSE),"Not Found") -> Default | H166: 000 - Default | I166: 1800 - Current Account 1 | J166: =IF(SageData_COMP!$H$2,IF(Table_Query_from_SageLine50v19[[#This Row],[DATE]]<=Report!$B$4,EOMONTH(Report!$B$4,-1),EOMONTH(Table_Query_from_SageLine50v19[[#This Row],[DATE]],0)),EOMONTH(Table_Query_from_SageLine50v19[[#This Row],[DATE]],0)) -> 2026-01-31
A167: 1800 | B167: 2026-02-03 | C167: BP | D167: 17 | E167: Current Account 1 | F167: -617.94 | G167: =IFERROR(VLOOKUP(Table_Query_from_SageLine50v19[[#This Row],[DEPT_NUMBER]],DR_ODBC_DEPT,2,FALSE),"Not Found") -> Caretaker Grant | H167: 017 - Caretaker Grant | I167: 1800 - Current Account 1 | J167: =IF(SageData_COMP!$H$2,IF(Table_Query_from_SageLine50v19[[#This Row],[DATE]]<=Report!$B$4,EOMONTH(Report!$B$4,-1),EOMONTH(Table_Query_from_SageLine50v19[[#This Row],[DATE]],0)),EOMONTH(Table_Query_from_SageLine50v19[[#This Row],[DATE]],0)) -> 2026-02-28
A168: 1800 | B168: 2026-02-03 | C168: BP | D168: 17 | E168: Current Account 1 | F168: -9.27 | G168: =IFERROR(VLOOKUP(Table_Query_from_SageLine50v19[[#This Row],[DEPT_NUMBER]],DR_ODBC_DEPT,2,FALSE),"Not Found") -> Caretaker Grant | H168: 017 - Caretaker Grant | I168: 1800 - Current Account 1 | J168: =IF(SageData_COMP!$H$2,IF(Table_Query_from_SageLine50v19[[#This Row],[DATE]]<=Report!$B$4,EOMONTH(Report!$B$4,-1),EOMONTH(Table_Query_from_SageLine50v19[[#This Row],[DATE]],0)),EOMONTH(Table_Query_from_SageLine50v19[[#This Row],[DATE]],0)) -> 2026-02-28
A169: 1800 | B169: 2026-02-03 | C169: BP | D169: 0 | E169: Current Account 1 | F169: -462.71 | G169: =IFERROR(VLOOKUP(Table_Query_from_SageLine50v19[[#This Row],[DEPT_NUMBER]],DR_ODBC_DEPT,2,FALSE),"Not Found") -> Default | H169: 000 - Default | I169: 1800 - Current Account 1 | J169: =IF(SageData_COMP!$H$2,IF(Table_Query_from_SageLine50v19[[#This Row],[DATE]]<=Report!$B$4,EOMONTH(Report!$B$4,-1),EOMONTH(Table_Query_from_SageLine50v19[[#This Row],[DATE]],0)),EOMONTH(Table_Query_from_SageLine50v19[[#This Row],[DATE]],0)) -> 2026-02-28
A170: 1800 | B170: 2026-02-03 | C170: BP | D170: 0 | E170: Current Account 1 | F170: -6.94 | G170: =IFERROR(VLOOKUP(Table_Query_from_SageLine50v19[[#This Row],[DEPT_NUMBER]],DR_ODBC_DEPT,2,FALSE),"Not Found") -> Default | H170: 000 - Default | I170: 1800 - Current Account 1 | J170: =IF(SageData_COMP!$H$2,IF(Table_Query_from_SageLine50v19[[#This Row],[DATE]]<=Report!$B$4,EOMONTH(Report!$B$4,-1),EOMONTH(Table_Query_from_SageLine50v19[[#This Row],[DATE]],0)),EOMONTH(Table_Query_from_SageLine50v19[[#This Row],[DATE]],0)) -> 2026-02-28
A171: 1800 | B171: 2026-02-10 | C171: BP | D171: 17 | E171: Current Account 1 | F171: -617.94 | G171: =IFERROR(VLOOKUP(Table_Query_from_SageLine50v19[[#This Row],[DEPT_NUMBER]],DR_ODBC_DEPT,2,FALSE),"Not Found") -> Caretaker Grant | H171: 017 - Caretaker Grant | I171: 1800 - Current Account 1 | J171: =IF(SageData_COMP!$H$2,IF(Table_Query_from_SageLine50v19[[#This Row],[DATE]]<=Report!$B$4,EOMONTH(Report!$B$4,-1),EOMONTH(Table_Query_from_SageLine50v19[[#This Row],[DATE]],0)),EOMONTH(Table_Query_from_SageLine50v19[[#This Row],[DATE]],0)) -> 2026-02-28
A172: 1800 | B172: 2026-02-10 | C172: BP | D172: 17 | E172: Current Account 1 | F172: -9.27 | G172: =IFERROR(VLOOKUP(Table_Query_from_SageLine50v19[[#This Row],[DEPT_NUMBER]],DR_ODBC_DEPT,2,FALSE),"Not Found") -> Caretaker Grant | H172: 017 - Caretaker Grant | I172: 1800 - Current Account 1 | J172: =IF(SageData_COMP!$H$2,IF(Table_Query_from_SageLine50v19[[#This Row],[DATE]]<=Report!$B$4,EOMONTH(Report!$B$4,-1),EOMONTH(Table_Query_from_SageLine50v19[[#This Row],[DATE]],0)),EOMONTH(Table_Query_from_SageLine50v19[[#This Row],[DATE]],0)) -> 2026-02-28
A173: 1800 | B173: 2026-02-10 | C173: BP | D173: 0 | E173: Current Account 1 | F173: -462.71 | G173: =IFERROR(VLOOKUP(Table_Query_from_SageLine50v19[[#This Row],[DEPT_NUMBER]],DR_ODBC_DEPT,2,FALSE),"Not Found") -> Default | H173: 000 - Default | I173: 1800 - Current Account 1 | J173: =IF(SageData_COMP!$H$2,IF(Table_Query_from_SageLine50v19[[#This Row],[DATE]]<=Report!$B$4,EOMONTH(Report!$B$4,-1),EOMONTH(Table_Query_from_SageLine50v19[[#This Row],[DATE]],0)),EOMONTH(Table_Query_from_SageLine50v19[[#This Row],[DATE]],0)) -> 2026-02-28
A174: 1800 | B174: 2026-02-10 | C174: BP | D174: 0 | E174: Current Account 1 | F174: -6.94 | G174: =IFERROR(VLOOKUP(Table_Query_from_SageLine50v19[[#This Row],[DEPT_NUMBER]],DR_ODBC_DEPT,2,FALSE),"Not Found") -> Default | H174: 000 - Default | I174: 1800 - Current Account 1 | J174: =IF(SageData_COMP!$H$2,IF(Table_Query_from_SageLine50v19[[#This Row],[DATE]]<=Report!$B$4,EOMONTH(Report!$B$4,-1),EOMONTH(Table_Query_from_SageLine50v19[[#This Row],[DATE]],0)),EOMONTH(Table_Query_from_SageLine50v19[[#This Row],[DATE]],0)) -> 2026-02-28
A175: 1800 | B175: 2026-02-17 | C175: BP | D175: 17 | E175: Current Account 1 | F175: -617.94 | G175: =IFERROR(VLOOKUP(Table_Query_from_SageLine50v19[[#This Row],[DEPT_NUMBER]],DR_ODBC_DEPT,2,FALSE),"Not Found") -> Caretaker Grant | H175: 017 - Caretaker Grant | I175: 1800 - Current Account 1 | J175: =IF(SageData_COMP!$H$2,IF(Table_Query_from_SageLine50v19[[#This Row],[DATE]]<=Report!$B$4,EOMONTH(Report!$B$4,-1),EOMONTH(Table_Query_from_SageLine50v19[[#This Row],[DATE]],0)),EOMONTH(Table_Query_from_SageLine50v19[[#This Row],[DATE]],0)) -> 2026-02-28
A176: 1800 | B176: 2026-02-17 | C176: BP | D176: 17 | E176: Current Account 1 | F176: -9.27 | G176: =IFERROR(VLOOKUP(Table_Query_from_SageLine50v19[[#This Row],[DEPT_NUMBER]],DR_ODBC_DEPT,2,FALSE),"Not Found") -> Caretaker Grant | H176: 017 - Caretaker Grant | I176: 1800 - Current Account 1 | J176: =IF(SageData_COMP!$H$2,IF(Table_Query_from_SageLine50v19[[#This Row],[DATE]]<=Report!$B$4,EOMONTH(Report!$B$4,-1),EOMONTH(Table_Query_from_SageLine50v19[[#This Row],[DATE]],0)),EOMONTH(Table_Query_from_SageLine50v19[[#This Row],[DATE]],0)) -> 2026-02-28
A177: 1800 | B177: 2026-02-17 | C177: BP | D177: 0 | E177: Current Account 1 | F177: -462.71 | G177: =IFERROR(VLOOKUP(Table_Query_from_SageLine50v19[[#This Row],[DEPT_NUMBER]],DR_ODBC_DEPT,2,FALSE),"Not Found") -> Default | H177: 000 - Default | I177: 1800 - Current Account 1 | J177: =IF(SageData_COMP!$H$2,IF(Table_Query_from_SageLine50v19[[#This Row],[DATE]]<=Report!$B$4,EOMONTH(Report!$B$4,-1),EOMONTH(Table_Query_from_SageLine50v19[[#This Row],[DATE]],0)),EOMONTH(Table_Query_from_SageLine50v19[[#This Row],[DATE]],0)) -> 2026-02-28
A178: 1800 | B178: 2026-02-17 | C178: BP | D178: 0 | E178: Current Account 1 | F178: -6.94 | G178: =IFERROR(VLOOKUP(Table_Query_from_SageLine50v19[[#This Row],[DEPT_NUMBER]],DR_ODBC_DEPT,2,FALSE),"Not Found") -> Default | H178: 000 - Default | I178: 1800 - Current Account 1 | J178: =IF(SageData_COMP!$H$2,IF(Table_Query_from_SageLine50v19[[#This Row],[DATE]]<=Report!$B$4,EOMONTH(Report!$B$4,-1),EOMONTH(Table_Query_from_SageLine50v19[[#This Row],[DATE]],0)),EOMONTH(Table_Query_from_SageLine50v19[[#This Row],[DATE]],0)) -> 2026-02-28
A179: 1800 | B179: 2026-02-24 | C179: BP | D179: 17 | E179: Current Account 1 | F179: -617.94 | G179: =IFERROR(VLOOKUP(Table_Query_from_SageLine50v19[[#This Row],[DEPT_NUMBER]],DR_ODBC_DEPT,2,FALSE),"Not Found") -> Caretaker Grant | H179: 017 - Caretaker Grant | I179: 1800 - Current Account 1 | J179: =IF(SageData_COMP!$H$2,IF(Table_Query_from_SageLine50v19[[#This Row],[DATE]]<=Report!$B$4,EOMONTH(Report!$B$4,-1),EOMONTH(Table_Query_from_SageLine50v19[[#This Row],[DATE]],0)),EOMONTH(Table_Query_from_SageLine50v19[[#This Row],[DATE]],0)) -> 2026-02-28
A180: 1800 | B180: 2026-02-24 | C180: BP | D180: 17 | E180: Current Account 1 | F180: -9.27 | G180: =IFERROR(VLOOKUP(Table_Query_from_SageLine50v19[[#This Row],[DEPT_NUMBER]],DR_ODBC_DEPT,2,FALSE),"Not Found") -> Caretaker Grant | H180: 017 - Caretaker Grant | I180: 1800 - Current Account 1 | J180: =IF(SageData_COMP!$H$2,IF(Table_Query_from_SageLine50v19[[#This Row],[DATE]]<=Report!$B$4,EOMONTH(Report!$B$4,-1),EOMONTH(Table_Query_from_SageLine50v19[[#This Row],[DATE]],0)),EOMONTH(Table_Query_from_SageLine50v19[[#This Row],[DATE]],0)) -> 2026-02-28
A181: 1800 | B181: 2026-02-24 | C181: BP | D181: 0 | E181: Current Account 1 | F181: -462.71 | G181: =IFERROR(VLOOKUP(Table_Query_from_SageLine50v19[[#This Row],[DEPT_NUMBER]],DR_ODBC_DEPT,2,FALSE),"Not Found") -> Default | H181: 000 - Default | I181: 1800 - Current Account 1 | J181: =IF(SageData_COMP!$H$2,IF(Table_Query_from_SageLine50v19[[#This Row],[DATE]]<=Report!$B$4,EOMONTH(Report!$B$4,-1),EOMONTH(Table_Query_from_SageLine50v19[[#This Row],[DATE]],0)),EOMONTH(Table_Query_from_SageLine50v19[[#This Row],[DATE]],0)) -> 2026-02-28
A182: 1800 | B182: 2026-02-24 | C182: BP | D182: 0 | E182: Current Account 1 | F182: -6.94 | G182: =IFERROR(VLOOKUP(Table_Query_from_SageLine50v19[[#This Row],[DEPT_NUMBER]],DR_ODBC_DEPT,2,FALSE),"Not Found") -> Default | H182: 000 - Default | I182: 1800 - Current Account 1 | J182: =IF(SageData_COMP!$H$2,IF(Table_Query_from_SageLine50v19[[#This Row],[DATE]]<=Report!$B$4,EOMONTH(Report!$B$4,-1),EOMONTH(Table_Query_from_SageLine50v19[[#This Row],[DATE]],0)),EOMONTH(Table_Query_from_SageLine50v19[[#This Row],[DATE]],0)) -> 2026-02-28
A183: 1800 | B183: 2026-03-03 | C183: BP | D183: 17 | E183: Current Account 1 | F183: -617.94 | G183: =IFERROR(VLOOKUP(Table_Query_from_SageLine50v19[[#This Row],[DEPT_NUMBER]],DR_ODBC_DEPT,2,FALSE),"Not Found") -> Caretaker Grant | H183: 017 - Caretaker Grant | I183: 1800 - Current Account 1 | J183: =IF(SageData_COMP!$H$2,IF(Table_Query_from_SageLine50v19[[#This Row],[DATE]]<=Report!$B$4,EOMONTH(Report!$B$4,-1),EOMONTH(Table_Query_from_SageLine50v19[[#This Row],[DATE]],0)),EOMONTH(Table_Query_from_SageLine50v19[[#This Row],[DATE]],0)) -> 2026-03-31
A184: 1800 | B184: 2026-03-03 | C184: BP | D184: 17 | E184: Current Account 1 | F184: -9.27 | G184: =IFERROR(VLOOKUP(Table_Query_from_SageLine50v19[[#This Row],[DEPT_NUMBER]],DR_ODBC_DEPT,2,FALSE),"Not Found") -> Caretaker Grant | H184: 017 - Caretaker Grant | I184: 1800 - Current Account 1 | J184: =IF(SageData_COMP!$H$2,IF(Table_Query_from_SageLine50v19[[#This Row],[DATE]]<=Report!$B$4,EOMONTH(Report!$B$4,-1),EOMONTH(Table_Query_from_SageLine50v19[[#This Row],[DATE]],0)),EOMONTH(Table_Query_from_SageLine50v19[[#This Row],[DATE]],0)) -> 2026-03-31
A185: 1800 | B185: 2026-03-03 | C185: BP | D185: 0 | E185: Current Account 1 | F185: -4612.71 | G185: =IFERROR(VLOOKUP(Table_Query_from_SageLine50v19[[#This Row],[DEPT_NUMBER]],DR_ODBC_DEPT,2,FALSE),"Not Found") -> Default | H185: 000 - Default | I185: 1800 - Current Account 1 | J185: =IF(SageData_COMP!$H$2,IF(Table_Query_from_SageLine50v19[[#This Row],[DATE]]<=Report!$B$4,EOMONTH(Report!$B$4,-1),EOMONTH(Table_Query_from_SageLine50v19[[#This Row],[DATE]],0)),EOMONTH(Table_Query_from_SageLine50v19[[#This Row],[DATE]],0)) -> 2026-03-31
A186: 1800 | B186: 2026-03-03 | C186: BP | D186: 0 | E186: Current Account 1 | F186: -6.94 | G186: =IFERROR(VLOOKUP(Table_Query_from_SageLine50v19[[#This Row],[DEPT_NUMBER]],DR_ODBC_DEPT,2,FALSE),"Not Found") -> Default | H186: 000 - Default | I186: 1800 - Current Account 1 | J186: =IF(SageData_COMP!$H$2,IF(Table_Query_from_SageLine50v19[[#This Row],[DATE]]<=Report!$B$4,EOMONTH(Report!$B$4,-1),EOMONTH(Table_Query_from_SageLine50v19[[#This Row],[DATE]],0)),EOMONTH(Table_Query_from_SageLine50v19[[#This Row],[DATE]],0)) -> 2026-03-31
A187: 1800 | B187: 2026-03-10 | C187: BP | D187: 17 | E187: Current Account 1 | F187: -617.94 | G187: =IFERROR(VLOOKUP(Table_Query_from_SageLine50v19[[#This Row],[DEPT_NUMBER]],DR_ODBC_DEPT,2,FALSE),"Not Found") -> Caretaker Grant | H187: 017 - Caretaker Grant | I187: 1800 - Current Account 1 | J187: =IF(SageData_COMP!$H$2,IF(Table_Query_from_SageLine50v19[[#This Row],[DATE]]<=Report!$B$4,EOMONTH(Report!$B$4,-1),EOMONTH(Table_Query_from_SageLine50v19[[#This Row],[DATE]],0)),EOMONTH(Table_Query_from_SageLine50v19[[#This Row],[DATE]],0)) -> 2026-03-31
A188: 1800 | B188: 2026-03-10 | C188: BP | D188: 17 | E188: Current Account 1 | F188: -9.27 | G188: =IFERROR(VLOOKUP(Table_Query_from_SageLine50v19[[#This Row],[DEPT_NUMBER]],DR_ODBC_DEPT,2,FALSE),"Not Found") -> Caretaker Grant | H188: 017 - Caretaker Grant | I188: 1800 - Current Account 1 | J188: =IF(SageData_COMP!$H$2,IF(Table_Query_from_SageLine50v19[[#This Row],[DATE]]<=Report!$B$4,EOMONTH(Report!$B$4,-1),EOMONTH(Table_Query_from_SageLine50v19[[#This Row],[DATE]],0)),EOMONTH(Table_Query_from_SageLine50v19[[#This Row],[DATE]],0)) -> 2026-03-31
A189: 1800 | B189: 2026-03-10 | C189: BP | D189: 0 | E189: Current Account 1 | F189: -462.71 | G189: =IFERROR(VLOOKUP(Table_Query_from_SageLine50v19[[#This Row],[DEPT_NUMBER]],DR_ODBC_DEPT,2,FALSE),"Not Found") -> Default | H189: 000 - Default | I189: 1800 - Current Account 1 | J189: =IF(SageData_COMP!$H$2,IF(Table_Query_from_SageLine50v19[[#This Row],[DATE]]<=Report!$B$4,EOMONTH(Report!$B$4,-1),EOMONTH(Table_Query_from_SageLine50v19[[#This Row],[DATE]],0)),EOMONTH(Table_Query_from_SageLine50v19[[#This Row],[DATE]],0)) -> 2026-03-31
A190: 1800 | B190: 2026-03-10 | C190: BP | D190: 0 | E190: Current Account 1 | F190: -6.94 | G190: =IFERROR(VLOOKUP(Table_Query_from_SageLine50v19[[#This Row],[DEPT_NUMBER]],DR_ODBC_DEPT,2,FALSE),"Not Found") -> Default | H190: 000 - Default | I190: 1800 - Current Account 1 | J190: =IF(SageData_COMP!$H$2,IF(Table_Query_from_SageLine50v19[[#This Row],[DATE]]<=Report!$B$4,EOMONTH(Report!$B$4,-1),EOMONTH(Table_Query_from_SageLine50v19[[#This Row],[DATE]],0)),EOMONTH(Table_Query_from_SageLine50v19[[#This Row],[DATE]],0)) -> 2026-03-31
A191: 1800 | B191: 2026-03-17 | C191: BP | D191: 17 | E191: Current Account 1 | F191: -617.94 | G191: =IFERROR(VLOOKUP(Table_Query_from_SageLine50v19[[#This Row],[DEPT_NUMBER]],DR_ODBC_DEPT,2,FALSE),"Not Found") -> Caretaker Grant | H191: 017 - Caretaker Grant | I191: 1800 - Current Account 1 | J191: =IF(SageData_COMP!$H$2,IF(Table_Query_from_SageLine50v19[[#This Row],[DATE]]<=Report!$B$4,EOMONTH(Report!$B$4,-1),EOMONTH(Table_Query_from_SageLine50v19[[#This Row],[DATE]],0)),EOMONTH(Table_Query_from_SageLine50v19[[#This Row],[DATE]],0)) -> 2026-03-31
A192: 1800 | B192: 2026-03-17 | C192: BP | D192: 17 | E192: Current Account 1 | F192: -9.27 | G192: =IFERROR(VLOOKUP(Table_Query_from_SageLine50v19[[#This Row],[DEPT_NUMBER]],DR_ODBC_DEPT,2,FALSE),"Not Found") -> Caretaker Grant | H192: 017 - Caretaker Grant | I192: 1800 - Current Account 1 | J192: =IF(SageData_COMP!$H$2,IF(Table_Query_from_SageLine50v19[[#This Row],[DATE]]<=Report!$B$4,EOMONTH(Report!$B$4,-1),EOMONTH(Table_Query_from_SageLine50v19[[#This Row],[DATE]],0)),EOMONTH(Table_Query_from_SageLine50v19[[#This Row],[DATE]],0)) -> 2026-03-31
A193: 1800 | B193: 2026-03-17 | C193: BP | D193: 0 | E193: Current Account 1 | F193: -4162.71 | G193: =IFERROR(VLOOKUP(Table_Query_from_SageLine50v19[[#This Row],[DEPT_NUMBER]],DR_ODBC_DEPT,2,FALSE),"Not Found") -> Default | H193: 000 - Default | I193: 1800 - Current Account 1 | J193: =IF(SageData_COMP!$H$2,IF(Table_Query_from_SageLine50v19[[#This Row],[DATE]]<=Report!$B$4,EOMONTH(Report!$B$4,-1),EOMONTH(Table_Query_from_SageLine50v19[[#This Row],[DATE]],0)),EOMONTH(Table_Query_from_SageLine50v19[[#This Row],[DATE]],0)) -> 2026-03-31
A194: 1800 | B194: 2026-03-17 | C194: BP | D194: 0 | E194: Current Account 1 | F194: -6.94 | G194: =IFERROR(VLOOKUP(Table_Query_from_SageLine50v19[[#This Row],[DEPT_NUMBER]],DR_ODBC_DEPT,2,FALSE),"Not Found") -> Default | H194: =CONCATENATE(TEXT(D194,"000")," - ",G194) -> 000 - Default | I194: =CONCATENATE(A194," - ",E194) -> 1800 - Current Account 1 | J194: =IF(SageData_COMP!$H$2,IF(Table_Query_from_SageLine50v19[[#This Row],[DATE]]<=Report!$B$4,EOMONTH(Report!$B$4,-1),EOMONTH(Table_Query_from_SageLine50v19[[#This Row],[DATE]],0)),EOMONTH(Table_Query_from_SageLine50v19[[#This Row],[DATE]],0)) -> 2026-03-31
A195: 1800 | B195: 2026-03-24 | C195: BP | D195: 17 | E195: Current Account 1 | F195: -617.94 | G195: =IFERROR(VLOOKUP(Table_Query_from_SageLine50v19[[#This Row],[DEPT_NUMBER]],DR_ODBC_DEPT,2,FALSE),"Not Found") -> Caretaker Grant | H195: 017 - Caretaker Grant | I195: 1800 - Current Account 1 | J195: =IF(SageData_COMP!$H$2,IF(Table_Query_from_SageLine50v19[[#This Row],[DATE]]<=Report!$B$4,EOMONTH(Report!$B$4,-1),EOMONTH(Table_Query_from_SageLine50v19[[#This Row],[DATE]],0)),EOMONTH(Table_Query_from_SageLine50v19[[#This Row],[DATE]],0)) -> 2026-03-31
A196: 1800 | B196: 2026-03-24 | C196: BP | D196: 17 | E196: Current Account 1 | F196: -9.27 | G196: =IFERROR(VLOOKUP(Table_Query_from_SageLine50v19[[#This Row],[DEPT_NUMBER]],DR_ODBC_DEPT,2,FALSE),"Not Found") -> Caretaker Grant | H196: 017 - Caretaker Grant | I196: 1800 - Current Account 1 | J196: =IF(SageData_COMP!$H$2,IF(Table_Query_from_SageLine50v19[[#This Row],[DATE]]<=Report!$B$4,EOMONTH(Report!$B$4,-1),EOMONTH(Table_Query_from_SageLine50v19[[#This Row],[DATE]],0)),EOMONTH(Table_Query_from_SageLine50v19[[#This Row],[DATE]],0)) -> 2026-03-31
A197: 1800 | B197: 2026-03-24 | C197: BP | D197: 0 | E197: Current Account 1 | F197: -462.71 | G197: =IFERROR(VLOOKUP(Table_Query_from_SageLine50v19[[#This Row],[DEPT_NUMBER]],DR_ODBC_DEPT,2,FALSE),"Not Found") -> Default | H197: 000 - Default | I197: 1800 - Current Account 1 | J197: =IF(SageData_COMP!$H$2,IF(Table_Query_from_SageLine50v19[[#This Row],[DATE]]<=Report!$B$4,EOMONTH(Report!$B$4,-1),EOMONTH(Table_Query_from_SageLine50v19[[#This Row],[DATE]],0)),EOMONTH(Table_Query_from_SageLine50v19[[#This Row],[DATE]],0)) -> 2026-03-31
A198: 1800 | B198: 2026-03-24 | C198: BP | D198: 0 | E198: Current Account 1 | F198: -6.94 | G198: =IFERROR(VLOOKUP(Table_Query_from_SageLine50v19[[#This Row],[DEPT_NUMBER]],DR_ODBC_DEPT,2,FALSE),"Not Found") -> Default | H198: 000 - Default | I198: 1800 - Current Account 1 | J198: =IF(SageData_COMP!$H$2,IF(Table_Query_from_SageLine50v19[[#This Row],[DATE]]<=Report!$B$4,EOMONTH(Report!$B$4,-1),EOMONTH(Table_Query_from_SageLine50v19[[#This Row],[DATE]],0)),EOMONTH(Table_Query_from_SageLine50v19[[#This Row],[DATE]],0)) -> 2026-03-31
A199: 1800 | B199: 2026-03-31 | C199: BP | D199: 17 | E199: Current Account 1 | F199: -617.94 | G199: =IFERROR(VLOOKUP(Table_Query_from_SageLine50v19[[#This Row],[DEPT_NUMBER]],DR_ODBC_DEPT,2,FALSE),"Not Found") -> Caretaker Grant | H199: 017 - Caretaker Grant | I199: 1800 - Current Account 1 | J199: =IF(SageData_COMP!$H$2,IF(Table_Query_from_SageLine50v19[[#This Row],[DATE]]<=Report!$B$4,EOMONTH(Report!$B$4,-1),EOMONTH(Table_Query_from_SageLine50v19[[#This Row],[DATE]],0)),EOMONTH(Table_Query_from_SageLine50v19[[#This Row],[DATE]],0)) -> 2026-03-31
A200: 1800 | B200: 2026-03-31 | C200: BP | D200: 17 | E200: Current Account 1 | F200: -9.27 | G200: =IFERROR(VLOOKUP(Table_Query_from_SageLine50v19[[#This Row],[DEPT_NUMBER]],DR_ODBC_DEPT,2,FALSE),"Not Found") -> Caretaker Grant | H200: 017 - Caretaker Grant | I200: 1800 - Current Account 1 | J200: =IF(SageData_COMP!$H$2,IF(Table_Query_from_SageLine50v19[[#This Row],[DATE]]<=Report!$B$4,EOMONTH(Report!$B$4,-1),EOMONTH(Table_Query_from_SageLine50v19[[#This Row],[DATE]],0)),EOMONTH(Table_Query_from_SageLine50v19[[#This Row],[DATE]],0)) -> 2026-03-31
... 1014 more rows

Sheet xlRDS
A1: C:\PROGRAMDATA\SAGE\ACCOUNTS\2023\COMPANY.001 | B1: =IF(A1<>"",IF(RIGHT(A1,1)="\",A1&"Accdata",A1&"\Accdata"),"") -> C:\PROGRAMDATA\SAGE\ACCOUNTS\2023\COMPANY.001\Accdata | C1: 1 - FSSU DEMO | D1: C:\PROGRAMDATA\SAGE\ACCOUNTS\2023\COMPANY.001\Accdata | E1: 4 | F1: =IF(E1<8,E1,8) -> 4 | G1: companynamelist | H1: ODBC Driver List | I1: Status | J1: Rank | K1: Version | L1: DSN Name | M1: Version | N1: Year | Q1: Installed | R1: Company File Path | T1: Chosen DSN | U1: AllUserPath | V1: DSN Name2 | W1: Copy Version | X1: Please Select Sage Version | Y1: No of Versions | AA1: QueryName | AB1: In Use | AC1: Adhoc | AD1: SheetName | AE1: DataRange | AF1: Valid DataRange? | AG1: Connection String | AH1: NotUsed | AI1: Save Pwd | AJ1: DSNPos | AK1: DSNEnd | AL1: DSN | AM1: UIDPos | AN1: UIDEnd | AO1: UID | AP1: NewUID | AQ1: PWDPos | AR1: PWDEnd | AS1: PWD | AT1: NewPWD | AU1: NewSavePWD | AV1: DIRPos | AW1: DIREnd | AX1: DIR | AY1: NewDir | AZ1: RefreshDIR | BA1: ODBC Name | BB1: Chosen ODBC | BC1: Correct | BD1: NewDSN | BE1: (31) NewConnectionString | BF1: (32) MatchCurrent | BG1: QueryName | BH1: In Use | BI1: Adhoc | BJ1: SheetName | BK1: DataRange | BL1: Valid DataRange? | BM1: Table Version | BN1: No of DataLines | BO1: For Pivot | BP1: Valid DSN | BQ1: CalcSheetName | BR1: StartCol | BS1: EndCol | CB1: Description | CC1: Current Value | CD1: Default Value | CE1: In Use | CF1: Object Type | CG1: .Caption | CH1: .Default | CI1: .Enabled | CJ1: .Height | CK1: .Left | CL1: .List | CM1: .ListRows | CN1: .Locked | CO1: .MaxLength | CP1: .Name | CQ1: .PasswordChar | CR1: .RowSource | CS1: .Tag | CT1: .Text | CU1: .Top | CV1: .Value | CW1: .Visible | CX1: .Width | CY1: CreatedName | CZ1: New Row | DA1: Row Used | DB1: NextTab | DC1: UseNextTab | DD1: MaxWidth | DF1: Decimal Formats | DH1: Percentage Formats | DJ1: Currency Formats | EA1: Field Position | EB1: Caption | EC1: SourceName | ED1: Orientation | EE1: Area | EF1: Position | EG1: Soruce Column | EH1: Comments | EK1: [ARCHIVE0] | EL1: Archive No | EM1: Date Archived | EN1: Desc of Archive | EO1: Folder | EP1: ValidArchive
A2: C:\PROGRAMDATA\SAGE\ACCOUNTS\2023\COMPANY.003 | B2: =IF(A2<>"",IF(RIGHT(A2,1)="\",A2&"Accdata",A2&"\Accdata"),"") -> C:\PROGRAMDATA\SAGE\ACCOUNTS\2023\COMPANY.003\Accdata | C2: 2 - Demo Data | D2: C:\PROGRAMDATA\SAGE\ACCOUNTS\2023\COMPANY.003\Accdata | H2: Sage Line 50 v33 | I2: Installed | J2: =IF(K2<>"",RANK(K2,K$2:K$20,0),"") -> 1 | K2: =IF(I2="Installed",IF(LEFT(RIGHT(H2,2),1)="v",VALUE(RIGHT(H2,1)),VALUE(RIGHT(H2,2))),"") -> 33 | L2: =IF(M2<>"","Sage Line 50 v"&TEXT(M2,"0"),"") -> Sage Line 50 v33 | M2: =IF(ISNA(VLOOKUP(ROW(L1),J$2:K$20,2,FALSE)),"",VLOOKUP(ROW(L1),J$2:K$20,2,FALSE)) -> 33 | N2: =IF(M2<>"",DATE(1994+M2,5,1),"") -> 2027-05-01 | Q2: =IF(ISNA(VLOOKUP(L2,$H$2:$I$20,2,FALSE)),"","Installed") -> Installed | R2: =IF(M2<>"",IF(M2>=$U$16,"\Sage\accounts\"&TEXT(N2,"yyyy")&"\company.","Support Ended"),"") -> \Sage\accounts\2027\company. | T2: =IF($M$16=L2,TRUE,FALSE) -> TRUE | U2: =IF(T2,IF(M2<=13,R2,$U$20&R2),"") -> C:\ProgramData\Sage\accounts\2027\company. | V2: =IF(M2<>"",SUBSTITUTE(L2," ",""),"") -> SageLine50v33 | W2: =L2 -> Sage Line 50 v33 | X2: =IF(AND(Q2="Installed",M2>=$U$16),L2,"") -> Sage Line 50 v33 | Y2: =IF(X10<>"",10,IF(X9<>"",9,IF(X8<>"",8,IF(X7<>"",7,IF(X6<>"",6,IF(X5<>"",5,IF(X4<>"",4,IF(X3<>"",3,2)))))))) -> 2 | AA2: =IF(BG2<>"",BG2,"") ->  | AB2: Yes | AC2: Yes | AD2: SageData_COMP | AE2: DR_ODBC_COMPANY | AF2: =IF(BL2<>"",BL2,FALSE) -> TRUE | AG2: ODBC;DSN=SageLine50v33;UID=manager;PWD=FSSU;;DIR=C:\PROGRAMDATA\SAGE\ACCOUNTS\2025\COMPANY.001\Accdata; | AI2: TRUE | AJ2: =IF(ISERR(FIND("DSN=",$AG2,5)),"",FIND("DSN=",$AG2,5)) -> 6 | AK2: =IF(AJ2<>"",FIND(";",$AG2,AJ2),"") -> 23 | AL2: =IF(AJ2<>"",MID($AG2,AJ2+4,(AK2-(AJ2+4))),"") -> SageLine50v33 | AM2: =IF(ISERR(FIND("UID=",$AG2,5)),"",FIND("UID=",$AG2,5)) -> 24 | AN2: =IF(AM2<>"",FIND(";",$AG2,AM2),"") -> 35 | AO2: =IF(AM2<>"",MID($AG2,AM2+4,(AN2-(AM2+4))),"") -> manager | AP2: =IF(AG2="","",IF($M$14="",";","UID="&$M$14&";")) -> UID=manager; | AQ2: =IF(ISERR(FIND("PWD=",$AG2,5)),"",FIND("PWD=",$AG2,5)) -> 36 | AR2: =IF(AQ2<>"",FIND(";",$AG2,AQ2),"") -> 44 | AS2: =IF(AQ2<>"",MID($AG2,AQ2+4,(AR2-(AQ2+4))),"") -> FSSU | AT2: =IF(AG2="","",IF($M$15="","","PWD="&$M$15&";")) -> PWD=FSSU; | AU2: =IF(AG2<>"",$N$15,"") -> TRUE | AV2: =IF(ISERR(FIND("DIR=",$AG2,5)),"",FIND("DIR=",$AG2,5)) -> 46 | AW2: =IF(AV2<>"",FIND(";",$AG2,AV2),"") -> 103 | AX2: =IF(AV2<>"",MID($AG2,AV2+4,(AW2-(AV2+4))),"") -> C:\PROGRAMDATA\SAGE\ACCOUNTS\2025\COMPANY.001\Accdata | AY2: =IF(AG2<>"","DIR="&$N$18&";","") -> DIR=C:\PROGRAMDATA\SAGE\ACCOUNTS\2025\COMPANY.001\Accdata; | AZ2: =IF(AG2<>"",IF(AX2=MID(AY2,5,LEN(AY2)-5),0,1),"") -> 0 | BA2: =IF(AG2<>"",IF(ISNA(VLOOKUP(AL2,$V$2:$W$10,2,FALSE)),"Invalid ODBC",VLOOKUP(AL2,$V$2:$W$10,2,FALSE)),"") -> Sage Line 50 v33 | BB2: =IF(AG2="","",$M$16) -> Sage Line 50 v33 | BC2: =IF(AG2="","",BA2=BB2) -> TRUE | BD2: =IF(AG2="","",IF(ISNA(VLOOKUP(BB2,$L$2:$X$10,11,FALSE)),"Invalid New DSN",VLOOKUP(BB2,$L$2:$X$10,11,FALSE))) -> SageLine50v33 | BE2: =IF(AG2<>"","ODBC;DSN="&BD2&";"&AP2&AT2&";"&AY2,"") -> ODBC;DSN=SageLine50v33;UID=manager;PWD=FSSU;;DIR=C:\PROGRAMDATA\SAGE\ACCOUNTS\2025\COMPANY.001\Accdata; | BF2: =IF(AB2="Yes",IF(BA2="Invalid ODBC",FALSE,BE2=AG2),"") -> TRUE | BH2: Yes | BI2: Yes | BJ2: SageData_COMP | BK2: DR_ODBC_COMPANY | BL2: =IF(AND(BJ2<>"",BK2<>""),AND(NOT(ISERR(INDIRECT("'"&BJ2&"'!A1"))),NOT(ISERR(ROW(BK2)))),"") -> TRUE | BM2: 2003 | BN2: =IF(BO2=TRUE,COUNTA(INDIRECT("'"&BJ2&"'!A:A")),"") ->  | BP2: =IF(AG2<>"",IF(BD2<>"Invalid New DSN",TRUE,FALSE),"") -> TRUE | BR2: =IF(BQ2<>"",BS2-COUNTA(INDIRECT(CONCATENATE("'",BQ2,"'!$2:$2"),TRUE))+1,"") ->  | BS2: =IF(BQ2<>"",COUNTA(INDIRECT(CONCATENATE("'",BQ2,"'!$1:$1"),TRUE)),"") ->  | CB2: =IF(CY2<>"",CY2,"") -> LabelConnectionsToData | CE2: TRUE | CF2: Label | CG2: Steps to connect to the sage data for the first time or when an update to the PC has occurred. | CI2: TRUE | CJ2: 20 | CK2: =IF(CE2,IF(CZ2,IF(DC2,DB2,10),CK1+CX1+10),CK1) -> 10 | CP2: =IF(CY2<>"",CY2,"") -> LabelConnectionsToData | CS2: CriteriaTitle | CU2: =IF(ROW(CU2)=2,$CC$101-($CC$101/2),IF(CE2=TRUE,(DA2*$CC$101)-($CC$101/2)-((CF2="CommandButton")*($CC$101/4)),CU1)) -> 18 | CW2: =IF(CE2=TRUE,TRUE,FALSE) -> TRUE | CX2: 450 | CY2: LabelConnectionsToData | CZ2: TRUE | DA2: =IF(CW2,IF(ROW(DA2)=2,1,IF(CZ2,DA1+1,DA1)),DA1) -> 1 | DB2: 0 | DC2: FALSE | DD2: =IF(CW2,CK2+CX2+20,0) -> 480 | DF2: #,##0.00_);(#,##0.00);-_) | DH2: 0%;-0%;-_% | DJ2: £#,##0.00_);(£#,##0.00);-_) | EA2: =IF(EB2<>"",IF(ISNA(MATCH(EC2,INDIRECT("'"&OFFSET(xlRDS!$BO$1,MATCH(TRUE,xlRDS!$BO:$BO,0)-1,-5,1,1)&"'!$1:$1"),0)),"Calculated",MATCH(EC2,INDIRECT("'"&OFFSET(xlRDS!$BO$1,MATCH(TRUE,xlRDS!$BO:$BO,0)-1,-5,1,1)&"'!$1:$1"),0)),"") ->  | EK2: DATE=15688 | EL2: =IF(OFFSET($EL$1,(ROW(EL2)-2)*4+1-1,-1,1,1)="","",OFFSET($EL$1,(ROW(EL2)-2)*4+1-1,-1,1,1)) -> [ARCHIVE0] | EM2: =IF(EL2<>"",VALUE(RIGHT(OFFSET($EL$1,(ROW(EM2)-2)*4+2-1,-1,1,1),LEN(OFFSET($EL$1,(ROW(EM2)-2)*4+2-1,-1,1,1))-5))+25568,"") -> 2012-12-13 | EN2: =IF(EL2<>"",RIGHT(OFFSET($EL$1,(ROW(EN2)-2)*4+3-1,-1,1,1),LEN(OFFSET($EL$1,(ROW(EN2)-2)*4+3-1,-1,1,1))-5),"") -> Year End 2009 | EO2: =IF(EL2<>"",RIGHT(OFFSET($EL$1,(ROW(EO2)-2)*4+4-1,-1,1,1),LEN(OFFSET($EL$1,(ROW(EO2)-2)*4+4-1,-1,1,1))-7),"") -> 2009 | EP2: =IFERROR(IF(EN2<>"",1,""),0) -> 1
A3: C:\PROGRAMDATA\SAGE\ACCOUNTS\2025\COMPANY.001 | B3: C:\PROGRAMDATA\SAGE\ACCOUNTS\2025\COMPANY.001\Accdata | C3: 3 - FSSU Master Chart of accounts New Dataset 2024 2025 | D3: C:\PROGRAMDATA\SAGE\ACCOUNTS\2025\COMPANY.001\Accdata | R3: =IF(M3<>"",IF(M3>=$U$16,"\Sage\accounts\"&TEXT(N3,"yyyy")&"\company.","Support Ended"),"") ->  | T3: FALSE | U3: =IF(T3,IF(M3<=13,R3,$U$20&R3),"") ->  | X3: =IF(AND(Q3="Installed",M3>=$U$16),L3,"") ->  | AB3: Yes | AC3: Yes | AD3: SageData_Dept | AE3: DR_ODBC_DEPT | AF3: TRUE | AG3: ODBC;DSN=SageLine50v33;UID=manager;PWD=FSSU;;DIR=C:\PROGRAMDATA\SAGE\ACCOUNTS\2025\COMPANY.001\Accdata; | AI3: TRUE | AJ3: 6 | AK3: 23 | AL3: SageLine50v33 | AM3: 24 | AN3: 35 | AO3: manager | AP3: UID=manager; | AQ3: 36 | AR3: 44 | AS3: FSSU | AT3: PWD=FSSU; | AU3: TRUE | AV3: 46 | AW3: 103 | AX3: C:\PROGRAMDATA\SAGE\ACCOUNTS\2025\COMPANY.001\Accdata | AY3: DIR=C:\PROGRAMDATA\SAGE\ACCOUNTS\2025\COMPANY.001\Accdata; | AZ3: 0 | BA3: Sage Line 50 v33 | BB3: Sage Line 50 v33 | BC3: TRUE | BD3: SageLine50v33 | BE3: ODBC;DSN=SageLine50v33;UID=manager;PWD=FSSU;;DIR=C:\PROGRAMDATA\SAGE\ACCOUNTS\2025\COMPANY.001\Accdata; | BF3: TRUE | BH3: Yes | BI3: Yes | BJ3: SageData_Dept | BK3: DR_ODBC_DEPT | BL3: =IF(AND(BJ3<>"",BK3<>""),AND(NOT(ISERR(INDIRECT("'"&BJ3&"'!A1"))),NOT(ISERR(ROW(BK3)))),"") -> TRUE | BM3: 2003 | BP3: TRUE | BR3: =IF(BQ3<>"",BS3-COUNTA(INDIRECT(CONCATENATE("'",BQ3,"'!$2:$2"),TRUE))+1,"") ->  | BS3: =IF(BQ3<>"",COUNTA(INDIRECT(CONCATENATE("'",BQ3,"'!$1:$1"),TRUE)),"") ->  | CB3: =IF(CY3<>"",CY3,"") -> LabelStep1 | CE3: TRUE | CF3: Label | CG3: 1) | CI3: TRUE | CJ3: =IF(CY3<>"",IF(CF3="CommandButton",2*$CC$103,$CC$103),"") -> 18 | CK3: 10 | CP3: LabelStep1 | CU3: 54 | CW3: TRUE | CX3: 20 | CY3: LabelStep1 | CZ3: TRUE | DA3: 2 | DB3: 0 | DC3: FALSE | DD3: 50 | DF3: #,##0;-#,##0;- | DH3: 0.0%;-0.0%;-_% | DJ3: £#,##0;-£#,##0;- | EA3: =IF(EB3<>"",IF(ISNA(MATCH(EC3,INDIRECT("'"&OFFSET(xlRDS!$BO$1,MATCH(TRUE,xlRDS!$BO:$BO,0)-1,-5,1,1)&"'!$1:$1"),0)),"Calculated",MATCH(EC3,INDIRECT("'"&OFFSET(xlRDS!$BO$1,MATCH(TRUE,xlRDS!$BO:$BO,0)-1,-5,1,1)&"'!$1:$1"),0)),"") ->  | EK3: DESC=Year End 2009 | EL3: =IF(OFFSET($EL$1,(ROW(EL3)-2)*4+1-1,-1,1,1)="","",OFFSET($EL$1,(ROW(EL3)-2)*4+1-1,-1,1,1)) -> [ARCHIVE1] | EM3: =IF(EL3<>"",VALUE(RIGHT(OFFSET($EL$1,(ROW(EM3)-2)*4+2-1,-1,1,1),LEN(OFFSET($EL$1,(ROW(EM3)-2)*4+2-1,-1,1,1))-5))+25568,"") -> 2012-12-13 | EN3: =IF(EL3<>"",RIGHT(OFFSET($EL$1,(ROW(EN3)-2)*4+3-1,-1,1,1),LEN(OFFSET($EL$1,(ROW(EN3)-2)*4+3-1,-1,1,1))-5),"") -> Year End 2010 | EO3: =IF(EL3<>"",RIGHT(OFFSET($EL$1,(ROW(EO3)-2)*4+4-1,-1,1,1),LEN(OFFSET($EL$1,(ROW(EO3)-2)*4+4-1,-1,1,1))-7),"") -> 2010 | EP3: =IFERROR(IF(EN3<>"",1,""),0) -> 1
A4: C:\ProgramData\Sage\accounts\V33\Demodata | B4: C:\ProgramData\Sage\accounts\V33\Demodata\Accdata | C4: 4 - Stationery & Computer Mart UK | D4: C:\ProgramData\Sage\accounts\V33\Demodata\Accdata | T4: FALSE | AB4: Yes | AC4: No | AD4: ODBC_AJ | AE4: DR_ODBC_AJ_NL | AF4: TRUE | AG4: ODBC;DSN=SageLine50v33;UID=manager;PWD=FSSU;;DIR=C:\PROGRAMDATA\SAGE\ACCOUNTS\2025\COMPANY.001\Accdata; | AI4: TRUE | AJ4: 6 | AK4: 23 | AL4: SageLine50v33 | AM4: 24 | AN4: 35 | AO4: manager | AP4: UID=manager; | AQ4: 36 | AR4: 44 | AS4: FSSU | AT4: PWD=FSSU; | AU4: TRUE | AV4: 46 | AW4: 103 | AX4: C:\PROGRAMDATA\SAGE\ACCOUNTS\2025\COMPANY.001\Accdata | AY4: DIR=C:\PROGRAMDATA\SAGE\ACCOUNTS\2025\COMPANY.001\Accdata; | AZ4: 0 | BA4: Sage Line 50 v33 | BB4: Sage Line 50 v33 | BC4: TRUE | BD4: SageLine50v33 | BE4: ODBC;DSN=SageLine50v33;UID=manager;PWD=FSSU;;DIR=C:\PROGRAMDATA\SAGE\ACCOUNTS\2025\COMPANY.001\Accdata; | BF4: TRUE | BH4: Yes | BI4: No | BJ4: ODBC_AJ | BK4: DR_ODBC_AJ_NL | BL4: TRUE | BM4: 2007 | BN4: 1214 | BO4: TRUE | BP4: TRUE | CB4: LabelStep1Msg | CE4: TRUE | CF4: Label | CG4: Connect to sage data | CI4: TRUE | CJ4: 20 | CK4: 40 | CP4: LabelStep1Msg | CU4: 54 | CW4: TRUE | CX4: 100 | CY4: LabelStep1Msg | CZ4: FALSE | DA4: 2 | DB4: 0 | DC4: FALSE | DD4: 160 | DF4: #,##0;-#,##0;0 | DH4: 0.00%;-0.00%;-_% | DJ4: £#,##0;-£#,##0;0 | EA4: =IF(EB4<>"",IF(ISNA(MATCH(EC4,INDIRECT("'"&OFFSET(xlRDS!$BO$1,MATCH(TRUE,xlRDS!$BO:$BO,0)-1,-5,1,1)&"'!$1:$1"),0)),"Calculated",MATCH(EC4,INDIRECT("'"&OFFSET(xlRDS!$BO$1,MATCH(TRUE,xlRDS!$BO:$BO,0)-1,-5,1,1)&"'!$1:$1"),0)),"") ->  | EK4: FOLDER=2009 | EL4: [ARCHIVE2] | EM4: 1969-12-31
B5: =IF(A5<>"",IF(RIGHT(A5,1)="\",A5&"Accdata",A5&"\Accdata"),"") ->  | T5: FALSE | AF5: FALSE | CB5: CommandButtonResetWorkbook | CE5: TRUE | CF5: CommandButton | CG5: Connect workbook | CH5: FALSE | CI5: TRUE | CJ5: 36 | CK5: 150 | CN5: FALSE | CP5: CommandButtonResetWorkbook | CU5: 45 | CW5: TRUE | CX5: 150 | CY5: CommandButtonResetWorkbook | CZ5: FALSE | DA5: 2 | DB5: 0 | DC5: FALSE | DD5: 320 | DF5: #,##0_);(#,##0);-_) | DJ5: £#,##0_);(£#,##0);-_) | EA5: =IF(EB5<>"",IF(ISNA(MATCH(EC5,INDIRECT("'"&OFFSET(xlRDS!$BO$1,MATCH(TRUE,xlRDS!$BO:$BO,0)-1,-5,1,1)&"'!$1:$1"),0)),"Calculated",MATCH(EC5,INDIRECT("'"&OFFSET(xlRDS!$BO$1,MATCH(TRUE,xlRDS!$BO:$BO,0)-1,-5,1,1)&"'!$1:$1"),0)),"") ->  | EK5: [ARCHIVE1]
T6: FALSE | AF6: FALSE | CB6: CheckBoxResetWorkbookDone | CE6: TRUE | CF6: CheckBox | CG6: Done | CI6: FALSE | CJ6: 18 | CK6: 310 | CN6: TRUE | CP6: CheckBoxResetWorkbookDone | CU6: 54 | CV6: =N42 -> TRUE | CW6: TRUE | CX6: 50 | CY6: CheckBoxResetWorkbookDone | CZ6: FALSE | DA6: 2 | DB6: 0 | DC6: FALSE | DD6: 380 | DF6: 0;-0;- | DJ6: £0;-£0;- | EA6: =IF(EB6<>"",IF(ISNA(MATCH(EC6,INDIRECT("'"&OFFSET(xlRDS!$BO$1,MATCH(TRUE,xlRDS!$BO:$BO,0)-1,-5,1,1)&"'!$1:$1"),0)),"Calculated",MATCH(EC6,INDIRECT("'"&OFFSET(xlRDS!$BO$1,MATCH(TRUE,xlRDS!$BO:$BO,0)-1,-5,1,1)&"'!$1:$1"),0)),"") ->  | EK6: DATE=15688
T7: FALSE | AF7: FALSE | CE7: FALSE | CI7: FALSE | CK7: 310 | CU7: 54 | CW7: FALSE | CX7: 0 | CZ7: FALSE | DA7: 2 | DB7: 0 | DC7: FALSE | DD7: 0 | DJ7: £#,##0_);(£#,##0);-_) | EA7: =IF(EB7<>"",IF(ISNA(MATCH(EC7,INDIRECT("'"&OFFSET(xlRDS!$BO$1,MATCH(TRUE,xlRDS!$BO:$BO,0)-1,-5,1,1)&"'!$1:$1"),0)),"Calculated",MATCH(EC7,INDIRECT("'"&OFFSET(xlRDS!$BO$1,MATCH(TRUE,xlRDS!$BO:$BO,0)-1,-5,1,1)&"'!$1:$1"),0)),"") ->  | EK7: DESC=Year End 2010
T8: FALSE | AF8: FALSE | CE8: FALSE | CI8: FALSE | CK8: 310 | CU8: 54 | CW8: FALSE | CX8: 0 | CZ8: FALSE | DA8: 2 | DB8: 0 | DC8: FALSE | DD8: 0 | DJ8: €#,##0.00_);(€#,##0.00);-_) | EA8: =IF(EB8<>"",IF(ISNA(MATCH(EC8,INDIRECT("'"&OFFSET(xlRDS!$BO$1,MATCH(TRUE,xlRDS!$BO:$BO,0)-1,-5,1,1)&"'!$1:$1"),0)),"Calculated",MATCH(EC8,INDIRECT("'"&OFFSET(xlRDS!$BO$1,MATCH(TRUE,xlRDS!$BO:$BO,0)-1,-5,1,1)&"'!$1:$1"),0)),"") ->  | EK8: FOLDER=2010
T9: FALSE | AF9: FALSE | CE9: FALSE | CI9: FALSE | CK9: 310 | CU9: 54 | CW9: FALSE | CX9: 0 | CZ9: FALSE | DA9: 2 | DB9: 0 | DC9: FALSE | DD9: 0 | DJ9: €#,##0;-€#,##0;- | EA9: =IF(EB9<>"",IF(ISNA(MATCH(EC9,INDIRECT("'"&OFFSET(xlRDS!$BO$1,MATCH(TRUE,xlRDS!$BO:$BO,0)-1,-5,1,1)&"'!$1:$1"),0)),"Calculated",MATCH(EC9,INDIRECT("'"&OFFSET(xlRDS!$BO$1,MATCH(TRUE,xlRDS!$BO:$BO,0)-1,-5,1,1)&"'!$1:$1"),0)),"") ->  | EK9: [ARCHIVE2]
T10: FALSE | AF10: FALSE | CE10: FALSE | CI10: FALSE | CK10: 310 | CU10: 54 | CW10: FALSE | CX10: 0 | CZ10: FALSE | DA10: 2 | DB10: 0 | DC10: FALSE | DD10: 0 | DJ10: €#,##0;-€#,##0;0 | EA10: =IF(EB10<>"",IF(ISNA(MATCH(EC10,INDIRECT("'"&OFFSET(xlRDS!$BO$1,MATCH(TRUE,xlRDS!$BO:$BO,0)-1,-5,1,1)&"'!$1:$1"),0)),"Calculated",MATCH(EC10,INDIRECT("'"&OFFSET(xlRDS!$BO$1,MATCH(TRUE,xlRDS!$BO:$BO,0)-1,-5,1,1)&"'!$1:$1"),0)),"") ->  | EK10: DATE=0
L11: ERDS Complete | M11: FALSE | N11: FALSE | O11: Valid? | AF11: FALSE | CE11: FALSE | CI11: FALSE | CK11: 310 | CU11: 54 | CW11: FALSE | CX11: 0 | CZ11: FALSE | DA11: 2 | DB11: 0 | DC11: FALSE | DD11: 0 | DJ11: €#,##0_);(€#,##0);-_) | EA11: =IF(EB11<>"",IF(ISNA(MATCH(EC11,INDIRECT("'"&OFFSET(xlRDS!$BO$1,MATCH(TRUE,xlRDS!$BO:$BO,0)-1,-5,1,1)&"'!$1:$1"),0)),"Calculated",MATCH(EC11,INDIRECT("'"&OFFSET(xlRDS!$BO$1,MATCH(TRUE,xlRDS!$BO:$BO,0)-1,-5,1,1)&"'!$1:$1"),0)),"") ->  | EK11: DESC=
L12: ShowForm | M12: FALSE | N12: TRUE | O12: Get Workbook Setting | AF12: FALSE | CE12: FALSE | CI12: FALSE | CK12: 310 | CU12: 54 | CW12: FALSE | CX12: 0 | CZ12: FALSE | DA12: 2 | DB12: 0 | DC12: FALSE | DD12: 0 | DJ12: €0;-€0;- | EA12: =IF(EB12<>"",IF(ISNA(MATCH(EC12,INDIRECT("'"&OFFSET(xlRDS!$BO$1,MATCH(TRUE,xlRDS!$BO:$BO,0)-1,-5,1,1)&"'!$1:$1"),0)),"Calculated",MATCH(EC12,INDIRECT("'"&OFFSET(xlRDS!$BO$1,MATCH(TRUE,xlRDS!$BO:$BO,0)-1,-5,1,1)&"'!$1:$1"),0)),"") ->  | EK12: FOLDER=
T13: FALSE | AF13: FALSE | CE13: FALSE | CI13: FALSE | CK13: 310 | CU13: 54 | CW13: FALSE | CX13: 0 | CZ13: FALSE | DA13: 2 | DB13: 0 | DC13: FALSE | DD13: 0 | DJ13: €#,##0_);(€#,##0);-_) | EA13: =IF(EB13<>"",IF(ISNA(MATCH(EC13,INDIRECT("'"&OFFSET(xlRDS!$BO$1,MATCH(TRUE,xlRDS!$BO:$BO,0)-1,-5,1,1)&"'!$1:$1"),0)),"Calculated",MATCH(EC13,INDIRECT("'"&OFFSET(xlRDS!$BO$1,MATCH(TRUE,xlRDS!$BO:$BO,0)-1,-5,1,1)&"'!$1:$1"),0)),"") -> 
L14: Username | M14: manager | P14: 32 | Q14: <- Max Allowed | AF14: FALSE | CE14: FALSE | CI14: FALSE | CK14: 310 | CU14: 54 | CW14: FALSE | CX14: 0 | CZ14: FALSE | DA14: 2 | DB14: 0 | DC14: FALSE | DD14: 0 | DJ14: £#,##0" DR";£#,##0" CR";- | EA14: =IF(EB14<>"",IF(ISNA(MATCH(EC14,INDIRECT("'"&OFFSET(xlRDS!$BO$1,MATCH(TRUE,xlRDS!$BO:$BO,0)-1,-5,1,1)&"'!$1:$1"),0)),"Calculated",MATCH(EC14,INDIRECT("'"&OFFSET(xlRDS!$BO$1,MATCH(TRUE,xlRDS!$BO:$BO,0)-1,-5,1,1)&"'!$1:$1"),0)),"") -> 
M15: FSSU | N15: TRUE | O15: <- Save in Query | P15: 20 | Q15: <- Max Allowed | T15: =LEN(M15)>0 -> TRUE | AF15: FALSE | CE15: FALSE | CI15: FALSE | CK15: 310 | CU15: 54 | CW15: FALSE | CX15: 0 | CZ15: FALSE | DA15: 2 | DB15: 0 | DC15: FALSE | DD15: 0 | DJ15: £#,##0.00_" DR");(£#,##0.00" CR");-_) | EA15: =IF(EB15<>"",IF(ISNA(MATCH(EC15,INDIRECT("'"&OFFSET(xlRDS!$BO$1,MATCH(TRUE,xlRDS!$BO:$BO,0)-1,-5,1,1)&"'!$1:$1"),0)),"Calculated",MATCH(EC15,INDIRECT("'"&OFFSET(xlRDS!$BO$1,MATCH(TRUE,xlRDS!$BO:$BO,0)-1,-5,1,1)&"'!$1:$1"),0)),"") -> 
L16: Chosen Version | M16: Sage Line 50 v33 | N16: C:\ProgramData\Sage\accounts\V33\company. | R16: =NOT(N16="No version") -> TRUE | S16: =NOT(N16="No version") -> TRUE | T16: =IF(R16,IF(LEFT(RIGHT(M16,2),1)="v",VALUE(RIGHT(M16,1)),VALUE(RIGHT(M16,2))),0) -> 33 | U16: 27 | V16: <- Oldest Sage Supported Version | AF16: FALSE | CE16: FALSE | CI16: FALSE | CK16: 310 | CU16: 54 | CW16: FALSE | CX16: 0 | CZ16: FALSE | DA16: 2 | DB16: 0 | DC16: FALSE | DD16: 0 | EA16: =IF(EB16<>"",IF(ISNA(MATCH(EC16,INDIRECT("'"&OFFSET(xlRDS!$BO$1,MATCH(TRUE,xlRDS!$BO:$BO,0)-1,-5,1,1)&"'!$1:$1"),0)),"Calculated",MATCH(EC16,INDIRECT("'"&OFFSET(xlRDS!$BO$1,MATCH(TRUE,xlRDS!$BO:$BO,0)-1,-5,1,1)&"'!$1:$1"),0)),"") -> 
L17: OS Version | M17: =INFO("osversion")&" ("&M29&")" -> Windows (64-bit) NT 10.00 (64 Bit) | AF17: FALSE | CE17: FALSE | CI17: FALSE | CK17: 310 | CU17: 54 | CW17: FALSE | CX17: 0 | CZ17: FALSE | DA17: 2 | DB17: 0 | DC17: FALSE | DD17: 0 | EA17: =IF(EB17<>"",IF(ISNA(MATCH(EC17,INDIRECT("'"&OFFSET(xlRDS!$BO$1,MATCH(TRUE,xlRDS!$BO:$BO,0)-1,-5,1,1)&"'!$1:$1"),0)),"Calculated",MATCH(EC17,INDIRECT("'"&OFFSET(xlRDS!$BO$1,MATCH(TRUE,xlRDS!$BO:$BO,0)-1,-5,1,1)&"'!$1:$1"),0)),"") -> 
L18: Company Name | M18: 3 - FSSU Master Chart of accounts New Dataset 2024 2025 | N18: =IF(ISNA(VLOOKUP(M18,$C:$D,2,FALSE)),"Company Not Found - Please Rechoose",VLOOKUP(M18,$C:$D,2,FALSE)) -> C:\PROGRAMDATA\SAGE\ACCOUNTS\2025\COMPANY.001\Accdata | R18: TRUE | S18: =NOT(N18="Company Not Found - Please Rechoose") -> TRUE | T18: FALSE | U18: =IF(ISERR(FIND(" - ",M18,1)),0,FIND(" - ",M18,1)) -> 2 | V18: =IF(U18>1,RIGHT(M18,LEN(M18)-(U18+2)),M18) -> FSSU Master Chart of accounts New Dataset 2024 2025 | AF18: FALSE | CE18: FALSE | CI18: FALSE | CK18: 310 | CU18: 54 | CW18: FALSE | CX18: 0 | CZ18: FALSE | DA18: 2 | DB18: 0 | DC18: FALSE | DD18: 0 | EA18: =IF(EB18<>"",IF(ISNA(MATCH(EC18,INDIRECT("'"&OFFSET(xlRDS!$BO$1,MATCH(TRUE,xlRDS!$BO:$BO,0)-1,-5,1,1)&"'!$1:$1"),0)),"Calculated",MATCH(EC18,INDIRECT("'"&OFFSET(xlRDS!$BO$1,MATCH(TRUE,xlRDS!$BO:$BO,0)-1,-5,1,1)&"'!$1:$1"),0)),"") -> 
L19: Demodata | M19: TRUE | N19: =LEFT(N16,LEN(N16)-8)&"Demodata" -> C:\ProgramData\Sage\accounts\V33\Demodata | AF19: FALSE | CE19: FALSE | CI19: FALSE | CK19: 310 | CU19: 54 | CW19: FALSE | CX19: 0 | CZ19: FALSE | DA19: 2 | DB19: 0 | DC19: FALSE | DD19: 0 | EA19: =IF(EB19<>"",IF(ISNA(MATCH(EC19,INDIRECT("'"&OFFSET(xlRDS!$BO$1,MATCH(TRUE,xlRDS!$BO:$BO,0)-1,-5,1,1)&"'!$1:$1"),0)),"Calculated",MATCH(EC19,INDIRECT("'"&OFFSET(xlRDS!$BO$1,MATCH(TRUE,xlRDS!$BO:$BO,0)-1,-5,1,1)&"'!$1:$1"),0)),"") -> 
L20: Windows Version | M20: Windows (64-bit) NT 10.00 | N20: 0 | O20: 5 | P20: =RIGHT(M20,4) -> 0.00 | Q20: =INFO("osversion") -> Windows (64-bit) NT 10.00 | S20: 8.1 | T20: C:\ProgramData | U20: =IF(ISERR(FIND("ProgramData",T20,1)),T20&"\Application Data",T20) -> C:\ProgramData | AF20: FALSE | CB20: LabelStep2 | CE20: TRUE | CF20: Label | CG20: 2) | CI20: TRUE | CJ20: 18 | CK20: 10 | CP20: LabelStep2 | CU20: 90 | CW20: TRUE | CX20: 20 | CY20: LabelStep2 | CZ20: TRUE | DA20: 3 | DB20: 0 | DC20: FALSE | DD20: 50 | EA20: =IF(EB20<>"",IF(ISNA(MATCH(EC20,INDIRECT("'"&OFFSET(xlRDS!$BO$1,MATCH(TRUE,xlRDS!$BO:$BO,0)-1,-5,1,1)&"'!$1:$1"),0)),"Calculated",MATCH(EC20,INDIRECT("'"&OFFSET(xlRDS!$BO$1,MATCH(TRUE,xlRDS!$BO:$BO,0)-1,-5,1,1)&"'!$1:$1"),0)),"") -> 
L21: No of Archives | M21: =COUNT(EP:EP) -> 2 | AF21: FALSE | CB21: LableStep2Msg | CE21: TRUE | CF21: Label | CG21: Select sage version | CI21: TRUE | CJ21: 20 | CK21: 40 | CP21: LableStep2Msg | CU21: 90 | CW21: TRUE | CX21: 100 | CY21: LableStep2Msg | CZ21: FALSE | DA21: 3 | DB21: 0 | DC21: FALSE | DD21: 160 | EA21: =IF(EB21<>"",IF(ISNA(MATCH(EC21,INDIRECT("'"&OFFSET(xlRDS!$BO$1,MATCH(TRUE,xlRDS!$BO:$BO,0)-1,-5,1,1)&"'!$1:$1"),0)),"Calculated",MATCH(EC21,INDIRECT("'"&OFFSET(xlRDS!$BO$1,MATCH(TRUE,xlRDS!$BO:$BO,0)-1,-5,1,1)&"'!$1:$1"),0)),"") -> 
L22: Include Archives | M22: FALSE | AF22: FALSE | CB22: ComboBoxSageVersion | CE22: TRUE | CF22: ComboBox | CI22: =M42 -> TRUE | CJ22: 18 | CK22: 150 | CN22: =NOT(M42) -> FALSE | CP22: ComboBoxSageVersion | CR22: versionlist | CT22: =M16 -> Sage Line 50 v33 | CU22: 90 | CV22: =M16 -> Sage Line 50 v33 | CW22: TRUE | CX22: 150 | CY22: ComboBoxSageVersion | CZ22: FALSE | DA22: 3 | DB22: 0 | DC22: FALSE | DD22: 320 | EA22: =IF(EB22<>"",IF(ISNA(MATCH(EC22,INDIRECT("'"&OFFSET(xlRDS!$BO$1,MATCH(TRUE,xlRDS!$BO:$BO,0)-1,-5,1,1)&"'!$1:$1"),0)),"Calculated",MATCH(EC22,INDIRECT("'"&OFFSET(xlRDS!$BO$1,MATCH(TRUE,xlRDS!$BO:$BO,0)-1,-5,1,1)&"'!$1:$1"),0)),"") -> 
AF23: FALSE | CB23: CheckBoxSageVersionDone | CE23: TRUE | CF23: CheckBox | CG23: Done | CI23: FALSE | CJ23: 18 | CK23: 310 | CN23: TRUE | CP23: CheckBoxSageVersionDone | CU23: 90 | CV23: =R16 -> TRUE | CW23: TRUE | CX23: 50 | CY23: CheckBoxSageVersionDone | CZ23: FALSE | DA23: 3 | DB23: 0 | DC23: FALSE | DD23: 380 | EA23: =IF(EB23<>"",IF(ISNA(MATCH(EC23,INDIRECT("'"&OFFSET(xlRDS!$BO$1,MATCH(TRUE,xlRDS!$BO:$BO,0)-1,-5,1,1)&"'!$1:$1"),0)),"Calculated",MATCH(EC23,INDIRECT("'"&OFFSET(xlRDS!$BO$1,MATCH(TRUE,xlRDS!$BO:$BO,0)-1,-5,1,1)&"'!$1:$1"),0)),"") -> 
AF24: FALSE | CE24: FALSE | CI24: FALSE | CK24: 310 | CU24: 90 | CW24: FALSE | CX24: 0 | CZ24: FALSE | DA24: 3 | DB24: 0 | DC24: FALSE | DD24: 0 | EA24: =IF(EB24<>"",IF(ISNA(MATCH(EC24,INDIRECT("'"&OFFSET(xlRDS!$BO$1,MATCH(TRUE,xlRDS!$BO:$BO,0)-1,-5,1,1)&"'!$1:$1"),0)),"Calculated",MATCH(EC24,INDIRECT("'"&OFFSET(xlRDS!$BO$1,MATCH(TRUE,xlRDS!$BO:$BO,0)-1,-5,1,1)&"'!$1:$1"),0)),"") -> 
AF25: FALSE | CE25: FALSE | CI25: FALSE | CK25: 310 | CU25: 90 | CW25: FALSE | CX25: 0 | CZ25: FALSE | DA25: 3 | DB25: 0 | DC25: FALSE | DD25: 0 | EA25: =IF(EB25<>"",IF(ISNA(MATCH(EC25,INDIRECT("'"&OFFSET(xlRDS!$BO$1,MATCH(TRUE,xlRDS!$BO:$BO,0)-1,-5,1,1)&"'!$1:$1"),0)),"Calculated",MATCH(EC25,INDIRECT("'"&OFFSET(xlRDS!$BO$1,MATCH(TRUE,xlRDS!$BO:$BO,0)-1,-5,1,1)&"'!$1:$1"),0)),"") -> 
AF26: FALSE | CE26: FALSE | CI26: FALSE | CK26: 310 | CU26: 90 | CW26: FALSE | CX26: 0 | CZ26: FALSE | DA26: 3 | DB26: 0 | DC26: FALSE | DD26: 0 | EA26: =IF(EB26<>"",IF(ISNA(MATCH(EC26,INDIRECT("'"&OFFSET(xlRDS!$BO$1,MATCH(TRUE,xlRDS!$BO:$BO,0)-1,-5,1,1)&"'!$1:$1"),0)),"Calculated",MATCH(EC26,INDIRECT("'"&OFFSET(xlRDS!$BO$1,MATCH(TRUE,xlRDS!$BO:$BO,0)-1,-5,1,1)&"'!$1:$1"),0)),"") -> 
AF27: FALSE | CE27: FALSE | CI27: FALSE | CK27: 310 | CU27: 90 | CW27: FALSE | CX27: 0 | CZ27: FALSE | DA27: 3 | DB27: 0 | DC27: FALSE | DD27: 0 | EA27: =IF(EB27<>"",IF(ISNA(MATCH(EC27,INDIRECT("'"&OFFSET(xlRDS!$BO$1,MATCH(TRUE,xlRDS!$BO:$BO,0)-1,-5,1,1)&"'!$1:$1"),0)),"Calculated",MATCH(EC27,INDIRECT("'"&OFFSET(xlRDS!$BO$1,MATCH(TRUE,xlRDS!$BO:$BO,0)-1,-5,1,1)&"'!$1:$1"),0)),"") -> 
L28: Excel Version | M28: 16 | N28: =IF(M28<11,"Excel Version Not supported",IF(M28=11,"Excel 2003",IF(M28=12,"Excel 2007",IF(M28=14,"Excel 2010","Excel Version Not Known")))) -> Excel Version Not Known | O28: =INFO("release") -> 16.0 | P28: =VALUE(M28)=INT(VALUE(O28)) -> TRUE | AF28: FALSE | CE28: FALSE | CI28: FALSE | CK28: 310 | CU28: 90 | CW28: FALSE | CX28: 0 | CZ28: FALSE | DA28: 3 | DB28: 0 | DC28: TRUE | DD28: 0 | EA28: =IF(EB28<>"",IF(ISNA(MATCH(EC28,INDIRECT("'"&OFFSET(xlRDS!$BO$1,MATCH(TRUE,xlRDS!$BO:$BO,0)-1,-5,1,1)&"'!$1:$1"),0)),"Calculated",MATCH(EC28,INDIRECT("'"&OFFSET(xlRDS!$BO$1,MATCH(TRUE,xlRDS!$BO:$BO,0)-1,-5,1,1)&"'!$1:$1"),0)),"") -> 
L29: 64 or 32 bit | M29: 64 Bit | AF29: FALSE | CE29: FALSE | CI29: FALSE | CK29: 310 | CU29: 90 | CW29: FALSE | CX29: 0 | CZ29: FALSE | DA29: 3 | DB29: 0 | DC29: FALSE | DD29: 0 | EA29: =IF(EB29<>"",IF(ISNA(MATCH(EC29,INDIRECT("'"&OFFSET(xlRDS!$BO$1,MATCH(TRUE,xlRDS!$BO:$BO,0)-1,-5,1,1)&"'!$1:$1"),0)),"Calculated",MATCH(EC29,INDIRECT("'"&OFFSET(xlRDS!$BO$1,MATCH(TRUE,xlRDS!$BO:$BO,0)-1,-5,1,1)&"'!$1:$1"),0)),"") -> 
L30: System Drive | M30: C: | N30: C:\WINDOWS | AF30: FALSE | CB30: LabelStep3 | CE30: TRUE | CF30: Label | CG30: 3) | CI30: TRUE | CJ30: 18 | CK30: 10 | CP30: LabelStep3 | CU30: 126 | CW30: TRUE | CX30: 20 | CY30: LabelStep3 | CZ30: TRUE | DA30: 4 | DB30: 0 | DC30: FALSE | DD30: 50 | EA30: =IF(EB30<>"",IF(ISNA(MATCH(EC30,INDIRECT("'"&OFFSET(xlRDS!$BO$1,MATCH(TRUE,xlRDS!$BO:$BO,0)-1,-5,1,1)&"'!$1:$1"),0)),"Calculated",MATCH(EC30,INDIRECT("'"&OFFSET(xlRDS!$BO$1,MATCH(TRUE,xlRDS!$BO:$BO,0)-1,-5,1,1)&"'!$1:$1"),0)),"") -> 
L31: Analysis ToolPak | M31: Analysis ToolPak NOT Installed | N31: FALSE | O31: Required? | P31: FALSE | AF31: FALSE | CB31: LabelStep3Msg | CE31: TRUE | CF31: Label | CG31: Demodata or Archives | CI31: TRUE | CJ31: 18 | CK31: 40 | CP31: LabelStep3Msg | CU31: 126 | CW31: TRUE | CX31: 100 | CY31: LabelStep3Msg | CZ31: FALSE | DA31: 4 | DB31: 0 | DC31: FALSE | DD31: 160 | EA31: =IF(EB31<>"",IF(ISNA(MATCH(EC31,INDIRECT("'"&OFFSET(xlRDS!$BO$1,MATCH(TRUE,xlRDS!$BO:$BO,0)-1,-5,1,1)&"'!$1:$1"),0)),"Calculated",MATCH(EC31,INDIRECT("'"&OFFSET(xlRDS!$BO$1,MATCH(TRUE,xlRDS!$BO:$BO,0)-1,-5,1,1)&"'!$1:$1"),0)),"") -> 
L32: Analysis ToolPak - VBA | M32: Analysis ToolPak - VBA NOT Installed | N32: FALSE | O32: Required? | P32: FALSE | AF32: FALSE | CB32: CheckBoxIncludeDemo | CE32: TRUE | CF32: CheckBox | CG32: Include Demodata | CI32: =R16 -> TRUE | CJ32: 18 | CK32: 150 | CN32: =NOT(R16) -> FALSE | CP32: CheckBoxIncludeDemo | CU32: 126 | CV32: =M19 -> TRUE | CW32: TRUE | CX32: 100 | CY32: CheckBoxIncludeDemo | CZ32: FALSE | DA32: 4 | DB32: 0 | DC32: FALSE | DD32: 270 | EA32: =IF(EB32<>"",IF(ISNA(MATCH(EC32,INDIRECT("'"&OFFSET(xlRDS!$BO$1,MATCH(TRUE,xlRDS!$BO:$BO,0)-1,-5,1,1)&"'!$1:$1"),0)),"Calculated",MATCH(EC32,INDIRECT("'"&OFFSET(xlRDS!$BO$1,MATCH(TRUE,xlRDS!$BO:$BO,0)-1,-5,1,1)&"'!$1:$1"),0)),"") -> 
L33: Error Number | M33: 0 | R33: ERDS_Reset_Workbook | S33: Fatal? | T33: FALSE | AF33: FALSE | CB33: CheckBoxIncludeArchive | CE33: TRUE | CF33: CheckBox | CG33: Include Archives | CI33: TRUE | CJ33: 18 | CK33: 260 | CN33: FALSE | CP33: CheckBoxIncludeArchive | CU33: 126 | CV33: =M22 -> FALSE | CW33: TRUE | CX33: 100 | CY33: CheckBoxIncludeArchive | CZ33: FALSE | DA33: 4 | DB33: 0 | DC33: FALSE | DD33: 380 | EA33: =IF(EB33<>"",IF(ISNA(MATCH(EC33,INDIRECT("'"&OFFSET(xlRDS!$BO$1,MATCH(TRUE,xlRDS!$BO:$BO,0)-1,-5,1,1)&"'!$1:$1"),0)),"Calculated",MATCH(EC33,INDIRECT("'"&OFFSET(xlRDS!$BO$1,MATCH(TRUE,xlRDS!$BO:$BO,0)-1,-5,1,1)&"'!$1:$1"),0)),"") -> 
L34: Access to VBA | M34: Access to VBA Allowed | N34: TRUE | O34: Required? | P34: FALSE | AA34: =IF(BG34<>"",BG34,"") ->  | AF34: FALSE | CE34: FALSE | CI34: FALSE | CK34: 260 | CU34: 126 | CW34: FALSE | CX34: 0 | CZ34: FALSE | DA34: 4 | DB34: 0 | DC34: FALSE | DD34: 0 | EA34: =IF(EB34<>"",IF(ISNA(MATCH(EC34,INDIRECT("'"&OFFSET(xlRDS!$BO$1,MATCH(TRUE,xlRDS!$BO:$BO,0)-1,-5,1,1)&"'!$1:$1"),0)),"Calculated",MATCH(EC34,INDIRECT("'"&OFFSET(xlRDS!$BO$1,MATCH(TRUE,xlRDS!$BO:$BO,0)-1,-5,1,1)&"'!$1:$1"),0)),"") -> 
L35: Progress Messages | M35: =IF(N35,"On","OFF") -> OFF | N35: FALSE | O35: <= Show Messages if TRUE | Q35: FALSE | R35: Troubleshoot | AF35: FALSE | CE35: FALSE | CI35: FALSE | CK35: 260 | CU35: 126 | CW35: FALSE | CX35: 0 | CZ35: FALSE | DA35: 4 | DB35: 0 | DC35: FALSE | DD35: 0 | EA35: =IF(EB35<>"",IF(ISNA(MATCH(EC35,INDIRECT("'"&OFFSET(xlRDS!$BO$1,MATCH(TRUE,xlRDS!$BO:$BO,0)-1,-5,1,1)&"'!$1:$1"),0)),"Calculated",MATCH(EC35,INDIRECT("'"&OFFSET(xlRDS!$BO$1,MATCH(TRUE,xlRDS!$BO:$BO,0)-1,-5,1,1)&"'!$1:$1"),0)),"") -> 
L36: Incident Number: | M36: V2024 | N36: =CONCATENATE("Report Reference: ",M36) -> Report Reference: V2024 | AF36: FALSE | CE36: FALSE | CI36: FALSE | CK36: 260 | CU36: 126 | CW36: FALSE | CX36: 0 | CZ36: FALSE | DA36: 4 | DB36: 0 | DC36: FALSE | DD36: 0 | EA36: =IF(EB36<>"",IF(ISNA(MATCH(EC36,INDIRECT("'"&OFFSET(xlRDS!$BO$1,MATCH(TRUE,xlRDS!$BO:$BO,0)-1,-5,1,1)&"'!$1:$1"),0)),"Calculated",MATCH(EC36,INDIRECT("'"&OFFSET(xlRDS!$BO$1,MATCH(TRUE,xlRDS!$BO:$BO,0)-1,-5,1,1)&"'!$1:$1"),0)),"") -> 
L37: Show Controls | M37: FALSE | N37: Sage Ver | O37: Company | P37: Connections | Q37: Excel Ver | R37: OS Ver | AF37: FALSE | CE37: FALSE | CI37: FALSE | CK37: 260 | CU37: 126 | CW37: FALSE | CX37: 0 | CZ37: FALSE | DA37: 4 | DB37: 0 | DC37: FALSE | DD37: 0 | EA37: =IF(EB37<>"",IF(ISNA(MATCH(EC37,INDIRECT("'"&OFFSET(xlRDS!$BO$1,MATCH(TRUE,xlRDS!$BO:$BO,0)-1,-5,1,1)&"'!$1:$1"),0)),"Calculated",MATCH(EC37,INDIRECT("'"&OFFSET(xlRDS!$BO$1,MATCH(TRUE,xlRDS!$BO:$BO,0)-1,-5,1,1)&"'!$1:$1"),0)),"") -> 
L38: Controls Valid | M38: =AND(R16,S18,M41,Q38,R38) -> TRUE | N38: =R16 -> TRUE | O38: =S18 -> TRUE | P38: =M41 -> TRUE | Q38: =P28 -> TRUE | R38: =S20 -> 8.1 | AF38: FALSE | CE38: FALSE | CI38: FALSE | CK38: 260 | CU38: 126 | CW38: FALSE | CX38: 0 | CZ38: FALSE | DA38: 4 | DB38: 0 | DC38: FALSE | DD38: 0 | EA38: =IF(EB38<>"",IF(ISNA(MATCH(EC38,INDIRECT("'"&OFFSET(xlRDS!$BO$1,MATCH(TRUE,xlRDS!$BO:$BO,0)-1,-5,1,1)&"'!$1:$1"),0)),"Calculated",MATCH(EC38,INDIRECT("'"&OFFSET(xlRDS!$BO$1,MATCH(TRUE,xlRDS!$BO:$BO,0)-1,-5,1,1)&"'!$1:$1"),0)),"") -> 
L39: 2nd Pivot on Sheet | M39: Data for Chart | N39: =NOT(ISERR(INDIRECT("'"&M39&"'!A1",TRUE))) -> FALSE | O39: =IF(N39,"","Report Sheet Not Found") -> Report Sheet Not Found | AF39: FALSE | CE39: FALSE | CI39: FALSE | CK39: 260 | CU39: 126 | CW39: FALSE | CX39: 0 | CZ39: FALSE | DA39: 4 | DB39: 0 | DC39: FALSE | DD39: 0 | EA39: =IF(EB39<>"",IF(ISNA(MATCH(EC39,INDIRECT("'"&OFFSET(xlRDS!$BO$1,MATCH(TRUE,xlRDS!$BO:$BO,0)-1,-5,1,1)&"'!$1:$1"),0)),"Calculated",MATCH(EC39,INDIRECT("'"&OFFSET(xlRDS!$BO$1,MATCH(TRUE,xlRDS!$BO:$BO,0)-1,-5,1,1)&"'!$1:$1"),0)),"") -> 
L40: Chart Sheet Name | M40: Chart1 | AF40: FALSE | CB40: LabelStep4 | CE40: TRUE | CF40: Label | CG40: 4) | CI40: TRUE | CJ40: 18 | CK40: 10 | CP40: LabelStep4 | CU40: 162 | CW40: TRUE | CX40: 20 | CY40: LabelStep4 | CZ40: TRUE | DA40: 5 | DB40: 0 | DC40: FALSE | DD40: 50 | EA40: =IF(EB40<>"",IF(ISNA(MATCH(EC40,INDIRECT("'"&OFFSET(xlRDS!$BO$1,MATCH(TRUE,xlRDS!$BO:$BO,0)-1,-5,1,1)&"'!$1:$1"),0)),"Calculated",MATCH(EC40,INDIRECT("'"&OFFSET(xlRDS!$BO$1,MATCH(TRUE,xlRDS!$BO:$BO,0)-1,-5,1,1)&"'!$1:$1"),0)),"") -> 
L41: Connections Valid | M41: =BF51=AB51 -> TRUE | AF41: FALSE | CB41: LabelStep4Msg | CE41: TRUE | CF41: Label | CG41: Update company list | CI41: TRUE | CJ41: 18 | CK41: 40 | CP41: LabelStep4Msg | CU41: 162 | CW41: TRUE | CX41: 100 | CY41: LabelStep4Msg | CZ41: FALSE | DA41: 5 | DB41: 0 | DC41: FALSE | DD41: 160 | EA41: =IF(EB41<>"",IF(ISNA(MATCH(EC41,INDIRECT("'"&OFFSET(xlRDS!$BO$1,MATCH(TRUE,xlRDS!$BO:$BO,0)-1,-5,1,1)&"'!$1:$1"),0)),"Calculated",MATCH(EC41,INDIRECT("'"&OFFSET(xlRDS!$BO$1,MATCH(TRUE,xlRDS!$BO:$BO,0)-1,-5,1,1)&"'!$1:$1"),0)),"") -> 
L42: Workbook Reset | M42: TRUE | N42: =AND(Q38,R38,M42) -> TRUE | AF42: FALSE | CB42: CommandButtonGetCompanyList | CE42: TRUE | CF42: CommandButton | CG42: Get Company List | CH42: FALSE | CI42: =R16 -> TRUE | CJ42: 36 | CK42: 150 | CN42: =NOT(R16) -> FALSE | CP42: CommandButtonGetCompanyList | CU42: 153 | CW42: TRUE | CX42: 150 | CY42: CommandButtonGetCompanyList | CZ42: FALSE | DA42: 5 | DB42: 0 | DC42: FALSE | DD42: 320 | EA42: =IF(EB42<>"",IF(ISNA(MATCH(EC42,INDIRECT("'"&OFFSET(xlRDS!$BO$1,MATCH(TRUE,xlRDS!$BO:$BO,0)-1,-5,1,1)&"'!$1:$1"),0)),"Calculated",MATCH(EC42,INDIRECT("'"&OFFSET(xlRDS!$BO$1,MATCH(TRUE,xlRDS!$BO:$BO,0)-1,-5,1,1)&"'!$1:$1"),0)),"") -> 
L43: Last refreshed on | M43: =TEXT(TODAY(),"dd/mm/yyyy") -> 17/08/2026 | N43: Row | O43: 1 | P43: Col | Q43: 2 | R43: SingleLine | S43: FALSE | T43: Row | U43: 1 | V43: Col | W43: 2 | AF43: FALSE | CB43: CheckBoxGetCompanyDone | CD43: 0 | CE43: TRUE | CF43: CheckBox | CG43: Done | CI43: FALSE | CJ43: 18 | CK43: 310 | CN43: TRUE | CP43: CheckBoxGetCompanyDone | CU43: 162 | CV43: =S18 -> TRUE | CW43: TRUE | CX43: 50 | CY43: CheckBoxGetCompanyDone | CZ43: FALSE | DA43: 5 | DB43: 0 | DC43: FALSE | DD43: 380 | EA43: =IF(EB43<>"",IF(ISNA(MATCH(EC43,INDIRECT("'"&OFFSET(xlRDS!$BO$1,MATCH(TRUE,xlRDS!$BO:$BO,0)-1,-5,1,1)&"'!$1:$1"),0)),"Calculated",MATCH(EC43,INDIRECT("'"&OFFSET(xlRDS!$BO$1,MATCH(TRUE,xlRDS!$BO:$BO,0)-1,-5,1,1)&"'!$1:$1"),0)),"") -> 
L44: Time | M44: =TEXT(NOW(),"hh:mm") -> 11:19 | N44: Row | O44: 1 | P44: Col | Q44: 3 | AF44: FALSE | CE44: FALSE | CI44: FALSE | CK44: 310 | CU44: 162 | CW44: FALSE | CX44: 0 | CZ44: FALSE | DA44: 5 | DB44: 0 | DC44: FALSE | DD44: 0 | EA44: =IF(EB44<>"",IF(ISNA(MATCH(EC44,INDIRECT("'"&OFFSET(xlRDS!$BO$1,MATCH(TRUE,xlRDS!$BO:$BO,0)-1,-5,1,1)&"'!$1:$1"),0)),"Calculated",MATCH(EC44,INDIRECT("'"&OFFSET(xlRDS!$BO$1,MATCH(TRUE,xlRDS!$BO:$BO,0)-1,-5,1,1)&"'!$1:$1"),0)),"") -> 
L45: Reset WorkBook On Open | M45: FALSE | N45: <= Resets workbook on open if TRUE | AF45: FALSE | CD45: 999 | CE45: FALSE | CI45: FALSE | CK45: 310 | CU45: 162 | CW45: FALSE | CX45: 0 | CZ45: FALSE | DA45: 5 | DB45: 0 | DC45: FALSE | DD45: 0 | EA45: =IF(EB45<>"",IF(ISNA(MATCH(EC45,INDIRECT("'"&OFFSET(xlRDS!$BO$1,MATCH(TRUE,xlRDS!$BO:$BO,0)-1,-5,1,1)&"'!$1:$1"),0)),"Calculated",MATCH(EC45,INDIRECT("'"&OFFSET(xlRDS!$BO$1,MATCH(TRUE,xlRDS!$BO:$BO,0)-1,-5,1,1)&"'!$1:$1"),0)),"") -> 
L46: Number of data Lines | M46: =MAX(BN2:BN50) -> 1214 | N46: =OFFSET($BJ$1,MATCH(TRUE,$BO:$BO,0)-1,0,1,1) -> ODBC_AJ | AF46: FALSE | CE46: FALSE | CI46: FALSE | CK46: 310 | CU46: 162 | CW46: FALSE | CX46: 0 | CZ46: FALSE | DA46: 5 | DB46: 0 | DC46: FALSE | DD46: 0 | EA46: =IF(EB46<>"",IF(ISNA(MATCH(EC46,INDIRECT("'"&OFFSET(xlRDS!$BO$1,MATCH(TRUE,xlRDS!$BO:$BO,0)-1,-5,1,1)&"'!$1:$1"),0)),"Calculated",MATCH(EC46,INDIRECT("'"&OFFSET(xlRDS!$BO$1,MATCH(TRUE,xlRDS!$BO:$BO,0)-1,-5,1,1)&"'!$1:$1"),0)),"") -> 
L47: Pivot on Sheet Name | M47: Report | N47: =NOT(ISERR(INDIRECT("'"&M47&"'!A1",TRUE))) -> TRUE | O47: =IF(N47,"","Report Sheet Not Found") ->  | AF47: FALSE | CE47: FALSE | CI47: FALSE | CK47: 310 | CU47: 162 | CW47: FALSE | CX47: 0 | CZ47: FALSE | DA47: 5 | DB47: 0 | DC47: FALSE | DD47: 0 | EA47: =IF(EB47<>"",IF(ISNA(MATCH(EC47,INDIRECT("'"&OFFSET(xlRDS!$BO$1,MATCH(TRUE,xlRDS!$BO:$BO,0)-1,-5,1,1)&"'!$1:$1"),0)),"Calculated",MATCH(EC47,INDIRECT("'"&OFFSET(xlRDS!$BO$1,MATCH(TRUE,xlRDS!$BO:$BO,0)-1,-5,1,1)&"'!$1:$1"),0)),"") -> 
L48: Resize after refresh | M48: TRUE | AF48: FALSE | CE48: FALSE | CI48: FALSE | CK48: 310 | CU48: 162 | CW48: FALSE | CX48: 0 | CZ48: FALSE | DA48: 5 | DB48: 0 | DC48: FALSE | DD48: 0 | EA48: =IF(EB48<>"",IF(ISNA(MATCH(EC48,INDIRECT("'"&OFFSET(xlRDS!$BO$1,MATCH(TRUE,xlRDS!$BO:$BO,0)-1,-5,1,1)&"'!$1:$1"),0)),"Calculated",MATCH(EC48,INDIRECT("'"&OFFSET(xlRDS!$BO$1,MATCH(TRUE,xlRDS!$BO:$BO,0)-1,-5,1,1)&"'!$1:$1"),0)),"") -> 
L49: Starting Point Row | M49: 1 | AF49: FALSE | CE49: FALSE | CI49: FALSE | CK49: 310 | CU49: 162 | CW49: FALSE | CX49: 0 | CZ49: FALSE | DA49: 5 | DB49: 0 | DC49: FALSE | DD49: 0 | EA49: =IF(EB49<>"",IF(ISNA(MATCH(EC49,INDIRECT("'"&OFFSET(xlRDS!$BO$1,MATCH(TRUE,xlRDS!$BO:$BO,0)-1,-5,1,1)&"'!$1:$1"),0)),"Calculated",MATCH(EC49,INDIRECT("'"&OFFSET(xlRDS!$BO$1,MATCH(TRUE,xlRDS!$BO:$BO,0)-1,-5,1,1)&"'!$1:$1"),0)),"") -> 
L50: Starting Point Col | M50: 1 | AF50: FALSE | CB50: LabelStep5 | CE50: TRUE | CF50: Label | CG50: 5) | CI50: TRUE | CJ50: 18 | CK50: 10 | CP50: LabelStep5 | CU50: 198 | CW50: TRUE | CX50: 20 | CY50: LabelStep5 | CZ50: TRUE | DA50: 6 | DB50: 0 | DC50: FALSE | DD50: 50 | EA50: =IF(EB50<>"",IF(ISNA(MATCH(EC50,INDIRECT("'"&OFFSET(xlRDS!$BO$1,MATCH(TRUE,xlRDS!$BO:$BO,0)-1,-5,1,1)&"'!$1:$1"),0)),"Calculated",MATCH(EC50,INDIRECT("'"&OFFSET(xlRDS!$BO$1,MATCH(TRUE,xlRDS!$BO:$BO,0)-1,-5,1,1)&"'!$1:$1"),0)),"") -> 
L51: Set Sage Page Footer | M51: TRUE | N51: Page Header | O51: TRUE | AB51: =COUNTIF(AB2:AB50,"yes") -> 3 | AC51: =COUNTIF(AC2:AC50,"yes") -> 2 | BF51: =COUNTIF(BF2:BF50,"TRUE") -> 3 | BH51: =COUNTIF(BH2:BH50,"Yes") -> 3 | BN51: =MAX(BN2:BN50) -> 1214 | CB51: LabelStep5Msg | CE51: TRUE | CF51: Label | CG51: Select company name | CI51: TRUE | CJ51: 18 | CK51: 40 | CP51: LabelStep5Msg | CU51: 198 | CW51: TRUE | CX51: 100 | CY51: LabelStep5Msg | CZ51: FALSE | DA51: 6 | DB51: 0 | DC51: FALSE | DD51: 160 | EA51: =IF(EB51<>"",IF(ISNA(MATCH(EC51,INDIRECT("'"&OFFSET(xlRDS!$BO$1,MATCH(TRUE,xlRDS!$BO:$BO,0)-1,-5,1,1)&"'!$1:$1"),0)),"Calculated",MATCH(EC51,INDIRECT("'"&OFFSET(xlRDS!$BO$1,MATCH(TRUE,xlRDS!$BO:$BO,0)-1,-5,1,1)&"'!$1:$1"),0)),"") -> 
L52: ERDS Message Titles | M52: Excel Report Design Service | CB52: ComboBoxCompanyName | CE52: TRUE | CF52: ComboBox | CI52: =AND(M42,R18) -> TRUE | CJ52: 18 | CK52: 150 | CN52: =NOT(R18) -> FALSE | CP52: ComboBoxCompanyName | CR52: companynamelist | CT52: =M18 -> 3 - FSSU Master Chart of accounts New Dataset 2024 2025 | CU52: 198 | CV52: =M18 -> 3 - FSSU Master Chart of accounts New Dataset 2024 2025 | CW52: TRUE | CX52: 300 | CY52: ComboBoxCompanyName | CZ52: FALSE | DA52: 6 | DB52: 0 | DC52: FALSE | DD52: 470 | EA52: =IF(EB52<>"",IF(ISNA(MATCH(EC52,INDIRECT("'"&OFFSET(xlRDS!$BO$1,MATCH(TRUE,xlRDS!$BO:$BO,0)-1,-5,1,1)&"'!$1:$1"),0)),"Calculated",MATCH(EC52,INDIRECT("'"&OFFSET(xlRDS!$BO$1,MATCH(TRUE,xlRDS!$BO:$BO,0)-1,-5,1,1)&"'!$1:$1"),0)),"") -> 
L53: Report Title on Print | M53: Trial Balance | CE53: FALSE | CI53: FALSE | CK53: 150 | CU53: 198 | CW53: FALSE | CX53: 0 | CZ53: FALSE | DA53: 6 | DB53: 0 | DC53: FALSE | DD53: 0 | EA53: =IF(EB53<>"",IF(ISNA(MATCH(EC53,INDIRECT("'"&OFFSET(xlRDS!$BO$1,MATCH(TRUE,xlRDS!$BO:$BO,0)-1,-5,1,1)&"'!$1:$1"),0)),"Calculated",MATCH(EC53,INDIRECT("'"&OFFSET(xlRDS!$BO$1,MATCH(TRUE,xlRDS!$BO:$BO,0)-1,-5,1,1)&"'!$1:$1"),0)),"") -> 
L54: Pivot % Format | M54: 0.00%;-0.00%;-_% | N54: Auto Format | O54: FALSE | CE54: FALSE | CI54: FALSE | CK54: 150 | CU54: 198 | CW54: FALSE | CX54: 0 | CZ54: FALSE | DA54: 6 | DB54: 0 | DC54: FALSE | DD54: 0 | EA54: =IF(EB54<>"",IF(ISNA(MATCH(EC54,INDIRECT("'"&OFFSET(xlRDS!$BO$1,MATCH(TRUE,xlRDS!$BO:$BO,0)-1,-5,1,1)&"'!$1:$1"),0)),"Calculated",MATCH(EC54,INDIRECT("'"&OFFSET(xlRDS!$BO$1,MATCH(TRUE,xlRDS!$BO:$BO,0)-1,-5,1,1)&"'!$1:$1"),0)),"") -> 
L55: Pivot Number Format | M55: #,##0.00_);(#,##0.00);-_) | CE55: FALSE | CI55: FALSE | CK55: 150 | CU55: 198 | CW55: FALSE | CX55: 0 | CZ55: FALSE | DA55: 6 | DB55: 0 | DC55: FALSE | DD55: 0 | EA55: =IF(EB55<>"",IF(ISNA(MATCH(EC55,INDIRECT("'"&OFFSET(xlRDS!$BO$1,MATCH(TRUE,xlRDS!$BO:$BO,0)-1,-5,1,1)&"'!$1:$1"),0)),"Calculated",MATCH(EC55,INDIRECT("'"&OFFSET(xlRDS!$BO$1,MATCH(TRUE,xlRDS!$BO:$BO,0)-1,-5,1,1)&"'!$1:$1"),0)),"") -> 
L56: Pivot Currency Format | M56: £#,##0.00_" DR");(£#,##0.00" CR");-_) | CE56: FALSE | CI56: FALSE | CK56: 150 | CU56: 198 | CW56: FALSE | CX56: 0 | CZ56: FALSE | DA56: 6 | DB56: 0 | DC56: FALSE | DD56: 0 | EA56: =IF(EB56<>"",IF(ISNA(MATCH(EC56,INDIRECT("'"&OFFSET(xlRDS!$BO$1,MATCH(TRUE,xlRDS!$BO:$BO,0)-1,-5,1,1)&"'!$1:$1"),0)),"Calculated",MATCH(EC56,INDIRECT("'"&OFFSET(xlRDS!$BO$1,MATCH(TRUE,xlRDS!$BO:$BO,0)-1,-5,1,1)&"'!$1:$1"),0)),"") -> 
CE57: FALSE | CI57: FALSE | CK57: 150 | CU57: 198 | CW57: FALSE | CX57: 0 | CZ57: FALSE | DA57: 6 | DB57: 0 | DC57: FALSE | DD57: 0 | EA57: =IF(EB57<>"",IF(ISNA(MATCH(EC57,INDIRECT("'"&OFFSET(xlRDS!$BO$1,MATCH(TRUE,xlRDS!$BO:$BO,0)-1,-5,1,1)&"'!$1:$1"),0)),"Calculated",MATCH(EC57,INDIRECT("'"&OFFSET(xlRDS!$BO$1,MATCH(TRUE,xlRDS!$BO:$BO,0)-1,-5,1,1)&"'!$1:$1"),0)),"") -> 
CE58: FALSE | CI58: FALSE | CK58: 150 | CU58: 198 | CW58: FALSE | CX58: 0 | CZ58: FALSE | DA58: 6 | DB58: 0 | DC58: FALSE | DD58: 0 | EA58: =IF(EB58<>"",IF(ISNA(MATCH(EC58,INDIRECT("'"&OFFSET(xlRDS!$BO$1,MATCH(TRUE,xlRDS!$BO:$BO,0)-1,-5,1,1)&"'!$1:$1"),0)),"Calculated",MATCH(EC58,INDIRECT("'"&OFFSET(xlRDS!$BO$1,MATCH(TRUE,xlRDS!$BO:$BO,0)-1,-5,1,1)&"'!$1:$1"),0)),"") -> 
CE59: FALSE | CI59: FALSE | CK59: 150 | CU59: 198 | CW59: FALSE | CX59: 0 | CZ59: FALSE | DA59: 6 | DB59: 0 | DC59: FALSE | DD59: 0 | EA59: =IF(EB59<>"",IF(ISNA(MATCH(EC59,INDIRECT("'"&OFFSET(xlRDS!$BO$1,MATCH(TRUE,xlRDS!$BO:$BO,0)-1,-5,1,1)&"'!$1:$1"),0)),"Calculated",MATCH(EC59,INDIRECT("'"&OFFSET(xlRDS!$BO$1,MATCH(TRUE,xlRDS!$BO:$BO,0)-1,-5,1,1)&"'!$1:$1"),0)),"") -> 
L60: Code for 'ThisWorkbook' | M60: Private Sub Workbook_open() | CB60: LabelStep6 | CE60: TRUE | CF60: Label | CG60: 6) | CI60: TRUE | CJ60: 18 | CK60: 10 | CP60: LabelStep6 | CU60: 234 | CW60: TRUE | CX60: 20 | CY60: LabelStep6 | CZ60: TRUE | DA60: 7 | DB60: 0 | DC60: FALSE | DD60: 50 | EA60: =IF(EB60<>"",IF(ISNA(MATCH(EC60,INDIRECT("'"&OFFSET(xlRDS!$BO$1,MATCH(TRUE,xlRDS!$BO:$BO,0)-1,-5,1,1)&"'!$1:$1"),0)),"Calculated",MATCH(EC60,INDIRECT("'"&OFFSET(xlRDS!$BO$1,MATCH(TRUE,xlRDS!$BO:$BO,0)-1,-5,1,1)&"'!$1:$1"),0)),"") -> 
M61: Call ERDS_Get_Controls(xlRDS.Cells(38, 13)) | CB61: LabelStep6Msg | CE61: TRUE | CF61: Label | CG61: Enter Sage user name | CI61: TRUE | CJ61: 18 | CK61: 40 | CP61: LabelStep6Msg | CU61: 234 | CW61: TRUE | CX61: 100 | CY61: LabelStep6Msg | CZ61: FALSE | DA61: 7 | DB61: 0 | DC61: FALSE | DD61: 160 | EA61: =IF(EB61<>"",IF(ISNA(MATCH(EC61,INDIRECT("'"&OFFSET(xlRDS!$BO$1,MATCH(TRUE,xlRDS!$BO:$BO,0)-1,-5,1,1)&"'!$1:$1"),0)),"Calculated",MATCH(EC61,INDIRECT("'"&OFFSET(xlRDS!$BO$1,MATCH(TRUE,xlRDS!$BO:$BO,0)-1,-5,1,1)&"'!$1:$1"),0)),"") -> 
M62: Call GotoStartingPoint | CB62: TextBoxUserName | CE62: TRUE | CF62: Textbox | CI62: =S18 -> TRUE | CJ62: 18 | CK62: 150 | CN62: =NOT(S18) -> FALSE | CO62: =P14 -> 32 | CP62: TextBoxUserName | CT62: =IF(LEN(M14)>0,M14,"") -> manager | CU62: 234 | CV62: =IF(LEN(M14)>0,M14,"") -> manager | CW62: TRUE | CX62: 150 | CY62: TextBoxUserName | CZ62: FALSE | DA62: 7 | DB62: 0 | DC62: FALSE | DD62: 320 | EA62: =IF(EB62<>"",IF(ISNA(MATCH(EC62,INDIRECT("'"&OFFSET(xlRDS!$BO$1,MATCH(TRUE,xlRDS!$BO:$BO,0)-1,-5,1,1)&"'!$1:$1"),0)),"Calculated",MATCH(EC62,INDIRECT("'"&OFFSET(xlRDS!$BO$1,MATCH(TRUE,xlRDS!$BO:$BO,0)-1,-5,1,1)&"'!$1:$1"),0)),"") -> 
M63: End Sub | CE63: FALSE | CG63: =CC63 -> 0 | CI63: FALSE | CK63: 150 | CU63: 234 | CW63: FALSE | CX63: 0 | CZ63: FALSE | DA63: 7 | DB63: 0 | DC63: FALSE | DD63: 0 | EA63: =IF(EB63<>"",IF(ISNA(MATCH(EC63,INDIRECT("'"&OFFSET(xlRDS!$BO$1,MATCH(TRUE,xlRDS!$BO:$BO,0)-1,-5,1,1)&"'!$1:$1"),0)),"Calculated",MATCH(EC63,INDIRECT("'"&OFFSET(xlRDS!$BO$1,MATCH(TRUE,xlRDS!$BO:$BO,0)-1,-5,1,1)&"'!$1:$1"),0)),"") -> 
L64: Code for Update | M64: ERDS_Update_Data_And_Report | CE64: FALSE | CG64: 0 | CI64: FALSE | CK64: 150 | CU64: 234 | CW64: FALSE | CX64: 0 | CZ64: FALSE | DA64: 7 | DB64: 0 | DC64: FALSE | DD64: 0 | EA64: =IF(EB64<>"",IF(ISNA(MATCH(EC64,INDIRECT("'"&OFFSET(xlRDS!$BO$1,MATCH(TRUE,xlRDS!$BO:$BO,0)-1,-5,1,1)&"'!$1:$1"),0)),"Calculated",MATCH(EC64,INDIRECT("'"&OFFSET(xlRDS!$BO$1,MATCH(TRUE,xlRDS!$BO:$BO,0)-1,-5,1,1)&"'!$1:$1"),0)),"") -> 
L65: Code for Connections | M65: Amend_Sage_Connections | CE65: FALSE | CG65: 0 | CI65: FALSE | CK65: 150 | CU65: 234 | CW65: FALSE | CX65: 0 | CZ65: FALSE | DA65: 7 | DB65: 0 | DC65: FALSE | DD65: 0 | EA65: =IF(EB65<>"",IF(ISNA(MATCH(EC65,INDIRECT("'"&OFFSET(xlRDS!$BO$1,MATCH(TRUE,xlRDS!$BO:$BO,0)-1,-5,1,1)&"'!$1:$1"),0)),"Calculated",MATCH(EC65,INDIRECT("'"&OFFSET(xlRDS!$BO$1,MATCH(TRUE,xlRDS!$BO:$BO,0)-1,-5,1,1)&"'!$1:$1"),0)),"") -> 
CB66: =IF(CY66<>"",CY66,"") ->  | CE66: FALSE | CG66: 0 | CI66: FALSE | CJ66: =IF(CY66<>"",IF(CF66="CommandButton",2*$CC$103,$CC$103),"") ->  | CK66: =IF(CE66,IF(CZ66,IF(DC66,DB66,10),CK65+CX65+10),CK65) -> 150 | CP66: =IF(CY66<>"",CY66,"") ->  | CU66: =IF(ROW(CU66)=2,$CC$101-($CC$101/2),IF(CE66=TRUE,(DA66*$CC$101)-($CC$101/2)-((CF66="CommandButton")*($CC$101/4)),CU65)) -> 234 | CW66: =IF(CE66=TRUE,TRUE,FALSE) -> FALSE | CX66: 0 | CZ66: FALSE | DA66: =IF(CW66,IF(ROW(DA66)=2,1,IF(CZ66,DA65+1,DA65)),DA65) -> 7 | DB66: 0 | DC66: FALSE | DD66: =IF(CW66,CK66+CX66+20,0) -> 0 | EA66: =IF(EB66<>"",IF(ISNA(MATCH(EC66,INDIRECT("'"&OFFSET(xlRDS!$BO$1,MATCH(TRUE,xlRDS!$BO:$BO,0)-1,-5,1,1)&"'!$1:$1"),0)),"Calculated",MATCH(EC66,INDIRECT("'"&OFFSET(xlRDS!$BO$1,MATCH(TRUE,xlRDS!$BO:$BO,0)-1,-5,1,1)&"'!$1:$1"),0)),"") -> 
L67: 1 | M67: Remove old copies of xlRDS sheet | CE67: FALSE | CG67: 0 | CI67: FALSE | CK67: 150 | CU67: 234 | CW67: FALSE | CX67: 0 | CZ67: FALSE | DA67: 7 | DB67: 0 | DC67: FALSE | DD67: 0 | EA67: =IF(EB67<>"",IF(ISNA(MATCH(EC67,INDIRECT("'"&OFFSET(xlRDS!$BO$1,MATCH(TRUE,xlRDS!$BO:$BO,0)-1,-5,1,1)&"'!$1:$1"),0)),"Calculated",MATCH(EC67,INDIRECT("'"&OFFSET(xlRDS!$BO$1,MATCH(TRUE,xlRDS!$BO:$BO,0)-1,-5,1,1)&"'!$1:$1"),0)),"") -> 
L68: 2 | M68: Remove old copies of ERDS_Connections | CE68: FALSE | CG68: 0 | CI68: FALSE | CK68: 150 | CU68: 234 | CW68: FALSE | CX68: 0 | CZ68: FALSE | DA68: 7 | DB68: 0 | DC68: FALSE | DD68: 0 | EA68: =IF(EB68<>"",IF(ISNA(MATCH(EC68,INDIRECT("'"&OFFSET(xlRDS!$BO$1,MATCH(TRUE,xlRDS!$BO:$BO,0)-1,-5,1,1)&"'!$1:$1"),0)),"Calculated",MATCH(EC68,INDIRECT("'"&OFFSET(xlRDS!$BO$1,MATCH(TRUE,xlRDS!$BO:$BO,0)-1,-5,1,1)&"'!$1:$1"),0)),"") -> 
L69: 3 | CE69: FALSE | CG69: 0 | CI69: FALSE | CK69: 150 | CU69: 234 | CW69: FALSE | CX69: 0 | CZ69: FALSE | DA69: 7 | DB69: 0 | DC69: FALSE | DD69: 0 | EA69: =IF(EB69<>"",IF(ISNA(MATCH(EC69,INDIRECT("'"&OFFSET(xlRDS!$BO$1,MATCH(TRUE,xlRDS!$BO:$BO,0)-1,-5,1,1)&"'!$1:$1"),0)),"Calculated",MATCH(EC69,INDIRECT("'"&OFFSET(xlRDS!$BO$1,MATCH(TRUE,xlRDS!$BO:$BO,0)-1,-5,1,1)&"'!$1:$1"),0)),"") -> 
L70: 4 | CB70: LabelStep7 | CE70: TRUE | CF70: Label | CG70: 7) | CI70: TRUE | CJ70: 18 | CK70: 10 | CP70: LabelStep7 | CU70: 270 | CW70: TRUE | CX70: 20 | CY70: LabelStep7 | CZ70: TRUE | DA70: 8 | DB70: 0 | DC70: FALSE | DD70: 50 | EA70: =IF(EB70<>"",IF(ISNA(MATCH(EC70,INDIRECT("'"&OFFSET(xlRDS!$BO$1,MATCH(TRUE,xlRDS!$BO:$BO,0)-1,-5,1,1)&"'!$1:$1"),0)),"Calculated",MATCH(EC70,INDIRECT("'"&OFFSET(xlRDS!$BO$1,MATCH(TRUE,xlRDS!$BO:$BO,0)-1,-5,1,1)&"'!$1:$1"),0)),"") -> 
CB71: LabelStep7Msg | CE71: TRUE | CF71: Label | CG71: Enter Sage user password | CI71: TRUE | CJ71: 18 | CK71: 40 | CP71: LabelStep7Msg | CU71: 270 | CW71: TRUE | CX71: 100 | CY71: LabelStep7Msg | CZ71: FALSE | DA71: 8 | DB71: 0 | DC71: FALSE | DD71: 160 | EA71: =IF(EB71<>"",IF(ISNA(MATCH(EC71,INDIRECT("'"&OFFSET(xlRDS!$BO$1,MATCH(TRUE,xlRDS!$BO:$BO,0)-1,-5,1,1)&"'!$1:$1"),0)),"Calculated",MATCH(EC71,INDIRECT("'"&OFFSET(xlRDS!$BO$1,MATCH(TRUE,xlRDS!$BO:$BO,0)-1,-5,1,1)&"'!$1:$1"),0)),"") -> 
CB72: TextBoxUserPwd | CE72: TRUE | CF72: Textbox | CI72: =S18 -> TRUE | CJ72: 18 | CK72: 150 | CN72: =NOT(S18) -> FALSE | CO72: =P15 -> 20 | CP72: TextBoxUserPwd | CQ72: * | CT72: =CV72 -> FSSU | CU72: 270 | CV72: =IF(M15<>"",M15,"") -> FSSU | CW72: TRUE | CX72: 50 | CY72: TextBoxUserPwd | CZ72: FALSE | DA72: 8 | DB72: 0 | DC72: FALSE | DD72: 220 | EA72: =IF(EB72<>"",IF(ISNA(MATCH(EC72,INDIRECT("'"&OFFSET(xlRDS!$BO$1,MATCH(TRUE,xlRDS!$BO:$BO,0)-1,-5,1,1)&"'!$1:$1"),0)),"Calculated",MATCH(EC72,INDIRECT("'"&OFFSET(xlRDS!$BO$1,MATCH(TRUE,xlRDS!$BO:$BO,0)-1,-5,1,1)&"'!$1:$1"),0)),"") -> 
CB73: CheckBoxSavePwd | CE73: TRUE | CF73: CheckBox | CG73: Save Password | CI73: FALSE | CJ73: 18 | CK73: 210 | CN73: =NOT(S18) -> FALSE | CP73: CheckBoxSavePwd | CU73: 270 | CV73: =T15 -> TRUE | CW73: TRUE | CX73: 80 | CY73: CheckBoxSavePwd | CZ73: FALSE | DA73: 8 | DB73: 0 | DC73: FALSE | DD73: 310 | EA73: =IF(EB73<>"",IF(ISNA(MATCH(EC73,INDIRECT("'"&OFFSET(xlRDS!$BO$1,MATCH(TRUE,xlRDS!$BO:$BO,0)-1,-5,1,1)&"'!$1:$1"),0)),"Calculated",MATCH(EC73,INDIRECT("'"&OFFSET(xlRDS!$BO$1,MATCH(TRUE,xlRDS!$BO:$BO,0)-1,-5,1,1)&"'!$1:$1"),0)),"") -> 
CE74: FALSE | CG74: =CC74 -> 0 | CI74: FALSE | CK74: 210 | CU74: 270 | CW74: FALSE | CX74: 0 | CZ74: FALSE | DA74: 8 | DB74: 0 | DC74: FALSE | DD74: 0 | EA74: =IF(EB74<>"",IF(ISNA(MATCH(EC74,INDIRECT("'"&OFFSET(xlRDS!$BO$1,MATCH(TRUE,xlRDS!$BO:$BO,0)-1,-5,1,1)&"'!$1:$1"),0)),"Calculated",MATCH(EC74,INDIRECT("'"&OFFSET(xlRDS!$BO$1,MATCH(TRUE,xlRDS!$BO:$BO,0)-1,-5,1,1)&"'!$1:$1"),0)),"") -> 
CE75: FALSE | CG75: 0 | CI75: FALSE | CK75: 210 | CU75: 270 | CW75: FALSE | CX75: 0 | CZ75: FALSE | DA75: 8 | DB75: 0 | DC75: FALSE | DD75: 0 | EA75: =IF(EB75<>"",IF(ISNA(MATCH(EC75,INDIRECT("'"&OFFSET(xlRDS!$BO$1,MATCH(TRUE,xlRDS!$BO:$BO,0)-1,-5,1,1)&"'!$1:$1"),0)),"Calculated",MATCH(EC75,INDIRECT("'"&OFFSET(xlRDS!$BO$1,MATCH(TRUE,xlRDS!$BO:$BO,0)-1,-5,1,1)&"'!$1:$1"),0)),"") -> 
CE76: FALSE | CG76: 0 | CI76: FALSE | CK76: 210 | CU76: 270 | CW76: FALSE | CX76: 0 | CZ76: FALSE | DA76: 8 | DB76: 0 | DC76: FALSE | DD76: 0 | EA76: =IF(EB76<>"",IF(ISNA(MATCH(EC76,INDIRECT("'"&OFFSET(xlRDS!$BO$1,MATCH(TRUE,xlRDS!$BO:$BO,0)-1,-5,1,1)&"'!$1:$1"),0)),"Calculated",MATCH(EC76,INDIRECT("'"&OFFSET(xlRDS!$BO$1,MATCH(TRUE,xlRDS!$BO:$BO,0)-1,-5,1,1)&"'!$1:$1"),0)),"") -> 
CE77: FALSE | CG77: 0 | CI77: FALSE | CK77: 210 | CU77: 270 | CW77: FALSE | CX77: 0 | CZ77: FALSE | DA77: 8 | DB77: 0 | DC77: FALSE | DD77: 0 | EA77: =IF(EB77<>"",IF(ISNA(MATCH(EC77,INDIRECT("'"&OFFSET(xlRDS!$BO$1,MATCH(TRUE,xlRDS!$BO:$BO,0)-1,-5,1,1)&"'!$1:$1"),0)),"Calculated",MATCH(EC77,INDIRECT("'"&OFFSET(xlRDS!$BO$1,MATCH(TRUE,xlRDS!$BO:$BO,0)-1,-5,1,1)&"'!$1:$1"),0)),"") -> 
CE78: FALSE | CG78: 0 | CI78: FALSE | CK78: 210 | CU78: 270 | CW78: FALSE | CX78: 0 | CZ78: FALSE | DA78: 8 | DB78: 0 | DC78: FALSE | DD78: 0 | EA78: =IF(EB78<>"",IF(ISNA(MATCH(EC78,INDIRECT("'"&OFFSET(xlRDS!$BO$1,MATCH(TRUE,xlRDS!$BO:$BO,0)-1,-5,1,1)&"'!$1:$1"),0)),"Calculated",MATCH(EC78,INDIRECT("'"&OFFSET(xlRDS!$BO$1,MATCH(TRUE,xlRDS!$BO:$BO,0)-1,-5,1,1)&"'!$1:$1"),0)),"") -> 
CE79: FALSE | CG79: 0 | CI79: FALSE | CK79: 210 | CU79: 270 | CW79: FALSE | CX79: 0 | CZ79: FALSE | DA79: 8 | DB79: 0 | DC79: FALSE | DD79: 0 | EA79: =IF(EB79<>"",IF(ISNA(MATCH(EC79,INDIRECT("'"&OFFSET(xlRDS!$BO$1,MATCH(TRUE,xlRDS!$BO:$BO,0)-1,-5,1,1)&"'!$1:$1"),0)),"Calculated",MATCH(EC79,INDIRECT("'"&OFFSET(xlRDS!$BO$1,MATCH(TRUE,xlRDS!$BO:$BO,0)-1,-5,1,1)&"'!$1:$1"),0)),"") -> 
CB80: LabelStep8 | CE80: TRUE | CF80: Label | CI80: TRUE | CJ80: 18 | CK80: 10 | CP80: LabelStep8 | CU80: 306 | CW80: TRUE | CX80: 20 | CY80: LabelStep8 | CZ80: TRUE | DA80: 9 | DB80: 0 | DC80: FALSE | DD80: 50 | EA80: =IF(EB80<>"",IF(ISNA(MATCH(EC80,INDIRECT("'"&OFFSET(xlRDS!$BO$1,MATCH(TRUE,xlRDS!$BO:$BO,0)-1,-5,1,1)&"'!$1:$1"),0)),"Calculated",MATCH(EC80,INDIRECT("'"&OFFSET(xlRDS!$BO$1,MATCH(TRUE,xlRDS!$BO:$BO,0)-1,-5,1,1)&"'!$1:$1"),0)),"") -> 
CB81: LabelStep8Msg | CE81: TRUE | CF81: Label | CG81: Company Datapath | CI81: TRUE | CJ81: 18 | CK81: 40 | CP81: LabelStep8Msg | CU81: 306 | CW81: TRUE | CX81: 100 | CY81: LabelStep8Msg | CZ81: FALSE | DA81: 9 | DB81: 0 | DC81: FALSE | DD81: 160 | EA81: =IF(EB81<>"",IF(ISNA(MATCH(EC81,INDIRECT("'"&OFFSET(xlRDS!$BO$1,MATCH(TRUE,xlRDS!$BO:$BO,0)-1,-5,1,1)&"'!$1:$1"),0)),"Calculated",MATCH(EC81,INDIRECT("'"&OFFSET(xlRDS!$BO$1,MATCH(TRUE,xlRDS!$BO:$BO,0)-1,-5,1,1)&"'!$1:$1"),0)),"") -> 
CB82: TextBoxDatapath | CE82: TRUE | CF82: Textbox | CI82: TRUE | CJ82: 18 | CK82: 150 | CN82: FALSE | CO82: 255 | CP82: TextBoxDatapath | CT82: =N18 -> C:\PROGRAMDATA\SAGE\ACCOUNTS\2025\COMPANY.001\Accdata | CU82: 306 | CV82: =N18 -> C:\PROGRAMDATA\SAGE\ACCOUNTS\2025\COMPANY.001\Accdata | CW82: TRUE | CX82: 300 | CY82: TextBoxDatapath | CZ82: FALSE | DA82: 9 | DB82: 0 | DC82: FALSE | DD82: 470 | EA82: =IF(EB82<>"",IF(ISNA(MATCH(EC82,INDIRECT("'"&OFFSET(xlRDS!$BO$1,MATCH(TRUE,xlRDS!$BO:$BO,0)-1,-5,1,1)&"'!$1:$1"),0)),"Calculated",MATCH(EC82,INDIRECT("'"&OFFSET(xlRDS!$BO$1,MATCH(TRUE,xlRDS!$BO:$BO,0)-1,-5,1,1)&"'!$1:$1"),0)),"") -> 
CE83: FALSE | CG83: =CC83 -> 0 | CI83: FALSE | CK83: 150 | CU83: 306 | CW83: FALSE | CX83: 0 | CZ83: FALSE | DA83: 9 | DB83: 0 | DC83: FALSE | DD83: 0 | EA83: =IF(EB83<>"",IF(ISNA(MATCH(EC83,INDIRECT("'"&OFFSET(xlRDS!$BO$1,MATCH(TRUE,xlRDS!$BO:$BO,0)-1,-5,1,1)&"'!$1:$1"),0)),"Calculated",MATCH(EC83,INDIRECT("'"&OFFSET(xlRDS!$BO$1,MATCH(TRUE,xlRDS!$BO:$BO,0)-1,-5,1,1)&"'!$1:$1"),0)),"") -> 
CE84: FALSE | CG84: =CC84 -> 0 | CI84: FALSE | CK84: 150 | CU84: 306 | CW84: FALSE | CX84: 0 | CZ84: FALSE | DA84: 9 | DB84: 0 | DC84: FALSE | DD84: 0 | EA84: =IF(EB84<>"",IF(ISNA(MATCH(EC84,INDIRECT("'"&OFFSET(xlRDS!$BO$1,MATCH(TRUE,xlRDS!$BO:$BO,0)-1,-5,1,1)&"'!$1:$1"),0)),"Calculated",MATCH(EC84,INDIRECT("'"&OFFSET(xlRDS!$BO$1,MATCH(TRUE,xlRDS!$BO:$BO,0)-1,-5,1,1)&"'!$1:$1"),0)),"") -> 
CE85: FALSE | CG85: =CC85 -> 0 | CI85: FALSE | CK85: 150 | CU85: 306 | CW85: FALSE | CX85: 0 | CZ85: FALSE | DA85: 9 | DB85: 0 | DC85: FALSE | DD85: 0 | EA85: =IF(EB85<>"",IF(ISNA(MATCH(EC85,INDIRECT("'"&OFFSET(xlRDS!$BO$1,MATCH(TRUE,xlRDS!$BO:$BO,0)-1,-5,1,1)&"'!$1:$1"),0)),"Calculated",MATCH(EC85,INDIRECT("'"&OFFSET(xlRDS!$BO$1,MATCH(TRUE,xlRDS!$BO:$BO,0)-1,-5,1,1)&"'!$1:$1"),0)),"") -> 
CB86: LabelStep8_1 | CE86: TRUE | CF86: Label | CI86: TRUE | CJ86: 18 | CK86: 10 | CP86: LableStep8_1 | CU86: 342 | CW86: TRUE | CX86: 20 | CY86: LabelStep8_1 | CZ86: TRUE | DA86: 10 | DB86: 0 | DC86: FALSE | DD86: 50 | EA86: =IF(EB86<>"",IF(ISNA(MATCH(EC86,INDIRECT("'"&OFFSET(xlRDS!$BO$1,MATCH(TRUE,xlRDS!$BO:$BO,0)-1,-5,1,1)&"'!$1:$1"),0)),"Calculated",MATCH(EC86,INDIRECT("'"&OFFSET(xlRDS!$BO$1,MATCH(TRUE,xlRDS!$BO:$BO,0)-1,-5,1,1)&"'!$1:$1"),0)),"") -> 
CB87: LabelStepReportName | CE87: TRUE | CF87: Label | CG87: Report Name | CI87: TRUE | CJ87: 18 | CK87: 40 | CP87: LabelStepReportName | CU87: 342 | CW87: TRUE | CX87: 100 | CY87: LabelStepReportName | CZ87: FALSE | DA87: 10 | DB87: 0 | DC87: FALSE | DD87: 160 | EA87: =IF(EB87<>"",IF(ISNA(MATCH(EC87,INDIRECT("'"&OFFSET(xlRDS!$BO$1,MATCH(TRUE,xlRDS!$BO:$BO,0)-1,-5,1,1)&"'!$1:$1"),0)),"Calculated",MATCH(EC87,INDIRECT("'"&OFFSET(xlRDS!$BO$1,MATCH(TRUE,xlRDS!$BO:$BO,0)-1,-5,1,1)&"'!$1:$1"),0)),"") -> 
CB88: TextBoxReportName | CE88: TRUE | CF88: Textbox | CG88: =CC88 -> 0 | CI88: TRUE | CJ88: 18 | CK88: 150 | CN88: FALSE | CO88: 100 | CP88: TextBoxShowProgress | CT88: =CV88 -> Trial Balance | CU88: 342 | CV88: =M53 -> Trial Balance | CW88: TRUE | CX88: 200 | CY88: TextBoxReportName | CZ88: FALSE | DA88: 10 | DB88: 0 | DC88: FALSE | DD88: 370 | EA88: =IF(EB88<>"",IF(ISNA(MATCH(EC88,INDIRECT("'"&OFFSET(xlRDS!$BO$1,MATCH(TRUE,xlRDS!$BO:$BO,0)-1,-5,1,1)&"'!$1:$1"),0)),"Calculated",MATCH(EC88,INDIRECT("'"&OFFSET(xlRDS!$BO$1,MATCH(TRUE,xlRDS!$BO:$BO,0)-1,-5,1,1)&"'!$1:$1"),0)),"") -> 
CB89: CheckBoxShowProgress | CE89: TRUE | CF89: CheckBox | CG89: Show Progress | CI89: TRUE | CJ89: 18 | CK89: 40 | CN89: FALSE | CP89: CheckBoxShowProgress | CU89: 378 | CV89: =N35 -> FALSE | CW89: TRUE | CX89: 100 | CY89: CheckBoxShowProgress | CZ89: TRUE | DA89: 11 | DB89: 40 | DC89: TRUE | DD89: 160 | EA89: =IF(EB89<>"",IF(ISNA(MATCH(EC89,INDIRECT("'"&OFFSET(xlRDS!$BO$1,MATCH(TRUE,xlRDS!$BO:$BO,0)-1,-5,1,1)&"'!$1:$1"),0)),"Calculated",MATCH(EC89,INDIRECT("'"&OFFSET(xlRDS!$BO$1,MATCH(TRUE,xlRDS!$BO:$BO,0)-1,-5,1,1)&"'!$1:$1"),0)),"") -> 
CB90: LabelReportRef | CE90: TRUE | CF90: Label | CG90: Report Reference | CI90: TRUE | CJ90: 18 | CK90: 150 | CP90: =IF(CY90<>"",CY90,"") -> LabelReportRef | CU90: 378 | CW90: TRUE | CX90: 100 | CY90: LabelReportRef | CZ90: FALSE | DA90: 11 | DB90: 0 | DC90: FALSE | DD90: 270 | EA90: =IF(EB90<>"",IF(ISNA(MATCH(EC90,INDIRECT("'"&OFFSET(xlRDS!$BO$1,MATCH(TRUE,xlRDS!$BO:$BO,0)-1,-5,1,1)&"'!$1:$1"),0)),"Calculated",MATCH(EC90,INDIRECT("'"&OFFSET(xlRDS!$BO$1,MATCH(TRUE,xlRDS!$BO:$BO,0)-1,-5,1,1)&"'!$1:$1"),0)),"") -> 
CB91: TextBoxReportRef | CE91: TRUE | CF91: Textbox | CG91: Report Reference | CI91: FALSE | CJ91: 18 | CK91: 260 | CN91: TRUE | CO91: 12 | CP91: TextBoxReportRef | CT91: =CV91 -> V2024 | CU91: 378 | CV91: =M36 -> V2024 | CW91: TRUE | CX91: 100 | CY91: TextBoxReportRef | CZ91: FALSE | DA91: 11 | DB91: 0 | DC91: FALSE | DD91: 380 | EA91: =IF(EB91<>"",IF(ISNA(MATCH(EC91,INDIRECT("'"&OFFSET(xlRDS!$BO$1,MATCH(TRUE,xlRDS!$BO:$BO,0)-1,-5,1,1)&"'!$1:$1"),0)),"Calculated",MATCH(EC91,INDIRECT("'"&OFFSET(xlRDS!$BO$1,MATCH(TRUE,xlRDS!$BO:$BO,0)-1,-5,1,1)&"'!$1:$1"),0)),"") -> 
CE92: FALSE | CG92: =CC92 -> 0 | CI92: FALSE | CK92: 260 | CU92: 378 | CW92: FALSE | CX92: 0 | CZ92: FALSE | DA92: 11 | DB92: 0 | DC92: FALSE | DD92: 0 | EA92: =IF(EB92<>"",IF(ISNA(MATCH(EC92,INDIRECT("'"&OFFSET(xlRDS!$BO$1,MATCH(TRUE,xlRDS!$BO:$BO,0)-1,-5,1,1)&"'!$1:$1"),0)),"Calculated",MATCH(EC92,INDIRECT("'"&OFFSET(xlRDS!$BO$1,MATCH(TRUE,xlRDS!$BO:$BO,0)-1,-5,1,1)&"'!$1:$1"),0)),"") -> 
CE93: FALSE | CG93: =CC93 -> 0 | CI93: FALSE | CK93: 260 | CU93: 378 | CW93: FALSE | CX93: 0 | CZ93: FALSE | DA93: 11 | DB93: 0 | DC93: FALSE | DD93: 0 | EA93: =IF(EB93<>"",IF(ISNA(MATCH(EC93,INDIRECT("'"&OFFSET(xlRDS!$BO$1,MATCH(TRUE,xlRDS!$BO:$BO,0)-1,-5,1,1)&"'!$1:$1"),0)),"Calculated",MATCH(EC93,INDIRECT("'"&OFFSET(xlRDS!$BO$1,MATCH(TRUE,xlRDS!$BO:$BO,0)-1,-5,1,1)&"'!$1:$1"),0)),"") -> 
